Workbook

Sheet CARmdldata (hidden)
A1: Carrosserie | M1: Spécifications techniques
M3: Enseignants | P3: Préalables | Q3: incompatible | R3: Distribution | S3: Équipements | T3: Équipements
A4: No | B4: Prog. | C4: Code | D4: Module | E4: Durée | F4: Ponction | G4: Ponction Description | H4: L'an passé | I4: Cette Année | J4: L'an proch. | K4: Enseignant | L4: Commentaires | M4: maintenant | N4: après prép. | O4: à venir | P4: (Requis pour…) | R4: (Idéal) | S4: Spécifique | T4: Partager
A5: 1 | B5: CAR | C5: 340012 | D5: Situation en regard du métier | E5: 30 | F5: 4 | G5: ATE et Récupération | H5: 0 | I5: =E5-F5-H5-J5 -> 26 | J5: 0
A6: 2 | B6: CAR | C6: 340021 | D6: Santé et sécurité du travail | E6: 15 | F6: 2 | G6: ATE et Récupération | H6: 0 | I6: 13 | J6: 0
A7: 3 | B7: CAR | C7: 340032 | D7: Plans et traçage des patrons | E7: 30 | F7: 4 | G7: ATE et Récupération | H7: 0 | I7: 26 | J7: 0
A8: 4 | B8: CAR | C8: 340044 | D8: Travail général d'atelier | E8: 60 | F8: 14 | G8: ATE et Récupération | H8: 0 | I8: 46 | J8: 0
A9: 5 | B9: CAR | C9: 340052 | D9: Construction-caractéristiques | E9: 30 | F9: 4 | G9: ATE et Récupération | H9: 0 | I9: 26 | J9: 0
A10: 6 | B10: CAR | C10: 340063 | D10: Soudage et découpage | E10: 45 | F10: 6 | G10: ATE et Récupération | H10: 0 | I10: 39 | J10: 0
A11: 7 | B11: CAR | C11: 340076 | D11: Fabric.-pièces de remplacement | E11: 90 | F11: 18 | G11: ATE et Récupération | H11: 0 | I11: 72 | J11: 0
A12: 8 | B12: CAR | C12: 340085 | D12: Réparation-éléments bosselés | E12: 75 | F12: 3 | G12: ATE et Récupération | H12: 0 | I12: 72 | J12: 0
A13: 9 | B13: CAR | C13: 340095 | D13: Soudage métaux-MIG, par points | E13: 75 | F13: 3 | G13: ATE et Récupération | H13: 0 | I13: 72 | J13: 0
A14: 10 | B14: CAR | C14: 340103 | D14: Répar. circuits électriques | E14: 45 | F14: 6 | G14: ATE et Récupération | H14: 0 | I14: 39 | J14: 0
A15: 11 | B15: CAR | C15: 340114 | D15: Access. répar., rempl., install. | E15: 60 | F15: 20 | G15: ATE et Récupération | H15: 0 | I15: 40 | J15: 0
A16: 12 | B16: CAR | C16: 340122 | D16: Plastiques soudage collage | E16: 30 | F16: 4 | G16: ATE et Récupération | H16: 0 | I16: 26 | J16: 0
A17: 13 | B17: CAR | C17: 340133 | D17: Vitres, glaces et garnitures | E17: 45 | F17: 6 | G17: ATE et Récupération | H17: 0 | I17: 39 | J17: 0
A18: 14 | B18: CAR | C18: 340153 | D18: Répar. en plastique renforcé | E18: 45 | F18: 6 | G18: ATE et Récupération | H18: 0 | I18: 39 | J18: 0
A19: 15 | B19: CAR | C19: 340154 | D19: Répar. au plastique et plomb | E19: 60 | F19: 8 | G19: ATE et Récupération | H19: 0 | I19: 52 | J19: 0
A20: 16 | B20: CAR | C20: 340168 | D20: Préparation pour la peinture | E20: 120 | F20: 16 | G20: ATE et Récupération | H20: 0 | I20: 104 | J20: 0
A21: 17 | B21: CAR | C21: 340174 | D21: Ajustement des couleurs | E21: 60 | F21: 16 | G21: ATE et Récupération | H21: 0 | I21: 44 | J21: 0
A22: 18 | B22: CAR | C22: 340188 | D22: Application de la peinture | E22: 120 | F22: 22 | G22: ATE et Récupération | H22: 0 | I22: 98 | J22: 0
A23: 19 | B23: CAR | C23: 340192 | D23: Préparation pour la livraison | E23: 30 | F23: 4 | G23: ATE et Récupération | H23: 0 | I23: 26 | J23: 0
A24: 20 | B24: CAR | C24: 340214 | D24: Remplac. d'éléments amovibles | E24: 60 | F24: 14 | G24: ATE et Récupération | H24: 0 | I24: 46 | J24: 0
A25: 21 | B25: CAR | C25: 340217 | D25: Remplac. d'organes mécaniques | E25: 105 | F25: 15 | G25: ATE et Récupération | H25: 0 | I25: 90 | J25: 0
A26: 22 | B26: CAR | C26: 340222 | D26: Systèmes refroid. et climatis. | E26: 30 | F26: 4 | G26: ATE et Récupération | H26: 0 | I26: 26 | J26: 0
A27: 23 | B27: CAR | C27: 340235 | D27: Répar. en tôle acier-aluminium | E27: 75 | F27: 24 | G27: ATE et Récupération | H27: 0 | I27: 51 | J27: 0
A28: 24 | B28: CAR | C28: 340253 | D28: Mesurage et contrôle | E28: 45 | F28: 6 | G28: ATE et Récupération | H28: 0 | I28: 39 | J28: 0
A29: 25 | B29: CAR | C29: 340258 | D29: Répar. élément. structurels soudés | E29: 120 | F29: 14 | G29: ATE et Récupération | H29: 0 | I29: 106 | J29: 0
A30: 26 | B30: CAR | C30: 340261 | D30: Moyen de recherche d'emploi | E30: 15 | F30: 2 | G30: ATE et Récupération | H30: 0 | I30: 13 | J30: 0
A31: 27 | B31: CAR | C31: 340275 | D31: Intégration, milieu de travail | E31: 75 | F31: 75 | G31: ATE et Récupération | H31: 0 | I31: 0 | J31: 0
A32: 28 | H32: 0 | I32: 0 | J32: 0
A33: 29 | H33: 0 | I33: 0 | J33: 0
A34: 30 | H34: 0 | I34: 0 | J34: 0
A35: 31 | H35: 0 | I35: 0 | J35: 0
A36: 32 | H36: 0 | I36: 0 | J36: 0
A37: 33 | H37: 0 | I37: 0 | J37: 0
A38: 34 | H38: 0 | I38: 0 | J38: 0
A39: 35 | H39: 0 | I39: 0 | J39: 0
A40: 36 | H40: 0 | I40: 0 | J40: 0
A41: 37 | H41: 0 | I41: 0 | J41: 0
A42: 38 | H42: 0 | I42: 0 | J42: 0
A43: 39 | H43: 0 | I43: 0 | J43: 0
A44: 40 | H44: 0 | I44: 0 | J44: 0
A45: 90 | D45: Doublon CEP ATE (Récup. et éval.) | E45: 0 | F45: -116 | G45: Récupération | H45: 0 | I45: 116 | J45: 0
A46: 91 | D46: ATE 1ère partie supervisé à 100% (Stage d'observation) | E46: 0 | F46: -30 | H46: 0 | I46: 30 | J46: 0
A47: 92 | D47: ATE 2ième partie supervisé (Apprenti-carrossier et spécialisation) | E47: 0 | F47: -54 | G47: ATE | H47: 0 | I47: 54 | J47: 0
A48: 93 | D48: ATE 2ième partie non supervisé | E48: 36 | F48: 0 | G48: ATE | H48: 0 | I48: 36 | J48: 0
A49: 94 | D49: ATE 3ième partie supervisé( Apprenti-Peintre) | E49: 0 | F49: -66 | G49: ATE | H49: 0 | I49: 66 | J49: 0
A50: 95 | D50: ATE 3ième partie non supervisé | E50: 44 | G50: ATE | H50: 0 | I50: 44 | J50: 0
A51: 96 | D51: ATE 4ième partie supervisé(Apprenti-débosseleur et Intégration au milieu de travail) | E51: 0 | F51: -54 | G51: ATE | H51: 0 | I51: 54 | J51: 0
A52: 97 | D52: ATE 4ième partie non supervisé | E52: 36 | G52: ATE | H52: 0 | I52: 36 | J52: 0
A53: 98 | H53: 0 | I53: 0 | J53: 0
A54: 99 | D54: Réservé Organisation scolaire | H54: 0 | I54: =E54-F54-H54-J54 -> 0 | J54: 0
D55: total programme : | E55: =SUM(E5:E54) -> 1706 | F55: =SUM(F5:F54) -> 0 | H55: =SUM(H5:H54) -> 0 | I55: =SUM(I5:I54) -> 1706 | J55: =SUM(J5:J54) -> 0 | K55: =SUM(H55:J55) -> 1706 | L55: =total formation
D57: * 1590 + 116 heures en doublon = 1706 | G57: ** Heures ate total = 320
D58: à placer dans l'horaire

Sheet DESmdldata (hidden)
A1: Dessin industriel | M1: Spécifications techniques
M3: Enseignants | P3: Préalables | Q3: incompatible | R3: Distribution | S3: Équipements | T3: Équipements
A4: No | B4: Prog. | C4: Code | D4: Module | E4: Durée | F4: Ponction | G4: Ponction Description | H4: L'an passé | I4: Cette Année | J4: L'an proch. | K4: Enseignant | L4: Commentaires | M4: maintenant | N4: après prép. | O4: à venir | P4: (Requis pour…) | R4: (Idéal) | S4: Spécifique | T4: Partager
A5: 1 | B5: DEI | C5: 372311 | D5: Métier et formation | E5: 15 | F5: 0 | H5: 0 | I5: =E5-F5-H5-J5 -> 15 | J5: 0
A6: 2 | B6: DEI | C6: 372324 | D6: Résolution probl. / dessin ind. | E6: 60 | F6: 0 | H6: 0 | I6: 60 | J6: 0
A7: 3 | B7: DEI | C7: 372035 | D7: Interprétation / dessins tech. | E7: 75 | F7: 0 | H7: 0 | I7: 75 | J7: 0
A8: 4 | B8: DEI | C8: 372335 | D8: Dessin de croquis | E8: 75 | F8: 0 | H8: 0 | I8: 75 | J8: 0
A9: 5 | B9: DEI | C9: 372345 | D9: Exploitation / poste informatisé | E9: 75 | F9: 0 | H9: 0 | I9: 75 | J9: 0
A10: 6 | B10: DEI | C10: 372356 | D10: Dessin de détail | E10: 90 | F10: 0 | H10: 0 | I10: 90 | J10: 0
A11: 7 | B11: DEI | C11: 372364 | D11: Dessin d'organes de liaison | E11: 60 | F11: 0 | H11: 0 | I11: 60 | J11: 0
A12: 8 | B12: DEI | C12: 372373 | D12: Agencement / pièces sur dessin | E12: 45 | F12: 0 | H12: 0 | I12: 45 | J12: 0
A13: 9 | B13: DEI | C13: 372386 | D13: Matériaux, procédés industriels | E13: 90 | F13: 0 | H13: 0 | I13: 90 | J13: 0
A14: 10 | B14: DEI | C14: 372395 | D14: Dessin d'ensemble | E14: 75 | F14: 0 | H14: 0 | I14: 75 | J14: 0
A15: 11 | B15: DEI | C15: 372407 | D15: Fonctions spéc. logiciel dessin | E15: 105 | F15: 0 | H15: 0 | I15: 105 | J15: 0
A16: 12 | B16: DEI | C16: 372054 | D16: Relevé, interprétation mesures | E16: 60 | F16: 0 | H16: 0 | I16: 60 | J16: 0
A17: 13 | B17: DEI | C17: 372414 | D17: Tolérances dimensionnelles | E17: 60 | F17: 0 | H17: 0 | I17: 60 | J17: 0
A18: 14 | B18: DEI | C18: 372421 | D18: Correction d'un dessin | E18: 15 | F18: 0 | H18: 0 | I18: 15 | J18: 0
A19: 15 | B19: DEI | C19: 372436 | D19: Dessin d'organes transmission | E19: 90 | F19: 0 | H19: 0 | I19: 90 | J19: 0
A20: 16 | B20: DEI | C20: 372446 | D20: Dessin de développement | E20: 90 | F20: 0 | H20: 0 | I20: 90 | J20: 0
A21: 17 | B21: DEI | C21: 372456 | D21: Modélisation d'un objet | E21: 90 | F21: 0 | H21: 0 | I21: 90 | J21: 0
A22: 18 | B22: DEI | C22: 372466 | D22: Dessin de détails / mécanisme | E22: 90 | F22: 0 | H22: 0 | I22: 90 | J22: 0
A23: 19 | B23: DEI | C23: 372476 | D23: Schéma / canalisations, circuits | E23: 90 | F23: 0 | H23: 0 | I23: 90 | J23: 0
A24: 20 | B24: DEI | C24: 372482 | D24: Recherche et création d'emploi | E24: 30 | F24: 0 | H24: 0 | I24: 30 | J24: 0
A25: 21 | B25: DEI | C25: 372495 | D25: Dessin d'un système mécanique | E25: 75 | F25: 0 | H25: 0 | I25: 75 | J25: 0
A26: 22 | B26: DEI | C26: 372507 | D26: Dessin d'un bâti de machines | E26: 105 | F26: 0 | H26: 0 | I26: 105 | J26: 0
A27: 23 | B27: DEI | C27: 372153 | D27: Nouvelles organisat. du travail | E27: 45 | F27: 0 | H27: 0 | I27: 45 | J27: 0
A28: 24 | B28: DEI | C28: 372517 | D28: Conception d'un objet simple | E28: 105 | F28: 0 | H28: 0 | I28: 105 | J28: 0
A29: 25 | B29: DEI | C29: 372526 | D29: Intégration / marché du travail | E29: 90 | F29: 0 | H29: 0 | I29: 90 | J29: 0
A30: 26 | F30: 0 | H30: 0 | I30: 0 | J30: 0
A31: 27 | F31: 0 | H31: 0 | I31: 0 | J31: 0
A32: 28 | F32: 0 | H32: 0 | I32: 0 | J32: 0
A33: 29 | F33: 0 | H33: 0 | I33: 0 | J33: 0
A34: 30 | F34: 0 | H34: 0 | I34: 0 | J34: 0
A35: 31 | F35: 0 | H35: 0 | I35: 0 | J35: 0
A36: 32 | F36: 0 | H36: 0 | I36: 0 | J36: 0
A37: 33 | F37: 0 | H37: 0 | I37: =E37-F37-H37-J37 -> 0 | J37: 0
A38: 34 | F38: 0 | H38: 0 | I38: 0 | J38: 0
A39: 35 | F39: 0 | H39: 0 | I39: 0 | J39: 0
A40: 36 | F40: 0 | H40: 0 | I40: 0 | J40: 0
A41: 37 | F41: 0 | H41: 0 | I41: 0 | J41: 0
A42: 38 | F42: 0 | H42: 0 | I42: 0 | J42: 0
A43: 39 | F43: 0 | H43: 0 | I43: 0 | J43: 0
A44: 40 | F44: 0 | H44: 0 | I44: 0 | J44: 0
A45: 90 | F45: 0 | H45: 0 | I45: 0 | J45: 0
A46: 91 | F46: 0 | H46: 0 | I46: 0 | J46: 0
A47: 92 | F47: 0 | H47: 0 | I47: 0 | J47: 0
A48: 93 | F48: 0 | H48: 0 | I48: 0 | J48: 0
A49: 94 | F49: 0 | H49: 0 | I49: 0 | J49: 0
A50: 95 | F50: 0 | H50: 0 | I50: 0 | J50: 0
A51: 96 | F51: 0 | H51: 0 | I51: 0 | J51: 0
A52: 97 | F52: 0 | H52: 0 | I52: 0 | J52: 0
A53: 98 | F53: 0 | H53: 0 | I53: 0 | J53: 0
A54: 99 | D54: Réservé Organisation scolaire | F54: 0 | H54: 0 | I54: 0 | J54: 0
D55: total programme : | E55: =SUM(E5:E54) -> 1800 | F55: =SUM(F5:F54) -> 0 | H55: =SUM(H5:H54) -> 0 | I55: =SUM(I5:I54) -> 1800 | J55: =SUM(J5:J54) -> 0 | K55: =SUM(H55:J55) -> 1800 | L55: =total formation

Sheet EEmdldata (hidden)
A1: Électricité d'entretien | M1: Spécifications techniques
M3: Enseignants | P3: Préalables | Q3: incompatible | R3: Distribution | S3: Équipements | T3: Équipements
A4: No | B4: Prog. | C4: Code | D4: Module | E4: Durée | F4: Ponction | G4: Ponction Description | H4: L'an passé | I4: Cette Année | J4: L'an proch. | K4: Enseignant | L4: Commentaires | M4: maintenant | N4: après prép. | O4: à venir | P4: (Requis pour…) | R4: (Idéal) | S4: Spécifique | T4: Partager
A5: 1 | B5: EE | C5: 283211 | D5: Métier et formation | E5: 15 | F5: 0 | H5: 0 | I5: =E5-F5-H5-J5 -> 15 | J5: 0
A6: 2 | B6: EE | C6: 342052 | D6: Santé et sécurité au travail | E6: 30 | F6: 0 | H6: 0 | I6: 30 | J6: 0
A7: 3 | B7: EE | C7: 286056 | D7: Analyse d'un circuit à C.C. | E7: 90 | F7: 0 | H7: 0 | I7: 90 | J7: 0
A8: 4 | B8: EE | C8: 286034 | D8: Utilisation: outillage, ancrages | E8: 60 | F8: 0 | H8: 0 | I8: 60 | J8: 0
A9: 5 | B9: EE | C9: 286123 | D9: Traçage de croquis et schémas | E9: 45 | F9: 0 | H9: 0 | I9: 45 | J9: 0
A10: 6 | B10: EE | C10: 283223 | D10: Utilisation: manuels, plans | E10: 45 | F10: 0 | H10: 0 | I10: 45 | J10: 0
A11: 7 | B11: EE | C11: 286115 | D11: Analyse d'un circuit à C.A. | E11: 75 | F11: 0 | H11: 0 | I11: 75 | J11: 0
A12: 8 | B12: EE | C12: 283236 | D12: Install. matériel distribution | E12: 90 | F12: 0 | H12: 0 | I12: 90 | J12: 0
A13: 9 | B13: EE | C13: 286291 | D13: Communication professionnelle | E13: 15 | F13: 0 | H13: 0 | I13: 15 | J13: 0
A14: 10 | B14: EE | C14: 343192 | D14: Utilisation micro-ordinateur | E14: 30 | F14: 0 | H14: 0 | I14: 30 | J14: 0
A15: 11 | B15: EE | C15: 343076 | D15: Circuits à semi-conducteurs | E15: 90 | F15: 0 | H15: 0 | I15: 90 | J15: 0
A16: 12 | B16: EE | C16: 283246 | D16: Install. systèmes électriques | E16: 90 | F16: 0 | H16: 0 | I16: 90 | J16: 0
A17: 13 | B17: EE | C17: 283393 | D17: Logique combinatoire | E17: 45 | F17: 0 | H17: 0 | I17: 45 | J17: 0
A18: 14 | B18: EE | C18: 283256 | D18: Install. équipement industriel | E18: 90 | F18: 0 | H18: 0 | I18: 90 | J18: 0
A19: 15 | B19: EE | C19: 283384 | D19: Logique séquentielle | E19: 60 | F19: 0 | H19: 0 | I19: 60 | J19: 0
A20: 16 | B20: EE | C20: 283262 | D20: Iniation au métier | E20: 30 | F20: 0 | H20: 0 | I20: 30 | J20: 0
A21: 17 | B21: EE | C21: 283274 | D21: Procédés industriels | E21: 60 | F21: 0 | H21: 0 | I21: 60 | J21: 0
A22: 18 | B22: EE | C22: 283286 | D22: Modif. systèmes électriques | E22: 90 | F22: 0 | H22: 0 | I22: 90 | J22: 0
A23: 19 | B23: EE | C23: 283295 | D23: Rép. commande de moteur à C.C. | E23: 75 | F23: 0 | H23: 0 | I23: 75 | J23: 0
A24: 20 | B24: EE | C24: 283306 | D24: Rép. commande de moteur à C.A. | E24: 90 | F24: 0 | H24: 0 | I24: 90 | J24: 0
A25: 21 | B25: EE | C25: 283316 | D25: Électronique de puissance | E25: 90 | F25: 0 | H25: 0 | I25: 90 | J25: 0
A26: 22 | B26: EE | C26: 283323 | D26: Maintenance préventive | E26: 45 | F26: 0 | H26: 0 | I26: 45 | J26: 0
A27: 23 | B27: EE | C27: 28337 | D27: Modifications de programmes | E27: 105 | F27: 0 | H27: 0 | I27: 105 | J27: 0
A28: 24 | B28: EE | C28: 283346 | D28: Circuits fluidiques | E28: 90 | F28: 0 | H28: 0 | I28: 90 | J28: 0
A29: 25 | B29: EE | C29: 283353 | D29: Instrumentation industrielle | E29: 45 | F29: 0 | H29: 0 | I29: 45 | J29: 0
A30: 26 | B30: EE | C30: 283367 | D30: Réparation système automatisé | E30: 105 | F30: 0 | H30: 0 | I30: 105 | J30: 0
A31: 27 | B31: EE | C31: 283376 | D31: Intégration au travail | E31: 90 | F31: 0 | H31: 0 | I31: 90 | J31: 0
A32: 28 | B32: EE | C32: 343121 | D32: Moyens de recherche d'emploi | E32: 15 | F32: 0 | H32: 0 | I32: 15 | J32: 0
A33: 29 | F33: 0 | H33: 0 | I33: 0 | J33: 0
A34: 30 | F34: 0 | H34: 0 | I34: 0 | J34: 0
A35: 31 | F35: 0 | H35: 0 | I35: 0 | J35: 0
A36: 32 | F36: 0 | H36: 0 | I36: 0 | J36: 0
A37: 33 | F37: 0 | H37: 0 | I37: 0 | J37: 0
A38: 34 | F38: 0 | H38: 0 | I38: 0 | J38: 0
A39: 35 | F39: 0 | H39: 0 | I39: 0 | J39: 0
A40: 36 | F40: 0 | H40: 0 | I40: 0 | J40: 0
A41: 37 | F41: 0 | H41: 0 | I41: =E41-F41-H41-J41 -> 0 | J41: 0
A42: 38 | F42: 0 | H42: 0 | I42: 0 | J42: 0
A43: 39 | F43: 0 | H43: 0 | I43: 0 | J43: 0
A44: 40 | F44: 0 | H44: 0 | I44: 0 | J44: 0
A45: 90 | F45: 0 | H45: 0 | I45: 0 | J45: 0
A46: 91 | F46: 0 | H46: 0 | I46: 0 | J46: 0
A47: 92 | F47: 0 | H47: 0 | I47: 0 | J47: 0
A48: 93 | F48: 0 | H48: 0 | I48: 0 | J48: 0
A49: 94 | F49: 0 | H49: 0 | I49: 0 | J49: 0
A50: 95 | F50: 0 | H50: 0 | I50: 0 | J50: 0
A51: 96 | F51: 0 | H51: 0 | I51: 0 | J51: 0
A52: 97 | F52: 0 | H52: 0 | I52: 0 | J52: 0
A53: 98 | F53: 0 | H53: 0 | I53: 0 | J53: 0
A54: 99 | D54: Réservé Organisation scolaire | F54: 0 | H54: 0 | I54: 0 | J54: 0
D55: total programme : | E55: =SUM(E5:E54) -> 1800 | F55: =SUM(F5:F54) -> 0 | H55: =SUM(H5:H54) -> 0 | I55: =SUM(I5:I54) -> 1800 | J55: =SUM(J5:J54) -> 0 | K55: =SUM(H55:J55) -> 1800 | L55: =total formation

Sheet ELmdldata (hidden)
A1: Électricité | M1: Spécifications techniques
M3: Enseignants | P3: Préalables | Q3: incompatible | R3: Distribution | S3: Équipements | T3: Équipements
A4: No | B4: Prog. | C4: Code | D4: Module | E4: Durée | F4: Ponction | G4: Ponction Description | H4: L'an passé | I4: Cette Année | J4: L'an proch. | K4: Enseignant | L4: Commentaires | M4: maintenant | N4: après prép. | O4: à venir | P4: (Requis pour…) | R4: (Idéal) | S4: Spécifique | T4: Partager
A5: 1 | B5: EL | C5: 283401 | D5: Métier et formation | E5: 15 | F5: 0 | H5: 0 | I5: =E5-F5-H5-J5 -> 15 | J5: 0
A6: 2 | B6: EL | C6: 254992 | D6: Santé sécurité: construction | E6: 30 | F6: 0 | H6: 0 | I6: 30 | J6: 0
A7: 3 | B7: EL | C7: 283412 | D7: Utilisation d'un ordinateur | E7: 30 | F7: 0 | H7: 0 | I7: 30 | J7: 0
A8: 4 | B8: EL | C8: 283428 | D8: Circuits électriques | E8: 120 | F8: 0 | H8: 0 | I8: 120 | J8: 0
A9: 5 | B9: EL | C9: 283433 | D9: Croquis et schémas | E9: 45 | F9: 0 | H9: 0 | I9: 45 | J9: 0
A10: 6 | B10: EL | C10: 283445 | D10: Outillage | E10: 75 | F10: 0 | H10: 0 | I10: 75 | J10: 0
A11: 7 | B11: EL | C11: 283453 | D11: Manutention de matériel | E11: 45 | F11: 0 | H11: 0 | I11: 45 | J11: 0
A12: 8 | B12: EL | C12: 283466 | D12: Cables et canalisations | E12: 90 | F12: 0 | H12: 0 | I12: 90 | J12: 0
A13: 9 | B13: EL | C13: 283477 | D13: Circuits de dérivation résidentiels | E13: 105 | F13: 0 | H13: 0 | I13: 105 | J13: 0
A14: 10 | B14: EL | C14: 283484 | D14: Plans et manuels techniques | E14: 60 | F14: 0 | H14: 0 | I14: 60 | J14: 0
A15: 11 | B15: EL | C15: 283494 | D15: Transformateurs triphasés | E15: 60 | F15: 0 | H15: 0 | I15: 60 | J15: 0
A16: 12 | B16: EL | C16: 283506 | D16: Branchement électrique | E16: 90 | F16: 0 | H16: 0 | I16: 90 | J16: 0
A17: 13 | B17: EL | C17: 283517 | D17: Circuits électroniques | E17: 105 | F17: 0 | H17: 0 | I17: 105 | J17: 0
A18: 14 | B18: EL | C18: 283525 | D18: Circuits logiques | E18: 75 | F18: 0 | H18: 0 | I18: 75 | J18: 0
A19: 15 | B19: EL | C19: 283537 | D19: Systèmes d'éclairage | E19: 105 | F19: 0 | H19: 0 | I19: 105 | J19: 0
A20: 16 | B20: EL | C20: 283546 | D20: Systèmes de chauffage | E20: 90 | F20: 0 | H20: 0 | I20: 90 | J20: 0
A21: 17 | B21: EL | C21: 283555 | D21: Cablage de communication | E21: 75 | F21: 0 | H21: 0 | I21: 75 | J21: 0
A22: 18 | B22: EL | C22: 283564 | D22: Systèmes d'alarme incendie | E22: 60 | F22: 0 | H22: 0 | I22: 60 | J22: 0
A23: 19 | B23: EL | C23: 283578 | D23: Domotique et téléphonie | E23: 120 | F23: 0 | H23: 0 | I23: 120 | J23: 0
A24: 20 | B24: EL | C24: 283586 | D24: Machine rotatives C.C et C.A. monophasé | E24: 90 | F24: 0 | H24: 0 | I24: 90 | J24: 0
A25: 21 | B25: EL | C25: 283597 | D25: Machine rotatives triphasé | E25: 105 | F25: 0 | H25: 0 | I25: 105 | J25: 0
A26: 22 | B26: EL | C26: 283607 | D26: Automate programmable | E26: 105 | F26: 0 | H26: 0 | I26: 105 | J26: 0
A27: 23 | B27: EL | C27: 283615 | D27: Instrumentation électronique | E27: 75 | F27: 0 | H27: 0 | I27: 75 | J27: 0
A28: 24 | B28: EL | C28: 283622 | D28: Préparation au marché du travail | E28: 30 | F28: 0 | H28: 0 | I28: 30 | J28: 0
A29: 25 | F29: 0 | H29: 0 | I29: 0 | J29: 0
A30: 26 | F30: 0 | H30: 0 | I30: 0 | J30: 0
A31: 27 | F31: 0 | H31: 0 | I31: 0 | J31: 0
A32: 28 | F32: 0 | H32: 0 | I32: 0 | J32: 0
A33: 29 | F33: 0 | H33: 0 | I33: 0 | J33: 0
A34: 30 | F34: 0 | H34: 0 | I34: 0 | J34: 0
A35: 31 | F35: 0 | H35: 0 | I35: 0 | J35: 0
A36: 32 | F36: 0 | H36: 0 | I36: 0 | J36: 0
A37: 33 | F37: 0 | H37: 0 | I37: 0 | J37: 0
A38: 34 | F38: 0 | H38: 0 | I38: 0 | J38: 0
A39: 35 | F39: 0 | H39: 0 | I39: 0 | J39: 0
A40: 36 | F40: 0 | H40: 0 | I40: 0 | J40: 0
A41: 37 | F41: 0 | H41: 0 | I41: =E41-F41-H41-J41 -> 0 | J41: 0
A42: 38 | F42: 0 | H42: 0 | I42: 0 | J42: 0
A43: 39 | F43: 0 | H43: 0 | I43: 0 | J43: 0
A44: 40 | F44: 0 | H44: 0 | I44: 0 | J44: 0
A45: 90 | F45: 0 | H45: 0 | I45: 0 | J45: 0
A46: 91 | F46: 0 | H46: 0 | I46: 0 | J46: 0
A47: 92 | F47: 0 | H47: 0 | I47: 0 | J47: 0
A48: 93 | F48: 0 | H48: 0 | I48: 0 | J48: 0
A49: 94 | F49: 0 | H49: 0 | I49: 0 | J49: 0
A50: 95 | F50: 0 | H50: 0 | I50: 0 | J50: 0
A51: 96 | F51: 0 | H51: 0 | I51: 0 | J51: 0
A52: 97 | F52: 0 | H52: 0 | I52: 0 | J52: 0
A53: 98 | F53: 0 | H53: 0 | I53: 0 | J53: 0
A54: 99 | D54: Réservé Organisation scolaire | F54: 0 | H54: 0 | I54: 0 | J54: 0
D55: total programme : | E55: =SUM(E5:E54) -> 1800 | F55: =SUM(F5:F54) -> 0 | H55: =SUM(H5:H54) -> 0 | I55: =SUM(I5:I54) -> 1800 | J55: =SUM(J5:J54) -> 0 | K55: =SUM(H55:J55) -> 1800 | L55: =total formation

Sheet ECmdldata (hidden)
A1: Électricité de construction | M1: Spécifications techniques
M3: Enseignants | P3: Préalables | Q3: incompatible | R3: Distribution | S3: Équipements | T3: Équipements
A4: No | B4: Prog. | C4: Code | D4: Module | E4: Durée | F4: Ponction | G4: Ponction Description | H4: L'an passé | I4: Cette Année | J4: L'an proch. | K4: Enseignant | L4: Commentaires | M4: maintenant | N4: après prép. | O4: à venir | P4: (Requis pour…) | R4: (Idéal) | S4: Spécifique | T4: Partager
A5: 1 | B5: EC | C5: 286011 | D5: Métier et formation | E5: 15 | F5: 0 | H5: 0 | I5: =E5-F5-H5-J5 -> 15 | J5: 0
A6: 2 | B6: EC | C6: 255001 | D6: Organismes de la construction | E6: 15 | F6: 0 | H6: 0 | I6: 15 | J6: 0
A7: 3 | B7: EC | C7: 255002 | D7: Santé sécurité: construction | E7: 30 | F7: 0 | H7: 0 | I7: 30 | J7: 0
A8: 4 | B8: EC | C8: 286034 | D8: Utilisation: outilage, ancrages | E8: 60 | F8: 0 | H8: 0 | I8: 60 | J8: 0
A9: 5 | B9: EC | C9: 286123 | D9: Traçage de croquis et schémas | E9: 45 | F9: 0 | H9: 0 | I9: 45 | J9: 0
A10: 6 | B10: EC | C10: 286056 | D10: Analyse d'un circuit à C.C. | E10: 90 | F10: 0 | H10: 0 | I10: 90 | J10: 0
A11: 7 | B11: EC | C11: 286086 | D11: Câbles et canalisations | E11: 90 | F11: 0 | H11: 0 | I11: 90 | J11: 0
A12: 8 | B12: EC | C12: 286105 | D12: Sorties: éclairage, commodité | E12: 75 | F12: 0 | H12: 0 | I12: 75 | J12: 0
A13: 9 | B13: EC | C13: 286142 | D13: Échafaudages et gréage | E13: 30 | F13: 0 | H13: 0 | I13: 30 | J13: 0
A14: 10 | B14: EC | C14: 286291 | D14: Communication professionnelle | E14: 15 | F14: 0 | H14: 0 | I14: 15 | J14: 0
A15: 11 | B15: EC | C15: 286073 | D15: Utilisation de plans et devis | E15: 45 | F15: 0 | H15: 0 | I15: 45 | J15: 0
A16: 12 | B16: EC | C16: 286115 | D16: Analyse d'un circuit à C.A. | E16: 75 | F16: 0 | H16: 0 | I16: 75 | J16: 0
A17: 13 | B17: EC | C17: 286135 | D17: Branchements à basse tension | E17: 75 | F17: 0 | H17: 0 | I17: 75 | J17: 0
A18: 14 | B18: EC | C18: 286303 | D18: Installation de luminaires | E18: 45 | F18: 0 | H18: 0 | I18: 45 | J18: 0
A19: 15 | B19: EC | C19: 286313 | D19: Commandes à très basse tension | E19: 45 | F19: 0 | H19: 0 | I19: 45 | J19: 0
A20: 16 | B20: EC | C20: 286325 | D20: Install. de transformateurs | E20: 75 | F20: 0 | H20: 0 | I20: 75 | J20: 0
A21: 17 | B21: EC | C21: 286165 | D21: Install. systèmes de chauffage | E21: 75 | F21: 0 | H21: 0 | I21: 75 | J21: 0
A22: 18 | B22: EC | C22: 286334 | D22: Notions d'électronique | E22: 60 | F22: 0 | H22: 0 | I22: 60 | J22: 0
A23: 19 | B23: EC | C23: 286244 | D23: Install. systèmes avertisseurs | E23: 60 | F23: 0 | H23: 0 | I23: 60 | J23: 0
A24: 20 | B24: EC | C24: 283393 | D24: Logique combinatoire | E24: 45 | F24: 0 | H24: 0 | I24: 45 | J24: 0
A25: 21 | B25: EC | C25: 286185 | D25: Installation de moteurs à C.C. | E25: 75 | F25: 0 | H25: 0 | I25: 75 | J25: 0
A26: 22 | B26: EC | C26: 286195 | D26: Installation de moteurs à C.A. | E26: 75 | F26: 0 | H26: 0 | I26: 75 | J26: 0
A27: 23 | B27: EC | C27: 283384 | D27: Logique séquentielle | E27: 60 | F27: 0 | H27: 0 | I27: 60 | J27: 0
A28: 24 | B28: EC | C28: 286254 | D28: Installation d'automates prog. | E28: 60 | F28: 0 | H28: 0 | I28: 60 | J28: 0
A29: 25 | B29: EC | C29: 286281 | D29: Moyens de recherche d'emploi | E29: 15 | F29: 0 | H29: 0 | I29: 15 | J29: 0
A30: 26 | F30: 0 | H30: 0 | I30: 0 | J30: 0
A31: 27 | F31: 0 | H31: 0 | I31: 0 | J31: 0
A32: 28 | F32: 0 | H32: 0 | I32: 0 | J32: 0
A33: 29 | F33: 0 | H33: 0 | I33: 0 | J33: 0
A34: 30 | F34: 0 | H34: 0 | I34: 0 | J34: 0
A35: 31 | F35: 0 | H35: 0 | I35: 0 | J35: 0
A36: 32 | F36: 0 | H36: 0 | I36: 0 | J36: 0
A37: 33 | F37: 0 | H37: 0 | I37: 0 | J37: 0
A38: 34 | F38: 0 | H38: 0 | I38: 0 | J38: 0
A39: 35 | F39: 0 | H39: 0 | I39: 0 | J39: 0
A40: 36 | F40: 0 | H40: 0 | I40: 0 | J40: 0
A41: 37 | F41: 0 | H41: 0 | I41: =E41-F41-H41-J41 -> 0 | J41: 0
A42: 38 | F42: 0 | H42: 0 | I42: 0 | J42: 0
A43: 39 | F43: 0 | H43: 0 | I43: 0 | J43: 0
A44: 40 | F44: 0 | H44: 0 | I44: 0 | J44: 0
A45: 90 | F45: 0 | H45: 0 | I45: 0 | J45: 0
A46: 91 | F46: 0 | H46: 0 | I46: 0 | J46: 0
A47: 92 | F47: 0 | H47: 0 | I47: 0 | J47: 0
A48: 93 | F48: 0 | H48: 0 | I48: 0 | J48: 0
A49: 94 | F49: 0 | H49: 0 | I49: 0 | J49: 0
A50: 95 | F50: 0 | H50: 0 | I50: 0 | J50: 0
A51: 96 | F51: 0 | H51: 0 | I51: 0 | J51: 0
A52: 97 | F52: 0 | H52: 0 | I52: 0 | J52: 0
A53: 98 | F53: 0 | H53: 0 | I53: 0 | J53: 0
A54: 99 | D54: Réservé Organisation scolaire | F54: 0 | H54: 0 | I54: 0 | J54: 0
D55: total programme : | E55: =SUM(E5:E54) -> 1350 | F55: =SUM(F5:F54) -> 0 | H55: =SUM(H5:H54) -> 0 | I55: =SUM(I5:I54) -> 1350 | J55: =SUM(J5:J54) -> 0 | K55: =SUM(H55:J55) -> 1350 | L55: =total formation

Sheet ESAmdldata (hidden)
A1: Électromécanique de systèmes automatisés | M1: Spécifications techniques
M3: Enseignants | P3: Préalables | Q3: incompatible | R3: Distribution | S3: Équipements | T3: Équipements
A4: No | B4: Prog. | C4: Code | D4: Module | E4: Durée | F4: Ponction | G4: Ponction Description | H4: L'an passé | I4: Cette Année | J4: L'an proch. | K4: Enseignant | L4: Commentaires | M4: maintenant | N4: après prép. | O4: à venir | P4: (Requis pour…) | R4: (Idéal) | S4: Spécifique | T4: Partager
A5: 1 | B5: ESA | C5: 281621 | D5: Métier et formation | E5: 15 | F5: 0 | H5: 0 | I5: =E5-F5-H5-J5 -> 15 | J5: 0
A6: 2 | B6: ESA | C6: 254992 | D6: Santé et sécurité | E6: 30 | F6: 0 | H6: 0 | I6: =E6-F6-H6-J6 -> 30 | J6: 0
A7: 3 | B7: ESA | C7: 281632 | D7: Utilisation de l'informatique | E7: 30 | F7: 0 | H7: 0 | I7: 30 | J7: 0
A8: 4 | B8: ESA | C8: 281648 | D8: Vérif. d'un circuit électrique | E8: 120 | F8: 0 | H8: 0 | I8: 120 | J8: 0
A9: 5 | B9: ESA | C9: 281652 | D9: Dessin d'un croquis | E9: 30 | F9: 0 | H9: 0 | I9: 30 | J9: 0
A10: 6 | B10: ESA | C10: 281667 | D10: Travaux d'usinage manuel | E10: 105 | F10: 0 | H10: 0 | I10: 105 | J10: 0
A11: 7 | B11: ESA | C11: 281672 | D11: Déplacement d'équipement | E11: 30 | F11: 0 | H11: 0 | I11: 30 | J11: 0
A12: 8 | B12: ESA | C12: 281685 | D12: Coupage et soudage | E12: 75 | F12: 0 | H12: 0 | I12: 75 | J12: 0
A13: 9 | B13: ESA | C13: 281692 | D13: Raccordement de conduits | E13: 30 | F13: 0 | H13: 0 | I13: 30 | J13: 0
A14: 10 | B14: ESA | C14: 281707 | D14: Circuit d'électr. industrielle | E14: 105 | F14: 0 | H14: 0 | I14: 105 | J14: 0
A15: 11 | B15: ESA | C15: 281716 | D15: Usinage sur machines-outils | E15: 90 | F15: 0 | H15: 0 | I15: 90 | J15: 0
A16: 12 | B16: ESA | C16: 281726 | D16: Analyse d'un circuit logique | E16: 90 | F16: 0 | H16: 0 | I16: 90 | J16: 0
A17: 13 | B17: ESA | C17: 281732 | D17: Aligement conventionnel | E17: 30 | F17: 0 | H17: 0 | I17: 30 | J17: 0
A18: 14 | B18: ESA | C18: 281747 | D18: Maintenance, dispositifs méc. | E18: 105 | F18: 0 | H18: 0 | I18: 105 | J18: 0
A19: 15 | B19: ESA | C19: 281755 | D19: Montage pneumatique | E19: 75 | F19: 0 | H19: 0 | I19: 75 | J19: 0
A20: 16 | B20: ESA | C20: 281764 | D20: Montage hydraulique | E20: 60 | F20: 0 | H20: 0 | I20: 60 | J20: 0
A21: 17 | B21: ESA | C21: 281777 | D21: Maintenance, circuit de moteur | E21: 105 | F21: 0 | H21: 0 | I21: 105 | J21: 0
A22: 18 | B22: ESA | C22: 281784 | D22: Maintenance, pneumat. hydraul. | E22: 60 | F22: 0 | H22: 0 | I22: 60 | J22: 0
A23: 19 | B23: ESA | C23: 281794 | D23: Calibrage, boucle de contrôle | E23: 60 | F23: 0 | H23: 0 | I23: =E23-F23-H23-J23 -> 60 | J23: 0
A24: 20 | B24: ESA | C24: 281804 | D24: Maint. électro-pneum. hydraul. | E24: 60 | F24: 0 | H24: 0 | I24: 60 | J24: 0
A25: 21 | B25: ESA | C25: 281816 | D25: Programmation d'un automate | E25: 90 | F25: 0 | H25: 0 | I25: 90 | J25: 0
A26: 22 | B26: ESA | C26: 281824 | D26: Commande élect. de moteur | E26: 60 | F26: 0 | H26: 0 | I26: 60 | J26: 0
A27: 23 | B27: ESA | C27: 281831 | D27: Moyens de recherche d'emploi | E27: 15 | F27: 0 | H27: 0 | I27: 15 | J27: 0
A28: 24 | B28: ESA | C28: 281847 | D28: Installation, syst. automatisé | E28: 105 | F28: 0 | H28: 0 | I28: 105 | J28: 0
A29: 25 | B29: ESA | C29: 281853 | D29: Maintenance planifiée | E29: 45 | F29: 0 | H29: 0 | I29: 45 | J29: 0
A30: 26 | B30: ESA | C30: 281866 | D30: Dépannage, système automatisé | E30: 90 | F30: 0 | H30: 0 | I30: 90 | J30: 0
A31: 27 | B31: ESA | C31: 281876 | D31: Intégration, milieu de travail | E31: 90 | F31: 0 | H31: 0 | I31: 90 | J31: 0
A32: 28 | F32: 0 | H32: 0 | I32: 0 | J32: 0
A33: 29 | F33: 0 | H33: 0 | I33: 0 | J33: 0
A34: 30 | F34: 0 | H34: 0 | I34: 0 | J34: 0
A35: 31 | F35: 0 | H35: 0 | I35: 0 | J35: 0
A36: 32 | F36: 0 | H36: 0 | I36: 0 | J36: 0
A37: 33 | F37: 0 | H37: 0 | I37: 0 | J37: 0
A38: 34 | F38: 0 | H38: 0 | I38: 0 | J38: 0
A39: 35 | F39: 0 | H39: 0 | I39: 0 | J39: 0
A40: 36 | F40: 0 | H40: 0 | I40: 0 | J40: 0
A41: 37 | F41: 0 | H41: 0 | I41: =E41-F41-H41-J41 -> 0 | J41: 0
A42: 38 | F42: 0 | H42: 0 | I42: 0 | J42: 0
A43: 39 | F43: 0 | H43: 0 | I43: 0 | J43: 0
A44: 40 | F44: 0 | H44: 0 | I44: 0 | J44: 0
A45: 90 | F45: 0 | H45: 0 | I45: 0 | J45: 0
A46: 91 | F46: 0 | H46: 0 | I46: 0 | J46: 0
A47: 92 | F47: 0 | H47: 0 | I47: 0 | J47: 0
A48: 93 | F48: 0 | H48: 0 | I48: 0 | J48: 0
A49: 94 | F49: 0 | H49: 0 | I49: 0 | J49: 0
A50: 95 | F50: 0 | H50: 0 | I50: 0 | J50: 0
A51: 96 | F51: 0 | H51: 0 | I51: 0 | J51: 0
A52: 97 | F52: 0 | H52: 0 | I52: 0 | J52: 0
A53: 98 | F53: 0 | H53: 0 | I53: 0 | J53: 0
A54: 99 | D54: Réservé Organisation scolaire | F54: 0 | H54: 0 | I54: 0 | J54: 0
D55: total programme : | E55: =SUM(E5:E54) -> 1800 | F55: =SUM(F5:F54) -> 0 | H55: =SUM(H5:H54) -> 0 | I55: =SUM(I5:I54) -> 1800 | J55: =SUM(J5:J54) -> 0 | K55: =SUM(H55:J55) -> 1800 | L55: =total formation

Sheet MEAmdldata (hidden)
A1: Mécanique automobile | M1: Spécifications techniques
M3: Enseignants | P3: Préalables | Q3: incompatible | R3: Distribution | S3: Équipements | T3: Équipements
A4: No | B4: Prog. | C4: Code | D4: Module | E4: Durée | F4: Ponction | G4: Ponction Description | H4: L'an passé | I4: Cette Année | J4: L'an proch. | K4: Enseignant | L4: Commentaires | M4: maintenant | N4: après prép. | O4: à venir | P4: (Requis pour…) | R4: (Idéal) | S4: Spécifique | T4: Partager
A5: 1 | B5: MEA | C5: 343401 | D5: Métier et formation | E5: 15 | F5: 0 | H5: 0 | I5: =E5-F5-H5-J5 -> 15 | J5: 0
A6: 2 | B6: MEA | C6: 343412 | D6: Santé sécur. protec. environn. | E6: 30 | F6: 0 | H6: 0 | I6: 30 | J6: 0
A7: 3 | B7: MEA | C7: 343423 | D7: Recherche d'information techn. | E7: 30 | F7: 0 | H7: 0 | I7: 30 | J7: 0
A8: 4 | B8: MEA | C8: 343433 | D8: Chauffe, soudage et coupage | E8: 15 | F8: 0 | H8: 0 | I8: 15 | J8: 0
A9: 5 | B9: MEA | C9: 343445 | D9: Travaux d'atelier | E9: 45 | F9: 0 | H9: 0 | I9: 45 | J9: 0
A10: 6 | B10: MEA | C10: 343452 | D10: Communication milieu travail | E10: 60 | F10: 0 | H10: 0 | I10: 60 | J10: 0
A11: 7 | B11: MEA | C11: 343465 | D11: Vérif. moteur combustion int. | E11: 75 | F11: 0 | H11: 0 | I11: 75 | J11: 0
A12: 8 | B12: MEA | C12: 343476 | D12: Répar. moteur combustion int. | E12: 105 | F12: 0 | H12: 0 | I12: 105 | J12: 0
A13: 9 | B13: MEA | C13: 343484 | D13: Vérif. système tenue de route | E13: 75 | F13: 0 | H13: 0 | I13: 75 | J13: 0
A14: 10 | B14: MEA | C14: 343496 | D14: Répar. système tenue de route | E14: 60 | F14: 0 | H14: 0 | I14: 60 | J14: 0
A15: 11 | B15: MEA | C15: 343506 | D15: Vérif. syst. électr./ électron. | E15: 30 | F15: 0 | H15: 0 | I15: 30 | J15: 0
A16: 12 | B16: MEA | C16: 343514 | D16: Réparation syst. d'éclairage | E16: 45 | F16: 0 | H16: 0 | I16: 45 | J16: 0
A17: 13 | B17: MEA | C17: 343524 | D17: Vérif. syst. commandé ordinat. | E17: 15 | F17: 0 | H17: 0 | I17: 15 | J17: 0
A18: 14 | B18: MEA | C18: 343536 | D18: Vérif. syst. tranmiss. pouvoir | E18: 60 | F18: 0 | H18: 0 | I18: 60 | J18: 0
A19: 15 | B19: MEA | C19: 343547 | D19: Répar. syst. transm. pouvoir | E19: 60 | F19: 0 | H19: 0 | I19: 60 | J19: 0
A20: 16 | B20: MEA | C20: 343555 | D20: Démar. charg. acc. électrom. | E20: 105 | F20: 0 | H20: 0 | I20: 105 | J20: 0
A21: 17 | B21: MEA | C21: 343565 | D21: Rép. démar. charg. acc. élect. | E21: 90 | F21: 0 | H21: 0 | I21: 90 | J21: 0
A22: 18 | B22: MEA | C22: 343573 | D22: Vérif. temp. moteur/ habitacle | E22: 105 | F22: 0 | H22: 0 | I22: 105 | J22: 0
A23: 19 | B23: MEA | C23: 343583 | D23: Ent. rép. temp. moteur/ habit. | E23: 60 | F23: 0 | H23: 0 | I23: 60 | J23: 0
A24: 20 | B24: MEA | C24: 343593 | D24: Vér. syst. sécur. passif- actif | E24: 75 | F24: 0 | H24: 0 | I24: 75 | J24: 0
A25: 21 | B25: MEA | C25: 343604 | D25: Rép. syst. sécur. passif- actif | E25: 75 | F25: 0 | H25: 0 | I25: 75 | J25: 0
A26: 22 | B26: MEA | C26: 343614 | D26: Ent. général véhicule auto. | E26: 45 | F26: 0 | H26: 0 | I26: 45 | J26: 0
A27: 23 | B27: MEA | C27: 343624 | D27: Vérif. syst. allumage électr. | E27: 60 | F27: 0 | H27: 0 | I27: 60 | J27: 0
A28: 24 | B28: MEA | C28: 343634 | D28: Répar. syst. allumage électr. | E28: 60 | F28: 0 | H28: 0 | I28: 60 | J28: 0
A29: 25 | B29: MEA | C29: 343644 | D29: Vér. inject. électr. antipoll. | E29: 75 | F29: 0 | H29: 0 | I29: 75 | J29: 0
A30: 26 | B30: MEA | C30: 343655 | D30: Rép. inject. élect. antipoll. | E30: 60 | F30: 0 | H30: 0 | I30: 60 | J30: 0
A31: 27 | B31: MEA | C31: 343665 | D31: Vérif. groupe motopropulseur | E31: 90 | F31: 0 | H31: 0 | I31: 90 | J31: 0
A32: 28 | B32: MEA | C32: 343671 | D32: Recherche d'emploi | E32: 75 | F32: 0 | H32: 0 | I32: 75 | J32: 0
A33: 29 | B33: MEA | C33: 343686 | D33: Intégration-milieu de travail | E33: 15 | F33: 0 | H33: 0 | I33: 15 | J33: 0
A34: 30 | B34: MEA | C34: 341906 | D34: Intégr. au milieu de travail | E34: 90 | F34: 0 | H34: 0 | I34: 90 | J34: 0
A35: 31 | F35: 0 | H35: 0 | I35: =E35-F35-H35-J35 -> 0 | J35: 0
A36: 32 | F36: 0 | H36: 0 | I36: =E36-F36-H36-J36 -> 0 | J36: 0
A37: 33 | F37: 0 | H37: 0 | I37: =E37-F37-H37-J37 -> 0 | J37: 0
A38: 34 | F38: 0 | H38: 0 | I38: 0 | J38: 0
A39: 35 | F39: 0 | H39: 0 | I39: 0 | J39: 0
A40: 36 | F40: 0 | H40: 0 | I40: 0 | J40: 0
A41: 37 | F41: 0 | H41: 0 | I41: 0 | J41: 0
A42: 38 | F42: 0 | H42: 0 | I42: 0 | J42: 0
A43: 39 | F43: 0 | H43: 0 | I43: 0 | J43: 0
A44: 40 | F44: 0 | H44: 0 | I44: 0 | J44: 0
A45: 90 | F45: 0 | H45: 0 | I45: 0 | J45: 0
A46: 91 | F46: 0 | H46: 0 | I46: 0 | J46: 0
A47: 92 | F47: 0 | H47: 0 | I47: 0 | J47: 0
A48: 93 | F48: 0 | H48: 0 | I48: 0 | J48: 0
A49: 94 | F49: 0 | H49: 0 | I49: 0 | J49: 0
A50: 95 | F50: 0 | H50: 0 | I50: 0 | J50: 0
A51: 96 | F51: 0 | H51: 0 | I51: 0 | J51: 0
A52: 97 | F52: 0 | H52: 0 | I52: 0 | J52: 0
A53: 98 | F53: 0 | H53: 0 | I53: 0 | J53: 0
A54: 99 | D54: Réservé Organisation scolaire | F54: 0 | H54: 0 | I54: 0 | J54: 0
D55: total programme : | E55: =SUM(E5:E54) -> 1800 | F55: =SUM(F5:F54) -> 0 | H55: =SUM(H5:H54) -> 0 | I55: =SUM(I5:I54) -> 1800 | J55: =SUM(J5:J54) -> 0 | K55: =SUM(H55:J55) -> 1800 | L55: =total formation

Sheet ESTHmdldata (hidden)
A1: Esthetique Automobile | M1: Spécifications techniques
M3: Enseignants | P3: Préalables | Q3: incompatible | R3: Distribution | S3: Équipements | T3: Équipements
A4: No | B4: Prog. | C4: Code | D4: Module | E4: Durée | F4: Ponction | G4: Ponction Description | H4: L'an passé | I4: Cette Année | J4: L'an proch. | K4: Enseignant | L4: Commentaires | M4: maintenant | N4: après prép. | O4: à venir | P4: (Requis pour…) | R4: (Idéal) | S4: Spécifique | T4: Partager
A5: 1 | B5: EA | C5: 208-011 | D5: Métier et formation | E5: 15 | F5: 0 | G5: ATE | H5: 0 | I5: =E5-F5-H5 -> 15 | J5: =E5-F5-H5-I5 -> 0
A6: 2 | B6: EA | C6: 208-023 | D6: Appli. des notions relatives au travail général d'atelier | E6: 45 | F6: 0 | G6: ATE | H6: 0 | I6: =E6-F6-H6 -> 45 | J6: =E6-F6-H6-I6 -> 0
A7: 3 | B7: EA | C7: 208-032 | D7: Apporche qualité et organisation du travail | E7: 30 | F7: 0 | G7: ATE | H7: 0 | I7: 30 | J7: 0
A8: 4 | B8: EA | C8: 208-047 | D8: Nettoyer l'intérieur et l'extérieur, compartiment moteur | E8: 105 | F8: 0 | G8: ATE | H8: 0 | I8: 105 | J8: 0
A9: 5 | B9: EA | C9: 208-052 | D9: Ent.charnières, serrures, caoutcoucs, moulures et bandes | E9: 30 | F9: 0 | G9: ATE | H9: 0 | I9: 30 | J9: 0
A10: 6 | B10: EA | C10: 208-062 | D10: appliquer une protection antirouille | E10: 30 | F10: 0 | G10: ATE | H10: 0 | I10: 30 | J10: 0
A11: 7 | B11: EA | C11: 208-077 | D11: Remettre en état des surfaces peintes | E11: 105 | F11: 0 | G11: ATE | H11: 0 | I11: 105 | J11: 0
A12: 8 | B12: EA | C12: 208-082 | D12: Faire les retouches de peinture | E12: 30 | F12: 0 | G12: ATE | H12: 0 | I12: 30 | J12: 0
A13: 9 | B13: EA | C13: 208-092 | D13: Réparer la sellerie d'un véhicule | E13: 30 | F13: 0 | G13: ATE | H13: 0 | I13: 30 | J13: 0
A14: 10 | B14: EA | C14: 208-102 | D14: Poser des accessoires | E14: 30 | F14: 0 | G14: ATE | H14: 0 | I14: 30 | J14: 0
A15: 11 | B15: EA | C15: 208-112 | D15: Mesurer et contrôler la qualité du travail | E15: 30 | F15: 0 | G15: ATE | H15: 0 | I15: 30 | J15: 0
A16: 12 | B16: EA | C16: 208-122 | D16: Rehcerche d'un milieu de travail | E16: 30 | F16: 0 | G16: ATE | H16: 0 | I16: 30 | J16: 0
A17: 13 | B17: EA | C17: 208-134 | D17: S'intégrer au marché du travail | E17: 60 | F17: 0 | G17: ATE | H17: 0 | I17: 60 | J17: 0
A18: 14 | H18: 0 | I18: =E18-F18-H18-J18 -> 0 | J18: 0
A19: 15 | H19: 0 | I19: 0 | J19: 0
A20: 16 | H20: 0 | I20: 0 | J20: 0
A21: 17 | H21: 0 | I21: 0 | J21: 0
A22: 18 | H22: 0 | I22: 0 | J22: 0
A23: 19 | H23: 0 | I23: 0 | J23: 0
A24: 20 | H24: 0 | I24: 0 | J24: 0
A25: 21 | H25: 0 | I25: 0 | J25: 0
A26: 22 | H26: 0 | I26: 0 | J26: 0
A27: 23 | H27: 0 | I27: 0 | J27: 0
A28: 24 | H28: 0 | I28: 0 | J28: 0
A29: 25 | H29: 0 | I29: 0 | J29: 0
A30: 26 | H30: 0 | I30: 0 | J30: 0
A31: 27 | H31: 0 | I31: 0 | J31: 0
A32: 28 | H32: 0 | I32: 0 | J32: 0
A33: 29 | H33: 0 | I33: 0 | J33: 0
A34: 30 | H34: 0 | I34: 0 | J34: 0
A35: 31 | H35: 0 | I35: 0 | J35: 0
A36: 32 | H36: 0 | I36: 0 | J36: 0
A37: 33 | H37: 0 | I37: 0 | J37: 0
A38: 34 | H38: 0 | I38: 0 | J38: 0
A39: 35 | H39: 0 | I39: 0 | J39: 0
A40: 36 | H40: 0 | I40: 0 | J40: 0
A41: 37 | H41: 0 | I41: 0 | J41: 0
A42: 38 | H42: 0 | I42: 0 | J42: 0
A43: 39 | H43: 0 | I43: 0 | J43: 0
A44: 40 | H44: 0 | I44: 0 | J44: 0
A45: 90 | E45: 0 | F45: 0 | H45: 0 | I45: 0 | J45: 0
A46: 91 | D46: ATE 1ère partie supervisé | E46: 0 | F46: 0 | H46: 0 | I46: 0 | J46: 0
A47: 92 | D47: ATE 1ère partie non supervisé | E47: 0 | F47: 0 | G47: ATE | H47: 0 | I47: 0 | J47: 0
A48: 93 | D48: ATE 2ième partie supervisé | E48: 0 | F48: 0 | G48: ATE | H48: 0 | I48: 0 | J48: 0
A49: 94 | D49: ATE 2ième partie non supervisé | E49: 0 | F49: 0 | H49: 0 | I49: 0 | J49: 0
A50: 95 | E50: 0 | F50: 0 | H50: 0 | I50: 0 | J50: 0
A51: 96 | E51: 0 | F51: 0 | H51: 0 | I51: 0 | J51: 0
A52: 97 | E52: 0 | F52: 0 | H52: 0 | I52: 0 | J52: 0
A53: 98 | H53: 0 | I53: 0 | J53: 0
A54: 99 | D54: Réservé Organisation scolaire | H54: 0 | I54: =E54-F54-H54-J54 -> 0 | J54: 0
D55: total programme : | E55: =SUM(E5:E54) -> 570 | F55: =SUM(F5:F54) -> 0 | H55: =SUM(H5:H54) -> 0 | I55: =SUM(I5:I54) -> 570 | J55: =SUM(J5:J54) -> 0 | K55: =SUM(H55:J55) -> 570 | L55: =total formation

Sheet MVLRmdldata (hidden)
A1: Mécanique de véhicules lourds routiers | M1: Spécifications techniques
M3: Enseignants | P3: Préalables | Q3: incompatible | R3: Distribution | S3: Équipements | T3: Équipements
A4: No | B4: Prog. | C4: Code | D4: Module | E4: Durée | F4: Ponction | G4: Ponction Description | H4: L'an passé | I4: Cette Année | J4: L'an proch. | K4: Enseignant | L4: Commentaires | M4: maintenant | N4: après prép. | O4: à venir | P4: (Requis pour…) | R4: (Idéal) | S4: Spécifique | T4: Partager
A5: 1 | B5: MVLR | C5: 350-561 | D5: Métier et formation | E5: 15 | F5: 0 | H5: 0 | I5: =E5-F5-H5-J5 -> 15 | J5: 0
A6: 2 | B6: MVLR | C6: 350-562 | D6: Santé/sécurité/environnement | E6: 30 | F6: 0 | H6: 0 | I6: 30 | J6: 0
A7: 3 | B7: MVLR | C7: 350-563 | D7: Information technique | E7: 45 | F7: 0 | H7: 0 | I7: 45 | J7: 0
A8: 4 | B8: MVLR | C8: 350-565 | D8: Travail d'atelier | E8: 75 | F8: 0 | H8: 0 | I8: 75 | J8: 0
A9: 5 | B9: MVLR | C9: 350-575 | D9: Chauffe, soudage et coupage | E9: 75 | F9: 0 | H9: 0 | I9: 75 | J9: 0
A10: 6 | B10: MVLR | C10: 350-572 | D10: Communication en milieu de travail | E10: 30 | F10: 0 | H10: 0 | I10: 30 | J10: 0
A11: 7 | B11: MVLR | C11: 350-573 | D11: Réparation/remplacement des roues | E11: 45 | F11: 0 | H11: 0 | I11: 45 | J11: 0
A12: 8 | B12: MVLR | C12: 350-566 | D12: Vérification des sytèmes hydraulique et pneumatique | E12: 90 | F12: 0 | H12: 0 | I12: 90 | J12: 0
A13: 9 | B13: MVLR | C13: 350-585 | D13: Suspensions, cadres, sellettes | E13: 75 | F13: 0 | H13: 0 | I13: 75 | J13: 0
A14: 10 | B14: MVLR | C14: 350-576 | D14: Systèmes électriques/électroniques | E14: 90 | F14: 0 | H14: 0 | I14: 90 | J14: 0
A15: 11 | B15: MVLR | C15: 350-595 | D15: Directions assistance hydraulique | E15: 75 | F15: 0 | H15: 0 | I15: 75 | J15: 0
A16: 12 | B16: MVLR | C16: 350-568 | D16: Freinage hydraulique/pneumatique | E16: 120 | F16: 0 | H16: 0 | I16: 120 | J16: 0
A17: 13 | B17: MVLR | C17: 350-578 | D17: Transmission de pouvoir | E17: 120 | F17: 0 | H17: 0 | I17: 120 | J17: 0
A18: 14 | B18: MVLR | C18: 350-564 | D18: Diffusion de pouvoir | E18: 60 | F18: 0 | H18: 0 | I18: 60 | J18: 0
A19: 15 | B19: MVLR | C19: 350-583 | D19: Transmissions automatiques | E19: 45 | F19: 0 | H19: 0 | I19: 45 | J19: 0
A20: 16 | B20: MVLR | C20: 350-574 | D20: Systèmes de charge et de démarrage | E20: 60 | F20: 0 | H20: 0 | I20: 60 | J20: 0
A21: 17 | B21: MVLR | C21: 350-584 | D21: Réparation de l'équipement hydraulique | E21: 60 | F21: 0 | H21: 0 | I21: 60 | J21: 0
A22: 18 | B22: MVLR | C22: 350-586 | D22: Cabine/accessoires/circuits | E22: 90 | F22: 0 | H22: 0 | I22: 90 | J22: 0
A23: 19 | B23: MVLR | C23: 350-567 | D23: Injection diesel/freins moteur | E23: 105 | F23: 0 | H23: 0 | I23: 105 | J23: 0
A24: 20 | B24: MVLR | C24: 350-577 | D24: Mise au point de moteurs diesels | E24: 105 | F24: 0 | H24: 0 | I24: 105 | J24: 0
A25: 21 | B25: MVLR | C25: 350-594 | D25: Vérification de moteurs diesels | E25: 60 | F25: 0 | H25: 0 | I25: 60 | J25: 0
A26: 22 | B26: MVLR | C26: 350-588 | D26: Réparation de moteurs diesels | E26: 120 | F26: 0 | H26: 0 | I26: 120 | J26: 0
A27: 23 | B27: MVLR | C27: 350-605 | D27: Entretien de véhicule lourd | E27: 75 | F27: 0 | H27: 0 | I27: 75 | J27: 0
A28: 24 | B28: MVLR | C28: 350-609 | D28: Intégration en milieu de travail | E28: 135 | F28: 0 | H28: 0 | I28: 135 | J28: 0
A29: 25 | F29: 0 | H29: 0 | I29: 0 | J29: 0
A30: 26 | F30: 0 | H30: 0 | I30: 0 | J30: 0
A31: 27 | F31: 0 | H31: 0 | I31: 0 | J31: 0
A32: 28 | F32: 0 | H32: 0 | I32: 0 | J32: 0
A33: 29 | F33: 0 | H33: 0 | I33: 0 | J33: 0
A34: 30 | F34: 0 | H34: 0 | I34: 0 | J34: 0
A35: 31 | F35: 0 | H35: 0 | I35: 0 | J35: 0
A36: 32 | F36: 0 | H36: 0 | I36: 0 | J36: 0
A37: 33 | F37: 0 | H37: 0 | I37: =E37-F37-H37-J37 -> 0 | J37: 0
A38: 34 | F38: 0 | H38: 0 | I38: 0 | J38: 0
A39: 35 | F39: 0 | H39: 0 | I39: 0 | J39: 0
A40: 36 | F40: 0 | H40: 0 | I40: 0 | J40: 0
A41: 37 | F41: 0 | H41: 0 | I41: 0 | J41: 0
A42: 38 | F42: 0 | H42: 0 | I42: 0 | J42: 0
A43: 39 | F43: 0 | H43: 0 | I43: 0 | J43: 0
A44: 40 | F44: 0 | H44: 0 | I44: 0 | J44: 0
A45: 90 | F45: 0 | H45: 0 | I45: 0 | J45: 0
A46: 91 | F46: 0 | H46: 0 | I46: 0 | J46: 0
A47: 92 | F47: 0 | H47: 0 | I47: 0 | J47: 0
A48: 93 | F48: 0 | H48: 0 | I48: 0 | J48: 0
A49: 94 | F49: 0 | H49: 0 | I49: 0 | J49: 0
A50: 95 | F50: 0 | H50: 0 | I50: 0 | J50: 0
A51: 96 | F51: 0 | H51: 0 | I51: 0 | J51: 0
A52: 97 | F52: 0 | H52: 0 | I52: 0 | J52: 0
A53: 98 | F53: 0 | H53: 0 | I53: 0 | J53: 0
A54: 99 | D54: Réservé Organisation scolaire | F54: 0 | H54: 0 | I54: 0 | J54: 0
D55: total programme : | E55: =SUM(E5:E54) -> 1800 | F55: =SUM(F5:F54) -> 0 | H55: =SUM(H5:H54) -> 0 | I55: =SUM(I5:I54) -> 1800 | J55: =SUM(J5:J54) -> 0 | K55: =SUM(H55:J55) -> 1800 | L55: =total formation

Sheet SOUmdldata (hidden)
A1: Soudage montage | M1: Spécifications techniques
M3: Enseignants | P3: Préalables | Q3: incompatible | R3: Distribution | S3: Équipements | T3: Équipements
A4: No | B4: Prog. | C4: Code | D4: Module | E4: Durée | F4: Ponction | G4: Ponction Description | H4: L'an passé | I4: Cette Année | J4: L'an proch. | K4: Enseignant | L4: Commentaires | M4: maintenant | N4: après prép. | O4: à venir | P4: (Requis pour…) | R4: (Idéal) | S4: Spécifique | T4: Partager
A5: 1 | B5: SOU | C5: 301712 | D5: Situation: métier et formation | E5: 30 | F5: 0 | H5: 0 | I5: =E5-F5-H5-J5 -> 30 | J5: 0
A6: 2 | B6: SOU | C6: 301722 | D6: Santé et sécurité au travail | E6: 30 | F6: 0 | H6: 0 | I6: 30 | J6: 0
A7: 3 | B7: SOU | C7: 301737 | D7: Croquis et dessins | E7: 105 | F7: 0 | H7: 0 | I7: 105 | J7: 0
A8: 4 | B8: SOU | C8: 301743 | D8: Notions de métallurgie | E8: 45 | F8: 0 | H8: 0 | I8: 45 | J8: 0
A9: 5 | B9: SOU | C9: 301762 | D9: Coupage de métaux | E9: 30 | F9: 0 | H9: 0 | I9: 30 | J9: 0
A10: 6 | B10: SOU | C10: 301776 | D10: Coupage et façonnage | E10: 90 | F10: 0 | H10: 0 | I10: 90 | J10: 0
A11: 7 | B11: SOU | C11: 301782 | D11: Préparation de pièces | E11: 30 | F11: 0 | H11: 0 | I11: 30 | J11: 0
A12: 8 | B12: SOU | C12: 301792 | D12: Procédé de soudage (SMAW) | E12: 30 | F12: 0 | H12: 0 | I12: 30 | J12: 0
A13: 9 | B13: SOU | C13: 301807 | D13: Soudage sur acier (SMAW) | E13: 105 | F13: 0 | H13: 0 | I13: 105 | J13: 0
A14: 10 | B14: SOU | C14: 301757 | D14: Plans et devis d'assemblage | E14: 105 | F14: 0 | H14: 0 | I14: 105 | J14: 0
A15: 11 | B15: SOU | C15: 301813 | D15: Procédé de soudage (GTAW) | E15: 45 | F15: 0 | H15: 0 | I15: 45 | J15: 0
A16: 12 | B16: SOU | C16: 301825 | D16: Soudage sur acier (GTAW) | E16: 75 | F16: 0 | H16: 0 | I16: 75 | J16: 0
A17: 13 | B17: SOU | C17: 301834 | D17: Soudage sur aluminium | E17: 60 | F17: 0 | H17: 0 | I17: 60 | J17: 0
A18: 14 | B18: SOU | C18: 301844 | D18: Assemblages de base | E18: 60 | F18: 0 | H18: 0 | I18: 60 | J18: 0
A19: 15 | B19: SOU | C19: 301852 | D19: Procédé de soudage (GMAW) | E19: 30 | F19: 0 | H19: 0 | I19: 30 | J19: 0
A20: 16 | B20: SOU | C20: 301868 | D20: Soudage sur acier (GMAW) | E20: 120 | F20: 0 | H20: 0 | I20: 120 | J20: 0
A21: 17 | B21: SOU | C21: 301874 | D21: Soudage sur aluminium | E21: 60 | F21: 0 | H21: 0 | I21: 60 | J21: 0
A22: 18 | B22: SOU | C22: 301884 | D22: Assemblages simples | E22: 60 | F22: 0 | H22: 0 | I22: 60 | J22: 0
A23: 19 | B23: SOU | C23: 301891 | D23: Procédé de soudage (FCAW) | E23: 15 | F23: 0 | H23: 0 | I23: 15 | J23: 0
A24: 20 | B24: SOU | C24: 301908 | D24: Soudage sur acier (FCAW) | E24: 120 | F24: 0 | H24: 0 | I24: 120 | J24: 0
A25: 21 | B25: SOU | C25: 301912 | D25: Procédés de soudage SAW, RW, PAW | E25: 30 | F25: 0 | H25: 0 | I25: 30 | J25: 0
A26: 22 | B26: SOU | C26: 301927 | D26: Plans et devis d'ass. complexes | E26: 105 | F26: 0 | H26: 0 | I26: 105 | J26: 0
A27: 23 | B27: SOU | C27: 301935 | D27: Assembl. de complexité moyenne | E27: 75 | F27: 0 | H27: 0 | I27: 75 | J27: 0
A28: 24 | B28: SOU | C28: 301941 | D28: Communicat.: milieu de travail | E28: 15 | F28: 0 | H28: 0 | I28: 15 | J28: 0
A29: 25 | B29: SOU | C29: 301958 | D29: Assemblages complexes | E29: 120 | F29: 0 | H29: 0 | I29: 120 | J29: 0
A30: 26 | B30: SOU | C30: 301963 | D30: Modifications d'assemblages | E30: 45 | F30: 0 | H30: 0 | I30: 45 | J30: 0
A31: 27 | B31: SOU | C31: 301974 | D31: Réparation d'assemblages | E31: 60 | F31: 0 | H31: 0 | I31: 60 | J31: 0
A32: 28 | B32: SOU | C32: 301981 | D32: Recherche d'un emploi | E32: 15 | F32: 0 | H32: 0 | I32: 15 | J32: 0
A33: 29 | B33: SOU | C33: 301996 | D33: Intégration: milieu de travail | E33: 90 | F33: 0 | H33: 0 | I33: 90 | J33: 0
A34: 30 | F34: 0 | H34: 0 | I34: 0 | J34: 0
A35: 31 | F35: 0 | H35: 0 | I35: 0 | J35: 0
A36: 32 | F36: 0 | H36: 0 | I36: 0 | J36: 0
A37: 33 | F37: 0 | H37: 0 | I37: =E37-F37-H37-J37 -> 0 | J37: 0
A38: 34 | F38: 0 | H38: 0 | I38: 0 | J38: 0
A39: 35 | F39: 0 | H39: 0 | I39: 0 | J39: 0
A40: 36 | F40: 0 | H40: 0 | I40: 0 | J40: 0
A41: 37 | F41: 0 | H41: 0 | I41: 0 | J41: 0
A42: 38 | F42: 0 | H42: 0 | I42: 0 | J42: 0
A43: 39 | F43: 0 | H43: 0 | I43: 0 | J43: 0
A44: 40 | F44: 0 | H44: 0 | I44: 0 | J44: 0
A45: 90 | F45: 0 | H45: 0 | I45: 0 | J45: 0
A46: 91 | F46: 0 | H46: 0 | I46: 0 | J46: 0
A47: 92 | F47: 0 | H47: 0 | I47: 0 | J47: 0
A48: 93 | F48: 0 | H48: 0 | I48: 0 | J48: 0
A49: 94 | F49: 0 | H49: 0 | I49: 0 | J49: 0
A50: 95 | F50: 0 | H50: 0 | I50: 0 | J50: 0
A51: 96 | F51: 0 | H51: 0 | I51: 0 | J51: 0
A52: 97 | F52: 0 | H52: 0 | I52: 0 | J52: 0
A53: 98 | F53: 0 | H53: 0 | I53: 0 | J53: 0
A54: 99 | D54: Réservé Organisation scolaire | F54: 0 | H54: 0 | I54: 0 | J54: 0
D55: total programme : | E55: =SUM(E5:E54) -> 1800 | F55: =SUM(F5:F54) -> 0 | H55: =SUM(H5:H54) -> 0 | I55: =SUM(I5:I54) -> 1800 | J55: =SUM(J5:J54) -> 0 | K55: =SUM(H55:J55) -> 1800 | L55: =total formation

Sheet TUSmdldata (hidden)
A1: Technique d'usinage | M1: Spécifications techniques
M3: Enseignants | P3: Préalables | Q3: incompatible | R3: Distribution | S3: Équipements | T3: Équipements
A4: No | B4: Prog. | C4: Code | D4: Module | E4: Durée | F4: Ponction | G4: Ponction Description | H4: L'an passé | I4: Cette Année | J4: L'an proch. | K4: Enseignant | L4: Commentaires | M4: maintenant | N4: après prép. | O4: à venir | P4: (Requis pour…) | R4: (Idéal) | S4: Spécifique | T4: Partager
A5: 1 | B5: TUS | C5: 372011 | D5: Métier et formation | E5: 15 | F5: 0 | H5: 0 | I5: =E5-F5-H5-J5 -> 15 | J5: 0
A6: 2 | B6: TUS | C6: 372024 | D6: Maths liées à l'usinage conv. | E6: 60 | F6: 0 | H6: 0 | I6: 60 | J6: 0
A7: 3 | B7: TUS | C7: 372035 | D7: Interprétation / dessins tech. | E7: 75 | F7: 0 | H7: 0 | I7: 75 | J7: 0
A8: 4 | B8: TUS | C8: 372041 | D8: Santé et sécurité | E8: 15 | F8: 0 | H8: 0 | I8: 15 | J8: 0
A9: 5 | B9: TUS | C9: 372054 | D9: Relevé, interprétation mesures | E9: 60 | F9: 0 | H9: 0 | I9: 60 | J9: 0
A10: 6 | B10: TUS | C10: 372066 | D10: Travaux d'atelier de perçage | E10: 90 | F10: 0 | H10: 0 | I10: 90 | J10: 0
A11: 7 | B11: TUS | C11: 372072 | D11: Matériaux et procédés | E11: 30 | F11: 0 | H11: 0 | I11: 30 | J11: 0
A12: 8 | B12: TUS | C12: 372083 | D12: Dessin de croquis | E12: 45 | F12: 0 | H12: 0 | I12: 45 | J12: 0
A13: 9 | B13: TUS | C13: 372096 | D13: Tournage cylindrique extérieur | E13: 90 | F13: 0 | H13: 0 | I13: 90 | J13: 0
A14: 10 | B14: TUS | C14: 372105 | D14: Tournage cylindrique intérieur | E14: 75 | F14: 0 | H14: 0 | I14: 75 | J14: 0
A15: 11 | B15: TUS | C15: 372118 | D15: Usinage parall. perp. / fraiseuse | E15: 120 | F15: 0 | H15: 0 | I15: 120 | J15: 0
A16: 12 | B16: TUS | C16: 372125 | D16: Filetage au tour | E16: 75 | F16: 0 | H16: 0 | I16: 75 | J16: 0
A17: 13 | B17: TUS | C17: 372133 | D17: Perçage, alésage sur fraiseuse | E17: 45 | F17: 0 | H17: 0 | I17: 45 | J17: 0
A18: 14 | B18: TUS | C18: 372144 | D18: Rectification plane | E18: 60 | F18: 0 | H18: 0 | I18: 60 | J18: 0
A19: 15 | B19: TUS | C19: 372153 | D19: Nouvelles organisat. du travail | E19: 45 | F19: 0 | H19: 0 | I19: 45 | J19: 0
A20: 16 | B20: TUS | C20: 372162 | D20: Initiation / milieu du travail | E20: 30 | F20: 0 | H20: 0 | I20: 30 | J20: 0
A21: 17 | B21: TUS | C21: 372178 | D21: Usinage ang. et circ. / fraiseuse | E21: 120 | F21: 0 | H21: 0 | I21: 120 | J21: 0
A22: 18 | B22: TUS | C22: 372182 | D22: Maths liées / usinage sur MOCN | E22: 30 | F22: 0 | H22: 0 | I22: 30 | J22: 0
A23: 19 | B23: TUS | C23: 372194 | D23: Programmation manuelle tour cn | E23: 60 | F23: 0 | H23: 0 | I23: 60 | J23: 0
A24: 20 | B24: TUS | C24: 372206 | D24: Usinage / pièces simples tour cn | E24: 90 | F24: 0 | H24: 0 | I24: 90 | J24: 0
A25: 21 | B25: TUS | C25: 372214 | D25: Programmation man. centre usin. | E25: 60 | F25: 0 | H25: 0 | I25: 60 | J25: 0
A26: 22 | B26: TUS | C26: 372226 | D26: Usinage simple au centre usin. | E26: 90 | F26: 0 | H26: 0 | I26: 90 | J26: 0
A27: 23 | B27: TUS | C27: 372238 | D27: Tournage complexe | E27: 120 | F27: 0 | H27: 0 | I27: 120 | J27: 0
A28: 24 | B28: TUS | C28: 372248 | D28: Fraisage complexe | E28: 120 | F28: 0 | H28: 0 | I28: 120 | J28: 0
A29: 25 | B29: TUS | C29: 372255 | D29: Production sérielle | E29: 75 | F29: 0 | H29: 0 | I29: 75 | J29: 0
A30: 26 | B30: TUS | C30: 372271 | D30: Entreprenariat | E30: 15 | F30: 0 | H30: 0 | I30: 15 | J30: 0
A31: 27 | B31: TUS | C31: 372286 | D31: Intégration / milieu de travail | E31: 90 | F31: 0 | H31: 0 | I31: 90 | J31: 0
A32: 28 | F32: 0 | H32: 0 | I32: 0 | J32: 0
A33: 29 | F33: 0 | H33: 0 | I33: 0 | J33: 0
A34: 30 | F34: 0 | H34: 0 | I34: 0 | J34: 0
A35: 31 | F35: 0 | H35: 0 | I35: 0 | J35: 0
A36: 32 | F36: 0 | H36: 0 | I36: 0 | J36: 0
A37: 33 | F37: 0 | H37: 0 | I37: =E37-F37-H37-J37 -> 0 | J37: 0
A38: 34 | F38: 0 | H38: 0 | I38: 0 | J38: 0
A39: 35 | F39: 0 | H39: 0 | I39: 0 | J39: 0
A40: 36 | F40: 0 | H40: 0 | I40: 0 | J40: 0
A41: 37 | F41: 0 | H41: 0 | I41: 0 | J41: 0
A42: 38 | F42: 0 | H42: 0 | I42: 0 | J42: 0
A43: 39 | F43: 0 | H43: 0 | I43: 0 | J43: 0
A44: 40 | F44: 0 | H44: 0 | I44: 0 | J44: 0
A45: 90 | F45: 0 | H45: 0 | I45: 0 | J45: 0
A46: 91 | F46: 0 | H46: 0 | I46: 0 | J46: 0
A47: 92 | F47: 0 | H47: 0 | I47: 0 | J47: 0
A48: 93 | F48: 0 | H48: 0 | I48: 0 | J48: 0
A49: 94 | F49: 0 | H49: 0 | I49: 0 | J49: 0
A50: 95 | F50: 0 | H50: 0 | I50: 0 | J50: 0
A51: 96 | F51: 0 | H51: 0 | I51: 0 | J51: 0
A52: 97 | F52: 0 | H52: 0 | I52: 0 | J52: 0
A53: 98 | F53: 0 | H53: 0 | I53: 0 | J53: 0
A54: 99 | D54: Réservé Organisation scolaire | F54: 0 | H54: 0 | I54: 0 | J54: 0
D55: total programme : | E55: =SUM(E5:E54) -> 1800 | F55: =SUM(F5:F54) -> 0 | H55: =SUM(H5:H54) -> 0 | I55: =SUM(I5:I54) -> 1800 | J55: =SUM(J5:J54) -> 0 | K55: =SUM(H55:J55) -> 1800 | L55: =total formation

Sheet VCmdldata (hidden)
A1: Vente Conseil | M1: Spécifications techniques
M3: Enseignants | P3: Préalables | Q3: incompatible | R3: Distribution | S3: Équipements | T3: Équipements
A4: No | B4: Prog. | C4: Code | D4: Module | E4: Durée | F4: Ponction | G4: Ponction Description | H4: L'an passé | I4: Cette Année | J4: L'an proch. | K4: Enseignant | L4: Commentaires | M4: maintenant | N4: après prép. | O4: à venir | P4: (Requis pour…) | R4: (Idéal) | S4: Spécifique | T4: Partager
A5: 1 | B5: VC | C5: 448422 | D5: Métier et formation | E5: 30 | F5: 0 | H5: 0 | I5: =E5-F5-H5-J5 -> 30 | J5: 0
A6: 2 | B6: VC | C6: 448436 | D6: Relations professionnelles | E6: 90 | F6: 0 | H6: 0 | I6: 90 | J6: 0
A7: 3 | B7: VC | C7: 448433 | D7: Comportements de la clientèle | E7: 45 | F7: 0 | H7: 0 | I7: 45 | J7: 0
A8: 4 | B8: VC | C8: 448452 | D8: Service à la clientèle | E8: 30 | F8: 0 | H8: 0 | I8: 30 | J8: 0
A9: 5 | B9: VC | C9: 448468 | D9: Vente | E9: 120 | F9: 0 | H9: 0 | I9: 120 | J9: 0
A10: 6 | B10: VC | C10: 448473 | D10: Transactions liées à la vente | E10: 45 | F10: 0 | H10: 0 | I10: 45 | J10: 0
A11: 7 | B11: VC | C11: 448481 | D11: Organisation du temps | E11: 18 | F11: 0 | H11: 0 | I11: 18 | J11: 0
A12: 8 | B12: VC | C12: 448492 | D12: Recherche d'emploi | E12: 30 | F12: 0 | H12: 0 | I12: 30 | J12: 0
A13: 9 | B13: VC | C13: 448504 | D13: Initiation au métier | E13: 60 | F13: 0 | H13: 0 | I13: 60 | J13: 0
A14: 10 | B14: VC | C14: 448512 | D14: Lois et règlements | E14: 30 | F14: 0 | H14: 0 | I14: 30 | J14: 0
A15: 11 | B15: VC | C15: 448522 | D15: Service après-vente | E15: 24 | F15: 0 | H15: 0 | I15: 24 | J15: 0
A16: 12 | B16: VC | C16: 448534 | D16: Langue seconde | E16: 60 | F16: 0 | H16: 0 | I16: 60 | J16: 0
A17: 13 | B17: VC | C17: 448543 | D17: Produits et services | E17: 45 | F17: 0 | H17: 0 | I17: 45 | J17: 0
A18: 14 | B18: VC | C18: 448554 | D18: Approvisionnement | E18: 60 | F18: 0 | H18: 0 | I18: 60 | J18: 0
A19: 15 | B19: VC | C19: 448563 | D19: Présentation visuelle | E19: 48 | F19: 0 | H19: 0 | I19: 48 | J19: 0
A20: 16 | B20: VC | C20: 448573 | D20: Marketing de la vente | E20: 45 | F20: 0 | H20: 0 | I20: 45 | J20: 0
A21: 17 | B21: VC | C21: 448588 | D21: Intégration au travail | E21: 120 | F21: 0 | H21: 0 | I21: 120 | J21: 0
A22: 18 | F22: 0 | H22: 0 | I22: 0 | J22: 0
A23: 19 | F23: 0 | H23: 0 | I23: 0 | J23: 0
A24: 20 | F24: 0 | H24: 0 | I24: 0 | J24: 0
A25: 21 | F25: 0 | H25: 0 | I25: 0 | J25: 0
A26: 22 | F26: 0 | H26: 0 | I26: 0 | J26: 0
A27: 23 | F27: 0 | H27: 0 | I27: 0 | J27: 0
A28: 24 | F28: 0 | H28: 0 | I28: 0 | J28: 0
A29: 25 | F29: 0 | H29: 0 | I29: 0 | J29: 0
A30: 26 | F30: 0 | H30: 0 | I30: 0 | J30: 0
A31: 27 | F31: 0 | H31: 0 | I31: 0 | J31: 0
A32: 28 | F32: 0 | H32: 0 | I32: 0 | J32: 0
A33: 29 | F33: 0 | H33: 0 | I33: 0 | J33: 0
A34: 30 | F34: 0 | H34: 0 | I34: 0 | J34: 0
A35: 31 | F35: 0 | H35: 0 | I35: 0 | J35: 0
A36: 32 | F36: 0 | H36: 0 | I36: 0 | J36: 0
A37: 33 | F37: 0 | H37: 0 | I37: 0 | J37: 0
A38: 34 | F38: 0 | H38: 0 | I38: 0 | J38: 0
A39: 35 | F39: 0 | H39: 0 | I39: 0 | J39: 0
A40: 36 | F40: 0 | H40: 0 | I40: 0 | J40: 0
A41: 37 | F41: 0 | H41: 0 | I41: 0 | J41: 0
A42: 38 | F42: 0 | H42: 0 | I42: 0 | J42: 0
A43: 39 | F43: 0 | H43: 0 | I43: 0 | J43: 0
A44: 40 | F44: 0 | H44: 0 | I44: 0 | J44: 0
A45: 90 | F45: 0 | H45: 0 | I45: 0 | J45: 0
A46: 91 | F46: 0 | H46: 0 | I46: 0 | J46: 0
A47: 92 | F47: 0 | H47: 0 | I47: 0 | J47: 0
A48: 93 | F48: 0 | H48: 0 | I48: 0 | J48: 0
A49: 94 | F49: 0 | H49: 0 | I49: 0 | J49: 0
A50: 95 | F50: 0 | H50: 0 | I50: 0 | J50: 0
A51: 96 | F51: 0 | H51: 0 | I51: 0 | J51: 0
A52: 97 | F52: 0 | H52: 0 | I52: 0 | J52: 0
A53: 98 | F53: 0 | H53: 0 | I53: 0 | J53: 0
A54: 99 | D54: Réservé Organisation scolaire | F54: 0 | H54: 0 | I54: 0 | J54: 0
D55: total programme : | E55: =SUM(E5:E54) -> 900 | F55: =SUM(F5:F54) -> 0 | H55: =SUM(H5:H54) -> 0 | I55: =SUM(I5:I54) -> 900 | J55: =SUM(J5:J54) -> 0 | K55: =SUM(H55:J55) -> 900 | L55: =total formation

Sheet VPMAmdldata (hidden)
A1: Vente de pièces mécaniques et accessoires | M1: Spécifications techniques
M3: Enseignants | P3: Préalables | Q3: incompatible | R3: Distribution | S3: Équipements | T3: Équipements
A4: No | B4: Prog. | C4: Code | D4: Module | E4: Durée | F4: Ponction | G4: Ponction Description | H4: L'an passé | I4: Cette Année | J4: L'an proch. | K4: Enseignant | L4: Commentaires | M4: maintenant | N4: après prép. | O4: à venir | P4: (Requis pour…) | R4: (Idéal) | S4: Spécifique | T4: Partager
A5: 1 | B5: VPMA | C5: 342311 | D5: Métier et formation | E5: 15 | F5: 0 | H5: 0 | I5: =E5-F5-H5-J5 -> 15 | J5: 0
A6: 2 | B6: VPMA | C6: 342325 | D6: Rech. catalogues, microfiches | E6: 75 | F6: 0 | H6: 0 | I6: 75 | J6: 0
A7: 3 | B7: VPMA | C7: 342337 | D7: Pièces moteurs, outils de base | E7: 105 | F7: 0 | H7: 0 | I7: 105 | J7: 0
A8: 4 | B8: VPMA | C8: 342345 | D8: Pièces allumage et aliment | E8: 75 | F8: 0 | H8: 0 | I8: 75 | J8: 0
A9: 5 | B9: VPMA | C9: 342354 | D9: Syst. charge, démarr., éclair. | E9: 60 | F9: 0 | H9: 0 | I9: 60 | J9: 0
A10: 6 | B10: VPMA | C10: 342364 | D10: Réception, entrep. et expéd. | E10: 60 | F10: 0 | H10: 0 | I10: 60 | J10: 0
A11: 7 | B11: VPMA | C11: 342371 | D11: Recherche d'emploi | E11: 15 | F11: 0 | H11: 0 | I11: 15 | J11: 0
A12: 8 | B12: VPMA | C12: 342386 | D12: Pièces de rouages d'entraîn. | E12: 90 | F12: 0 | H12: 0 | I12: 90 | J12: 0
A13: 9 | B13: VPMA | C13: 342396 | D13: Pièces susp., direct., freins | E13: 90 | F13: 0 | H13: 0 | I13: 90 | J13: 0
A14: 10 | B14: VPMA | C14: 342406 | D14: Pièces carrosserie et châssis | E14: 90 | F14: 0 | H14: 0 | I14: 90 | J14: 0
A15: 11 | B15: VPMA | C15: 342412 | D15: Pièces d'équipement de garage | E15: 30 | F15: 0 | H15: 0 | I15: 30 | J15: 0
A16: 12 | B16: VPMA | C16: 342422 | D16: Accessoires de véhicules | E16: 30 | F16: 0 | H16: 0 | I16: 30 | J16: 0
A17: 13 | B17: VPMA | C17: 342435 | D17: Interpr. de l'inform. en angl. | E17: 75 | F17: 0 | H17: 0 | I17: 75 | J17: 0
A18: 14 | B18: VPMA | C18: 342443 | D18: Comm. avec client. et équipe | E18: 45 | F18: 0 | H18: 0 | I18: 45 | J18: 0
A19: 15 | B19: VPMA | C19: 342454 | D19: Vente comptoir et téléphone | E19: 60 | F19: 0 | H19: 0 | I19: 60 | J19: 0
A20: 16 | B20: VPMA | C20: 342462 | D20: Facturation et perception | E20: 30 | F20: 0 | H20: 0 | I20: 30 | J20: 0
A21: 17 | B21: VPMA | C21: 342474 | D21: Tenue d'un comptoir de vente | E21: 60 | F21: 0 | H21: 0 | I21: 60 | J21: 0
A22: 18 | B22: VPMA | C22: 342486 | D22: Intégr. au marché du travail | E22: 90 | F22: 0 | H22: 0 | I22: 90 | J22: 0
A23: 19 | F23: 0 | H23: 0 | I23: 0 | J23: 0
A24: 20 | F24: 0 | H24: 0 | I24: 0 | J24: 0
A25: 21 | F25: 0 | H25: 0 | I25: 0 | J25: 0
A26: 22 | F26: 0 | H26: 0 | I26: 0 | J26: 0
A27: 23 | F27: 0 | H27: 0 | I27: 0 | J27: 0
A28: 24 | F28: 0 | H28: 0 | I28: 0 | J28: 0
A29: 25 | F29: 0 | H29: 0 | I29: 0 | J29: 0
A30: 26 | F30: 0 | H30: 0 | I30: 0 | J30: 0
A31: 27 | F31: 0 | H31: 0 | I31: 0 | J31: 0
A32: 28 | F32: 0 | H32: 0 | I32: 0 | J32: 0
A33: 29 | F33: 0 | H33: 0 | I33: 0 | J33: 0
A34: 30 | F34: 0 | H34: 0 | I34: 0 | J34: 0
A35: 31 | F35: 0 | H35: 0 | I35: 0 | J35: 0
A36: 32 | F36: 0 | H36: 0 | I36: 0 | J36: 0
A37: 33 | F37: 0 | H37: 0 | I37: =E37-F37-H37-J37 -> 0 | J37: 0
A38: 34 | F38: 0 | H38: 0 | I38: 0 | J38: 0
A39: 35 | F39: 0 | H39: 0 | I39: 0 | J39: 0
A40: 36 | F40: 0 | H40: 0 | I40: 0 | J40: 0
A41: 37 | F41: 0 | H41: 0 | I41: 0 | J41: 0
A42: 38 | F42: 0 | H42: 0 | I42: 0 | J42: 0
A43: 39 | F43: 0 | H43: 0 | I43: 0 | J43: 0
A44: 40 | F44: 0 | H44: 0 | I44: 0 | J44: 0
A45: 90 | F45: 0 | H45: 0 | I45: 0 | J45: 0
A46: 91 | F46: 0 | H46: 0 | I46: 0 | J46: 0
A47: 92 | F47: 0 | H47: 0 | I47: 0 | J47: 0
A48: 93 | F48: 0 | H48: 0 | I48: 0 | J48: 0
A49: 94 | F49: 0 | H49: 0 | I49: 0 | J49: 0
A50: 95 | F50: 0 | H50: 0 | I50: 0 | J50: 0
A51: 96 | F51: 0 | H51: 0 | I51: 0 | J51: 0
A52: 97 | F52: 0 | H52: 0 | I52: 0 | J52: 0
A53: 98 | F53: 0 | H53: 0 | I53: 0 | J53: 0
A54: 99 | D54: Réservé Organisation scolaire | F54: 0 | H54: 0 | I54: 0 | J54: 0
D55: total programme : | E55: =SUM(E5:E54) -> 1095 | F55: =SUM(F5:F54) -> 0 | H55: =SUM(H5:H54) -> 0 | I55: =SUM(I5:I54) -> 1095 | J55: =SUM(J5:J54) -> 0 | K55: =SUM(H55:J55) -> 1095 | L55: =total formation

Sheet TUmdldata (hidden)
A1: Tutorat et récupération | N1: Spécifications techniques
N3: Enseignants | Q3: Préalables | R3: incompatible | S3: Distribution | T3: Équipements | U3: Équipements
A4: No | B4: Groupe | C4: Prog. | D4: Code | E4: Module | F4: Durée | G4: Ponction | H4: Ponction Description | I4: L'an passé | J4: Cette Année | K4: L'an proch. | L4: Enseignant | M4: Commentaires | N4: maintenant | O4: après prép. | P4: à venir | Q4: (Requis pour…) | S4: (Idéal) | T4: Spécifique | U4: Partager
A5: 1 | G5: 0 | I5: 0 | J5: =F5-G5-I5-K5 -> 0 | K5: 0
A6: 2 | G6: 0 | I6: 0 | J6: =F6-G6-I6-K6 -> 0 | K6: 0
A7: 3 | G7: 0 | I7: 0 | J7: 0 | K7: 0
A8: 4 | G8: 0 | I8: 0 | J8: 0 | K8: 0
A9: 5 | G9: 0 | I9: 0 | J9: 0 | K9: 0
A10: 6 | G10: 0 | I10: 0 | J10: 0 | K10: 0
A11: 7 | G11: 0 | I11: 0 | J11: 0 | K11: 0
A12: 8 | G12: 0 | I12: 0 | J12: 0 | K12: 0
A13: 9 | G13: 0 | I13: 0 | J13: 0 | K13: 0
A14: 10 | G14: 0 | I14: 0 | J14: 0 | K14: 0
A15: 11 | G15: 0 | I15: 0 | J15: 0 | K15: 0
A16: 12 | G16: 0 | I16: 0 | J16: 0 | K16: 0
A17: 13 | G17: 0 | I17: 0 | J17: 0 | K17: 0
A18: 14 | G18: 0 | I18: 0 | J18: 0 | K18: 0
A19: 15 | G19: 0 | I19: 0 | J19: 0 | K19: 0
A20: 16 | G20: 0 | I20: 0 | J20: 0 | K20: 0
A21: 17 | G21: 0 | I21: 0 | J21: 0 | K21: 0
A22: 18 | G22: 0 | I22: 0 | J22: 0 | K22: 0
A23: 19 | G23: 0 | I23: 0 | J23: =F23-G23-I23-K23 -> 0 | K23: 0
A24: 20 | G24: 0 | I24: 0 | J24: 0 | K24: 0
A25: 21 | G25: 0 | I25: 0 | J25: 0 | K25: 0
A26: 22 | G26: 0 | I26: 0 | J26: 0 | K26: 0
A27: 23 | G27: 0 | I27: 0 | J27: 0 | K27: 0
A28: 24 | G28: 0 | I28: 0 | J28: 0 | K28: 0
A29: 25 | G29: 0 | I29: 0 | J29: 0 | K29: 0
A30: 26 | G30: 0 | I30: 0 | J30: 0 | K30: 0
A31: 27 | G31: 0 | I31: 0 | J31: 0 | K31: 0
A32: 28 | G32: 0 | I32: 0 | J32: 0 | K32: 0
A33: 29 | G33: 0 | I33: 0 | J33: 0 | K33: 0
A34: 30 | G34: 0 | I34: 0 | J34: 0 | K34: 0
A35: 31 | G35: 0 | I35: 0 | J35: 0 | K35: 0
A36: 32 | G36: 0 | I36: 0 | J36: 0 | K36: 0
A37: 33 | G37: 0 | I37: 0 | J37: 0 | K37: 0
A38: 34 | G38: 0 | I38: 0 | J38: 0 | K38: 0
A39: 35 | G39: 0 | I39: 0 | J39: 0 | K39: 0
A40: 36 | G40: 0 | I40: 0 | J40: 0 | K40: 0
A41: 37 | G41: 0 | I41: 0 | J41: =F41-G41-I41-K41 -> 0 | K41: 0
A42: 38 | G42: 0 | I42: 0 | J42: 0 | K42: 0
A43: 39 | G43: 0 | I43: 0 | J43: 0 | K43: 0
A44: 40 | G44: 0 | I44: 0 | J44: 0 | K44: 0
A45: 90 | G45: 0 | I45: 0 | J45: 0 | K45: 0
A46: 91 | G46: 0 | I46: 0 | J46: 0 | K46: 0
A47: 92 | G47: 0 | I47: 0 | J47: 0 | K47: 0
A48: 93 | G48: 0 | I48: 0 | J48: 0 | K48: 0
A49: 94 | G49: 0 | I49: 0 | J49: 0 | K49: 0
A50: 95 | G50: 0 | I50: 0 | J50: 0 | K50: 0
A51: 96 | G51: 0 | I51: 0 | J51: 0 | K51: 0
A52: 97 | G52: 0 | I52: 0 | J52: 0 | K52: 0
A53: 98 | G53: 0 | I53: 0 | J53: 0 | K53: 0
A54: 99 | E54: Réservé Organisation scolaire | G54: 0 | I54: 0 | J54: 0 | K54: 0
E55: total programme : | F55: =SUM(F5:F54) -> 0 | G55: =SUM(G5:G54) -> 0 | I55: =SUM(I5:I54) -> 0 | J55: =SUM(J5:J54) -> 0 | K55: =SUM(K5:K54) -> 0 | L55: =SUM(I55:K55) -> 0 | M55: =total formation

Sheet EXmdldata (hidden)
A1: Exploration professionnelle | N1: Spécifications techniques
N3: Enseignants | Q3: Préalables | R3: incompatible | S3: Distribution | T3: Équipements | U3: Équipements
A4: No | B4: Groupe | C4: Prog. | D4: Code | E4: Module | F4: Durée | G4: Ponction | H4: Ponction Description | I4: L'an passé | J4: Cette Année | K4: L'an proch. | L4: Enseignant | M4: Commentaires | N4: maintenant | O4: après prép. | P4: à venir | Q4: (Requis pour…) | S4: (Idéal) | T4: Spécifique | U4: Partager
A5: 1 | G5: 0 | I5: 0 | J5: =F5-G5-I5-K5 -> 0 | K5: 0
A6: 2 | G6: 0 | I6: 0 | J6: =F6-G6-I6-K6 -> 0 | K6: 0
A7: 3 | G7: 0 | I7: 0 | J7: 0 | K7: 0
A8: 4 | G8: 0 | I8: 0 | J8: 0 | K8: 0
A9: 5 | G9: 0 | I9: 0 | J9: 0 | K9: 0
A10: 6 | G10: 0 | I10: 0 | J10: 0 | K10: 0
A11: 7 | G11: 0 | I11: 0 | J11: 0 | K11: 0
A12: 8 | G12: 0 | I12: 0 | J12: 0 | K12: 0
A13: 9 | G13: 0 | I13: 0 | J13: 0 | K13: 0
A14: 10 | G14: 0 | I14: 0 | J14: 0 | K14: 0
A15: 11 | G15: 0 | I15: 0 | J15: 0 | K15: 0
A16: 12 | G16: 0 | I16: 0 | J16: 0 | K16: 0
A17: 13 | G17: 0 | I17: 0 | J17: 0 | K17: 0
A18: 14 | G18: 0 | I18: 0 | J18: 0 | K18: 0
A19: 15 | G19: 0 | I19: 0 | J19: 0 | K19: 0
A20: 16 | G20: 0 | I20: 0 | J20: 0 | K20: 0
A21: 17 | G21: 0 | I21: 0 | J21: 0 | K21: 0
A22: 18 | G22: 0 | I22: 0 | J22: 0 | K22: 0
A23: 19 | G23: 0 | I23: 0 | J23: =F23-G23-I23-K23 -> 0 | K23: 0
A24: 20 | G24: 0 | I24: 0 | J24: 0 | K24: 0
A25: 21 | G25: 0 | I25: 0 | J25: 0 | K25: 0
A26: 22 | G26: 0 | I26: 0 | J26: 0 | K26: 0
A27: 23 | G27: 0 | I27: 0 | J27: 0 | K27: 0
A28: 24 | G28: 0 | I28: 0 | J28: 0 | K28: 0
A29: 25 | G29: 0 | I29: 0 | J29: 0 | K29: 0
A30: 26 | G30: 0 | I30: 0 | J30: 0 | K30: 0
A31: 27 | G31: 0 | I31: 0 | J31: 0 | K31: 0
A32: 28 | G32: 0 | I32: 0 | J32: 0 | K32: 0
A33: 29 | G33: 0 | I33: 0 | J33: 0 | K33: 0
A34: 30 | G34: 0 | I34: 0 | J34: 0 | K34: 0
A35: 31 | G35: 0 | I35: 0 | J35: 0 | K35: 0
A36: 32 | G36: 0 | I36: 0 | J36: 0 | K36: 0
A37: 33 | G37: 0 | I37: 0 | J37: 0 | K37: 0
A38: 34 | G38: 0 | I38: 0 | J38: 0 | K38: 0
A39: 35 | G39: 0 | I39: 0 | J39: 0 | K39: 0
A40: 36 | G40: 0 | I40: 0 | J40: 0 | K40: 0
A41: 37 | G41: 0 | I41: 0 | J41: =F41-G41-I41-K41 -> 0 | K41: 0
A42: 38 | G42: 0 | I42: 0 | J42: 0 | K42: 0
A43: 39 | G43: 0 | I43: 0 | J43: 0 | K43: 0
A44: 40 | G44: 0 | I44: 0 | J44: 0 | K44: 0
A45: 90 | G45: 0 | I45: 0 | J45: 0 | K45: 0
A46: 91 | G46: 0 | I46: 0 | J46: 0 | K46: 0
A47: 92 | G47: 0 | I47: 0 | J47: 0 | K47: 0
A48: 93 | G48: 0 | I48: 0 | J48: 0 | K48: 0
A49: 94 | G49: 0 | I49: 0 | J49: 0 | K49: 0
A50: 95 | G50: 0 | I50: 0 | J50: 0 | K50: 0
A51: 96 | G51: 0 | I51: 0 | J51: 0 | K51: 0
A52: 97 | G52: 0 | I52: 0 | J52: 0 | K52: 0
A53: 98 | G53: 0 | I53: 0 | J53: 0 | K53: 0
A54: 99 | E54: Réservé Organisation scolaire | G54: 0 | I54: 0 | J54: 0 | K54: 0
E55: total programme : | F55: =SUM(F5:F54) -> 0 | G55: =SUM(G5:G54) -> 0 | I55: =SUM(I5:I54) -> 0 | J55: =SUM(J5:J54) -> 0 | K55: =SUM(K5:K54) -> 0 | L55: =SUM(I55:K55) -> 0 | M55: =total formation

Sheet 13004 (hidden)
A1: Mécanique de véhicules lourds routiers | M1: Spécifications techniques
M3: Enseignants | P3: Préalables | Q3: incompatible | R3: Distribution | S3: Équipements | T3: Équipements
A4: No | B4: Prog. | C4: Code | D4: Module | E4: Durée | F4: Ponction | G4: Ponction Description | H4: L'an passé | I4: Cette Année | J4: L'an proch. | K4: Enseignant | L4: Commentaires | M4: maintenant | N4: après prép. | O4: à venir | P4: (Requis pour…) | R4: (Idéal) | S4: Spécifique | T4: Partager
A5: 1 | B5: MVLR | C5: 350-561 | D5: Métier et formation | E5: 15 | F5: 1 | H5: 14 | I5: =E5-F5-H5-J5 -> 0 | J5: 0
A6: 2 | B6: MVLR | C6: 350-562 | D6: Santé/sécurité/environnement | E6: 30 | F6: 2 | H6: 28 | I6: 0 | J6: 0
A7: 3 | B7: MVLR | C7: 350-563 | D7: Information technique | E7: 39 | F7: 3 | H7: 20 | I7: 16 | J7: 0
A8: 4 | B8: MVLR | C8: 350-565 | D8: Travail d'atelier | E8: 76 | F8: 7 | H8: 69 | I8: 0 | J8: 0
A9: 5 | B9: MVLR | C9: 350-575 | D9: Chauffe, soudage et coupage | E9: 75 | F9: 0 | G9: Pas de ponction SOUD | H9: 75 | I9: 0 | J9: 0
A10: 6 | B10: MVLR | C10: 350-572 | D10: Communication en milieu de travail | E10: 25 | F10: 2 | H10: 23 | I10: 0 | J10: 0
A11: 7 | B11: MVLR | C11: 350-573 | D11: Réparation/remplacement des roues | E11: 45 | F11: 4 | H11: 41 | I11: 0 | J11: 0
A12: 8 | B12: MVLR | C12: 350-566 | D12: Vérif des sytèmes hydraulique et pneumatique | E12: 90 | F12: 7 | H12: 83 | I12: 0 | J12: 0
A13: 9 | B13: MVLR | C13: 350-585 | D13: Suspensions, cadres, sellettes | E13: 75 | F13: 6 | H13: 69 | I13: 0 | J13: 0
A14: 10 | B14: MVLR | C14: 350-576 | D14: Systèmes électriques/électroniques | E14: 90 | F14: 7 | H14: 83 | I14: 0 | J14: 0
A15: 11 | B15: MVLR | C15: 350-595 | D15: Directions assistance hydraulique | E15: 75 | F15: 6 | H15: 69 | I15: 0 | J15: 0
A16: 12 | B16: MVLR | C16: 350-568 | D16: Freinage hydraulique/pneumatique | E16: 120 | F16: 9 | H16: 111 | I16: 0 | J16: 0
A17: 13 | B17: MVLR | C17: 350-578 | D17: Transmission de pouvoir | E17: 120 | F17: 10 | H17: 110 | I17: 0 | J17: 0
A18: 14 | B18: MVLR | C18: 350-564 | D18: Diffusion de pouvoir | E18: 60 | F18: 5 | H18: 55 | I18: 0 | J18: 0
A19: 15 | B19: MVLR | C19: 350-583 | D19: Transmissions automatiques | E19: 45 | F19: 4 | H19: 41 | I19: 0 | J19: 0
A20: 16 | B20: MVLR | C20: 350-574 | D20: Systèmes de charge et de démarrage | E20: 60 | F20: 5 | H20: 55 | I20: 0 | J20: 0
A21: 17 | B21: MVLR | C21: 350-584 | D21: Réparation de l'équipement hydraulique | E21: 60 | F21: 5 | H21: 0 | I21: 55 | J21: 0
A22: 18 | B22: MVLR | C22: 350-586 | D22: Cabine/accessoires/circuits | E22: 90 | F22: 7 | H22: 63 | I22: 20 | J22: 0
A23: 19 | B23: MVLR | C23: 350-567 | D23: Injection diesel/freins moteur | E23: 110 | F23: 8 | H23: 0 | I23: 102 | J23: 0
A24: 20 | B24: MVLR | C24: 350-577 | D24: Mise au point de moteurs diesels | E24: 110 | F24: 8 | H24: 0 | I24: 102 | J24: 0
A25: 21 | B25: MVLR | C25: 350-594 | D25: Vérification de moteurs diesels | E25: 60 | F25: 5 | H25: 0 | I25: 55 | J25: 0
A26: 22 | B26: MVLR | C26: 350-588 | D26: Réparation de moteurs diesels | E26: 120 | F26: 9 | H26: 0 | I26: 111 | J26: 0
A27: 23 | B27: MVLR | C27: 350-605 | D27: Entretien de véhicule lourd | E27: 75 | F27: 6 | H27: 0 | I27: 69 | J27: 0
A28: 24 | B28: MVLR | C28: 350-609 | D28: Intégration en milieu de travail #1 | E28: 45 | F28: 20 | H28: 25 | I28: 0 | J28: 0
A29: 25 | B29: MVLR | C29: 350-609 | D29: Intégration en milieu de travail #2 | E29: 90 | F29: 45 | H29: 0 | I29: 45 | J29: 0
A30: 26 | F30: 0 | H30: 0 | I30: 0 | J30: 0
A31: 27 | F31: 0 | H31: 0 | I31: 0 | J31: 0
A32: 28 | F32: 0 | H32: 0 | I32: 0 | J32: 0
A33: 29 | F33: 0 | H33: 0 | I33: 0 | J33: 0
A34: 30 | F34: 0 | H34: 0 | I34: 0 | J34: 0
A35: 31 | F35: 0 | H35: 0 | I35: 0 | J35: 0
A36: 32 | F36: 0 | H36: 0 | I36: 0 | J36: 0
A37: 33 | F37: 0 | H37: 0 | I37: 0 | J37: 0
A38: 34 | F38: 0 | H38: 0 | I38: 0 | J38: 0
A39: 35 | F39: 0 | H39: 0 | I39: 0 | J39: 0
A40: 36 | F40: 0 | H40: 0 | I40: 0 | J40: 0
A41: 37 | F41: 0 | H41: 0 | I41: 0 | J41: 0
A42: 38 | F42: 0 | H42: 0 | I42: 0 | J42: 0
A43: 39 | F43: 0 | H43: 0 | I43: 0 | J43: 0
A44: 40 | F44: 0 | H44: 0 | I44: 0 | J44: 0
A45: 90 | D45: Récupération | F45: -126 | H45: 81 | I45: 45 | J45: 0
A46: 91 | F46: 0 | H46: 0 | I46: 0 | J46: 0
A47: 92 | F47: 0 | H47: 0 | I47: 0 | J47: 0
A48: 93 | F48: 0 | H48: 0 | I48: 0 | J48: 0
A49: 94 | F49: 0 | H49: 0 | I49: 0 | J49: 0
A50: 95 | D50: Stage non assigné #1 | F50: -65 | H50: 30 | I50: 35 | J50: 0
A51: 96 | F51: 0 | H51: 0 | I51: 0 | J51: 0
A52: 97 | F52: 0 | H52: 0 | I52: 0 | J52: 0
A53: 98 | F53: 0 | H53: 0 | I53: 0 | J53: 0
A54: 99 | D54: Réservé Organisation scolaire | F54: 0 | H54: 0 | J54: 0
D55: total programme : | E55: =SUM(E5:E54) -> 1800 | F55: =SUM(F5:F54) -> 0 | H55: =SUM(H5:H54) -> 1145 | I55: =SUM(I5:I54) -> 655 | J55: =SUM(J5:J54) -> 0 | K55: =SUM(H55:J55) -> 1800 | L55: =total formation

Sheet 13005 (hidden)
A1: Mécanique de véhicules lourds routiers | M1: Spécifications techniques
M3: Enseignants | P3: Préalables | Q3: incompatible | R3: Distribution | S3: Équipements | T3: Équipements
A4: No | B4: Prog. | C4: Code | D4: Module | E4: Durée | F4: Ponction | G4: Ponction Description | H4: L'an passé | I4: Cette Année | J4: L'an proch. | K4: Enseignant | L4: Commentaires | M4: maintenant | N4: après prép. | O4: à venir | P4: (Requis pour…) | R4: (Idéal) | S4: Spécifique | T4: Partager
A5: 1 | B5: MVLR | C5: 350-561 | D5: Métier et formation | E5: 15 | F5: 1 | H5: 14 | I5: =E5-F5-H5-J5 -> 0 | J5: 0
A6: 2 | B6: MVLR | C6: 350-562 | D6: Santé/sécurité/environnement | E6: 30 | F6: 2 | H6: 28 | I6: 0 | J6: 0
A7: 3 | B7: MVLR | C7: 350-563 | D7: Information technique | E7: 39 | F7: 3 | H7: 22 | I7: 14 | J7: 0
A8: 4 | B8: MVLR | C8: 350-565 | D8: Travail d'atelier | E8: 76 | F8: 7 | H8: 69 | I8: 0 | J8: 0
A9: 5 | B9: MVLR | C9: 350-575 | D9: Chauffe, soudage et coupage | E9: 75 | F9: 0 | G9: Pas de ponction SOUD | H9: 75 | I9: 0 | J9: 0
A10: 6 | B10: MVLR | C10: 350-572 | D10: Communication en milieu de travail | E10: 25 | F10: 2 | H10: 23 | I10: 0 | J10: 0
A11: 7 | B11: MVLR | C11: 350-573 | D11: Réparation/remplacement des roues | E11: 45 | F11: -2 | H11: 47 | I11: 0 | J11: 0
A12: 8 | B12: MVLR | C12: 350-566 | D12: Vérif des sytèmes hydraulique et pneumatique | E12: 90 | F12: 12 | H12: 78 | I12: 0 | J12: 0
A13: 9 | B13: MVLR | C13: 350-585 | D13: Suspensions, cadres, sellettes | E13: 75 | F13: 6 | H13: 69 | I13: 0 | J13: 0
A14: 10 | B14: MVLR | C14: 350-576 | D14: Systèmes électriques/électroniques | E14: 90 | F14: 7 | H14: 83 | I14: 0 | J14: 0
A15: 11 | B15: MVLR | C15: 350-595 | D15: Directions assistance hydraulique | E15: 75 | F15: 6 | H15: 69 | I15: 0 | J15: 0
A16: 12 | B16: MVLR | C16: 350-568 | D16: Freinage hydraulique/pneumatique | E16: 120 | F16: 9 | H16: 111 | I16: 0 | J16: 0
A17: 13 | B17: MVLR | C17: 350-578 | D17: Transmission de pouvoir | E17: 120 | F17: 7 | H17: 113 | I17: 0 | J17: 0
A18: 14 | B18: MVLR | C18: 350-564 | D18: Diffusion de pouvoir | E18: 60 | F18: 7 | H18: 50 | I18: 3 | J18: 0
A19: 15 | B19: MVLR | C19: 350-583 | D19: Transmissions automatiques | E19: 45 | F19: 4 | H19: 0 | I19: 41 | J19: 0
A20: 16 | B20: MVLR | C20: 350-574 | D20: Systèmes de charge et de démarrage | E20: 60 | F20: 5 | H20: 55 | I20: 0 | J20: 0
A21: 17 | B21: MVLR | C21: 350-584 | D21: Réparation de l'équipement hydraulique | E21: 60 | F21: 5 | H21: 0 | I21: 55 | J21: 0
A22: 18 | B22: MVLR | C22: 350-586 | D22: Cabine/accessoires/circuits | E22: 90 | F22: 7 | H22: 0 | I22: 83 | J22: 0
A23: 19 | B23: MVLR | C23: 350-567 | D23: Injection diesel/freins moteur | E23: 110 | F23: 9 | H23: 0 | I23: 101 | J23: 0
A24: 20 | B24: MVLR | C24: 350-577 | D24: Mise au point de moteurs diesels | E24: 110 | F24: 9 | H24: 0 | I24: 101 | J24: 0
A25: 21 | B25: MVLR | C25: 350-594 | D25: Vérification de moteurs diesels | E25: 60 | F25: 5 | H25: 0 | I25: 55 | J25: 0
A26: 22 | B26: MVLR | C26: 350-588 | D26: Réparation de moteurs diesels | E26: 120 | F26: 9 | H26: 0 | I26: 111 | J26: 0
A27: 23 | B27: MVLR | C27: 350-605 | D27: Entretien de véhicule lourd | E27: 75 | F27: 6 | H27: 0 | I27: 69 | J27: 0
A28: 24 | B28: MVLR | C28: 350-609 | D28: Intégration en milieu de travail #1 | E28: 45 | F28: 20 | H28: 25 | I28: 0 | J28: 0
A29: 25 | B29: MVLR | C29: 350-609 | D29: Intégration en milieu de travail #2 | E29: 90 | F29: 45 | H29: 0 | I29: 45 | J29: 0
A30: 26 | F30: 0 | H30: 0 | I30: 0 | J30: 0
A31: 27 | F31: 0 | H31: 0 | I31: 0 | J31: 0
A32: 28 | F32: 0 | H32: 0 | I32: 0 | J32: 0
A33: 29 | F33: 0 | H33: 0 | I33: 0 | J33: 0
A34: 30 | F34: 0 | H34: 0 | I34: 0 | J34: 0
A35: 31 | F35: 0 | H35: 0 | I35: 0 | J35: 0
A36: 32 | F36: 0 | H36: 0 | I36: 0 | J36: 0
A37: 33 | F37: 0 | H37: 0 | I37: 0 | J37: 0
A38: 34 | F38: 0 | H38: 0 | I38: 0 | J38: 0
A39: 35 | F39: 0 | H39: 0 | I39: 0 | J39: 0
A40: 36 | F40: 0 | H40: 0 | I40: 0 | J40: 0
A41: 37 | F41: 0 | H41: 0 | I41: 0 | J41: 0
A42: 38 | F42: 0 | H42: 0 | I42: 0 | J42: 0
A43: 39 | F43: 0 | H43: 0 | I43: 0 | J43: 0
A44: 40 | F44: 0 | H44: 0 | I44: 0 | J44: 0
A45: 90 | D45: Récupération | F45: -126 | H45: 52 | I45: 74 | J45: 0
A46: 91 | F46: 0 | H46: 0 | I46: 0 | J46: 0
A47: 92 | F47: 0 | H47: 0 | I47: 0 | J47: 0
A48: 93 | F48: 0 | H48: 0 | I48: 0 | J48: 0
A49: 94 | F49: 0 | H49: 0 | I49: 0 | J49: 0
A50: 95 | D50: Stage non assigné #1 | F50: -65 | H50: 30 | I50: 35 | J50: 0
A51: 96 | F51: 0 | H51: 0 | I51: 0 | J51: 0
A52: 97 | F52: 0 | H52: 0 | I52: 0 | J52: 0
A53: 98 | F53: 0 | H53: 0 | I53: 0 | J53: 0
A54: 99 | D54: Réservé Organisation scolaire | F54: 0 | H54: 0 | J54: 0
D55: total programme : | E55: =SUM(E5:E54) -> 1800 | F55: =SUM(F5:F54) -> 0 | H55: =SUM(H5:H54) -> 1013 | I55: =SUM(I5:I54) -> 787 | J55: =SUM(J5:J54) -> 0 | K55: =SUM(H55:J55) -> 1800 | L55: =total formation

Sheet 13006 (hidden)
A1: Mécanique de véhicules lourds routiers | M1: Spécifications techniques
M3: Enseignants | P3: Préalables | Q3: incompatible | R3: Distribution | S3: Équipements | T3: Équipements
A4: No | B4: Prog. | C4: Code | D4: Module | E4: Durée | F4: Ponction | G4: Ponction Description | H4: L'an passé | I4: Cette Année | J4: L'an proch. | K4: Enseignant | L4: Commentaires | M4: maintenant | N4: après prép. | O4: à venir | P4: (Requis pour…) | R4: (Idéal) | S4: Spécifique | T4: Partager
A5: 1 | B5: MVLR | C5: 350-561 | D5: Métier et formation | E5: 15 | F5: 1 | H5: 14 | I5: =E5-F5-H5-J5 -> 0 | J5: 0
A6: 2 | B6: MVLR | C6: 350-562 | D6: Santé/sécurité/environnement | E6: 30 | F6: 2 | H6: 28 | I6: 0 | J6: 0
A7: 3 | B7: MVLR | C7: 350-563 | D7: Information technique | E7: 39 | F7: 3 | H7: 25 | I7: 11 | J7: 0
A8: 4 | B8: MVLR | C8: 350-565 | D8: Travail d'atelier | E8: 76 | F8: 9 | H8: 67 | I8: 0 | J8: 0
A9: 5 | B9: MVLR | C9: 350-575 | D9: Chauffe, soudage et coupage | E9: 75 | F9: 0 | G9: Pas de ponction SOUD | H9: 75 | I9: 0 | J9: 0
A10: 6 | B10: MVLR | C10: 350-572 | D10: Communication en milieu de travail | E10: 25 | F10: 2 | H10: 23 | I10: 0 | J10: 0
A11: 7 | B11: MVLR | C11: 350-573 | D11: Réparation/remplacement des roues | E11: 45 | F11: 2 | H11: 43 | I11: 0 | J11: 0
A12: 8 | B12: MVLR | C12: 350-566 | D12: Vérif des sytèmes hydraulique et pneumatique | E12: 90 | F12: 7 | H12: 83 | I12: 0 | J12: 0
A13: 9 | B13: MVLR | C13: 350-585 | D13: Suspensions, cadres, sellettes | E13: 75 | F13: 6 | H13: 13 | I13: 56 | J13: 0
A14: 10 | B14: MVLR | C14: 350-576 | D14: Systèmes électriques/électroniques | E14: 90 | F14: 7 | H14: 83 | I14: 0 | J14: 0
A15: 11 | B15: MVLR | C15: 350-595 | D15: Directions assistance hydraulique | E15: 75 | F15: 6 | H15: 69 | I15: 0 | J15: 0
A16: 12 | B16: MVLR | C16: 350-568 | D16: Freinage hydraulique/pneumatique | E16: 120 | F16: 9 | H16: 111 | I16: 0 | J16: 0
A17: 13 | B17: MVLR | C17: 350-578 | D17: Transmission de pouvoir | E17: 120 | F17: 10 | H17: 0 | I17: 110 | J17: 0
A18: 14 | B18: MVLR | C18: 350-564 | D18: Diffusion de pouvoir | E18: 60 | F18: 5 | H18: 0 | I18: 55 | J18: 0
A19: 15 | B19: MVLR | C19: 350-583 | D19: Transmissions automatiques | E19: 45 | F19: 4 | H19: 0 | I19: 41 | J19: 0
A20: 16 | B20: MVLR | C20: 350-574 | D20: Systèmes de charge et de démarrage | E20: 60 | F20: 5 | H20: 0 | I20: 55 | J20: 0
A21: 17 | B21: MVLR | C21: 350-584 | D21: Réparation de l'équipement hydraulique | E21: 60 | F21: 5 | H21: 0 | I21: 55 | J21: 0
A22: 18 | B22: MVLR | C22: 350-586 | D22: Cabine/accessoires/circuits | E22: 90 | F22: 7 | H22: 0 | I22: 83 | J22: 0
A23: 19 | B23: MVLR | C23: 350-567 | D23: Injection diesel/freins moteur | E23: 110 | F23: 8 | H23: 0 | I23: 102 | J23: 0
A24: 20 | B24: MVLR | C24: 350-577 | D24: Mise au point de moteurs diesels | E24: 110 | F24: 8 | H24: 0 | I24: 102 | J24: 0
A25: 21 | B25: MVLR | C25: 350-594 | D25: Vérification de moteurs diesels | E25: 60 | F25: 5 | H25: 0 | I25: 55 | J25: 0
A26: 22 | B26: MVLR | C26: 350-588 | D26: Réparation de moteurs diesels | E26: 120 | F26: 9 | H26: 0 | I26: 111 | J26: 0
A27: 23 | B27: MVLR | C27: 350-605 | D27: Entretien de véhicule lourd | E27: 75 | F27: 6 | H27: 0 | I27: 69 | J27: 0
A28: 24 | B28: MVLR | C28: 350-609 | D28: Intégration en milieu de travail #1 | E28: 45 | F28: 20 | H28: 0 | I28: 25 | J28: 0
A29: 25 | B29: MVLR | C29: 350-609 | D29: Intégration en milieu de travail #2 | E29: 90 | F29: 45 | H29: 0 | I29: 45 | J29: 0
A30: 26 | F30: 0 | H30: 0 | I30: 0 | J30: 0
A31: 27 | F31: 0 | H31: 0 | I31: 0 | J31: 0
A32: 28 | F32: 0 | H32: 0 | I32: 0 | J32: 0
A33: 29 | F33: 0 | H33: 0 | I33: 0 | J33: 0
A34: 30 | F34: 0 | H34: 0 | I34: 0 | J34: 0
A35: 31 | F35: 0 | H35: 0 | I35: 0 | J35: 0
A36: 32 | F36: 0 | H36: 0 | I36: 0 | J36: 0
A37: 33 | F37: 0 | H37: 0 | I37: 0 | J37: 0
A38: 34 | F38: 0 | H38: 0 | I38: 0 | J38: 0
A39: 35 | F39: 0 | H39: 0 | I39: 0 | J39: 0
A40: 36 | F40: 0 | H40: 0 | I40: 0 | J40: 0
A41: 37 | F41: 0 | H41: 0 | I41: 0 | J41: 0
A42: 38 | F42: 0 | H42: 0 | I42: 0 | J42: 0
A43: 39 | F43: 0 | H43: 0 | I43: 0 | J43: 0
A44: 40 | F44: 0 | H44: 0 | I44: 0 | J44: 0
A45: 90 | D45: Récupération | F45: -126 | H45: 30 | I45: 96 | J45: 0
A46: 91 | F46: 0 | H46: 0 | I46: 0 | J46: 0
A47: 92 | F47: 0 | H47: 0 | I47: 0 | J47: 0
A48: 93 | F48: 0 | H48: 0 | I48: 0 | J48: 0
A49: 94 | F49: 0 | H49: 0 | I49: 0 | J49: 0
A50: 95 | D50: Stage non assigné #1 | F50: -65 | H50: 0 | I50: 65 | J50: 0
A51: 96 | F51: 0 | H51: 0 | I51: 0 | J51: 0
A52: 97 | F52: 0 | H52: 0 | I52: 0 | J52: 0
A53: 98 | F53: 0 | H53: 0 | I53: 0 | J53: 0
A54: 99 | D54: Réservé Organisation scolaire | F54: 0 | H54: 0 | J54: 0
D55: total programme : | E55: =SUM(E5:E54) -> 1800 | F55: =SUM(F5:F54) -> 0 | H55: =SUM(H5:H54) -> 664 | I55: =SUM(I5:I54) -> 1136 | J55: =SUM(J5:J54) -> 0 | K55: =SUM(H55:J55) -> 1800 | L55: =total formation

Sheet 14007 (hidden)
A1: Mécanique de véhicules lourds routiers | M1: Spécifications techniques
M3: Enseignants | P3: Préalables | Q3: incompatible | R3: Distribution | S3: Équipements | T3: Équipements
A4: No | B4: Prog. | C4: Code | D4: Module | E4: Durée | F4: Ponction | G4: Ponction Description | H4: L'an passé | I4: Cette Année | J4: L'an proch. | K4: Enseignant | L4: Commentaires | M4: maintenant | N4: après prép. | O4: à venir | P4: (Requis pour…) | R4: (Idéal) | S4: Spécifique | T4: Partager
A5: 1 | B5: MVLR | C5: 350-561 | D5: Métier et formation | E5: 15 | F5: 1 | H5: 0 | I5: =E5-F5-H5-J5 -> 14 | J5: 0
A6: 2 | B6: MVLR | C6: 350-562 | D6: Santé/sécurité/environnement | E6: 30 | F6: 2 | H6: 0 | I6: 28 | J6: 0
A7: 3 | B7: MVLR | C7: 350-563 | D7: Information technique | E7: 45 | F7: 9 | H7: 0 | I7: 36 | J7: 0
A8: 4 | B8: MVLR | C8: 350-565 | D8: Travail d'atelier | E8: 75 | F8: 3 | H8: 0 | I8: 72 | J8: 0
A9: 5 | B9: MVLR | C9: 350-575 | D9: Chauffe, soudage et coupage | E9: 75 | F9: 0 | G9: Pas de ponction SOUD | H9: 0 | I9: 75 | J9: 0
A10: 6 | B10: MVLR | C10: 350-572 | D10: Communication en milieu de travail | E10: 30 | F10: 12 | H10: 0 | I10: 18 | J10: 0
A11: 7 | B11: MVLR | C11: 350-573 | D11: Réparation/remplacement des roues | E11: 45 | F11: 3 | H11: 0 | I11: 42 | J11: 0
A12: 8 | B12: MVLR | C12: 350-566 | D12: Vérif des sytèmes hydraulique et pneumatique | E12: 90 | F12: 6 | H12: 0 | I12: 84 | J12: 0
A13: 9 | B13: MVLR | C13: 350-585 | D13: Suspensions, cadres, sellettes | E13: 75 | F13: 6 | H13: 0 | I13: 69 | J13: 0
A14: 10 | B14: MVLR | C14: 350-576 | D14: Systèmes électriques/électroniques | E14: 90 | F14: 6 | H14: 0 | I14: 84 | J14: 0
A15: 11 | B15: MVLR | C15: 350-595 | D15: Directions assistance hydraulique | E15: 75 | F15: 6 | H15: 0 | I15: 69 | J15: 0
A16: 12 | B16: MVLR | C16: 350-568 | D16: Freinage hydraulique/pneumatique | E16: 120 | F16: 18 | H16: 0 | I16: 102 | J16: 0
A17: 13 | B17: MVLR | C17: 350-578 | D17: Transmission de pouvoir | E17: 120 | F17: 9 | H17: 0 | I17: 111 | J17: 0
A18: 14 | B18: MVLR | C18: 350-564 | D18: Diffusion de pouvoir | E18: 60 | F18: 6 | H18: 0 | I18: 54 | J18: 0
A19: 15 | B19: MVLR | C19: 350-583 | D19: Transmissions automatiques | E19: 45 | F19: 6 | H19: 0 | I19: 39 | J19: 0
A20: 16 | B20: MVLR | C20: 350-574 | D20: Systèmes de charge et de démarrage | E20: 60 | F20: 6 | H20: 0 | I20: 54 | J20: 0
A21: 17 | B21: MVLR | C21: 350-584 | D21: Réparation de l'équipement hydraulique | E21: 60 | F21: 6 | H21: 0 | I21: 54 | J21: 0
A22: 18 | B22: MVLR | C22: 350-586 | D22: Cabine/accessoires/circuits | E22: 90 | F22: 6 | H22: 0 | I22: 84 | J22: 0
A23: 19 | B23: MVLR | C23: 350-567 | D23: Injection diesel/freins moteur | E23: 105 | F23: 12 | H23: 0 | I23: 93 | J23: 0
A24: 20 | B24: MVLR | C24: 350-577 | D24: Mise au point de moteurs diesels | E24: 105 | F24: 12 | H24: 0 | I24: 93 | J24: 0
A25: 21 | B25: MVLR | C25: 350-594 | D25: Vérification de moteurs diesels | E25: 60 | F25: 6 | H25: 0 | I25: 54 | J25: 0
A26: 22 | B26: MVLR | C26: 350-588 | D26: Réparation de moteurs diesels | E26: 120 | F26: 9 | H26: 0 | I26: 111 | J26: 0
A27: 23 | B27: MVLR | C27: 350-605 | D27: Entretien de véhicule lourd | E27: 75 | F27: 6 | H27: 0 | I27: 69 | J27: 0
A28: 24 | B28: MVLR | C28: 350-609 | D28: Intégration en milieu de travail #1 | E28: 45 | F28: 20 | H28: 0 | I28: 25 | J28: 0
A29: 25 | B29: MVLR | C29: 350-609 | D29: Intégration en milieu de travail #2 | E29: 90 | F29: 45 | H29: 0 | I29: 45 | J29: 0
A30: 26 | F30: 0 | H30: 0 | I30: 0 | J30: 0
A31: 27 | F31: 0 | H31: 0 | I31: 0 | J31: 0
A32: 28 | F32: 0 | H32: 0 | I32: 0 | J32: 0
A33: 29 | F33: 0 | H33: 0 | I33: 0 | J33: 0
A34: 30 | F34: 0 | H34: 0 | I34: 0 | J34: 0
A35: 31 | F35: 0 | H35: 0 | I35: 0 | J35: 0
A36: 32 | F36: 0 | H36: 0 | I36: 0 | J36: 0
A37: 33 | F37: 0 | H37: 0 | I37: 0 | J37: 0
A38: 34 | F38: 0 | H38: 0 | I38: 0 | J38: 0
A39: 35 | F39: 0 | H39: 0 | I39: 0 | J39: 0
A40: 36 | F40: 0 | H40: 0 | I40: 0 | J40: 0
A41: 37 | F41: 0 | H41: 0 | I41: 0 | J41: 0
A42: 38 | F42: 0 | H42: 0 | I42: 0 | J42: 0
A43: 39 | F43: 0 | H43: 0 | I43: 0 | J43: 0
A44: 40 | F44: 0 | H44: 0 | I44: 0 | J44: 0
A45: 90 | D45: Récupération | F45: -156 | H45: 0 | I45: 156 | J45: 0
A46: 91 | F46: 0 | H46: 0 | I46: 0 | J46: 0
A47: 92 | F47: 0 | H47: 0 | I47: 0 | J47: 0
A48: 93 | F48: 0 | H48: 0 | I48: 0 | J48: 0
A49: 94 | F49: 0 | H49: 0 | I49: 0 | J49: 0
A50: 95 | D50: Stage non assigné #1 | F50: -65 | H50: 0 | I50: 65 | J50: 0
A51: 96 | F51: 0 | H51: 0 | I51: 0 | J51: 0
A52: 97 | F52: 0 | H52: 0 | I52: 0 | J52: 0
A53: 98 | F53: 0 | H53: 0 | I53: 0 | J53: 0
A54: 99 | D54: Réservé Organisation scolaire | F54: 0 | H54: 0 | I54: 0 | J54: 0
D55: total programme : | E55: =SUM(E5:E54) -> 1800 | F55: =SUM(F5:F54) -> 0 | H55: =SUM(H5:H54) -> 0 | I55: =SUM(I5:I54) -> 1800 | J55: =SUM(J5:J54) -> 0 | K55: =SUM(H55:J55) -> 1800 | L55: =total formation

Sheet 14008 (hidden)
A1: Mécanique de véhicules lourds routiers | M1: Spécifications techniques
M3: Enseignants | P3: Préalables | Q3: incompatible | R3: Distribution | S3: Équipements | T3: Équipements
A4: No | B4: Prog. | C4: Code | D4: Module | E4: Durée | F4: Ponction | G4: Ponction Description | H4: L'an passé | I4: Cette Année | J4: L'an proch. | K4: Enseignant | L4: Commentaires | M4: maintenant | N4: après prép. | O4: à venir | P4: (Requis pour…) | R4: (Idéal) | S4: Spécifique | T4: Partager
A5: 1 | B5: MVLR | C5: 350-561 | D5: Métier et formation | E5: 15 | F5: 1 | H5: 0 | I5: =E5-F5-H5-J5 -> 14 | J5: 0
A6: 2 | B6: MVLR | C6: 350-562 | D6: Santé/sécurité/environnement | E6: 30 | F6: 2 | H6: 0 | I6: 28 | J6: 0
A7: 3 | B7: MVLR | C7: 350-563 | D7: Information technique | E7: 45 | F7: 9 | H7: 0 | I7: 36 | J7: 0
A8: 4 | B8: MVLR | C8: 350-565 | D8: Travail d'atelier | E8: 75 | F8: 3 | H8: 0 | I8: 72 | J8: 0
A9: 5 | B9: MVLR | C9: 350-575 | D9: Chauffe, soudage et coupage | E9: 75 | F9: 0 | G9: Pas de ponction SOUD | H9: 0 | I9: 75 | J9: 0
A10: 6 | B10: MVLR | C10: 350-572 | D10: Communication en milieu de travail | E10: 30 | F10: 12 | H10: 0 | I10: 18 | J10: 0
A11: 7 | B11: MVLR | C11: 350-573 | D11: Réparation/remplacement des roues | E11: 45 | F11: 3 | H11: 0 | I11: 42 | J11: 0
A12: 8 | B12: MVLR | C12: 350-566 | D12: Vérific. des syst. hydraulique pneumatique | E12: 90 | F12: 6 | H12: 0 | I12: 84 | J12: 0
A13: 9 | B13: MVLR | C13: 350-585 | D13: Suspensions, cadres, sellettes | E13: 75 | F13: 6 | H13: 0 | I13: 69 | J13: 0
A14: 10 | B14: MVLR | C14: 350-576 | D14: Systèmes électriques/électroniques | E14: 90 | F14: 6 | H14: 0 | I14: 84 | J14: 0
A15: 11 | B15: MVLR | C15: 350-595 | D15: Directions assistance hydraulique | E15: 75 | F15: 6 | H15: 0 | I15: 69 | J15: 0
A16: 12 | B16: MVLR | C16: 350-568 | D16: Freinage hydraulique/pneumatique | E16: 120 | F16: 18 | H16: 0 | I16: 102 | J16: 0
A17: 13 | B17: MVLR | C17: 350-578 | D17: Transmission de pouvoir | E17: 120 | F17: 9 | H17: 0 | I17: 111 | J17: 0
A18: 14 | B18: MVLR | C18: 350-564 | D18: Diffusion de pouvoir | E18: 60 | F18: 6 | H18: 0 | I18: 54 | J18: 0
A19: 15 | B19: MVLR | C19: 350-583 | D19: Transmissions automatiques | E19: 45 | F19: 6 | H19: 0 | I19: 39 | J19: 0
A20: 16 | B20: MVLR | C20: 350-574 | D20: Systèmes de charge et de démarrage | E20: 60 | F20: 6 | H20: 0 | I20: 54 | J20: 0
A21: 17 | B21: MVLR | C21: 350-584 | D21: Réparation de l'équipement hydraulique | E21: 60 | F21: 6 | H21: 0 | I21: 54 | J21: 0
A22: 18 | B22: MVLR | C22: 350-586 | D22: Cabine/accessoires/circuits | E22: 90 | F22: 6 | H22: 0 | I22: 84 | J22: 0
A23: 19 | B23: MVLR | C23: 350-567 | D23: Injection diesel/freins moteur | E23: 105 | F23: 12 | H23: 0 | I23: 93 | J23: 0
A24: 20 | B24: MVLR | C24: 350-577 | D24: Mise au point de moteurs diesels | E24: 105 | F24: 12 | H24: 0 | I24: 93 | J24: 0
A25: 21 | B25: MVLR | C25: 350-594 | D25: Vérification de moteurs diesels | E25: 60 | F25: 6 | H25: 0 | I25: 54 | J25: 0
A26: 22 | B26: MVLR | C26: 350-588 | D26: Réparation de moteurs diesels | E26: 120 | F26: 9 | H26: 0 | I26: 111 | J26: 0
A27: 23 | B27: MVLR | C27: 350-605 | D27: Entretien de véhicule lourd | E27: 75 | F27: 6 | H27: 0 | I27: 69 | J27: 0
A28: 24 | B28: MVLR | C28: 350-609 | D28: Intégration en milieu de travail | E28: 135 | F28: 20 | H28: 0 | I28: 115 | J28: 0
A29: 25 | F29: 45 | H29: 0 | I29: -45 | J29: 0
A30: 26 | F30: 0 | H30: 0 | I30: 0 | J30: 0
A31: 27 | F31: 0 | H31: 0 | I31: 0 | J31: 0
A32: 28 | F32: 0 | H32: 0 | I32: 0 | J32: 0
A33: 29 | F33: 0 | H33: 0 | I33: 0 | J33: 0
A34: 30 | F34: 0 | H34: 0 | I34: 0 | J34: 0
A35: 31 | F35: 0 | H35: 0 | I35: 0 | J35: 0
A36: 32 | F36: 0 | H36: 0 | I36: 0 | J36: 0
A37: 33 | F37: 0 | H37: 0 | I37: 0 | J37: 0
A38: 34 | F38: 0 | H38: 0 | I38: 0 | J38: 0
A39: 35 | F39: 0 | H39: 0 | I39: 0 | J39: 0
A40: 36 | F40: 0 | H40: 0 | I40: 0 | J40: 0
A41: 37 | F41: 0 | H41: 0 | I41: 0 | J41: 0
A42: 38 | F42: 0 | H42: 0 | I42: 0 | J42: 0
A43: 39 | F43: 0 | H43: 0 | I43: 0 | J43: 0
A44: 40 | F44: 0 | H44: 0 | I44: 0 | J44: 0
A45: 90 | D45: Récupération | F45: -156 | H45: 0 | I45: 156 | J45: 0
A46: 91 | F46: 0 | H46: 0 | I46: 0 | J46: 0
A47: 92 | F47: 0 | H47: 0 | I47: 0 | J47: 0
A48: 93 | F48: 0 | H48: 0 | I48: 0 | J48: 0
A49: 94 | F49: 0 | H49: 0 | I49: 0 | J49: 0
A50: 95 | D50: Stage non assigné #1 | F50: -65 | H50: 0 | I50: 65 | J50: 0
A51: 96 | F51: 0 | H51: 0 | I51: 0 | J51: 0
A52: 97 | F52: 0 | H52: 0 | I52: 0 | J52: 0
A53: 98 | F53: 0 | H53: 0 | I53: 0 | J53: 0
A54: 99 | D54: Réservé Organisation scolaire | F54: 0 | H54: 0 | I54: 0 | J54: 0
D55: total programme : | E55: =SUM(E5:E54) -> 1800 | F55: =SUM(F5:F54) -> 0 | H55: =SUM(H5:H54) -> 0 | I55: =SUM(I5:I54) -> 1800 | J55: =SUM(J5:J54) -> 0 | K55: =SUM(H55:J55) -> 1800 | L55: =total formation

Sheet 14009 (hidden)
A1: Mécanique de véhicules lourds routiers | M1: Spécifications techniques
M3: Enseignants | P3: Préalables | Q3: incompatible | R3: Distribution | S3: Équipements | T3: Équipements
A4: No | B4: Prog. | C4: Code | D4: Module | E4: Durée | F4: Ponction | G4: Ponction Description | H4: L'an passé | I4: Cette Année | J4: L'an proch. | K4: Enseignant | L4: Commentaires | M4: maintenant | N4: après prép. | O4: à venir | P4: (Requis pour…) | R4: (Idéal) | S4: Spécifique | T4: Partager
A5: 1 | B5: MVLR | C5: 350-561 | D5: Métier et formation | E5: 15 | F5: 1 | H5: 0 | I5: =E5-F5-H5-J5 -> 14 | J5: 0
A6: 2 | B6: MVLR | C6: 350-562 | D6: Santé/sécurité/environnement | E6: 30 | F6: 2 | H6: 0 | I6: 28 | J6: 0
A7: 3 | B7: MVLR | C7: 350-563 | D7: Information technique | E7: 45 | F7: 9 | H7: 0 | I7: 36 | J7: 0
A8: 4 | B8: MVLR | C8: 350-565 | D8: Travail d'atelier | E8: 75 | F8: 3 | H8: 0 | I8: 72 | J8: 0
A9: 5 | B9: MVLR | C9: 350-575 | D9: Chauffe, soudage et coupage | E9: 75 | F9: 0 | G9: Pas de ponction SOUD | H9: 0 | I9: 75 | J9: 0
A10: 6 | B10: MVLR | C10: 350-572 | D10: Communication en milieu de travail | E10: 30 | F10: 12 | H10: 0 | I10: 18 | J10: 0
A11: 7 | B11: MVLR | C11: 350-573 | D11: Réparation/remplacement des roues | E11: 45 | F11: 3 | H11: 0 | I11: 42 | J11: 0
A12: 8 | B12: MVLR | C12: 350-566 | D12: Vérific. des syst. hydraulique pneumatique | E12: 90 | F12: 6 | H12: 0 | I12: 84 | J12: 0
A13: 9 | B13: MVLR | C13: 350-585 | D13: Suspensions, cadres, sellettes | E13: 75 | F13: 6 | H13: 0 | I13: 69 | J13: 0
A14: 10 | B14: MVLR | C14: 350-576 | D14: Systèmes électriques/électroniques | E14: 90 | F14: 6 | H14: 0 | I14: 84 | J14: 0
A15: 11 | B15: MVLR | C15: 350-595 | D15: Directions assistance hydraulique | E15: 75 | F15: 6 | H15: 0 | I15: 69 | J15: 0
A16: 12 | B16: MVLR | C16: 350-568 | D16: Freinage hydraulique/pneumatique | E16: 120 | F16: 18 | H16: 0 | I16: 102 | J16: 0
A17: 13 | B17: MVLR | C17: 350-578 | D17: Transmission de pouvoir | E17: 120 | F17: 9 | H17: 0 | I17: 111 | J17: 0
A18: 14 | B18: MVLR | C18: 350-564 | D18: Diffusion de pouvoir | E18: 60 | F18: 6 | H18: 0 | I18: 54 | J18: 0
A19: 15 | B19: MVLR | C19: 350-583 | D19: Transmissions automatiques | E19: 45 | F19: 6 | H19: 0 | I19: 39 | J19: 0
A20: 16 | B20: MVLR | C20: 350-574 | D20: Systèmes de charge et de démarrage | E20: 60 | F20: 6 | H20: 0 | I20: 54 | J20: 0
A21: 17 | B21: MVLR | C21: 350-584 | D21: Réparation de l'équipement hydraulique | E21: 60 | F21: 6 | H21: 0 | I21: 54 | J21: 0
A22: 18 | B22: MVLR | C22: 350-586 | D22: Cabine/accessoires/circuits | E22: 90 | F22: 6 | H22: 0 | I22: 84 | J22: 0
A23: 19 | B23: MVLR | C23: 350-567 | D23: Injection diesel/freins moteur | E23: 105 | F23: 12 | H23: 0 | I23: 93 | J23: 0
A24: 20 | B24: MVLR | C24: 350-577 | D24: Mise au point de moteurs diesels | E24: 105 | F24: 12 | H24: 0 | I24: 93 | J24: 0
A25: 21 | B25: MVLR | C25: 350-594 | D25: Vérification de moteurs diesels | E25: 60 | F25: 6 | H25: 0 | I25: 54 | J25: 0
A26: 22 | B26: MVLR | C26: 350-588 | D26: Réparation de moteurs diesels | E26: 120 | F26: 9 | H26: 0 | I26: 111 | J26: 0
A27: 23 | B27: MVLR | C27: 350-605 | D27: Entretien de véhicule lourd | E27: 75 | F27: 6 | H27: 0 | I27: 69 | J27: 0
A28: 24 | B28: MVLR | C28: 350-609 | D28: Intégration en milieu de travail | E28: 135 | F28: 20 | H28: 0 | I28: 115 | J28: 0
A29: 25 | F29: 45 | H29: 0 | I29: -45 | J29: 0
A30: 26 | F30: 0 | H30: 0 | I30: 0 | J30: 0
A31: 27 | F31: 0 | H31: 0 | I31: 0 | J31: 0
A32: 28 | F32: 0 | H32: 0 | I32: 0 | J32: 0
A33: 29 | F33: 0 | H33: 0 | I33: 0 | J33: 0
A34: 30 | F34: 0 | H34: 0 | I34: 0 | J34: 0
A35: 31 | F35: 0 | H35: 0 | I35: 0 | J35: 0
A36: 32 | F36: 0 | H36: 0 | I36: 0 | J36: 0
A37: 33 | F37: 0 | H37: 0 | I37: 0 | J37: 0
A38: 34 | F38: 0 | H38: 0 | I38: 0 | J38: 0
A39: 35 | F39: 0 | H39: 0 | I39: 0 | J39: 0
A40: 36 | F40: 0 | H40: 0 | I40: 0 | J40: 0
A41: 37 | F41: 0 | H41: 0 | I41: 0 | J41: 0
A42: 38 | F42: 0 | H42: 0 | I42: 0 | J42: 0
A43: 39 | F43: 0 | H43: 0 | I43: 0 | J43: 0
A44: 40 | F44: 0 | H44: 0 | I44: 0 | J44: 0
A45: 90 | D45: Récupération | F45: -156 | H45: 0 | I45: 156 | J45: 0
A46: 91 | F46: 0 | H46: 0 | I46: 0 | J46: 0
A47: 92 | F47: 0 | H47: 0 | I47: 0 | J47: 0
A48: 93 | F48: 0 | H48: 0 | I48: 0 | J48: 0
A49: 94 | F49: 0 | H49: 0 | I49: 0 | J49: 0
A50: 95 | D50: Stage non assigné #1 | F50: -65 | H50: 0 | I50: 65 | J50: 0
A51: 96 | F51: 0 | H51: 0 | I51: 0 | J51: 0
A52: 97 | F52: 0 | H52: 0 | I52: 0 | J52: 0
A53: 98 | F53: 0 | H53: 0 | I53: 0 | J53: 0
A54: 99 | D54: Réservé Organisation scolaire | F54: 0 | H54: 0 | I54: 0 | J54: 0
D55: total programme : | E55: =SUM(E5:E54) -> 1800 | F55: =SUM(F5:F54) -> 0 | H55: =SUM(H5:H54) -> 0 | I55: =SUM(I5:I54) -> 1800 | J55: =SUM(J5:J54) -> 0 | K55: =SUM(H55:J55) -> 1800 | L55: =total formation

Sheet 1111 (hidden)
A1: Mécanique de véhicules lourds routiers | M1: Spécifications techniques
M3: Enseignants | P3: Préalables | Q3: incompatible | R3: Distribution | S3: Équipements | T3: Équipements
A4: No | B4: Prog. | C4: Code | D4: Module | E4: Durée | F4: Ponction | G4: Ponction Description | H4: L'an passé | I4: Cette Année | J4: L'an proch. | K4: Enseignant | L4: Commentaires | M4: maintenant | N4: après prép. | O4: à venir | P4: (Requis pour…) | R4: (Idéal) | S4: Spécifique | T4: Partager
A5: 1 | B5: MVLR | C5: 350-561 | D5: Métier et formation | E5: 15 | F5: 0 | H5: 0 | I5: =E5-F5-H5-J5 -> 15 | J5: 0
A6: 2 | B6: MVLR | C6: 350-562 | D6: Santé/sécurité/environnement | E6: 30 | F6: 0 | H6: 0 | I6: 30 | J6: 0
A7: 3 | B7: MVLR | C7: 350-563 | D7: Information technique | E7: 45 | F7: 0 | H7: 0 | I7: 45 | J7: 0
A8: 4 | B8: MVLR | C8: 350-565 | D8: Travail d'atelier | E8: 75 | F8: 0 | H8: 0 | I8: 75 | J8: 0
A9: 5 | B9: MVLR | C9: 350-575 | D9: Chauffe, soudage et coupage | E9: 75 | F9: 0 | H9: 0 | I9: 75 | J9: 0
A10: 6 | B10: MVLR | C10: 350-572 | D10: Communication en milieu de travail | E10: 30 | F10: 0 | H10: 0 | I10: 30 | J10: 0
A11: 7 | B11: MVLR | C11: 350-573 | D11: Réparation/remplacement des roues | E11: 45 | F11: 0 | H11: 0 | I11: 45 | J11: 0
A12: 8 | B12: MVLR | C12: 350-566 | D12: Vérific. des syst. hydraulique pneumatique | E12: 90 | F12: 0 | H12: 0 | I12: 90 | J12: 0
A13: 9 | B13: MVLR | C13: 350-585 | D13: Suspensions, cadres, sellettes | E13: 75 | F13: 0 | H13: 0 | I13: 75 | J13: 0
A14: 10 | B14: MVLR | C14: 350-576 | D14: Systèmes électriques/électroniques | E14: 90 | F14: 0 | H14: 0 | I14: 90 | J14: 0
A15: 11 | B15: MVLR | C15: 350-595 | D15: Directions assistance hydraulique | E15: 75 | F15: 0 | H15: 0 | I15: 75 | J15: 0
A16: 12 | B16: MVLR | C16: 350-568 | D16: Freinage hydraulique/pneumatique | E16: 120 | F16: 0 | H16: 0 | I16: 120 | J16: 0
A17: 13 | B17: MVLR | C17: 350-578 | D17: Transmission de pouvoir | E17: 120 | F17: 0 | H17: 0 | I17: 120 | J17: 0
A18: 14 | B18: MVLR | C18: 350-564 | D18: Diffusion de pouvoir | E18: 60 | F18: 0 | H18: 0 | I18: 60 | J18: 0
A19: 15 | B19: MVLR | C19: 350-583 | D19: Transmissions automatiques | E19: 45 | F19: 0 | H19: 0 | I19: 45 | J19: 0
A20: 16 | B20: MVLR | C20: 350-574 | D20: Systèmes de charge et de démarrage | E20: 60 | F20: 0 | H20: 0 | I20: 60 | J20: 0
A21: 17 | B21: MVLR | C21: 350-584 | D21: Réparation de l'équipement hydraulique | E21: 60 | F21: 0 | H21: 0 | I21: 60 | J21: 0
A22: 18 | B22: MVLR | C22: 350-586 | D22: Cabine/accessoires/circuits | E22: 90 | F22: 0 | H22: 0 | I22: 90 | J22: 0
A23: 19 | B23: MVLR | C23: 350-567 | D23: Injection diesel/freins moteur | E23: 105 | F23: 0 | H23: 0 | I23: 105 | J23: 0
A24: 20 | B24: MVLR | C24: 350-577 | D24: Mise au point de moteurs diesels | E24: 105 | F24: 0 | H24: 0 | I24: 105 | J24: 0
A25: 21 | B25: MVLR | C25: 350-594 | D25: Vérification de moteurs diesels | E25: 60 | F25: 0 | H25: 0 | I25: 60 | J25: 0
A26: 22 | B26: MVLR | C26: 350-588 | D26: Réparation de moteurs diesels | E26: 120 | F26: 0 | H26: 0 | I26: 120 | J26: 0
A27: 23 | B27: MVLR | C27: 350-605 | D27: Entretien de véhicule lourd | E27: 75 | F27: 0 | H27: 0 | I27: 75 | J27: 0
A28: 24 | B28: MVLR | C28: 350-609 | D28: Intégration en milieu de travail | E28: 135 | F28: 0 | H28: 0 | I28: 135 | J28: 0
A29: 25 | F29: 0 | H29: 0 | I29: 0 | J29: 0
A30: 26 | F30: 0 | H30: 0 | I30: 0 | J30: 0
A31: 27 | F31: 0 | H31: 0 | I31: 0 | J31: 0
A32: 28 | F32: 0 | H32: 0 | I32: 0 | J32: 0
A33: 29 | F33: 0 | H33: 0 | I33: 0 | J33: 0
A34: 30 | F34: 0 | H34: 0 | I34: 0 | J34: 0
A35: 31 | F35: 0 | H35: 0 | I35: 0 | J35: 0
A36: 32 | F36: 0 | H36: 0 | I36: 0 | J36: 0
A37: 33 | F37: 0 | H37: 0 | I37: 0 | J37: 0
A38: 34 | F38: 0 | H38: 0 | I38: 0 | J38: 0
A39: 35 | F39: 0 | H39: 0 | I39: 0 | J39: 0
A40: 36 | F40: 0 | H40: 0 | I40: 0 | J40: 0
A41: 37 | F41: 0 | H41: 0 | I41: 0 | J41: 0
A42: 38 | F42: 0 | H42: 0 | I42: 0 | J42: 0
A43: 39 | F43: 0 | H43: 0 | I43: 0 | J43: 0
A44: 40 | F44: 0 | H44: 0 | I44: 0 | J44: 0
A45: 90 | F45: 0 | H45: 0 | I45: 0 | J45: 0
A46: 91 | F46: 0 | H46: 0 | I46: 0 | J46: 0
A47: 92 | F47: 0 | H47: 0 | I47: 0 | J47: 0
A48: 93 | F48: 0 | H48: 0 | I48: 0 | J48: 0
A49: 94 | F49: 0 | H49: 0 | I49: 0 | J49: 0
A50: 95 | F50: 0 | H50: 0 | I50: 0 | J50: 0
A51: 96 | F51: 0 | H51: 0 | I51: 0 | J51: 0
A52: 97 | F52: 0 | H52: 0 | I52: 0 | J52: 0
A53: 98 | F53: 0 | H53: 0 | I53: 0 | J53: 0
A54: 99 | D54: Réservé Organisation scolaire | F54: 0 | H54: 0 | I54: 0 | J54: 0
D55: total programme : | E55: =SUM(E5:E54) -> 1800 | F55: =SUM(F5:F54) -> 0 | H55: =SUM(H5:H54) -> 0 | I55: =SUM(I5:I54) -> 1800 | J55: =SUM(J5:J54) -> 0 | K55: =SUM(H55:J55) -> 1800 | L55: =total formation

Sheet 2222 (hidden)
A1: Mécanique de véhicules lourds routiers | M1: Spécifications techniques
M3: Enseignants | P3: Préalables | Q3: incompatible | R3: Distribution | S3: Équipements | T3: Équipements
A4: No | B4: Prog. | C4: Code | D4: Module | E4: Durée | F4: Ponction | G4: Ponction Description | H4: L'an passé | I4: Cette Année | J4: L'an proch. | K4: Enseignant | L4: Commentaires | M4: maintenant | N4: après prép. | O4: à venir | P4: (Requis pour…) | R4: (Idéal) | S4: Spécifique | T4: Partager
A5: 1 | B5: MVLR | C5: 350-561 | D5: Métier et formation | E5: 15 | F5: 0 | H5: 0 | I5: =E5-F5-H5-J5 -> 15 | J5: 0
A6: 2 | B6: MVLR | C6: 350-562 | D6: Santé/sécurité/environnement | E6: 30 | F6: 0 | H6: 0 | I6: 30 | J6: 0
A7: 3 | B7: MVLR | C7: 350-563 | D7: Information technique | E7: 45 | F7: 0 | H7: 0 | I7: 45 | J7: 0
A8: 4 | B8: MVLR | C8: 350-565 | D8: Travail d'atelier | E8: 75 | F8: 0 | H8: 0 | I8: 75 | J8: 0
A9: 5 | B9: MVLR | C9: 350-575 | D9: Chauffe, soudage et coupage | E9: 75 | F9: 0 | H9: 0 | I9: 75 | J9: 0
A10: 6 | B10: MVLR | C10: 350-572 | D10: Communication en milieu de travail | E10: 30 | F10: 0 | H10: 0 | I10: 30 | J10: 0
A11: 7 | B11: MVLR | C11: 350-573 | D11: Réparation/remplacement des roues | E11: 45 | F11: 0 | H11: 0 | I11: 45 | J11: 0
A12: 8 | B12: MVLR | C12: 350-566 | D12: Vérific. des syst. hydraulique pneumatique | E12: 90 | F12: 0 | H12: 0 | I12: 90 | J12: 0
A13: 9 | B13: MVLR | C13: 350-585 | D13: Suspensions, cadres, sellettes | E13: 75 | F13: 0 | H13: 0 | I13: 75 | J13: 0
A14: 10 | B14: MVLR | C14: 350-576 | D14: Systèmes électriques/électroniques | E14: 90 | F14: 0 | H14: 0 | I14: 90 | J14: 0
A15: 11 | B15: MVLR | C15: 350-595 | D15: Directions assistance hydraulique | E15: 75 | F15: 0 | H15: 0 | I15: 75 | J15: 0
A16: 12 | B16: MVLR | C16: 350-568 | D16: Freinage hydraulique/pneumatique | E16: 120 | F16: 0 | H16: 0 | I16: 120 | J16: 0
A17: 13 | B17: MVLR | C17: 350-578 | D17: Transmission de pouvoir | E17: 120 | F17: 0 | H17: 0 | I17: 120 | J17: 0
A18: 14 | B18: MVLR | C18: 350-564 | D18: Diffusion de pouvoir | E18: 60 | F18: 0 | H18: 0 | I18: 60 | J18: 0
A19: 15 | B19: MVLR | C19: 350-583 | D19: Transmissions automatiques | E19: 45 | F19: 0 | H19: 0 | I19: 45 | J19: 0
A20: 16 | B20: MVLR | C20: 350-574 | D20: Systèmes de charge et de démarrage | E20: 60 | F20: 0 | H20: 0 | I20: 60 | J20: 0
A21: 17 | B21: MVLR | C21: 350-584 | D21: Réparation de l'équipement hydraulique | E21: 60 | F21: 0 | H21: 0 | I21: 60 | J21: 0
A22: 18 | B22: MVLR | C22: 350-586 | D22: Cabine/accessoires/circuits | E22: 90 | F22: 0 | H22: 0 | I22: 90 | J22: 0
A23: 19 | B23: MVLR | C23: 350-567 | D23: Injection diesel/freins moteur | E23: 105 | F23: 0 | H23: 0 | I23: 105 | J23: 0
A24: 20 | B24: MVLR | C24: 350-577 | D24: Mise au point de moteurs diesels | E24: 105 | F24: 0 | H24: 0 | I24: 105 | J24: 0
A25: 21 | B25: MVLR | C25: 350-594 | D25: Vérification de moteurs diesels | E25: 60 | F25: 0 | H25: 0 | I25: 60 | J25: 0
A26: 22 | B26: MVLR | C26: 350-588 | D26: Réparation de moteurs diesels | E26: 120 | F26: 0 | H26: 0 | I26: 120 | J26: 0
A27: 23 | B27: MVLR | C27: 350-605 | D27: Entretien de véhicule lourd | E27: 75 | F27: 0 | H27: 0 | I27: 75 | J27: 0
A28: 24 | B28: MVLR | C28: 350-609 | D28: Intégration en milieu de travail | E28: 135 | F28: 0 | H28: 0 | I28: 135 | J28: 0
A29: 25 | F29: 0 | H29: 0 | I29: 0 | J29: 0
A30: 26 | F30: 0 | H30: 0 | I30: 0 | J30: 0
A31: 27 | F31: 0 | H31: 0 | I31: 0 | J31: 0
A32: 28 | F32: 0 | H32: 0 | I32: 0 | J32: 0
A33: 29 | F33: 0 | H33: 0 | I33: 0 | J33: 0
A34: 30 | F34: 0 | H34: 0 | I34: 0 | J34: 0
A35: 31 | F35: 0 | H35: 0 | I35: 0 | J35: 0
A36: 32 | F36: 0 | H36: 0 | I36: 0 | J36: 0
A37: 33 | F37: 0 | H37: 0 | I37: 0 | J37: 0
A38: 34 | F38: 0 | H38: 0 | I38: 0 | J38: 0
A39: 35 | F39: 0 | H39: 0 | I39: 0 | J39: 0
A40: 36 | F40: 0 | H40: 0 | I40: 0 | J40: 0
A41: 37 | F41: 0 | H41: 0 | I41: 0 | J41: 0
A42: 38 | F42: 0 | H42: 0 | I42: 0 | J42: 0
A43: 39 | F43: 0 | H43: 0 | I43: 0 | J43: 0
A44: 40 | F44: 0 | H44: 0 | I44: 0 | J44: 0
A45: 90 | F45: 0 | H45: 0 | I45: 0 | J45: 0
A46: 91 | F46: 0 | H46: 0 | I46: 0 | J46: 0
A47: 92 | F47: 0 | H47: 0 | I47: 0 | J47: 0
A48: 93 | F48: 0 | H48: 0 | I48: 0 | J48: 0
A49: 94 | F49: 0 | H49: 0 | I49: 0 | J49: 0
A50: 95 | F50: 0 | H50: 0 | I50: 0 | J50: 0
A51: 96 | F51: 0 | H51: 0 | I51: 0 | J51: 0
A52: 97 | F52: 0 | H52: 0 | I52: 0 | J52: 0
A53: 98 | F53: 0 | H53: 0 | I53: 0 | J53: 0
A54: 99 | D54: Réservé Organisation scolaire | F54: 0 | H54: 0 | I54: 0 | J54: 0
D55: total programme : | E55: =SUM(E5:E54) -> 1800 | F55: =SUM(F5:F54) -> 0 | H55: =SUM(H5:H54) -> 0 | I55: =SUM(I5:I54) -> 1800 | J55: =SUM(J5:J54) -> 0 | K55: =SUM(H55:J55) -> 1800 | L55: =total formation

Sheet 3333 (hidden)
A1: Mécanique de véhicules lourds routiers | M1: Spécifications techniques
M3: Enseignants | P3: Préalables | Q3: incompatible | R3: Distribution | S3: Équipements | T3: Équipements
A4: No | B4: Prog. | C4: Code | D4: Module | E4: Durée | F4: Ponction | G4: Ponction Description | H4: L'an passé | I4: Cette Année | J4: L'an proch. | K4: Enseignant | L4: Commentaires | M4: maintenant | N4: après prép. | O4: à venir | P4: (Requis pour…) | R4: (Idéal) | S4: Spécifique | T4: Partager
A5: 1 | B5: MVLR | C5: 350-561 | D5: Métier et formation | E5: 15 | F5: 0 | H5: 0 | I5: =E5-F5-H5-J5 -> 15 | J5: 0
A6: 2 | B6: MVLR | C6: 350-562 | D6: Santé/sécurité/environnement | E6: 30 | F6: 0 | H6: 0 | I6: 30 | J6: 0
A7: 3 | B7: MVLR | C7: 350-563 | D7: Information technique | E7: 45 | F7: 0 | H7: 0 | I7: 45 | J7: 0
A8: 4 | B8: MVLR | C8: 350-565 | D8: Travail d'atelier | E8: 75 | F8: 0 | H8: 0 | I8: 75 | J8: 0
A9: 5 | B9: MVLR | C9: 350-575 | D9: Chauffe, soudage et coupage | E9: 75 | F9: 0 | H9: 0 | I9: 75 | J9: 0
A10: 6 | B10: MVLR | C10: 350-572 | D10: Communication en milieu de travail | E10: 30 | F10: 0 | H10: 0 | I10: 30 | J10: 0
A11: 7 | B11: MVLR | C11: 350-573 | D11: Réparation/remplacement des roues | E11: 45 | F11: 0 | H11: 0 | I11: 45 | J11: 0
A12: 8 | B12: MVLR | C12: 350-566 | D12: Vérific. des syst. hydraulique pneumatique | E12: 90 | F12: 0 | H12: 0 | I12: 90 | J12: 0
A13: 9 | B13: MVLR | C13: 350-585 | D13: Suspensions, cadres, sellettes | E13: 75 | F13: 0 | H13: 0 | I13: 75 | J13: 0
A14: 10 | B14: MVLR | C14: 350-576 | D14: Systèmes électriques/électroniques | E14: 90 | F14: 0 | H14: 0 | I14: 90 | J14: 0
A15: 11 | B15: MVLR | C15: 350-595 | D15: Directions assistance hydraulique | E15: 75 | F15: 0 | H15: 0 | I15: 75 | J15: 0
A16: 12 | B16: MVLR | C16: 350-568 | D16: Freinage hydraulique/pneumatique | E16: 120 | F16: 0 | H16: 0 | I16: 120 | J16: 0
A17: 13 | B17: MVLR | C17: 350-578 | D17: Transmission de pouvoir | E17: 120 | F17: 0 | H17: 0 | I17: 120 | J17: 0
A18: 14 | B18: MVLR | C18: 350-564 | D18: Diffusion de pouvoir | E18: 60 | F18: 0 | H18: 0 | I18: 60 | J18: 0
A19: 15 | B19: MVLR | C19: 350-583 | D19: Transmissions automatiques | E19: 45 | F19: 0 | H19: 0 | I19: 45 | J19: 0
A20: 16 | B20: MVLR | C20: 350-574 | D20: Systèmes de charge et de démarrage | E20: 60 | F20: 0 | H20: 0 | I20: 60 | J20: 0
A21: 17 | B21: MVLR | C21: 350-584 | D21: Réparation de l'équipement hydraulique | E21: 60 | F21: 0 | H21: 0 | I21: 60 | J21: 0
A22: 18 | B22: MVLR | C22: 350-586 | D22: Cabine/accessoires/circuits | E22: 90 | F22: 0 | H22: 0 | I22: 90 | J22: 0
A23: 19 | B23: MVLR | C23: 350-567 | D23: Injection diesel/freins moteur | E23: 105 | F23: 0 | H23: 0 | I23: 105 | J23: 0
A24: 20 | B24: MVLR | C24: 350-577 | D24: Mise au point de moteurs diesels | E24: 105 | F24: 0 | H24: 0 | I24: 105 | J24: 0
A25: 21 | B25: MVLR | C25: 350-594 | D25: Vérification de moteurs diesels | E25: 60 | F25: 0 | H25: 0 | I25: 60 | J25: 0
A26: 22 | B26: MVLR | C26: 350-588 | D26: Réparation de moteurs diesels | E26: 120 | F26: 0 | H26: 0 | I26: 120 | J26: 0
A27: 23 | B27: MVLR | C27: 350-605 | D27: Entretien de véhicule lourd | E27: 75 | F27: 0 | H27: 0 | I27: 75 | J27: 0
A28: 24 | B28: MVLR | C28: 350-609 | D28: Intégration en milieu de travail | E28: 135 | F28: 0 | H28: 0 | I28: 135 | J28: 0
A29: 25 | F29: 0 | H29: 0 | I29: 0 | J29: 0
A30: 26 | F30: 0 | H30: 0 | I30: 0 | J30: 0
A31: 27 | F31: 0 | H31: 0 | I31: 0 | J31: 0
A32: 28 | F32: 0 | H32: 0 | I32: 0 | J32: 0
A33: 29 | F33: 0 | H33: 0 | I33: 0 | J33: 0
A34: 30 | F34: 0 | H34: 0 | I34: 0 | J34: 0
A35: 31 | F35: 0 | H35: 0 | I35: 0 | J35: 0
A36: 32 | F36: 0 | H36: 0 | I36: 0 | J36: 0
A37: 33 | F37: 0 | H37: 0 | I37: 0 | J37: 0
A38: 34 | F38: 0 | H38: 0 | I38: 0 | J38: 0
A39: 35 | F39: 0 | H39: 0 | I39: 0 | J39: 0
A40: 36 | F40: 0 | H40: 0 | I40: 0 | J40: 0
A41: 37 | F41: 0 | H41: 0 | I41: 0 | J41: 0
A42: 38 | F42: 0 | H42: 0 | I42: 0 | J42: 0
A43: 39 | F43: 0 | H43: 0 | I43: 0 | J43: 0
A44: 40 | F44: 0 | H44: 0 | I44: 0 | J44: 0
A45: 90 | F45: 0 | H45: 0 | I45: 0 | J45: 0
A46: 91 | F46: 0 | H46: 0 | I46: 0 | J46: 0
A47: 92 | F47: 0 | H47: 0 | I47: 0 | J47: 0
A48: 93 | F48: 0 | H48: 0 | I48: 0 | J48: 0
A49: 94 | F49: 0 | H49: 0 | I49: 0 | J49: 0
A50: 95 | F50: 0 | H50: 0 | I50: 0 | J50: 0
A51: 96 | F51: 0 | H51: 0 | I51: 0 | J51: 0
A52: 97 | F52: 0 | H52: 0 | I52: 0 | J52: 0
A53: 98 | F53: 0 | H53: 0 | I53: 0 | J53: 0
A54: 99 | D54: Réservé Organisation scolaire | F54: 0 | H54: 0 | I54: 0 | J54: 0
D55: total programme : | E55: =SUM(E5:E54) -> 1800 | F55: =SUM(F5:F54) -> 0 | H55: =SUM(H5:H54) -> 0 | I55: =SUM(I5:I54) -> 1800 | J55: =SUM(J5:J54) -> 0 | K55: =SUM(H55:J55) -> 1800 | L55: =total formation

Sheet Groupe 10 (hidden)

Sheet Groupe 11 (hidden)

Sheet Groupe 12 (hidden)

Sheet Groupe 13 (hidden)

Sheet Groupe 14 (hidden)

Sheet Groupe 15 (hidden)

Sheet Calendrier (hidden)
A6: Calendrier scolaire
A7: 2014-2015
A10: juillet | I10: août | Q10: septembre
A11: d | B11: l | C11: m | D11: m | E11: j | F11: v | G11: s | I11: d | J11: l | K11: m | L11: m | M11: j | N11: v | O11: s | Q11: d | R11: l | S11: m | T11: m | U11: j | V11: v | W11: s
C12: 1 | D12: 2 | E12: 3 | F12: 4 | G12: 5 | N12: 1 | O12: 2 | R12: 1 | S12: 2 | T12: 3 | U12: 4 | V12: 5 | W12: 6
A13: 6 | B13: 7 | C13: 8 | D13: 9 | E13: 10 | F13: 11 | G13: 12 | I13: 3 | J13: 4 | K13: 5 | L13: 6 | M13: 7 | N13: 8 | O13: 9 | Q13: 7 | R13: 8 | S13: 9 | T13: 10 | U13: 11 | V13: 12 | W13: 13
A14: 13 | B14: 14 | C14: 15 | D14: 16 | E14: 17 | F14: 18 | G14: 19 | I14: 10 | J14: 11 | K14: 12 | L14: 13 | M14: 14 | N14: 15 | O14: 16 | Q14: 14 | R14: 15 | S14: 16 | T14: 17 | U14: 18 | V14: 19 | W14: 20
A15: 20 | B15: 21 | C15: 22 | D15: 23 | E15: 24 | F15: 25 | G15: 26 | I15: 17 | J15: 18 | K15: 19 | L15: 20 | M15: 21 | N15: 22 | O15: 23 | Q15: 21 | R15: 22 | S15: 23 | T15: 24 | U15: 25 | V15: 26 | W15: 27
A16: 27 | B16: 28 | C16: 29 | D16: 30 | E16: 31 | I16: 24 | J16: 25 | K16: 26 | L16: 27 | M16: 28 | N16: 29 | O16: 30 | Q16: 28 | R16: 29 | S16: 30
I17: 31
A20: octobre | I20: novembre | Q20: décembre
A21: d | B21: l | C21: m | D21: m | E21: j | F21: v | G21: s | I21: d | J21: l | K21: m | L21: m | M21: j | N21: v | O21: s | Q21: d | R21: l | S21: m | T21: m | U21: j | V21: v | W21: s
D22: 1 | E22: 2 | F22: 3 | G22: 4 | O22: 1 | R22: 1 | S22: 2 | T22: 3 | U22: 4 | V22: 5 | W22: 6
A23: 5 | B23: 6 | C23: 7 | D23: 8 | E23: 9 | F23: 10 | G23: 11 | I23: 2 | J23: 3 | K23: 4 | L23: 5 | M23: 6 | N23: 7 | O23: 8 | Q23: 7 | R23: 8 | S23: 9 | T23: 10 | U23: 11 | V23: 12 | W23: 13
A24: 12 | B24: 13 | C24: 14 | D24: 15 | E24: 16 | F24: 17 | G24: 18 | I24: 9 | J24: 10 | K24: 11 | L24: 12 | M24: 13 | N24: 14 | O24: 15 | Q24: 14 | R24: 15 | S24: 16 | T24: 17 | U24: 18 | V24: 19 | W24: 20
A25: 19 | B25: 20 | C25: 21 | D25: 22 | E25: 23 | F25: 24 | G25: 25 | I25: 16 | J25: 17 | K25: 18 | L25: 19 | M25: 20 | N25: 21 | O25: 22 | Q25: 21 | R25: 22 | S25: 23 | T25: 24 | U25: 25 | V25: 26 | W25: 27
A26: 26 | B26: 27 | C26: 28 | D26: 29 | E26: 30 | F26: 31 | I26: 23 | J26: 24 | K26: 25 | L26: 26 | M26: 27 | N26: 28 | O26: 29 | Q26: 28 | R26: 29 | S26: 30 | T26: 31
I27: 30
A30: janvier | I30: février | Q30: mars
A31: d | B31: l | C31: m | D31: m | E31: j | F31: v | G31: s | I31: d | J31: l | K31: m | L31: m | M31: j | N31: v | O31: s | Q31: d | R31: l | S31: m | T31: m | U31: j | V31: v | W31: s
E32: 1 | F32: 2 | G32: 3 | Q32: 1 | R32: 2 | S32: 3 | T32: 4 | U32: 5 | V32: 6 | W32: 7
A33: 4 | B33: 5 | C33: 6 | D33: 7 | E33: 8 | F33: 9 | G33: 10 | I33: 1 | J33: 2 | K33: 3 | L33: 4 | M33: 5 | N33: 6 | O33: 7 | Q33: 8 | R33: 9 | S33: 10 | T33: 11 | U33: 12 | V33: 13 | W33: 14
A34: 11 | B34: 12 | C34: 13 | D34: 14 | E34: 15 | F34: 16 | G34: 17 | I34: 8 | J34: 9 | K34: 10 | L34: 11 | M34: 12 | N34: 13 | O34: 14 | Q34: 15 | R34: 16 | S34: 17 | T34: 18 | U34: 19 | V34: 20 | W34: 21
A35: 18 | B35: 19 | C35: 20 | D35: 21 | E35: 22 | F35: 23 | G35: 24 | I35: 15 | J35: 16 | K35: 17 | L35: 18 | M35: 19 | N35: 20 | O35: 21 | Q35: 22 | R35: 23 | S35: 24 | T35: 25 | U35: 26 | V35: 27 | W35: 28
A36: 25 | B36: 26 | C36: 27 | D36: 28 | E36: 29 | F36: 30 | G36: 31 | I36: 22 | J36: 23 | K36: 24 | L36: 25 | M36: 26 | N36: 27 | O36: 28 | Q36: 29 | R36: 30 | S36: 31
A40: avril | I40: mai | Q40: juin
A41: d | B41: l | C41: m | D41: m | E41: j | F41: v | G41: s | I41: d | J41: l | K41: m | L41: m | M41: j | N41: v | O41: s | Q41: d | R41: l | S41: m | T41: m | U41: j | V41: v | W41: s
D42: 1 | E42: 2 | F42: 3 | G42: 4 | N42: 1 | O42: 2 | R42: 1 | S42: 2 | T42: 3 | U42: 4 | V42: 5 | W42: 6
A43: 5 | B43: 6 | C43: 7 | D43: 8 | E43: 9 | F43: 10 | G43: 11 | I43: 3 | J43: 4 | K43: 5 | L43: 6 | M43: 7 | N43: 8 | O43: 9 | Q43: 7 | R43: 8 | S43: 9 | T43: 10 | U43: 11 | V43: 12 | W43: 13
A44: 12 | B44: 13 | C44: 14 | D44: 15 | E44: 16 | F44: 17 | G44: 18 | I44: 10 | J44: 11 | K44: 12 | L44: 13 | M44: 14 | N44: 15 | O44: 16 | Q44: 14 | R44: 15 | S44: 16 | T44: 17 | U44: 18 | V44: 19 | W44: 20
A45: 19 | B45: 20 | C45: 21 | D45: 22 | E45: 23 | F45: 24 | G45: 25 | I45: 17 | J45: 18 | K45: 19 | L45: 20 | M45: 21 | N45: 22 | O45: 23 | Q45: 21 | R45: 22 | S45: 23 | T45: 24 | U45: 25 | V45: 26 | W45: 27
A46: 26 | B46: 27 | C46: 28 | D46: 29 | E46: 30 | I46: 24 | J46: 25 | K46: 26 | L46: 27 | M46: 28 | N46: 29 | O46: 30 | Q46: 28 | R46: 29 | S46: 30
I47: 31
E50: Semaines de fermeture pour vacances estivales | R50: * Le 27 janvier 2015 est la 101e journée de travail pour les enseignants
E52: Congés pour les élèves et tout le personnel (13 statuaires et 4 mobiles)
R53: Journées pédagogiques flottantes (2)
E54: Journées pédagogiques (13 fixées et 2 flottantes par secteur) | R54: Mécanique automobile | V54: 2014-11-13 | W54: 2014-11-14
E55: **(pour les groupes de soir la journée pédagogique sera le 12 plutôt le 13 mai) | R55: Méc. de véhicules lourds | V55: 2014-11-13 | W55: 2014-11-14
R56: Carrosserie | V56: 2014-11-13 | W56: 2014-11-14
R57: VPMA | V57: 2014-11-13 | W57: 2014-11-14
A58: Évènements spéciaux : | E58: 7 novembre - Journée pédagogique régionale | R58: Tech. d'usinage | V58: 2014-10-23 | W58: 2014-10-24
E59: 20 janvier - Portes ouvertes | R59: Dessin industriel | V59: 2014-10-23 | W59: 2014-10-24
E60: 12 mai - Gala des exCEPtionnels | R60: Vente-conseil | V60: 2014-10-30 | W60: 2014-01-28
R61: Électrotechnique | V61: 2014-10-24 | W61: 2015-02-20
R62: Soudage-montage | V62: 2014-10-24 | W62: 2015-04-10
R63: Secretariat- compt. | V63: 2014-11-21 | W63: 2015-02-20
A64: Selon son horaire, chaque enseignant doit aviser la direction du moment oû il prendra sa semaine de relâche s'il travaille la semaine du 2 mars 2015.
A67: Semaine d'arrêt en début mars pour les groupes concernés

Sheet Planification
DU1: GESTION DES CONFLITS : enseignants | EK1: GESTION DES CONFLITS : heures / groupe / jour
A2: Planification Mécanique de véhicules lourds routiers | DU2: =$A459 & " = " & $B459 -> sb = Sylvain Bellemare | DV2: =$A460 & " = " & $B460 -> mp = Mathieu Primard | DW2: =$A461 & " = " & $B461 -> cg = Clément Gauthier | DX2: =$A462 & " = " & $B462 -> jr = Julien, Rondeau | DY2: =$A463 & " = " & $B463 -> yc = Yanik Corbeil | DZ2: =$A464 & " = " & $B464 -> mc = Mathieu Chenard | EA2: =$A465 & " = " & $B465 -> rg = Roch Gauthier | EB2: =$A466 & " = " & $B466 -> np = Nicolas Privé | EC2: =$A467 & " = " & $B467 -> = | ED2: =$A468 & " = " & $B468 -> = | EE2: =$A469 & " = " & $B469 -> = | EF2: =$A470 & " = " & $B470 -> p12 = Prof # 12 | EG2: =$A471 & " = " & $B471 -> p13 = Prof # 13 | EH2: =$A472 & " = " & $B472 -> p14 = Prof # 14 | EI2: =$A473 & " = " & $B473 -> p15 = Prof # 15 | EK2: =C$4 -> Groupe 27 | EL2: =K$4 -> Groupe 28 | EM2: =S4 -> Groupe 29 | EN2: =AA4 -> Groupe 30 | EO2: =AI4 -> Groupe 31 | EP2: =AQ4 -> Groupe 32 | EQ2: =AY4 -> Groupe 33 | ER2: =BG4 -> Groupe 34 | ES2: =BO4 -> PréDEP | ET2: =BW4 -> Groupe 10 | EU2: =CE4 -> Groupe 11 | EV2: =CM4 -> Groupe 12 | EW2: =CU4 -> Groupe 13 | EX2: =DC4 -> Groupe 14 | EY2: =DK4 -> Groupe 15
A4: Année scolaire 2025-2026 | C4: Groupe 27 | K4: Groupe 28 | S4: Groupe 29 | AA4: Groupe 30 | AI4: Groupe 31 | AQ4: Groupe 32 | AY4: Groupe 33 | BG4: Groupe 34 | BO4: PréDEP | BW4: Groupe 10 | CE4: Groupe 11 | CM4: Groupe 12 | CU4: Groupe 13 | DC4: Groupe 14 | DK4: Groupe 15
C5: TOSCA # 8 Jour/Intensif - 6 | K5: TOSCA # 8 Jour/Intensif - 6 | S5: TOSCA # 8 Jour/Intensif - 6 | AA5: TOSCA # 8 Jour/Intensif - 6 | AI5: TOSCA # 8 Jour/Intensif - 6 | AQ5: TOSCA # 8 Jour/Intensif - 6 | AY5: TOSCA # 8 Jour/Intensif - 6 | BG5: TOSCA # 8 Jour/Intensif - 6 | BO5: TOSCA # 8 Jour/Intensif - 6
C6: MVLR | E6: Jour | G6: Intensif 1800 | K6: MVLR | M6: Jour | O6: Intensif 1800 | S6: MVLR | U6: Jour | W6: Intensif 1800 | AA6: MVLR | AC6: Jour | AE6: Intensif 1800 | AI6: MVLR | AK6: Jour | AM6: Intensif 1800 | AQ6: MVLR | AS6: Jour | AU6: Intensif 1800 | AY6: MVLR | BA6: Jour | BC6: Intensif 1800 | BG6: MVLR | BI6: Jour | BK6: Intensif 1800 | BO6: MVLR | BQ6: Jour | BS6: Intensif 1800
C7: M | D7: P | E7: H | F7: L | G7: M | H7: P | I7: H | J7: L | K7: M | L7: P | M7: H | N7: L | O7: M | P7: P | Q7: H | R7: L | S7: M | T7: P | U7: H | V7: L | W7: M | X7: P | Y7: H | Z7: L | AA7: M | AB7: P | AC7: H | AD7: L | AE7: M | AF7: P | AG7: H | AH7: L | AI7: M | AJ7: P | AK7: H | AL7: L | AM7: M | AN7: P | AO7: m | AP7: L | AQ7: M | AR7: P | AS7: H | AT7: L | AU7: M | AV7: P | AW7: H | AX7: L | AY7: M | AZ7: P | BA7: H | BB7: L | BC7: M | BD7: P | BE7: H | BF7: L | BG7: M | BH7: P | BI7: H | BJ7: L | BK7: M | BL7: P | BM7: H | BN7: L | BO7: M | BP7: P | BQ7: H | BR7: L | BS7: M | BT7: P | BU7: H | BV7: L | BW7: M | BX7: P | BY7: H | BZ7: L | CA7: M | CB7: P | CC7: H | CD7: L | CE7: M | CF7: P | CG7: H | CH7: L | CI7: M | CJ7: P | CK7: H | CL7: L | CM7: M | CN7: P | CO7: H | CP7: L | CQ7: M | CR7: P | CS7: H | CT7: L | CU7: M | CV7: P | CW7: H | CX7: L | CY7: M | CZ7: P | DA7: H | DB7: L | DC7: M | DD7: P | DE7: H | DF7: L | DG7: M | DH7: P | DI7: H | DJ7: L | DK7: M | DL7: P | DM7: H | DN7: L | DO7: M | DP7: P | DQ7: H | DR7: L
A8: =WEEKDAY(B8,2) -> 1 | B8: 2025-08-18 | C8: Vacances | K8: Vacances | S8: Vacances | AA8: Vacances | AI8: Vacances | AQ8: Vacances | AY8: Vacances | BG8: Vacances | BO8: Vacances | DU8: =COUNTIF($C8:$DR8,$A$459) -> 0 | DV8: =COUNTIF($C8:$DR8,$A$460) -> 0 | DW8: =COUNTIF($C8:$DR8,$A$461) -> 0 | DX8: =COUNTIF($C8:$DR8,$A$462) -> 0 | DY8: =COUNTIF($C8:$DR8,$A$463) -> 0 | DZ8: =COUNTIF($C8:$DR8,$A$464) -> 0 | EA8: =COUNTIF($C8:$DR8,$A$465) -> 0 | EB8: =COUNTIF($C8:$DR8,$A$466) -> 0 | EC8: =COUNTIF($C8:$DR8,$A$467) -> 0 | ED8: =COUNTIF($C8:$DR8,$A$468) -> 0 | EE8: =COUNTIF($C8:$DR8,$A$469) -> 0 | EF8: =COUNTIF($C8:$DR8,$A$470) -> 0 | EG8: =COUNTIF($C8:$DR8,$A$471) -> 0 | EH8: =COUNTIF($C8:$DR8,$A$472) -> 0 | EI8: =COUNTIF($C8:$DR8,$A$473) -> 0 | EK8: =SUM($E8,$I8) -> 0 | EL8: =SUM($M8,$Q8) -> 0 | EM8: =SUM($U8,$Y8) -> 0 | EN8: =SUM(AC8,AG8) -> 0 | EO8: =SUM(AK8,AO8) -> 0 | EP8: =SUM(AS8,AW8) -> 0 | EQ8: =SUM(BA8,BE8) -> 0 | ER8: =SUM(BI8,BM8) -> 0 | ES8: =SUM(BQ8,BU8) -> 0 | ET8: =SUM(BY8,CC8) -> 0 | EU8: =SUM(CG8,CK8) -> 0 | EV8: =SUM(CO8,CS8) -> 0 | EW8: =SUM(CW8,DA8) -> 0 | EX8: =SUM(DE8,DI8) -> 0 | EY8: =SUM(DM8,DQ8) -> 0
A9: =WEEKDAY(B9,2) -> 2 | B9: 2025-08-19 | C9: Vacances | K9: Vacances | S9: Vacances | AA9: Vacances | AI9: Vacances | AQ9: Vacances | AY9: Vacances | BG9: Vacances | BO9: Vacances | DU9: 0 | DV9: 0 | DW9: 0 | DX9: 0 | DY9: 0 | DZ9: 0 | EA9: 0 | EB9: 0 | EC9: 0 | ED9: 0 | EE9: 0 | EF9: 0 | EG9: 0 | EH9: 0 | EI9: 0 | EK9: 0 | EL9: 0 | EM9: 0 | EN9: =SUM(AC9,AG9) -> 0 | EO9: =SUM(AK9,AO9) -> 0 | EP9: =SUM(AS9,AW9) -> 0 | EQ9: =SUM(BA9,BE9) -> 0 | ER9: =SUM(BI9,BM9) -> 0 | ES9: =SUM(BQ9,BU9) -> 0 | ET9: =SUM(BY9,CC9) -> 0 | EU9: =SUM(CG9,CK9) -> 0 | EV9: =SUM(CO9,CS9) -> 0 | EW9: =SUM(CW9,DA9) -> 0 | EX9: =SUM(DE9,DI9) -> 0 | EY9: =SUM(DM9,DQ9) -> 0
A10: =WEEKDAY(B10,2) -> 3 | B10: =B9+1 -> 2025-08-20 | C10: Vacances | K10: Vacances | S10: Vacances | AA10: Vacances | AI10: Vacances | AQ10: Vacances | AY10: Vacances | BG10: Vacances | BO10: Vacances | DU10: 0 | DV10: 0 | DW10: 0 | DX10: 0 | DY10: 0 | DZ10: 0 | EA10: 0 | EB10: 0 | EC10: 0 | ED10: 0 | EE10: 0 | EF10: 0 | EG10: 0 | EH10: 0 | EI10: 0 | EK10: 0 | EL10: 0 | EM10: 0 | EN10: =SUM(AC10,AG10) -> 0 | EO10: =SUM(AK10,AO10) -> 0 | EP10: =SUM(AS10,AW10) -> 0 | EQ10: =SUM(BA10,BE10) -> 0 | ER10: =SUM(BI10,BM10) -> 0 | ES10: =SUM(BQ10,BU10) -> 0 | ET10: =SUM(BY10,CC10) -> 0 | EU10: =SUM(CG10,CK10) -> 0 | EV10: =SUM(CO10,CS10) -> 0 | EW10: =SUM(CW10,DA10) -> 0 | EX10: =SUM(DE10,DI10) -> 0 | EY10: =SUM(DM10,DQ10) -> 0
A11: 4 | B11: =B10+1 -> 2025-08-21 | C11: Vacances | K11: Vacances | S11: Vacances | AA11: Vacances | AI11: Vacances | AQ11: Vacances | AY11: Vacances | BG11: Vacances | BO11: Vacances | DU11: 0 | DV11: 0 | DW11: 0 | DX11: 0 | DY11: 0 | DZ11: 0 | EA11: 0 | EB11: 0 | EC11: 0 | ED11: 0 | EE11: 0 | EF11: 0 | EG11: 0 | EH11: 0 | EI11: 0 | EK11: 0 | EL11: 0 | EM11: 0 | EN11: 0 | EO11: 0 | EP11: 0 | EQ11: 0 | ER11: 0 | ES11: 0 | ET11: 0 | EU11: 0 | EV11: 0 | EW11: 0 | EX11: 0 | EY11: 0
A12: 5 | B12: 2025-08-22 | C12: Pédagogique Commune | K12: Pédagogique Commune | S12: Pédagogique Commune | AA12: Pédagogique Commune | AI12: Pédagogique Commune | AQ12: Pédagogique Commune | AY12: Pédagogique Commune | BG12: Pédagogique Commune | BO12: Pédagogique Commune | DU12: 0 | DV12: 0 | DW12: 0 | DX12: 0 | DY12: 0 | DZ12: 0 | EA12: 0 | EB12: 0 | EC12: 0 | ED12: 0 | EE12: 0 | EF12: 0 | EG12: 0 | EH12: 0 | EI12: 0 | EK12: 0 | EL12: 0 | EM12: 0 | EN12: 0 | EO12: 0 | EP12: 0 | EQ12: 0 | ER12: 0 | ES12: 0 | ET12: 0 | EU12: 0 | EV12: 0 | EW12: 0 | EX12: 0 | EY12: 0
A13: 6 | B13: 2025-08-23 | C13: WEEK-END | K13: WEEK-END | S13: WEEK-END | AA13: WEEK-END | AI13: WEEK-END | AQ13: WEEK-END | AY13: WEEK-END | BG13: WEEK-END | BO13: WEEK-END | DU13: 0 | DV13: 0 | DW13: 0 | DX13: 0 | DY13: 0 | DZ13: 0 | EA13: 0 | EB13: 0 | EC13: 0 | ED13: 0 | EE13: 0 | EF13: 0 | EG13: 0 | EH13: 0 | EI13: 0 | EK13: 0 | EL13: 0 | EM13: 0 | EN13: 0 | EO13: 0 | EP13: 0 | EQ13: 0 | ER13: 0 | ES13: 0 | ET13: 0 | EU13: 0 | EV13: 0 | EW13: 0 | EX13: 0 | EY13: 0
A14: 7 | B14: 2025-08-24 | C14: WEEK-END | K14: WEEK-END | S14: WEEK-END | AA14: WEEK-END | AI14: WEEK-END | AQ14: WEEK-END | AY14: WEEK-END | BG14: WEEK-END | BO14: WEEK-END | DU14: 0 | DV14: 0 | DW14: 0 | DX14: 0 | DY14: 0 | DZ14: 0 | EA14: 0 | EB14: 0 | EC14: 0 | ED14: 0 | EE14: 0 | EF14: 0 | EG14: 0 | EH14: 0 | EI14: 0 | EK14: 0 | EL14: 0 | EM14: 0 | EN14: 0 | EO14: 0 | EP14: 0 | EQ14: 0 | ER14: 0 | ES14: 0 | ET14: 0 | EU14: 0 | EV14: 0 | EW14: 0 | EX14: 0 | EY14: 0
A15: 1 | B15: 2025-08-25 | C15: Pédagogique | K15: Pédagogique | S15: Pédagogique | AA15: Pédagogique | AI15: Pédagogique | AQ15: Pédagogique | AY15: Pédagogique | BG15: Pédagogique | BO15: Pédagogique | DU15: 0 | DV15: 0 | DW15: 0 | DX15: 0 | DY15: 0 | DZ15: 0 | EA15: 0 | EB15: 0 | EC15: 0 | ED15: 0 | EE15: 0 | EF15: 0 | EG15: 0 | EH15: 0 | EI15: 0 | EK15: 0 | EL15: 0 | EM15: 0 | EN15: 0 | EO15: 0 | EP15: 0 | EQ15: 0 | ER15: 0 | ES15: 0 | ET15: 0 | EU15: 0 | EV15: 0 | EW15: 0 | EX15: 0 | EY15: 0
A16: 2 | B16: 2025-08-26 | C16: 23 | D16: sb | E16: 6 | K16: 14 | L16: mc | M16: 6 | S16: 13 | T16: cg | U16: 6 | AA16: 16 | AB16: mp | AC16: 6 | AI16: 10 | AJ16: jr | AK16: 6 | AQ16: 1 | AR16: rg | AS16: 6 | DU16: 1 | DV16: 1 | DW16: 1 | DX16: 1 | DY16: 0 | DZ16: 1 | EA16: 1 | EB16: 0 | EC16: 0 | ED16: 0 | EE16: 0 | EF16: 0 | EG16: 0 | EH16: 0 | EI16: 0 | EK16: =SUM(#REF!,$E16) ->  | EL16: 6 | EM16: 6 | EN16: 6 | EO16: 6 | EP16: 6 | EQ16: 0 | ER16: 0 | ES16: 0 | ET16: 0 | EU16: 0 | EV16: 0 | EW16: 0 | EX16: 0 | EY16: 0
A17: 3 | B17: 2025-08-27 | C17: 23 | D17: sb | E17: 6 | K17: 14 | L17: mc | M17: 6 | S17: 13 | T17: cg | U17: 6 | AA17: 16 | AB17: mp | AC17: 6 | AI17: 10 | AJ17: jr | AK17: 6 | AQ17: 1 | AR17: rg | AS17: 6 | DU17: 1 | DV17: 1 | DW17: 1 | DX17: 1 | DY17: 0 | DZ17: 1 | EA17: 1 | EB17: 0 | EC17: 0 | ED17: 0 | EE17: 0 | EF17: 0 | EG17: 0 | EH17: 0 | EI17: 0 | EK17: =SUM(#REF!,$E17) ->  | EL17: 6 | EM17: 6 | EN17: 6 | EO17: 6 | EP17: 6 | EQ17: 0 | ER17: 0 | ES17: 0 | ET17: 0 | EU17: 0 | EV17: 0 | EW17: 0 | EX17: 0 | EY17: 0
A18: 4 | B18: 2025-08-28 | C18: 23 | D18: sb | E18: 6 | K18: 14 | L18: mc | M18: 6 | S18: 13 | T18: cg | U18: 6 | AA18: 16 | AB18: mp | AC18: 6 | AI18: 10 | AJ18: jr | AK18: 6 | AQ18: 2 | AR18: rg | AS18: 6 | DU18: 1 | DV18: 1 | DW18: 1 | DX18: 1 | DY18: 0 | DZ18: 1 | EA18: 1 | EB18: 0 | EC18: 0 | ED18: 0 | EE18: 0 | EF18: 0 | EG18: 0 | EH18: 0 | EI18: 0 | EK18: =SUM(#REF!,$E18) ->  | EL18: 6 | EM18: 6 | EN18: 6 | EO18: 6 | EP18: 6 | EQ18: 0 | ER18: 0 | ES18: 0 | ET18: 0 | EU18: 0 | EV18: 0 | EW18: 0 | EX18: 0 | EY18: 0
A19: 5 | B19: 2025-08-29 | C19: 23 | D19: sb | E19: 3 | G19: 24 | H19: sb | I19: 3 | J19: st | K19: 14 | L19: mc | M19: 6 | S19: 13 | T19: cg | U19: 6 | AA19: 16 | AB19: mp | AC19: 6 | AI19: 10 | AJ19: jr | AK19: 6 | AQ19: 2 | AR19: rg | AS19: 6 | DU19: 2 | DV19: 1 | DW19: 1 | DX19: 1 | DY19: 0 | DZ19: 1 | EA19: 1 | EB19: 0 | EC19: 0 | ED19: 0 | EE19: 0 | EF19: 0 | EG19: 0 | EH19: 0 | EI19: 0 | EK19: =SUM(#REF!,$E19) ->  | EL19: 6 | EM19: 6 | EN19: 6 | EO19: 6 | EP19: 6 | EQ19: 0 | ER19: 0 | ES19: 0 | ET19: 0 | EU19: 0 | EV19: 0 | EW19: 0 | EX19: 0 | EY19: 0
A20: 6 | B20: 2025-08-30 | C20: WEEK-END | K20: WEEK-END | S20: WEEK-END | AA20: WEEK-END | AI20: WEEK-END | AQ20: WEEK-END | AY20: WEEK-END | BG20: WEEK-END | BO20: WEEK-END | DU20: 0 | DV20: 0 | DW20: 0 | DX20: 0 | DY20: 0 | DZ20: 0 | EA20: 0 | EB20: 0 | EC20: 0 | ED20: 0 | EE20: 0 | EF20: 0 | EG20: 0 | EH20: 0 | EI20: 0 | EK20: 0 | EL20: 0 | EM20: 0 | EN20: 0 | EO20: 0 | EP20: 0 | EQ20: 0 | ER20: 0 | ES20: 0 | ET20: 0 | EU20: 0 | EV20: 0 | EW20: 0 | EX20: 0 | EY20: 0
A21: 7 | B21: 2025-08-31 | C21: WEEK-END | K21: WEEK-END | S21: WEEK-END | AA21: WEEK-END | AI21: WEEK-END | AQ21: WEEK-END | AY21: WEEK-END | BG21: WEEK-END | BO21: WEEK-END | DU21: 0 | DV21: 0 | DW21: 0 | DX21: 0 | DY21: 0 | DZ21: 0 | EA21: 0 | EB21: 0 | EC21: 0 | ED21: 0 | EE21: 0 | EF21: 0 | EG21: 0 | EH21: 0 | EI21: 0 | EK21: 0 | EL21: 0 | EM21: 0 | EN21: 0 | EO21: 0 | EP21: 0 | EQ21: 0 | ER21: 0 | ES21: 0 | ET21: 0 | EU21: 0 | EV21: 0 | EW21: 0 | EX21: 0 | EY21: 0
A22: 1 | B22: 2025-09-01 | C22: Congé | K22: Congé | S22: Congé | AA22: Congé | AI22: Congé | AQ22: Congé | AY22: Congé | BG22: Congé | BO22: Congé | DU22: 0 | DV22: 0 | DW22: 0 | DX22: 0 | DY22: 0 | DZ22: 0 | EA22: 0 | EB22: 0 | EC22: 0 | ED22: 0 | EE22: 0 | EF22: 0 | EG22: 0 | EH22: 0 | EI22: 0 | EK22: 0 | EL22: 0 | EM22: 0 | EN22: 0 | EO22: 0 | EP22: 0 | EQ22: 0 | ER22: 0 | ES22: 0 | ET22: 0 | EU22: 0 | EV22: 0 | EW22: 0 | EX22: 0 | EY22: 0
A23: 2 | B23: 2025-09-02 | C23: 23 | D23: sb | E23: 6 | K23: 14 | L23: mc | M23: 6 | S23: 13 | T23: cg | U23: 6 | AA23: 16 | AB23: mp | AC23: 6 | AI23: 10 | AJ23: jr | AK23: 6 | AQ23: 2 | AR23: rg | AS23: 6 | DU23: 1 | DV23: 1 | DW23: 1 | DX23: 1 | DY23: 0 | DZ23: 1 | EA23: 1 | EB23: 0 | EC23: 0 | ED23: 0 | EE23: 0 | EF23: 0 | EG23: 0 | EH23: 0 | EI23: 0 | EK23: 6 | EL23: 6 | EM23: 6 | EN23: 6 | EO23: 6 | EP23: 6 | EQ23: 0 | ER23: 0 | ES23: 0 | ET23: 0 | EU23: 0 | EV23: 0 | EW23: 0 | EX23: 0 | EY23: 0
A24: 3 | B24: 2025-09-03 | C24: 23 | D24: sb | E24: 6 | K24: 14 | L24: mc | M24: 6 | S24: 13 | T24: cg | U24: 6 | AA24: 16 | AB24: mp | AC24: 6 | AI24: 10 | AJ24: jr | AK24: 6 | AQ24: 1 | AR24: rg | AS24: 6 | AT24: EX | DU24: 1 | DV24: 1 | DW24: 1 | DX24: 1 | DY24: 0 | DZ24: 1 | EA24: 1 | EB24: 0 | EC24: 0 | ED24: 0 | EE24: 0 | EF24: 0 | EG24: 0 | EH24: 0 | EI24: 0 | EK24: 6 | EL24: 6 | EM24: 6 | EN24: 6 | EO24: 6 | EP24: 6 | EQ24: 0 | ER24: 0 | ES24: 0 | ET24: 0 | EU24: 0 | EV24: 0 | EW24: 0 | EX24: 0 | EY24: 0
A25: 4 | B25: 2025-09-04 | C25: 23 | D25: sb | E25: 6 | K25: 14 | L25: mc | M25: 6 | S25: 13 | T25: cg | U25: 6 | AA25: 90 | AB25: mp | AC25: 6 | AD25: R12 | AI25: 10 | AJ25: jr | AK25: 6 | AQ25: 2 | AR25: rg | AS25: 6 | DU25: 1 | DV25: 1 | DW25: 1 | DX25: 1 | DY25: 0 | DZ25: 1 | EA25: 1 | EB25: 0 | EC25: 0 | ED25: 0 | EE25: 0 | EF25: 0 | EG25: 0 | EH25: 0 | EI25: 0 | EK25: 6 | EL25: 6 | EM25: 6 | EN25: 6 | EO25: 6 | EP25: 6 | EQ25: 0 | ER25: 0 | ES25: 0 | ET25: 0 | EU25: 0 | EV25: 0 | EW25: 0 | EX25: 0 | EY25: 0
A26: 5 | B26: 2025-09-05 | C26: 90 | D26: sb | E26: 6 | F26: R21 | K26: 14 | L26: mc | M26: 6 | S26: 13 | T26: cg | U26: 6 | AA26: 16 | AB26: mp | AC26: 6 | AI26: 10 | AJ26: jr | AK26: 6 | AQ26: 2 | AR26: rg | AS26: 6 | AT26: EX | DU26: 1 | DV26: 1 | DW26: 1 | DX26: 1 | DY26: 0 | DZ26: 1 | EA26: 1 | EB26: 0 | EC26: 0 | ED26: 0 | EE26: 0 | EF26: 0 | EG26: 0 | EH26: 0 | EI26: 0 | EK26: 6 | EL26: 6 | EM26: 6 | EN26: 6 | EO26: 6 | EP26: 6 | EQ26: 0 | ER26: 0 | ES26: 0 | ET26: 0 | EU26: 0 | EV26: 0 | EW26: 0 | EX26: 0 | EY26: 0
A27: 6 | B27: 2025-09-06 | C27: WEEK-END | K27: WEEK-END | S27: WEEK-END | AA27: WEEK-END | AI27: WEEK-END | AQ27: WEEK-END | AY27: WEEK-END | BG27: WEEK-END | BO27: WEEK-END | DU27: 0 | DV27: 0 | DW27: 0 | DX27: 0 | DY27: 0 | DZ27: 0 | EA27: 0 | EB27: 0 | EC27: 0 | ED27: 0 | EE27: 0 | EF27: 0 | EG27: 0 | EH27: 0 | EI27: 0 | EK27: 0 | EL27: 0 | EM27: 0 | EN27: 0 | EO27: 0 | EP27: 0 | EQ27: 0 | ER27: 0 | ES27: 0 | ET27: 0 | EU27: 0 | EV27: 0 | EW27: 0 | EX27: 0 | EY27: 0
A28: 7 | B28: 2025-09-07 | C28: WEEK-END | K28: WEEK-END | S28: WEEK-END | AA28: WEEK-END | AI28: WEEK-END | AQ28: WEEK-END | AY28: WEEK-END | BG28: WEEK-END | BO28: WEEK-END | DU28: 0 | DV28: 0 | DW28: 0 | DX28: 0 | DY28: 0 | DZ28: 0 | EA28: 0 | EB28: 0 | EC28: 0 | ED28: 0 | EE28: 0 | EF28: 0 | EG28: 0 | EH28: 0 | EI28: 0 | EK28: 0 | EL28: 0 | EM28: 0 | EN28: 0 | EO28: 0 | EP28: 0 | EQ28: 0 | ER28: 0 | ES28: 0 | ET28: 0 | EU28: 0 | EV28: 0 | EW28: 0 | EX28: 0 | EY28: 0
A29: 1 | B29: 2025-09-08 | C29: 23 | D29: sb | E29: 6 | F29: EX | K29: 90 | L29: mc | M29: 6 | N29: R13 | S29: 13 | T29: cg | U29: 6 | AA29: 16 | AB29: mp | AC29: 6 | AD29: EX | AE29: 33 | AF29: rg | AG29: 6 | AH29: X12 | AI29: 10 | AJ29: jr | AK29: 6 | AL29: EX | AQ29: Congé | DU29: 1 | DV29: 1 | DW29: 1 | DX29: 1 | DY29: 0 | DZ29: 1 | EA29: 1 | EB29: 0 | EC29: 0 | ED29: 0 | EE29: 0 | EF29: 0 | EG29: 0 | EH29: 0 | EI29: 0 | EK29: 6 | EL29: 6 | EM29: 6 | EN29: 12 | EO29: 6 | EP29: 0 | EQ29: 0 | ER29: 0 | ES29: 0 | ET29: 0 | EU29: 0 | EV29: 0 | EW29: 0 | EX29: 0 | EY29: 0
A30: 2 | B30: 2025-09-09 | C30: 23 | D30: sb | E30: 6 | F30: EX | K30: 14 | L30: mc | M30: 6 | N30: EX | S30: 13 | T30: rg | U30: 6 | AA30: 16 | AB30: mp | AC30: 6 | AD30: EX | AI30: 10 | AJ30: jr | AK30: 6 | AL30: EX | AQ30: 3 | AR30: yc | AS30: 6 | DU30: 1 | DV30: 1 | DW30: 0 | DX30: 1 | DY30: 1 | DZ30: 1 | EA30: 1 | EB30: 0 | EC30: 0 | ED30: 0 | EE30: 0 | EF30: 0 | EG30: 0 | EH30: 0 | EI30: 0 | EK30: 6 | EL30: 6 | EM30: 6 | EN30: 6 | EO30: 6 | EP30: 6 | EQ30: 0 | ER30: 0 | ES30: 0 | ET30: 0 | EU30: 0 | EV30: 0 | EW30: 0 | EX30: 0 | EY30: 0
A31: 3 | B31: =B30+1 -> 2025-09-10 | C31: 95 | E31: 6 | G31: 33 | H31: sb | I31: 3 | J31: X21 | K31: 14 | L31: mc | M31: 6 | N31: EX | O31: 33 | P31: sb | Q31: 3 | R31: X13 | S31: 13 | T31: cg | U31: 6 | AA31: 11 | AB31: rg | AC31: 6 | AI31: 12 | AJ31: jr | AK31: 6 | AQ31: 3 | AR31: yc | AS31: 6 | DU31: 2 | DV31: 0 | DW31: 1 | DX31: 1 | DY31: 1 | DZ31: 1 | EA31: 1 | EB31: 0 | EC31: 0 | ED31: 0 | EE31: 0 | EF31: 0 | EG31: 0 | EH31: 0 | EI31: 0 | EK31: 9 | EL31: 9 | EM31: 6 | EN31: 6 | EO31: 6 | EP31: 6 | EQ31: 0 | ER31: 0 | ES31: 0 | ET31: 0 | EU31: 0 | EV31: 0 | EW31: 0 | EX31: 0 | EY31: 0
A32: 4 | B32: 2025-09-11 | C32: 24 | D32: sb | E32: 6 | K32: 22 | L32: mp | M32: 6 | S32: 13 | T32: cg | U32: 6 | AA32: 11 | AB32: mc | AC32: 6 | AI32: 12 | AJ32: jr | AK32: 6 | AQ32: 3 | AR32: yc | AS32: 6 | DU32: 1 | DV32: 1 | DW32: 1 | DX32: 1 | DY32: 1 | DZ32: 1 | EA32: 0 | EB32: 0 | EC32: 0 | ED32: 0 | EE32: 0 | EF32: 0 | EG32: 0 | EH32: 0 | EI32: 0 | EK32: 6 | EL32: 6 | EM32: 6 | EN32: 6 | EO32: 6 | EP32: 6 | EQ32: 0 | ER32: 0 | ES32: 0 | ET32: 0 | EU32: 0 | EV32: 0 | EW32: 0 | EX32: 0 | EY32: 0
A33: 5 | B33: 2025-09-12 | C33: 95 | E33: 6 | K33: 22 | L33: mp | M33: 6 | S33: 13 | T33: cg | U33: 6 | AA33: 11 | AB33: mc | AC33: 6 | AI33: 12 | AJ33: rg | AK33: 6 | AQ33: 3 | AR33: yc | AS33: 6 | AT33: EX | DU33: 0 | DV33: 1 | DW33: 1 | DX33: 0 | DY33: 1 | DZ33: 1 | EA33: 1 | EB33: 0 | EC33: 0 | ED33: 0 | EE33: 0 | EF33: 0 | EG33: 0 | EH33: 0 | EI33: 0 | EK33: 6 | EL33: 6 | EM33: 6 | EN33: 6 | EO33: 6 | EP33: 6 | EQ33: 0 | ER33: 0 | ES33: 0 | ET33: 0 | EU33: 0 | EV33: 0 | EW33: 0 | EX33: 0 | EY33: 0
A34: 6 | B34: 2025-09-13 | C34: WEEK-END | K34: WEEK-END | S34: WEEK-END | AA34: WEEK-END | AI34: WEEK-END | AQ34: WEEK-END | AY34: WEEK-END | BG34: WEEK-END | BO34: WEEK-END | DU34: 0 | DV34: 0 | DW34: 0 | DX34: 0 | DY34: 0 | DZ34: 0 | EA34: 0 | EB34: 0 | EC34: 0 | ED34: 0 | EE34: 0 | EF34: 0 | EG34: 0 | EH34: 0 | EI34: 0 | EK34: 0 | EL34: 0 | EM34: 0 | EN34: 0 | EO34: 0 | EP34: 0 | EQ34: 0 | ER34: 0 | ES34: 0 | ET34: 0 | EU34: 0 | EV34: 0 | EW34: 0 | EX34: 0 | EY34: 0
A35: 7 | B35: 2025-09-14 | C35: WEEK-END | K35: WEEK-END | S35: WEEK-END | AA35: WEEK-END | AI35: WEEK-END | AQ35: WEEK-END | AY35: WEEK-END | BG35: WEEK-END | BO35: WEEK-END | DU35: 0 | DV35: 0 | DW35: 0 | DX35: 0 | DY35: 0 | DZ35: 0 | EA35: 0 | EB35: 0 | EC35: 0 | ED35: 0 | EE35: 0 | EF35: 0 | EG35: 0 | EH35: 0 | EI35: 0 | EK35: 0 | EL35: 0 | EM35: 0 | EN35: 0 | EO35: 0 | EP35: 0 | EQ35: 0 | ER35: 0 | ES35: 0 | ET35: 0 | EU35: 0 | EV35: 0 | EW35: 0 | EX35: 0 | EY35: 0
A36: 1 | B36: 2025-09-15 | C36: 24 | D36: sb | E36: 6 | K36: 22 | L36: mp | M36: 6 | S36: 13 | T36: cg | U36: 6 | AA36: 11 | AB36: mc | AC36: 6 | AI36: 12 | AJ36: rg | AK36: 6 | AQ36: 4 | AR36: yc | AS36: 6 | DU36: 1 | DV36: 1 | DW36: 1 | DX36: 0 | DY36: 1 | DZ36: 1 | EA36: 1 | EB36: 0 | EC36: 0 | ED36: 0 | EE36: 0 | EF36: 0 | EG36: 0 | EH36: 0 | EI36: 0 | EK36: 6 | EL36: 6 | EM36: 6 | EN36: 6 | EO36: 6 | EP36: 6 | EQ36: 0 | ER36: 0 | ES36: 0 | ET36: 0 | EU36: 0 | EV36: 0 | EW36: 0 | EX36: 0 | EY36: 0
A37: 2 | B37: 2025-09-16 | C37: 24 | D37: sb | E37: 6 | K37: 22 | L37: mp | M37: 6 | S37: 13 | T37: cg | U37: 6 | AA37: 11 | AB37: mc | AC37: 6 | AI37: 12 | AJ37: jr | AK37: 6 | AQ37: 4 | AR37: yc | AS37: 6 | DU37: 1 | DV37: 1 | DW37: 1 | DX37: 1 | DY37: 1 | DZ37: 1 | EA37: 0 | EB37: 0 | EC37: 0 | ED37: 0 | EE37: 0 | EF37: 0 | EG37: 0 | EH37: 0 | EI37: 0 | EK37: 6 | EL37: 6 | EM37: 6 | EN37: 6 | EO37: 6 | EP37: 6 | EQ37: 0 | ER37: 0 | ES37: 0 | ET37: 0 | EU37: 0 | EV37: 0 | EW37: 0 | EX37: 0 | EY37: 0
A38: 3 | B38: 2025-09-17 | C38: 24 | D38: sb | E38: 6 | K38: 22 | L38: mp | M38: 6 | S38: 13 | T38: cg | U38: 6 | AA38: 90 | AB38: rg | AC38: 6 | AD38: R16 | AI38: 12 | AJ38: jr | AK38: 6 | AQ38: 4 | AR38: yc | AS38: 6 | DU38: 1 | DV38: 1 | DW38: 1 | DX38: 1 | DY38: 1 | DZ38: 0 | EA38: 1 | EB38: 0 | EC38: 0 | ED38: 0 | EE38: 0 | EF38: 0 | EG38: 0 | EH38: 0 | EI38: 0 | EK38: 6 | EL38: 6 | EM38: 6 | EN38: 6 | EO38: 6 | EP38: 6 | EQ38: 0 | ER38: 0 | ES38: 0 | ET38: 0 | EU38: 0 | EV38: 0 | EW38: 0 | EX38: 0 | EY38: 0
A39: 4 | B39: 2025-09-18 | C39: 95 | E39: 6 | K39: 22 | L39: sb | M39: 6 | S39: 90 | T39: rg | U39: 6 | V39: R15 | AA39: 11 | AB39: mc | AC39: 6 | AI39: 12 | AJ39: jr | AK39: 6 | AQ39: 4 | AR39: yc | AS39: 6 | DU39: 1 | DV39: 0 | DW39: 0 | DX39: 1 | DY39: 1 | DZ39: 1 | EA39: 1 | EB39: 0 | EC39: 0 | ED39: 0 | EE39: 0 | EF39: 0 | EG39: 0 | EH39: 0 | EI39: 0 | EK39: 6 | EL39: 6 | EM39: 6 | EN39: 6 | EO39: 6 | EP39: 6 | EQ39: 0 | ER39: 0 | ES39: 0 | ET39: 0 | EU39: 0 | EV39: 0 | EW39: 0 | EX39: 0 | EY39: 0
A40: 5 | B40: 2025-09-19 | C40: 95 | E40: 6 | K40: 22 | L40: mp | M40: 6 | S40: 13 | T40: cg | U40: 6 | AA40: 11 | AB40: mc | AC40: 6 | AI40: 12 | AJ40: jr | AK40: 6 | AQ40: Congé | DU40: =COUNTIF($C40:$DR40,$A$459) -> 0 | DV40: =COUNTIF($C40:$DR40,$A$460) -> 1 | DW40: =COUNTIF($C40:$DR40,$A$461) -> 1 | DX40: =COUNTIF($C40:$DR40,$A$462) -> 1 | DY40: =COUNTIF($C40:$DR40,$A$463) -> 0 | DZ40: =COUNTIF($C40:$DR40,$A$464) -> 1 | EA40: =COUNTIF($C40:$DR40,$A$465) -> 0 | EB40: =COUNTIF($C40:$DR40,$A$466) -> 0 | EC40: =COUNTIF($C40:$DR40,$A$467) -> 0 | ED40: =COUNTIF($C40:$DR40,$A$468) -> 0 | EE40: =COUNTIF($C40:$DR40,$A$469) -> 0 | EF40: =COUNTIF($C40:$DR40,$A$470) -> 0 | EG40: =COUNTIF($C40:$DR40,$A$471) -> 0 | EH40: =COUNTIF($C40:$DR40,$A$472) -> 0 | EI40: =COUNTIF($C40:$DR40,$A$473) -> 0 | EK40: 6 | EL40: 6 | EM40: 6 | EN40: 6 | EO40: 6 | EP40: =SUM(#REF!,AW40) ->  | EQ40: 0 | ER40: 0 | ES40: 0 | ET40: 0 | EU40: 0 | EV40: 0 | EW40: 0 | EX40: 0 | EY40: 0
A41: 6 | B41: 2025-09-20 | C41: WEEK-END | K41: WEEK-END | S41: WEEK-END | AA41: WEEK-END | AI41: WEEK-END | AQ41: WEEK-END | AY41: WEEK-END | BG41: WEEK-END | BO41: WEEK-END | DU41: 0 | DV41: 0 | DW41: 0 | DX41: 0 | DY41: 0 | DZ41: 0 | EA41: 0 | EB41: 0 | EC41: 0 | ED41: 0 | EE41: 0 | EF41: 0 | EG41: 0 | EH41: 0 | EI41: 0 | EK41: 0 | EL41: 0 | EM41: 0 | EN41: 0 | EO41: 0 | EP41: 0 | EQ41: 0 | ER41: 0 | ES41: 0 | ET41: 0 | EU41: 0 | EV41: 0 | EW41: 0 | EX41: 0 | EY41: 0
A42: 7 | B42: 2025-09-21 | C42: WEEK-END | K42: WEEK-END | S42: WEEK-END | AA42: WEEK-END | AI42: WEEK-END | AQ42: WEEK-END | AY42: WEEK-END | BG42: WEEK-END | BO42: WEEK-END | DU42: 0 | DV42: 0 | DW42: 0 | DX42: 0 | DY42: 0 | DZ42: 0 | EA42: 0 | EB42: 0 | EC42: 0 | ED42: 0 | EE42: 0 | EF42: 0 | EG42: 0 | EH42: 0 | EI42: 0 | EK42: 0 | EL42: 0 | EM42: 0 | EN42: 0 | EO42: 0 | EP42: 0 | EQ42: 0 | ER42: 0 | ES42: 0 | ET42: 0 | EU42: 0 | EV42: 0 | EW42: 0 | EX42: 0 | EY42: 0
A43: 1 | B43: 2025-09-22 | C43: 95 | E43: 6 | K43: 22 | L43: mp | M43: 6 | S43: 13 | T43: cg | U43: 6 | V43: EX | AA43: 11 | AB43: mc | AC43: 6 | AI43: 12 | AJ43: jr | AK43: 6 | AQ43: 4 | AR43: yc | AS43: 6 | DU43: 0 | DV43: 1 | DW43: 1 | DX43: 1 | DY43: 1 | DZ43: 1 | EA43: 0 | EB43: 0 | EC43: 0 | ED43: 0 | EE43: 0 | EF43: 0 | EG43: 0 | EH43: 0 | EI43: 0 | EK43: 6 | EL43: 6 | EM43: 6 | EN43: 6 | EO43: 6 | EP43: =SUM(AS40,#REF!) ->  | EQ43: 0 | ER43: 0 | ES43: 0 | ET43: 0 | EU43: 0 | EV43: 0 | EW43: 0 | EX43: 0 | EY43: 0
A44: 2 | B44: 2025-09-23 | C44: 24 | D44: sb | E44: 6 | K44: 22 | L44: mp | M44: 6 | S44: 13 | T44: cg | U44: 6 | V44: EX | W44: 33 | X44: rg | Y44: 3 | Z44: X15 | AA44: 11 | AB44: mc | AC44: 6 | AI44: 12 | AJ44: jr | AK44: 6 | AQ44: 4 | AR44: yc | AS44: 6 | DU44: 1 | DV44: 1 | DW44: 1 | DX44: 1 | DY44: 1 | DZ44: 1 | EA44: 1 | EB44: 0 | EC44: 0 | ED44: 0 | EE44: 0 | EF44: 0 | EG44: 0 | EH44: 0 | EI44: 0 | EK44: 6 | EL44: 6 | EM44: 9 | EN44: 6 | EO44: 6 | EP44: =SUM(AS43,AW43) -> 6 | EQ44: 0 | ER44: 0 | ES44: 0 | ET44: 0 | EU44: 0 | EV44: 0 | EW44: 0 | EX44: 0 | EY44: 0
A45: 3 | B45: 2025-09-24 | C45: 24 | D45: sb | E45: 6 | K45: 22 | L45: mp | M45: 6 | S45: 14 | T45: cg | U45: 6 | AA45: 11 | AB45: mc | AC45: 6 | AI45: 90 | AJ45: rg | AK45: 6 | AL45: R10 | AQ45: 4 | AR45: yc | AS45: 6 | DU45: 1 | DV45: 1 | DW45: 1 | DX45: 0 | DY45: 1 | DZ45: 1 | EA45: 1 | EB45: 0 | EC45: 0 | ED45: 0 | EE45: 0 | EF45: 0 | EG45: 0 | EH45: 0 | EI45: 0 | EK45: 6 | EL45: 6 | EM45: 6 | EN45: 6 | EO45: =SUM(#REF!,AO45) ->  | EP45: =SUM(AS44,AW44) -> 6 | EQ45: 0 | ER45: 0 | ES45: 0 | ET45: 0 | EU45: 0 | EV45: 0 | EW45: 0 | EX45: 0 | EY45: 0
A46: 4 | B46: =B45+1 -> 2025-09-25 | C46: 95 | E46: 6 | K46: 22 | L46: sb | M46: 6 | S46: 14 | T46: cg | U46: 6 | AA46: 11 | AB46: mc | AC46: 6 | AD46: EX | AE46: 33 | AF46: rg | AG46: 3 | AH46: X16 | AI46: 12 | AJ46: jr | AK46: 6 | AQ46: 4 | AR46: yc | AS46: 6 | BO46: 1 | BP46: np | BQ46: 6 | DU46: 1 | DV46: 0 | DW46: 1 | DX46: 1 | DY46: 1 | DZ46: 1 | EA46: 1 | EB46: 1 | EC46: 0 | ED46: 0 | EE46: 0 | EF46: 0 | EG46: 0 | EH46: 0 | EI46: 0 | EK46: 6 | EL46: 6 | EM46: 6 | EN46: 9 | EO46: 6 | EP46: =SUM(AS45,AW45) -> 6 | EQ46: 0 | ER46: 0 | ES46: 6 | ET46: 0 | EU46: 0 | EV46: 0 | EW46: 0 | EX46: 0 | EY46: 0
A47: 5 | B47: 2025-09-26 | C47: 95 | E47: 6 | K47: 22 | L47: sb | M47: 6 | S47: 14 | T47: mp | U47: 6 | AA47: 11 | AB47: mc | AC47: 6 | AD47: EX | AI47: 12 | AJ47: jr | AK47: 6 | AQ47: Congé | BO47: 1 | BP47: rg | BQ47: 6 | DU47: 1 | DV47: 1 | DW47: 0 | DX47: 1 | DY47: 0 | DZ47: 1 | EA47: 1 | EB47: 0 | EC47: 0 | ED47: 0 | EE47: 0 | EF47: 0 | EG47: 0 | EH47: 0 | EI47: 0 | EK47: 6 | EL47: 6 | EM47: 6 | EN47: 6 | EO47: =SUM(AK45,AO47) -> 6 | EP47: =SUM(AS46,AW46) -> 6 | EQ47: 0 | ER47: 0 | ES47: 6 | ET47: 0 | EU47: 0 | EV47: 0 | EW47: 0 | EX47: 0 | EY47: 0
A48: 6 | B48: 2025-09-27 | C48: WEEK-END | K48: WEEK-END | S48: WEEK-END | AA48: WEEK-END | AI48: WEEK-END | AQ48: WEEK-END | AY48: WEEK-END | BG48: WEEK-END | BO48: WEEK-END | DU48: 0 | DV48: 0 | DW48: 0 | DX48: 0 | DY48: 0 | DZ48: 0 | EA48: 0 | EB48: 0 | EC48: 0 | ED48: 0 | EE48: 0 | EF48: 0 | EG48: 0 | EH48: 0 | EI48: 0 | EK48: 0 | EL48: 0 | EM48: 0 | EN48: 0 | EO48: 0 | EP48: 0 | EQ48: 0 | ER48: 0 | ES48: 0 | ET48: 0 | EU48: 0 | EV48: 0 | EW48: 0 | EX48: 0 | EY48: 0
A49: 7 | B49: 2025-09-28 | C49: WEEK-END | K49: WEEK-END | S49: WEEK-END | AA49: WEEK-END | AI49: WEEK-END | AQ49: WEEK-END | AY49: WEEK-END | BG49: WEEK-END | BO49: WEEK-END | DU49: 0 | DV49: 0 | DW49: 0 | DX49: 0 | DY49: 0 | DZ49: 0 | EA49: 0 | EB49: 0 | EC49: 0 | ED49: 0 | EE49: 0 | EF49: 0 | EG49: 0 | EH49: 0 | EI49: 0 | EK49: 0 | EL49: 0 | EM49: 0 | EN49: 0 | EO49: 0 | EP49: 0 | EQ49: 0 | ER49: 0 | ES49: 0 | ET49: 0 | EU49: 0 | EV49: 0 | EW49: 0 | EX49: 0 | EY49: 0
A50: 1 | B50: 2025-09-29 | C50: 24 | D50: sb | E50: 6 | K50: 22 | L50: mp | M50: 6 | S50: 14 | T50: cg | U50: 6 | AA50: 18 | AB50: mc | AC50: 6 | AI50: 12 | AJ50: rg | AK50: 6 | AQ50: 4 | AR50: yc | AS50: 6 | DU50: 1 | DV50: 1 | DW50: 1 | DX50: 0 | DY50: 1 | DZ50: 1 | EA50: 1 | EB50: 0 | EC50: 0 | ED50: 0 | EE50: 0 | EF50: 0 | EG50: 0 | EH50: 0 | EI50: 0 | EK50: 6 | EL50: =SUM($M54,$Q50) -> 6 | EM50: 6 | EN50: 6 | EO50: 6 | EP50: =SUM(AS47,AW47) -> 0 | EQ50: 0 | ER50: 0 | ES50: 0 | ET50: 0 | EU50: 0 | EV50: 0 | EW50: 0 | EX50: 0 | EY50: 0
A51: 2 | B51: 2025-09-30 | C51: 24 | D51: sb | E51: 6 | F51: RT | K51: 22 | L51: mp | M51: 6 | S51: 14 | T51: cg | U51: 6 | AA51: 18 | AB51: mc | AC51: 6 | AI51: 12 | AJ51: jr | AK51: 6 | AQ51: 4 | AR51: yc | AS51: 6 | DU51: 1 | DV51: 1 | DW51: 1 | DX51: 1 | DY51: 1 | DZ51: 1 | EA51: 0 | EB51: 0 | EC51: 0 | ED51: 0 | EE51: 0 | EF51: 0 | EG51: 0 | EH51: 0 | EI51: 0 | EK51: 6 | EL51: 6 | EM51: 6 | EN51: 6 | EO51: 6 | EP51: =SUM(AS50,AW50) -> 6 | EQ51: 0 | ER51: 0 | ES51: 0 | ET51: 0 | EU51: 0 | EV51: 0 | EW51: 0 | EX51: 0 | EY51: 0
A52: 3 | B52: 2025-10-01 | C52: 90 | D52: sb | E52: 6 | F52: R23 | K52: 22 | L52: mp | M52: 6 | S52: 90 | T52: rg | U52: 6 | V52: R13 | AA52: 18 | AB52: mc | AC52: 6 | AI52: 12 | AJ52: jr | AK52: 6 | AQ52: 4 | AR52: yc | AS52: 6 | AT52: EX | DU52: 1 | DV52: 1 | DW52: 0 | DX52: 1 | DY52: 1 | DZ52: 1 | EA52: 1 | EB52: 0 | EC52: 0 | ED52: 0 | EE52: 0 | EF52: 0 | EG52: 0 | EH52: 0 | EI52: 0 | EK52: 6 | EL52: 6 | EM52: 6 | EN52: 6 | EO52: =SUM(AK52,AO52) -> 6 | EP52: =SUM(AS51,AW51) -> 6 | EQ52: 0 | ER52: 0 | ES52: 0 | ET52: 0 | EU52: 0 | EV52: 0 | EW52: 0 | EX52: 0 | EY52: 0
A53: 4 | B53: 2025-10-02 | C53: 33 | D53: sb | E53: 3 | F53: X23 | K53: 22 | L53: mp | M53: 6 | S53: 14 | T53: cg | U53: 6 | AA53: 18 | AB53: mc | AC53: 6 | AI53: 12 | AJ53: jr | AK53: 6 | AL53: EX | AM53: 33 | AN53: rg | AO53: 3 | AP53: X10 | AQ53: 4 | AR53: yc | AS53: 6 | AT53: EX | BO53: 2 | BP53: np | BQ53: 6 | DU53: 1 | DV53: 1 | DW53: 1 | DX53: 1 | DY53: 1 | DZ53: 1 | EA53: 1 | EB53: 1 | EC53: 0 | ED53: 0 | EE53: 0 | EF53: 0 | EG53: 0 | EH53: 0 | EI53: 0 | EK53: 3 | EL53: 6 | EM53: 6 | EN53: 6 | EO53: 9 | EP53: =SUM(AS52,AW52) -> 6 | EQ53: 0 | ER53: 0 | ES53: 6 | ET53: 0 | EU53: 0 | EV53: 0 | EW53: 0 | EX53: 0 | EY53: 0
A54: 5 | B54: 2025-10-03 | K54: 90 | L54: rg | M54: 6 | N54: R14 | S54: 14 | T54: cg | U54: 6 | AA54: 18 | AB54: mc | AC54: 6 | AI54: 12 | AJ54: jr | AK54: 6 | AL54: EX | AQ54: Congé | BO54: 1 | BP54: np | BQ54: 6 | DU54: 0 | DV54: 0 | DW54: 1 | DX54: 1 | DY54: 0 | DZ54: 1 | EA54: 1 | EB54: 1 | EC54: 0 | ED54: 0 | EE54: 0 | EF54: 0 | EG54: 0 | EH54: 0 | EI54: 0 | EK54: 0 | EL54: =SUM(#REF!,$Q54) ->  | EM54: 6 | EN54: 6 | EO54: 6 | EP54: =SUM(AS53,AW53) -> 6 | EQ54: 0 | ER54: 0 | ES54: 6 | ET54: 0 | EU54: 0 | EV54: 0 | EW54: 0 | EX54: 0 | EY54: 0
A55: 6 | B55: 2025-10-04 | C55: WEEK-END | K55: WEEK-END | S55: WEEK-END | AA55: WEEK-END | AI55: WEEK-END | AQ55: WEEK-END | AY55: WEEK-END | BG55: WEEK-END | BO55: WEEK-END | DU55: 0 | DV55: 0 | DW55: 0 | DX55: 0 | DY55: 0 | DZ55: 0 | EA55: 0 | EB55: 0 | EC55: 0 | ED55: 0 | EE55: 0 | EF55: 0 | EG55: 0 | EH55: 0 | EI55: 0 | EK55: 0 | EL55: 0 | EM55: 0 | EN55: 0 | EO55: 0 | EP55: 0 | EQ55: 0 | ER55: 0 | ES55: 0 | ET55: 0 | EU55: 0 | EV55: 0 | EW55: 0 | EX55: 0 | EY55: 0
A56: 7 | B56: 2025-10-05 | C56: WEEK-END | K56: WEEK-END | S56: WEEK-END | AA56: WEEK-END | AI56: WEEK-END | AQ56: WEEK-END | AY56: WEEK-END | BG56: WEEK-END | BO56: WEEK-END | DU56: 0 | DV56: 0 | DW56: 0 | DX56: 0 | DY56: 0 | DZ56: 0 | EA56: 0 | EB56: 0 | EC56: 0 | ED56: 0 | EE56: 0 | EF56: 0 | EG56: 0 | EH56: 0 | EI56: 0 | EK56: 0 | EL56: 0 | EM56: 0 | EN56: 0 | EO56: 0 | EP56: 0 | EQ56: 0 | ER56: 0 | ES56: 0 | ET56: 0 | EU56: 0 | EV56: 0 | EW56: 0 | EX56: 0 | EY56: 0
A57: 1 | B57: 2025-10-06 | K57: 22 | L57: mp | M57: 6 | N57: EX | S57: 14 | T57: cg | U57: 6 | AA57: 18 | AB57: mc | AC57: 6 | AI57: 11 | AJ57: rg | AK57: 6 | AQ57: 6 | AR57: jr | AS57: 6 | DU57: 0 | DV57: 1 | DW57: 1 | DX57: 1 | DY57: 0 | DZ57: 1 | EA57: 1 | EB57: 0 | EC57: 0 | ED57: 0 | EE57: 0 | EF57: 0 | EG57: 0 | EH57: 0 | EI57: 0 | EK57: 0 | EL57: 6 | EM57: 6 | EN57: 6 | EO57: 6 | EP57: =SUM(AS54,AW54) -> 0 | EQ57: 0 | ER57: 0 | ES57: 0 | ET57: 0 | EU57: 0 | EV57: 0 | EW57: 0 | EX57: 0 | EY57: 0
A58: 2 | B58: 2025-10-07 | K58: 22 | L58: mp | M58: 6 | N58: EX | O58: 33 | P58: yc | Q58: 3 | R58: X14 | S58: 14 | T58: cg | U58: 6 | V58: EX | W58: 33 | X58: yc | Y58: 3 | Z58: X13 | AA58: 18 | AB58: mc | AC58: 6 | AI58: 11 | AJ58: rg | AK58: 6 | AQ58: 6 | AR58: jr | AS58: 6 | DU58: 0 | DV58: 1 | DW58: 1 | DX58: 1 | DY58: 2 | DZ58: 1 | EA58: 1 | EB58: 0 | EC58: 0 | ED58: 0 | EE58: 0 | EF58: 0 | EG58: 0 | EH58: 0 | EI58: 0 | EK58: 0 | EL58: 9 | EM58: =SUM($U58,#REF!) ->  | EN58: 6 | EO58: 6 | EP58: =SUM(AS57,AW57) -> 6 | EQ58: 0 | ER58: 0 | ES58: 0 | ET58: 0 | EU58: 0 | EV58: 0 | EW58: 0 | EX58: 0 | EY58: 0
A59: 3 | B59: 2025-10-08 | K59: 19 | L59: sb | M59: 6 | S59: 14 | T59: cg | U59: 6 | V59: EX | AA59: 18 | AB59: mc | AC59: 6 | AI59: 11 | AJ59: rg | AK59: 6 | AQ59: 6 | AR59: jr | AS59: 6 | AT59: EX | DU59: 1 | DV59: 0 | DW59: 1 | DX59: 1 | DY59: 0 | DZ59: 1 | EA59: 1 | EB59: 0 | EC59: 0 | ED59: 0 | EE59: 0 | EF59: 0 | EG59: 0 | EH59: 0 | EI59: 0 | EK59: 0 | EL59: 6 | EM59: =SUM($U59,$Y58) -> 9 | EN59: 6 | EO59: 6 | EP59: =SUM(#REF!,AW58) ->  | EQ59: 0 | ER59: 0 | ES59: 0 | ET59: 0 | EU59: 0 | EV59: 0 | EW59: 0 | EX59: 0 | EY59: 0
A60: 4 | B60: 2025-10-09 | K60: 19 | L60: sb | M60: 6 | S60: 22 | T60: yc | U60: 6 | AA60: 18 | AB60: mc | AC60: 6 | AI60: 11 | AJ60: rg | AK60: 6 | AQ60: 7 | AR60: jr | AS60: 6 | BO60: 2 | BP60: mp | BQ60: 6 | DU60: 1 | DV60: 1 | DW60: 0 | DX60: 1 | DY60: 1 | DZ60: 1 | EA60: 1 | EB60: 0 | EC60: 0 | ED60: 0 | EE60: 0 | EF60: 0 | EG60: 0 | EH60: 0 | EI60: 0 | EK60: 0 | EL60: 6 | EM60: 6 | EN60: 6 | EO60: 6 | EP60: =SUM(#REF!,AW59) ->  | EQ60: 0 | ER60: 0 | ES60: 6 | ET60: 0 | EU60: 0 | EV60: 0 | EW60: 0 | EX60: 0 | EY60: 0
A61: 5 | B61: 2025-10-10 | K61: 19 | L61: sb | M61: 6 | S61: 22 | T61: yc | U61: 6 | AA61: 90 | AB61: mp | AC61: 6 | AD61: R11 | AI61: 11 | AJ61: cg | AK61: 6 | AQ61: Congé | DU61: 1 | DV61: 1 | DW61: 1 | DX61: 0 | DY61: 1 | DZ61: 0 | EA61: 0 | EB61: 0 | EC61: 0 | ED61: 0 | EE61: 0 | EF61: 0 | EG61: 0 | EH61: 0 | EI61: 0 | EK61: 0 | EL61: 6 | EM61: 6 | EN61: 6 | EO61: 6 | EP61: =SUM(#REF!,AW60) ->  | EQ61: 0 | ER61: 0 | ES61: 0 | ET61: 0 | EU61: 0 | EV61: 0 | EW61: 0 | EX61: 0 | EY61: 0
A62: 6 | B62: 2025-10-11 | C62: WEEK-END | K62: WEEK-END | S62: WEEK-END | AA62: WEEK-END | AI62: WEEK-END | AQ62: WEEK-END | AY62: WEEK-END | BG62: WEEK-END | BO62: WEEK-END | DU62: 0 | DV62: 0 | DW62: 0 | DX62: 0 | DY62: 0 | DZ62: 0 | EA62: 0 | EB62: 0 | EC62: 0 | ED62: 0 | EE62: 0 | EF62: 0 | EG62: 0 | EH62: 0 | EI62: 0 | EK62: 0 | EL62: 0 | EM62: 0 | EN62: 0 | EO62: 0 | EP62: 0 | EQ62: 0 | ER62: 0 | ES62: 0 | ET62: 0 | EU62: 0 | EV62: 0 | EW62: 0 | EX62: 0 | EY62: 0
A63: 7 | B63: 2025-10-12 | C63: WEEK-END | K63: WEEK-END | S63: WEEK-END | AA63: WEEK-END | AI63: WEEK-END | AQ63: WEEK-END | AY63: WEEK-END | BG63: WEEK-END | BO63: WEEK-END | DU63: 0 | DV63: 0 | DW63: 0 | DX63: 0 | DY63: 0 | DZ63: 0 | EA63: 0 | EB63: 0 | EC63: 0 | ED63: 0 | EE63: 0 | EF63: 0 | EG63: 0 | EH63: 0 | EI63: 0 | EK63: 0 | EL63: 0 | EM63: 0 | EN63: 0 | EO63: 0 | EP63: 0 | EQ63: 0 | ER63: 0 | ES63: 0 | ET63: 0 | EU63: 0 | EV63: 0 | EW63: 0 | EX63: 0 | EY63: 0
A64: 1 | B64: 2025-10-13 | C64: Congé | K64: Congé | S64: Congé | AA64: Congé | AI64: Congé | AQ64: Congé | AY64: Congé | BG64: Congé | BO64: Congé | DU64: 0 | DV64: 0 | DW64: 0 | DX64: 0 | DY64: 0 | DZ64: 0 | EA64: 0 | EB64: 0 | EC64: 0 | ED64: 0 | EE64: 0 | EF64: 0 | EG64: 0 | EH64: 0 | EI64: 0 | EK64: 0 | EL64: 0 | EM64: 0 | EN64: 0 | EO64: 0 | EP64: 0 | EQ64: 0 | ER64: 0 | ES64: 0 | ET64: 0 | EU64: 0 | EV64: 0 | EW64: 0 | EX64: 0 | EY64: 0
A65: 2 | B65: 2025-10-14 | K65: 19 | L65: sb | M65: 6 | S65: 22 | T65: yc | U65: 6 | AA65: 18 | AB65: mc | AC65: 6 | AI65: 11 | AJ65: cg | AK65: 6 | AQ65: 7 | AR65: jr | AS65: 6 | DU65: 1 | DV65: 0 | DW65: 1 | DX65: 1 | DY65: 1 | DZ65: 1 | EA65: 0 | EB65: 0 | EC65: 0 | ED65: 0 | EE65: 0 | EF65: 0 | EG65: 0 | EH65: 0 | EI65: 0 | EK65: 0 | EL65: 6 | EM65: 6 | EN65: 6 | EO65: 6 | EP65: =SUM(#REF!,AW65) ->  | EQ65: 0 | ER65: 0 | ES65: 0 | ET65: 0 | EU65: 0 | EV65: 0 | EW65: 0 | EX65: 0 | EY65: 0
A66: 3 | B66: 2025-10-15 | K66: 19 | L66: sb | M66: 6 | S66: 22 | T66: yc | U66: 6 | AA66: 18 | AB66: mc | AC66: 6 | AI66: 11 | AJ66: cg | AK66: 6 | AQ66: 7 | AR66: jr | AS66: 6 | DU66: 1 | DV66: 0 | DW66: 1 | DX66: 1 | DY66: 1 | DZ66: 1 | EA66: 0 | EB66: 0 | EC66: 0 | ED66: 0 | EE66: 0 | EF66: 0 | EG66: 0 | EH66: 0 | EI66: 0 | EK66: 0 | EL66: 6 | EM66: 6 | EN66: 6 | EO66: 6 | EP66: =SUM(#REF!,AW66) ->  | EQ66: 0 | ER66: 0 | ES66: 0 | ET66: 0 | EU66: 0 | EV66: 0 | EW66: 0 | EX66: 0 | EY66: 0
A67: 4 | B67: 2025-10-16 | K67: 19 | L67: sb | M67: 6 | S67: 22 | T67: yc | U67: 6 | AA67: 18 | AB67: mc | AC67: 6 | AD67: EX | AE67: 33 | AF67: mp | AG67: 3 | AH67: X11 | AI67: 11 | AJ67: cg | AK67: 6 | AQ67: 7 | AR67: jr | AS67: 6 | BO67: 2 | BP67: rg | BQ67: 6 | DU67: 1 | DV67: 1 | DW67: 1 | DX67: 1 | DY67: 1 | DZ67: 1 | EA67: 1 | EB67: 0 | EC67: 0 | ED67: 0 | EE67: 0 | EF67: 0 | EG67: 0 | EH67: 0 | EI67: 0 | EK67: 0 | EL67: 6 | EM67: 6 | EN67: 9 | EO67: 6 | EP67: =SUM(#REF!,AW67) ->  | EQ67: 0 | ER67: 0 | ES67: 6 | ET67: 0 | EU67: 0 | EV67: 0 | EW67: 0 | EX67: 0 | EY67: 0
A68: 5 | B68: 2025-10-17 | K68: 19 | L68: sb | M68: 6 | S68: 22 | T68: yc | U68: 6 | AA68: 18 | AB68: mc | AC68: 6 | AD68: EX | AI68: 90 | AJ68: cg | AK68: 6 | AL68: R12 | AQ68: 90 | AR68: jr | AS68: 6 | AT68: R4 | BO68: 2 | BP68: rg | BQ68: 6 | DU68: 1 | DV68: 0 | DW68: 1 | DX68: 1 | DY68: 1 | DZ68: 1 | EA68: 1 | EB68: 0 | EC68: 0 | ED68: 0 | EE68: 0 | EF68: 0 | EG68: 0 | EH68: 0 | EI68: 0 | EK68: 0 | EL68: 6 | EM68: 6 | EN68: 6 | EO68: 6 | EP68: =SUM(#REF!,AW68) ->  | EQ68: 0 | ER68: 0 | ES68: 6 | ET68: 0 | EU68: 0 | EV68: 0 | EW68: 0 | EX68: 0 | EY68: 0
A69: 6 | B69: 2025-10-18 | C69: WEEK-END | K69: WEEK-END | S69: WEEK-END | AA69: WEEK-END | AI69: WEEK-END | AQ69: WEEK-END | AY69: WEEK-END | BG69: WEEK-END | BO69: WEEK-END | DU69: 0 | DV69: 0 | DW69: 0 | DX69: 0 | DY69: 0 | DZ69: 0 | EA69: 0 | EB69: 0 | EC69: 0 | ED69: 0 | EE69: 0 | EF69: 0 | EG69: 0 | EH69: 0 | EI69: 0 | EK69: 0 | EL69: 0 | EM69: 0 | EN69: 0 | EO69: 0 | EP69: 0 | EQ69: 0 | ER69: 0 | ES69: 0 | ET69: 0 | EU69: 0 | EV69: 0 | EW69: 0 | EX69: 0 | EY69: 0
A70: 7 | B70: 2025-10-19 | C70: WEEK-END | K70: WEEK-END | S70: WEEK-END | AA70: WEEK-END | AI70: WEEK-END | AQ70: WEEK-END | AY70: WEEK-END | BG70: WEEK-END | BO70: WEEK-END | DU70: 0 | DV70: 0 | DW70: 0 | DX70: 0 | DY70: 0 | DZ70: 0 | EA70: 0 | EB70: 0 | EC70: 0 | ED70: 0 | EE70: 0 | EF70: 0 | EG70: 0 | EH70: 0 | EI70: 0 | EK70: 0 | EL70: 0 | EM70: 0 | EN70: 0 | EO70: 0 | EP70: 0 | EQ70: 0 | ER70: 0 | ES70: 0 | ET70: 0 | EU70: 0 | EV70: 0 | EW70: 0 | EX70: 0 | EY70: 0
A71: 1 | B71: 2025-10-20 | K71: 19 | L71: sb | M71: 6 | S71: 22 | T71: yc | U71: 6 | AA71: 17 | AB71: rg | AC71: 6 | AI71: 11 | AJ71: cg | AK71: 6 | AQ71: 7 | AR71: jr | AS71: 6 | DU71: 1 | DV71: 0 | DW71: 1 | DX71: 1 | DY71: 1 | DZ71: 0 | EA71: 1 | EB71: 0 | EC71: 0 | ED71: 0 | EE71: 0 | EF71: 0 | EG71: 0 | EH71: 0 | EI71: 0 | EK71: 0 | EL71: 6 | EM71: 6 | EN71: 6 | EO71: 6 | EP71: =SUM(#REF!,#REF!) ->  | EQ71: 0 | ER71: 0 | ES71: 0 | ET71: 0 | EU71: 0 | EV71: 0 | EW71: 0 | EX71: 0 | EY71: 0
A72: 2 | B72: 2025-10-21 | K72: 19 | L72: sb | M72: 6 | S72: 22 | T72: yc | U72: 6 | AA72: 17 | AB72: rg | AC72: 6 | AI72: 11 | AJ72: cg | AK72: 6 | AQ72: 7 | AR72: jr | AS72: 6 | DU72: =COUNTIF($C72:$DR72,$A$459) -> 1 | DV72: =COUNTIF($C72:$DR72,$A$460) -> 0 | DW72: =COUNTIF($C72:$DR72,$A$461) -> 1 | DX72: =COUNTIF($C72:$DR72,$A$462) -> 1 | DY72: =COUNTIF($C72:$DR72,$A$463) -> 1 | DZ72: =COUNTIF($C72:$DR72,$A$464) -> 0 | EA72: =COUNTIF($C72:$DR72,$A$465) -> 1 | EB72: =COUNTIF($C72:$DR72,$A$466) -> 0 | EC72: =COUNTIF($C72:$DR72,$A$467) -> 0 | ED72: =COUNTIF($C72:$DR72,$A$468) -> 0 | EE72: =COUNTIF($C72:$DR72,$A$469) -> 0 | EF72: =COUNTIF($C72:$DR72,$A$470) -> 0 | EG72: =COUNTIF($C72:$DR72,$A$471) -> 0 | EH72: =COUNTIF($C72:$DR72,$A$472) -> 0 | EI72: =COUNTIF($C72:$DR72,$A$473) -> 0 | EK72: 0 | EL72: 6 | EM72: 6 | EN72: 6 | EO72: 6 | EP72: =SUM(#REF!,#REF!) ->  | EQ72: 0 | ER72: 0 | ES72: 0 | ET72: 0 | EU72: 0 | EV72: 0 | EW72: 0 | EX72: 0 | EY72: 0
A73: 3 | B73: 2025-10-22 | C73: Pédagogique | K73: Pédagogique | S73: Pédagogique | AA73: Pédagogique | AI73: Pédagogique | AQ73: Pédagogique | AY73: Pédagogique | BG73: Pédagogique | BO73: Pédagogique | DU73: 0 | DV73: 0 | DW73: 0 | DX73: 0 | DY73: 0 | DZ73: 0 | EA73: 0 | EB73: 0 | EC73: 0 | ED73: 0 | EE73: 0 | EF73: 0 | EG73: 0 | EH73: 0 | EI73: 0 | EK73: =SUM($E73,$I73) -> 0 | EL73: =SUM($M73,$Q73) -> 0 | EM73: =SUM($U73,$Y73) -> 0 | EN73: 0 | EO73: 0 | EP73: =SUM(#REF!,#REF!) ->  | EQ73: 0 | ER73: 0 | ES73: 0 | ET73: 0 | EU73: 0 | EV73: 0 | EW73: 0 | EX73: 0 | EY73: 0
A74: =WEEKDAY(B74,2) -> 4 | B74: 2025-10-23 | K74: 19 | L74: sb | M74: 6 | S74: 22 | T74: yc | U74: 6 | AA74: 17 | AB74: rg | AC74: 6 | AI74: 11 | AJ74: cg | AK74: 6 | AL74: EX | AQ74: 7 | AR74: jr | AS74: 6 | BO74: 2 | BP74: mc | BQ74: 6 | DU74: 1 | DV74: 0 | DW74: 1 | DX74: 1 | DY74: 1 | DZ74: 1 | EA74: 1 | EB74: 0 | EC74: 0 | ED74: 0 | EE74: 0 | EF74: 0 | EG74: 0 | EH74: 0 | EI74: 0 | EK74: 0 | EL74: 6 | EM74: 6 | EN74: =SUM(AC74,AG74) -> 6 | EO74: =SUM(AK74,AO74) -> 6 | EP74: =SUM(#REF!,#REF!) ->  | EQ74: =SUM(BA74,BE74) -> 0 | ER74: =SUM(BI74,BM74) -> 0 | ES74: =SUM(BQ74,BU74) -> 6 | ET74: =SUM(BY74,CC74) -> 0 | EU74: =SUM(CG74,CK74) -> 0 | EV74: =SUM(CO74,CS74) -> 0 | EW74: =SUM(CW74,DA74) -> 0 | EX74: =SUM(DE74,DI74) -> 0 | EY74: =SUM(DM74,DQ74) -> 0
A75: 5 | B75: =B74+1 -> 2025-10-24 | K75: 19 | L75: sb | M75: 6 | S75: 22 | T75: yc | U75: 6 | AA75: 17 | AB75: rg | AC75: 6 | AI75: 11 | AJ75: cg | AK75: 6 | AL75: EX | AM75: 33 | AN75: mp | AO75: 3 | AP75: X12 | AQ75: 7 | AR75: jr | AS75: 6 | AT75: EX | AU75: 33 | AV75: mp | AW75: 3 | AX75: X4 | BO75: 2 | BP75: mc | BQ75: 6 | DU75: 1 | DV75: 2 | DW75: 1 | DX75: 1 | DY75: 1 | DZ75: 1 | EA75: 1 | EB75: 0 | EC75: 0 | ED75: 0 | EE75: 0 | EF75: 0 | EG75: 0 | EH75: 0 | EI75: 0 | EK75: 0 | EL75: 6 | EM75: 6 | EN75: =SUM(AC75,AG75) -> 6 | EO75: 9 | EP75: =SUM(#REF!,#REF!) ->  | EQ75: 0 | ER75: 0 | ES75: 6 | ET75: 0 | EU75: 0 | EV75: 0 | EW75: 0 | EX75: 0 | EY75: 0
A76: 6 | B76: 2025-10-25 | C76: WEEK-END | K76: WEEK-END | S76: WEEK-END | AA76: WEEK-END | AI76: WEEK-END | AQ76: WEEK-END | AY76: WEEK-END | BG76: WEEK-END | BO76: WEEK-END | DU76: 0 | DV76: 0 | DW76: 0 | DX76: 0 | DY76: 0 | DZ76: 0 | EA76: 0 | EB76: 0 | EC76: 0 | ED76: 0 | EE76: 0 | EF76: 0 | EG76: 0 | EH76: 0 | EI76: 0 | EK76: 0 | EL76: 0 | EM76: 0 | EN76: =SUM(AC76,AG76) -> 0 | EO76: 0 | EP76: =SUM(AS76,AW76) -> 0 | EQ76: 0 | ER76: 0 | ES76: 0 | ET76: 0 | EU76: 0 | EV76: 0 | EW76: 0 | EX76: 0 | EY76: 0
A77: 7 | B77: 2025-10-26 | C77: WEEK-END | K77: WEEK-END | S77: WEEK-END | AA77: WEEK-END | AI77: WEEK-END | AQ77: WEEK-END | AY77: WEEK-END | BG77: WEEK-END | BO77: WEEK-END | DU77: 0 | DV77: 0 | DW77: 0 | DX77: 0 | DY77: 0 | DZ77: 0 | EA77: 0 | EB77: 0 | EC77: 0 | ED77: 0 | EE77: 0 | EF77: 0 | EG77: 0 | EH77: 0 | EI77: 0 | EK77: 0 | EL77: 0 | EM77: 0 | EN77: =SUM(AC77,AG77) -> 0 | EO77: 0 | EP77: 0 | EQ77: 0 | ER77: 0 | ES77: 0 | ET77: 0 | EU77: 0 | EV77: 0 | EW77: 0 | EX77: 0 | EY77: 0
A78: 1 | B78: 2025-10-27 | K78: 19 | L78: sb | M78: 6 | S78: 22 | T78: yc | U78: 6 | AA78: 90 | AB78: mc | AC78: 6 | AD78: R18 | AI78: 16 | AJ78: mp | AK78: 6 | AQ78: 7 | AR78: jr | AS78: 6 | AT78: EX | DU78: 1 | DV78: 1 | DW78: 0 | DX78: 1 | DY78: 1 | DZ78: 1 | EA78: 0 | EB78: 0 | EC78: 0 | ED78: 0 | EE78: 0 | EF78: 0 | EG78: 0 | EH78: 0 | EI78: 0 | EK78: 0 | EL78: 6 | EM78: 6 | EN78: =SUM(#REF!,AC78) ->  | EO78: 6 | EP78: =SUM(AS58,#REF!) ->  | EQ78: 0 | ER78: 0 | ES78: 0 | ET78: 0 | EU78: 0 | EV78: 0 | EW78: 0 | EX78: 0 | EY78: 0
A79: 2 | B79: 2025-10-28 | K79: 90 | L79: rg | M79: 6 | N79: R22 | S79: 22 | T79: yc | U79: 6 | AA79: 17 | AB79: cg | AC79: 6 | AI79: 16 | AJ79: mp | AK79: 6 | AQ79: 9 | AR79: mc | AS79: 6 | DU79: 0 | DV79: 1 | DW79: 1 | DX79: 0 | DY79: 1 | DZ79: 1 | EA79: 1 | EB79: 0 | EC79: 0 | ED79: 0 | EE79: 0 | EF79: 0 | EG79: 0 | EH79: 0 | EI79: 0 | EK79: 0 | EL79: 6 | EM79: 6 | EN79: =SUM(#REF!,AC79) ->  | EO79: 6 | EP79: =SUM(AS59,AW72) -> 6 | EQ79: 0 | ER79: 0 | ES79: 0 | ET79: 0 | EU79: 0 | EV79: 0 | EW79: 0 | EX79: 0 | EY79: 0
A80: 3 | B80: 2025-10-29 | K80: 19 | L80: sb | M80: 6 | S80: 90 | T80: rg | U80: 6 | V80: R14 | AA80: 17 | AB80: cg | AC80: 6 | AI80: 16 | AJ80: jr | AK80: 6 | AQ80: 9 | AR80: mc | AS80: 6 | DU80: 1 | DV80: 0 | DW80: 1 | DX80: 1 | DY80: 0 | DZ80: 1 | EA80: 1 | EB80: 0 | EC80: 0 | ED80: 0 | EE80: 0 | EF80: 0 | EG80: 0 | EH80: 0 | EI80: 0 | EK80: 0 | EL80: 6 | EM80: 6 | EN80: =SUM(#REF!,AC80) ->  | EO80: 6 | EP80: =SUM(AS61,#REF!) ->  | EQ80: 0 | ER80: 0 | ES80: 0 | ET80: 0 | EU80: 0 | EV80: 0 | EW80: 0 | EX80: 0 | EY80: 0
A81: 4 | B81: 2025-10-30 | K81: 19 | L81: sb | M81: 6 | S81: 22 | T81: yc | U81: 6 | AA81: 17 | AB81: cg | AC81: 6 | AI81: 16 | AJ81: jr | AK81: 6 | AQ81: 9 | AR81: mc | AS81: 6 | BO81: 4 | BP81: rg | BQ81: 6 | DU81: 1 | DV81: 0 | DW81: 1 | DX81: 1 | DY81: 1 | DZ81: 1 | EA81: 1 | EB81: 0 | EC81: 0 | ED81: 0 | EE81: 0 | EF81: 0 | EG81: 0 | EH81: 0 | EI81: 0 | EK81: 0 | EL81: 6 | EM81: 6 | EN81: =SUM(#REF!,AC81) ->  | EO81: 6 | EP81: =SUM(#REF!,#REF!) ->  | EQ81: 0 | ER81: 0 | ES81: 6 | ET81: 0 | EU81: 0 | EV81: 0 | EW81: 0 | EX81: 0 | EY81: 0
A82: 5 | B82: 2025-10-31 | K82: 19 | L82: sb | M82: 6 | S82: 22 | T82: yc | U82: 6 | AA82: 17 | AB82: cg | AC82: 6 | AD82: EX | AE82: 33 | AF82: mc | AG82: 3 | AH82: X18 | AI82: 16 | AJ82: jr | AK82: 6 | AQ82: Congé | BO82: 4 | BP82: rg | BQ82: 6 | DU82: 1 | DV82: 0 | DW82: 1 | DX82: 1 | DY82: 1 | DZ82: 1 | EA82: 1 | EB82: 0 | EC82: 0 | ED82: 0 | EE82: 0 | EF82: 0 | EG82: 0 | EH82: 0 | EI82: 0 | EK82: 0 | EL82: =SUM(#REF!,$M82) ->  | EM82: 6 | EN82: =SUM(#REF!,AC82) ->  | EO82: 6 | EP82: =SUM(AS65,#REF!) ->  | EQ82: 0 | ER82: 0 | ES82: 6 | ET82: 0 | EU82: 0 | EV82: 0 | EW82: 0 | EX82: 0 | EY82: 0
A83: 6 | B83: 2025-11-01 | C83: WEEK-END | K83: WEEK-END | S83: WEEK-END | AA83: WEEK-END | AI83: WEEK-END | AQ83: WEEK-END | AY83: WEEK-END | BG83: WEEK-END | BO83: WEEK-END | DU83: 0 | DV83: 0 | DW83: 0 | DX83: 0 | DY83: 0 | DZ83: 0 | EA83: 0 | EB83: 0 | EC83: 0 | ED83: 0 | EE83: 0 | EF83: 0 | EG83: 0 | EH83: 0 | EI83: 0 | EK83: 0 | EL83: =SUM($M83,$Q83) -> 0 | EM83: 0 | EN83: =SUM(AC83,AG83) -> 0 | EO83: 0 | EP83: 0 | EQ83: 0 | ER83: 0 | ES83: 0 | ET83: 0 | EU83: 0 | EV83: 0 | EW83: 0 | EX83: 0 | EY83: 0
A84: 7 | B84: 2025-11-02 | C84: WEEK-END | K84: WEEK-END | S84: WEEK-END | AA84: WEEK-END | AI84: WEEK-END | AQ84: WEEK-END | AY84: WEEK-END | BG84: WEEK-END | BO84: WEEK-END | DU84: 0 | DV84: 0 | DW84: 0 | DX84: 0 | DY84: 0 | DZ84: 0 | EA84: 0 | EB84: 0 | EC84: 0 | ED84: 0 | EE84: 0 | EF84: 0 | EG84: 0 | EH84: 0 | EI84: 0 | EK84: 0 | EL84: =SUM($M84,$Q84) -> 0 | EM84: 0 | EN84: =SUM(AC84,AG84) -> 0 | EO84: 0 | EP84: 0 | EQ84: 0 | ER84: 0 | ES84: 0 | ET84: 0 | EU84: 0 | EV84: 0 | EW84: 0 | EX84: 0 | EY84: 0
A85: 1 | B85: 2025-11-03 | K85: 19 | L85: sb | M85: 6 | N85: EX | O85: 33 | P85: rg | Q85: 3 | R85: X22 | S85: 22 | T85: yc | U85: 6 | AA85: 17 | AB85: cg | AC85: 6 | AD85: EX | AI85: 16 | AJ85: jr | AK85: 6 | AQ85: 9 | AR85: mc | AS85: 6 | DU85: 1 | DV85: 0 | DW85: 1 | DX85: 1 | DY85: 1 | DZ85: 1 | EA85: 1 | EB85: 0 | EC85: 0 | ED85: 0 | EE85: 0 | EF85: 0 | EG85: 0 | EH85: 0 | EI85: 0 | EK85: 0 | EL85: =SUM(#REF!,$M85) ->  | EM85: 6 | EN85: =SUM(#REF!,AC85) ->  | EO85: 6 | EP85: =SUM(AS67,#REF!) ->  | EQ85: 0 | ER85: 0 | ES85: 0 | ET85: 0 | EU85: 0 | EV85: 0 | EW85: 0 | EX85: 0 | EY85: 0
A86: 2 | B86: 2025-11-04 | K86: 19 | L86: sb | M86: 6 | N86: EX | S86: 22 | T86: yc | U86: 6 | AA86: 15 | AB86: rg | AC86: 6 | AI86: 90 | AJ86: cg | AK86: 6 | AL86: R11 | AQ86: 9 | AR86: mc | AS86: 6 | DU86: 1 | DV86: 0 | DW86: 1 | DX86: 0 | DY86: 1 | DZ86: 1 | EA86: 1 | EB86: 0 | EC86: 0 | ED86: 0 | EE86: 0 | EF86: 0 | EG86: 0 | EH86: 0 | EI86: 0 | EK86: 0 | EL86: =SUM(#REF!,$M86) ->  | EM86: =SUM($U92,$Y92) -> 6 | EN86: =SUM(#REF!,AC86) ->  | EO86: 6 | EP86: =SUM(AS68,#REF!) ->  | EQ86: 0 | ER86: 0 | ES86: 0 | ET86: 0 | EU86: 0 | EV86: 0 | EW86: 0 | EX86: 0 | EY86: 0
A87: 3 | B87: 2025-11-05 | K87: 20 | L87: mp | M87: 6 | S87: 22 | T87: yc | U87: 6 | V87: EX | W87: 33 | X87: cg | Y87: é | Z87: X14 | AA87: 15 | AB87: rg | AC87: 6 | AI87: 16 | AJ87: jr | AK87: 6 | AQ87: 9 | AR87: mc | AS87: 6 | DU87: 0 | DV87: 1 | DW87: 1 | DX87: 1 | DY87: 1 | DZ87: 1 | EA87: 1 | EB87: 0 | EC87: 0 | ED87: 0 | EE87: 0 | EF87: 0 | EG87: 0 | EH87: 0 | EI87: 0 | EK87: 0 | EL87: =SUM(#REF!,$M87) ->  | EM87: =SUM($U93,$Y93) -> 6 | EN87: =SUM(#REF!,AC87) ->  | EO87: 6 | EP87: =SUM(AS66,#REF!) ->  | EQ87: 0 | ER87: 0 | ES87: 0 | ET87: 0 | EU87: 0 | EV87: 0 | EW87: 0 | EX87: 0 | EY87: 0
A88: 4 | B88: 2025-11-06 | K88: 20 | L88: mp | M88: 6 | S88: 22 | T88: yc | U88: 6 | V88: EX | AA88: 15 | AB88: rg | AC88: 6 | AI88: 16 | AJ88: jr | AK88: 6 | AL88: EX | AQ88: 9 | AR88: mc | AS88: 6 | BO88: 4 | BP88: np | BQ88: 6 | DU88: =COUNTIF($C88:$DR88,$A$459) -> 0 | DV88: =COUNTIF($C88:$DR88,$A$460) -> 1 | DW88: =COUNTIF($C88:$DR88,$A$461) -> 0 | DX88: =COUNTIF($C88:$DR88,$A$462) -> 1 | DY88: =COUNTIF($C88:$DR88,$A$463) -> 1 | DZ88: =COUNTIF($C88:$DR88,$A$464) -> 1 | EA88: =COUNTIF($C88:$DR88,$A$465) -> 1 | EB88: =COUNTIF($C88:$DR88,$A$466) -> 1 | EC88: =COUNTIF($C88:$DR88,$A$467) -> 0 | ED88: =COUNTIF($C88:$DR88,$A$468) -> 0 | EE88: =COUNTIF($C88:$DR88,$A$469) -> 0 | EF88: =COUNTIF($C88:$DR88,$A$470) -> 0 | EG88: =COUNTIF($C88:$DR88,$A$471) -> 0 | EH88: =COUNTIF($C88:$DR88,$A$472) -> 0 | EI88: =COUNTIF($C88:$DR88,$A$473) -> 0 | EK88: 0 | EL88: =SUM(#REF!,$M88) ->  | EM88: 6 | EN88: =SUM(#REF!,AC88) ->  | EO88: 6 | EP88: 6 | EQ88: 0 | ER88: 0 | ES88: 6 | ET88: 0 | EU88: 0 | EV88: 0 | EW88: 0 | EX88: 0 | EY88: 0
A89: 5 | B89: =B88+1 -> 2025-11-07 | C89: Pédagogique | K89: Pédagogique | S89: Pédagogique | AA89: Pédagogique | AI89: Pédagogique | AQ89: Pédagogique | AY89: Pédagogique | BG89: Pédagogique | BO89: 4 | BP89: np | BQ89: 6 | DU89: =COUNTIF($C89:$DR89,$A$459) -> 0 | DV89: =COUNTIF($C89:$DR89,$A$460) -> 0 | DW89: =COUNTIF($C89:$DR89,$A$461) -> 0 | DX89: =COUNTIF($C89:$DR89,$A$462) -> 0 | DY89: =COUNTIF($C89:$DR89,$A$463) -> 0 | DZ89: =COUNTIF($C89:$DR89,$A$464) -> 0 | EA89: =COUNTIF($C89:$DR89,$A$465) -> 0 | EB89: =COUNTIF($C89:$DR89,$A$466) -> 1 | EC89: =COUNTIF($C89:$DR89,$A$467) -> 0 | ED89: =COUNTIF($C89:$DR89,$A$468) -> 0 | EE89: =COUNTIF($C89:$DR89,$A$469) -> 0 | EF89: =COUNTIF($C89:$DR89,$A$470) -> 0 | EG89: =COUNTIF($C89:$DR89,$A$471) -> 0 | EH89: =COUNTIF($C89:$DR89,$A$472) -> 0 | EI89: =COUNTIF($C89:$DR89,$A$473) -> 0 | EK89: 0 | EL89: =SUM(#REF!,$M89) ->  | EM89: 0 | EN89: =SUM(#REF!,AC89) ->  | EO89: 0 | EP89: 0 | EQ89: 0 | ER89: 0 | ES89: 6 | ET89: 0 | EU89: 0 | EV89: 0 | EW89: 0 | EX89: 0 | EY89: 0
A90: 6 | B90: 2025-11-08 | C90: WEEK-END | K90: WEEK-END | S90: WEEK-END | AA90: WEEK-END | AI90: WEEK-END | AQ90: WEEK-END | AY90: WEEK-END | BG90: WEEK-END | BO90: WEEK-END | DU90: 0 | DV90: 0 | DW90: 0 | DX90: 0 | DY90: 0 | DZ90: 0 | EA90: 0 | EB90: 0 | EC90: 0 | ED90: 0 | EE90: 0 | EF90: 0 | EG90: 0 | EH90: 0 | EI90: 0 | EK90: 0 | EL90: =SUM($M90,$Q90) -> 0 | EM90: 0 | EN90: =SUM(AC90,AG90) -> 0 | EO90: 0 | EP90: 0 | EQ90: 0 | ER90: 0 | ES90: 0 | ET90: 0 | EU90: 0 | EV90: 0 | EW90: 0 | EX90: 0 | EY90: 0
A91: 7 | B91: 2025-11-09 | C91: WEEK-END | K91: WEEK-END | S91: WEEK-END | AA91: WEEK-END | AI91: WEEK-END | AQ91: WEEK-END | AY91: WEEK-END | BG91: WEEK-END | BO91: WEEK-END | DU91: 0 | DV91: 0 | DW91: 0 | DX91: 0 | DY91: 0 | DZ91: 0 | EA91: 0 | EB91: 0 | EC91: 0 | ED91: 0 | EE91: 0 | EF91: 0 | EG91: 0 | EH91: 0 | EI91: 0 | EK91: 0 | EL91: =SUM($M91,$Q91) -> 0 | EM91: 0 | EN91: =SUM(AC91,AG91) -> 0 | EO91: 0 | EP91: 0 | EQ91: 0 | ER91: 0 | ES91: 0 | ET91: 0 | EU91: 0 | EV91: 0 | EW91: 0 | EX91: 0 | EY91: 0
A92: 1 | B92: 2025-11-10 | K92: 20 | L92: mp | M92: 6 | S92: 23 | T92: yc | U92: 6 | AA92: 15 | AB92: rg | AC92: 6 | AI92: 16 | AJ92: jr | AK92: 6 | AL92: EX | AM92: 33 | AN92: cg | AO92: 3 | AP92: X11 | AQ92: 9 | AR92: mc | AS92: 6 | DU92: 0 | DV92: 1 | DW92: 1 | DX92: 1 | DY92: 1 | DZ92: 1 | EA92: 1 | EB92: 0 | EC92: 0 | ED92: 0 | EE92: 0 | EF92: 0 | EG92: 0 | EH92: 0 | EI92: 0 | EK92: 0 | EL92: =SUM(#REF!,$M92) ->  | EM92: =SUM(#REF!,#REF!) ->  | EN92: =SUM(#REF!,AC92) ->  | EO92: 9 | EP92: =SUM(AS71,AW71) -> 6 | EQ92: =SUM(BA92,#REF!) ->  | ER92: 0 | ES92: 0 | ET92: 0 | EU92: 0 | EV92: 0 | EW92: 0 | EX92: 0 | EY92: 0
A93: 2 | B93: 2025-11-11 | K93: 20 | L93: mp | M93: 6 | S93: 23 | T93: yc | U93: 6 | AA93: 15 | AB93: rg | AC93: 6 | AI93: 18 | AJ93: sb | AK93: 6 | AQ93: 90 | AR93: jr | AS93: 6 | AT93: R7 | DU93: 1 | DV93: 1 | DW93: 0 | DX93: 1 | DY93: 1 | DZ93: 0 | EA93: 1 | EB93: 0 | EC93: 0 | ED93: 0 | EE93: 0 | EF93: 0 | EG93: 0 | EH93: 0 | EI93: 0 | EK93: 0 | EL93: =SUM(#REF!,$M93) ->  | EM93: =SUM(#REF!,#REF!) ->  | EN93: =SUM(#REF!,AC93) ->  | EO93: 6 | EP93: =SUM(#REF!,#REF!) ->  | EQ93: 0 | ER93: 0 | ES93: 0 | ET93: 0 | EU93: 0 | EV93: 0 | EW93: 0 | EX93: 0 | EY93: 0
A94: 3 | B94: 2025-11-12 | K94: 20 | L94: mp | M94: 6 | S94: 23 | T94: yc | U94: 6 | AA94: 15 | AB94: rg | AC94: 6 | AI94: 18 | AJ94: sb | AK94: 6 | AQ94: 9 | AR94: mc | AS94: 6 | DU94: 1 | DV94: 1 | DW94: 0 | DX94: 0 | DY94: 1 | DZ94: 1 | EA94: 1 | EB94: 0 | EC94: 0 | ED94: 0 | EE94: 0 | EF94: 0 | EG94: 0 | EH94: 0 | EI94: 0 | EK94: 0 | EL94: =SUM(#REF!,$M94) ->  | EM94: 6 | EN94: =SUM(AC94,AG94) -> 6 | EO94: 6 | EP94: =SUM(AS92,AW92) -> 6 | EQ94: 0 | ER94: 0 | ES94: 0 | ET94: 0 | EU94: 0 | EV94: 0 | EW94: 0 | EX94: 0 | EY94: 0
A95: 4 | B95: 2025-11-13 | K95: 20 | L95: mp | M95: 6 | S95: 23 | T95: yc | U95: 6 | AA95: 90 | AB95: cg | AC95: 6 | AD95: R17 | AI95: 18 | AJ95: sb | AK95: 6 | AQ95: 9 | AR95: mc | AS95: 6 | BO95: 4 | BP95: jr | BQ95: 6 | DU95: 1 | DV95: 1 | DW95: 1 | DX95: 1 | DY95: 1 | DZ95: 1 | EA95: 0 | EB95: 0 | EC95: 0 | ED95: 0 | EE95: 0 | EF95: 0 | EG95: 0 | EH95: 0 | EI95: 0 | EK95: 0 | EL95: =SUM(#REF!,$M95) ->  | EM95: 6 | EN95: =SUM(#REF!,AC95) ->  | EO95: 6 | EP95: =SUM(AS74,AW74) -> 6 | EQ95: 0 | ER95: 0 | ES95: 6 | ET95: 0 | EU95: 0 | EV95: 0 | EW95: 0 | EX95: 0 | EY95: 0
A96: 5 | B96: 2025-11-14 | K96: 20 | L96: sb | M96: 6 | S96: 23 | T96: jr | U96: 6 | AA96: 15 | AB96: rg | AC96: 6 | AD96: EX | AI96: 18 | AJ96: mc | AK96: 6 | AQ96: Congé | BO96: 4 | BP96: cg | BQ96: 6 | DU96: 1 | DV96: 0 | DW96: 1 | DX96: 1 | DY96: 0 | DZ96: 1 | EA96: 1 | EB96: 0 | EC96: 0 | ED96: 0 | EE96: 0 | EF96: 0 | EG96: 0 | EH96: 0 | EI96: 0 | EK96: 0 | EL96: =SUM(#REF!,$M96) ->  | EM96: 6 | EN96: =SUM(#REF!,AC96) ->  | EO96: 6 | EP96: =SUM(AS75,AW75) -> 9 | EQ96: =SUM(#REF!,BE92) ->  | ER96: 0 | ES96: 6 | ET96: 0 | EU96: 0 | EV96: 0 | EW96: 0 | EX96: 0 | EY96: 0
A97: 6 | B97: 2025-11-15 | C97: WEEK-END | K97: WEEK-END | S97: WEEK-END | AA97: WEEK-END | AI97: WEEK-END | AQ97: WEEK-END | AY97: WEEK-END | BG97: WEEK-END | BO97: WEEK-END | DU97: 0 | DV97: 0 | DW97: 0 | DX97: 0 | DY97: 0 | DZ97: 0 | EA97: 0 | EB97: 0 | EC97: 0 | ED97: 0 | EE97: 0 | EF97: 0 | EG97: 0 | EH97: 0 | EI97: 0 | EK97: 0 | EL97: =SUM($M97,$Q97) -> 0 | EM97: 0 | EN97: =SUM(AC97,AG97) -> 0 | EO97: 0 | EP97: 0 | EQ97: 0 | ER97: 0 | ES97: 0 | ET97: 0 | EU97: 0 | EV97: 0 | EW97: 0 | EX97: 0 | EY97: 0
A98: 7 | B98: 2025-11-16 | C98: WEEK-END | K98: WEEK-END | S98: WEEK-END | AA98: WEEK-END | AI98: WEEK-END | AQ98: WEEK-END | AY98: WEEK-END | BG98: WEEK-END | BO98: WEEK-END | DU98: 0 | DV98: 0 | DW98: 0 | DX98: 0 | DY98: 0 | DZ98: 0 | EA98: 0 | EB98: 0 | EC98: 0 | ED98: 0 | EE98: 0 | EF98: 0 | EG98: 0 | EH98: 0 | EI98: 0 | EK98: 0 | EL98: =SUM($M98,$Q98) -> 0 | EM98: 0 | EN98: =SUM(AC98,AG98) -> 0 | EO98: 0 | EP98: 0 | EQ98: 0 | ER98: 0 | ES98: 0 | ET98: 0 | EU98: 0 | EV98: 0 | EW98: 0 | EX98: 0 | EY98: 0
A99: 1 | B99: 2025-11-17 | K99: 20 | L99: jr | M99: 6 | S99: 23 | T99: yc | U99: 6 | AA99: 15 | AB99: rg | AC99: 6 | AD99: EX | AE99: 33 | AF99: cg | AG99: 3 | AH99: X17 | AI99: 18 | AJ99: sb | AK99: 6 | AQ99: 9 | AR99: mc | AS99: 6 | AT99: EX | AU99: 33 | AV99: cg | AW99: 3 | AX99: X7 | DU99: 1 | DV99: 0 | DW99: 2 | DX99: 1 | DY99: 1 | DZ99: 1 | EA99: 1 | EB99: 0 | EC99: 0 | ED99: 0 | EE99: 0 | EF99: 0 | EG99: 0 | EH99: 0 | EI99: 0 | EK99: 0 | EL99: =SUM(#REF!,$M99) ->  | EM99: 6 | EN99: =SUM(#REF!,AC99) ->  | EO99: 6 | EP99: =SUM(AS78,AW78) -> 6 | EQ99: =SUM(BA96,BE96) -> 0 | ER99: 0 | ES99: 0 | ET99: 0 | EU99: 0 | EV99: 0 | EW99: 0 | EX99: 0 | EY99: 0
A100: 2 | B100: 2025-11-18 | K100: 20 | L100: jr | M100: 6 | S100: 90 | T100: rg | U100: 6 | V100: R22 | AA100: 13 | AB100: cg | AC100: 6 | AI100: 18 | AJ100: sb | AK100: 6 | AQ100: 9 | AR100: mc | AS100: 6 | AT100: EX | DU100: 1 | DV100: 0 | DW100: 1 | DX100: 1 | DY100: 0 | DZ100: 1 | EA100: 1 | EB100: 0 | EC100: 0 | ED100: 0 | EE100: 0 | EF100: 0 | EG100: 0 | EH100: 0 | EI100: 0 | EK100: 0 | EL100: =SUM(#REF!,$M100) ->  | EM100: =SUM(#REF!,$U100) ->  | EN100: =SUM(#REF!,AC100) ->  | EO100: 6 | EP100: =SUM(AS79,AW79) -> 6 | EQ100: 0 | ER100: 0 | ES100: 0 | ET100: 0 | EU100: 0 | EV100: 0 | EW100: 0 | EX100: 0 | EY100: 0
A101: 3 | B101: 2025-11-19 | K101: 20 | L101: jr | M101: 6 | S101: 23 | T101: yc | U101: 6 | AA101: 13 | AB101: cg | AC101: 6 | AI101: 18 | AJ101: mc | AK101: 6 | AQ101: 90 | AR101: rg | AS101: 6 | AT101: R9 | DU101: 0 | DV101: 0 | DW101: 1 | DX101: 1 | DY101: 1 | DZ101: 1 | EA101: 1 | EB101: 0 | EC101: 0 | ED101: 0 | EE101: 0 | EF101: 0 | EG101: 0 | EH101: 0 | EI101: 0 | EK101: 0 | EL101: =SUM(#REF!,$M101) ->  | EM101: =SUM(#REF!,$U101) ->  | EN101: =SUM(#REF!,AC101) ->  | EO101: 6 | EP101: =SUM(AS80,AW80) -> 6 | EQ101: 0 | ER101: 0 | ES101: 0 | ET101: 0 | EU101: 0 | EV101: 0 | EW101: 0 | EX101: 0 | EY101: 0
A102: =WEEKDAY(B102,2) -> 4 | B102: 2025-11-20 | C102: Pédagogique Commune | K102: Pédagogique Commune | S102: Pédagogique Commune | AA102: Pédagogique Commune | AI102: Pédagogique Commune | AQ102: Pédagogique Commune | AY102: Pédagogique Commune | BG102: Pédagogique Commune | BO102: Pédagogique Commune | DU102: 0 | DV102: 0 | DW102: 0 | DX102: 0 | DY102: 0 | DZ102: 0 | EA102: 0 | EB102: 0 | EC102: 0 | ED102: 0 | EE102: 0 | EF102: 0 | EG102: 0 | EH102: 0 | EI102: 0 | EK102: 0 | EL102: =SUM(#REF!,$M102) ->  | EM102: 0 | EN102: =SUM(#REF!,AC102) ->  | EO102: 0 | EP102: 0 | EQ102: 0 | ER102: 0 | ES102: 0 | ET102: 0 | EU102: 0 | EV102: 0 | EW102: 0 | EX102: 0 | EY102: 0
A103: 5 | B103: 2025-11-21 | K103: 90 | L103: rg | M103: 6 | N103: R19 | S103: 23 | T103: yc | U103: 6 | V103: EX | AA103: 13 | AB103: cg | AC103: 6 | AI103: 18 | AJ103: mc | AK103: 6 | AQ103: 10 | AR103: jr | AS103: 6 | BO103: 4 | BP103: np | BQ103: 6 | DU103: 0 | DV103: 0 | DW103: 1 | DX103: 1 | DY103: 1 | DZ103: 1 | EA103: 1 | EB103: 1 | EC103: 0 | ED103: 0 | EE103: 0 | EF103: 0 | EG103: 0 | EH103: 0 | EI103: 0 | EK103: 0 | EL103: =SUM(#REF!,$M103) ->  | EM103: =SUM(#REF!,$U103) ->  | EN103: =SUM(#REF!,AC103) ->  | EO103: 6 | EP103: =SUM(AS86,AW87) -> 6 | EQ103: 0 | ER103: 0 | ES103: 6 | ET103: 0 | EU103: 0 | EV103: 0 | EW103: 0 | EX103: 0 | EY103: 0
A104: 6 | B104: 2025-11-22 | C104: WEEK-END | K104: WEEK-END | S104: WEEK-END | AA104: WEEK-END | AI104: WEEK-END | AQ104: WEEK-END | AY104: WEEK-END | BG104: WEEK-END | BO104: WEEK-END | DU104: 0 | DV104: 0 | DW104: 0 | DX104: 0 | DY104: 0 | DZ104: 0 | EA104: 0 | EB104: 0 | EC104: 0 | ED104: 0 | EE104: 0 | EF104: 0 | EG104: 0 | EH104: 0 | EI104: 0 | EK104: 0 | EL104: =SUM($M104,$Q104) -> 0 | EM104: 0 | EN104: =SUM(AC104,AG104) -> 0 | EO104: 0 | EP104: 0 | EQ104: 0 | ER104: 0 | ES104: 0 | ET104: 0 | EU104: 0 | EV104: 0 | EW104: 0 | EX104: 0 | EY104: 0
A105: 7 | B105: 2025-11-23 | C105: WEEK-END | K105: WEEK-END | S105: WEEK-END | AA105: WEEK-END | AI105: WEEK-END | AQ105: WEEK-END | AY105: WEEK-END | BG105: WEEK-END | BO105: WEEK-END | DU105: 0 | DV105: 0 | DW105: 0 | DX105: 0 | DY105: 0 | DZ105: 0 | EA105: 0 | EB105: 0 | EC105: 0 | ED105: 0 | EE105: 0 | EF105: 0 | EG105: 0 | EH105: 0 | EI105: 0 | EK105: 0 | EL105: =SUM($M105,$Q105) -> 0 | EM105: 0 | EN105: =SUM(AC105,AG105) -> 0 | EO105: 0 | EP105: 0 | EQ105: 0 | ER105: 0 | ES105: 0 | ET105: 0 | EU105: 0 | EV105: 0 | EW105: 0 | EX105: 0 | EY105: 0
A106: =WEEKDAY(B106,2) -> 1 | B106: 2025-11-24 | K106: 20 | L106: mp | M106: 6 | S106: 23 | T106: yc | U106: 6 | V106: EX | W106: 33 | X106: rg | Y106: 3 | Z106: X22 | AA106: 13 | AB106: cg | AC106: 6 | AI106: 18 | AJ106: mc | AK106: 6 | AQ106: 10 | AR106: jr | AS106: 6 | DU106: 0 | DV106: 1 | DW106: 1 | DX106: 1 | DY106: 1 | DZ106: 1 | EA106: 1 | EB106: 0 | EC106: 0 | ED106: 0 | EE106: 0 | EF106: 0 | EG106: 0 | EH106: 0 | EI106: 0 | EK106: 0 | EL106: =SUM($M106,$Q106) -> 6 | EM106: =SUM(#REF!,$U106) ->  | EN106: =SUM(#REF!,AC106) ->  | EO106: 6 | EP106: =SUM(AS81,AW81) -> 6 | EQ106: 0 | ER106: 0 | ES106: 0 | ET106: 0 | EU106: 0 | EV106: 0 | EW106: 0 | EX106: 0 | EY106: 0
A107: 2 | B107: 2025-11-25 | K107: 20 | L107: mp | M107: 6 | N107: EX | O107: 33 | P107: rg | Q107: 6 | R107: X19 | S107: 34 | T107: AC | U107: 6 | AA107: 13 | AB107: cg | AC107: 6 | AI107: 18 | AJ107: mc | AK107: 6 | AQ107: 10 | AR107: jr | AS107: 6 | DU107: 0 | DV107: 1 | DW107: 1 | DX107: 1 | DY107: 0 | DZ107: 1 | EA107: 1 | EB107: 0 | EC107: 0 | ED107: 0 | EE107: 0 | EF107: 0 | EG107: 0 | EH107: 0 | EI107: 0 | EK107: 0 | EL107: =SUM(#REF!,$M107) ->  | EM107: =SUM(#REF!,$U107) ->  | EN107: =SUM(#REF!,AC107) ->  | EO107: 6 | EP107: =SUM(AS85,AW85) -> 6 | EQ107: 0 | ER107: 0 | ES107: 0 | ET107: 0 | EU107: 0 | EV107: 0 | EW107: 0 | EX107: 0 | EY107: 0
A108: 3 | B108: 2025-11-26 | K108: 20 | L108: mp | M108: 6 | N108: EX | S108: 34 | T108: AC | U108: 6 | AA108: 13 | AB108: rg | AC108: 6 | AI108: 18 | AJ108: mc | AK108: 6 | AQ108: 10 | AR108: jr | AS108: 6 | DU108: 0 | DV108: 1 | DW108: 0 | DX108: 1 | DY108: 0 | DZ108: 1 | EA108: 1 | EB108: 0 | EC108: 0 | ED108: 0 | EE108: 0 | EF108: 0 | EG108: 0 | EH108: 0 | EI108: 0 | EK108: 0 | EL108: =SUM(#REF!,$M108) ->  | EM108: =SUM(#REF!,#REF!) ->  | EN108: =SUM(#REF!,AC108) ->  | EO108: 6 | EP108: =SUM(#REF!,AW86) ->  | EQ108: =SUM(#REF!,BE108) ->  | ER108: 0 | ES108: 0 | ET108: 0 | EU108: 0 | EV108: 0 | EW108: 0 | EX108: 0 | EY108: 0
A109: 4 | B109: 2025-11-27 | K109: 21 | L109: mp | M109: 6 | S109: 34 | T109: AC | U109: 6 | AA109: 13 | AB109: cg | AC109: 6 | AI109: 90 | AJ109: yc | AK109: 6 | AL109: R16 | AQ109: 10 | AR109: jr | AS109: 6 | BO109: 4 | BP109: rg | BQ109: 6 | DU109: 0 | DV109: 1 | DW109: 1 | DX109: 1 | DY109: 1 | DZ109: 0 | EA109: 1 | EB109: 0 | EC109: 0 | ED109: 0 | EE109: 0 | EF109: 0 | EG109: 0 | EH109: 0 | EI109: 0 | EK109: 0 | EL109: =SUM(#REF!,$M109) ->  | EM109: =SUM(#REF!,$U109) ->  | EN109: =SUM(#REF!,AC109) ->  | EO109: =SUM(AD109,AH109) -> 0 | EP109: =SUM(AS82,AW82) -> 0 | EQ109: =SUM(BA99,BE99) -> 0 | ER109: 0 | ES109: 6 | ET109: 0 | EU109: 0 | EV109: 0 | EW109: 0 | EX109: 0 | EY109: 0
A110: 5 | B110: 2025-11-28 | K110: 21 | L110: yc | M110: 6 | S110: 34 | T110: AC | U110: 6 | AA110: 13 | AB110: cg | AC110: 6 | AI110: 18 | AJ110: mc | AK110: 6 | AL110: EX | AQ110: Congé | BO110: 4 | BP110: rg | BQ110: 6 | DU110: 0 | DV110: 0 | DW110: 1 | DX110: 0 | DY110: 1 | DZ110: 1 | EA110: 1 | EB110: 0 | EC110: 0 | ED110: 0 | EE110: 0 | EF110: 0 | EG110: 0 | EH110: 0 | EI110: 0 | EK110: 0 | EL110: =SUM($M110,$Q110) -> 6 | EM110: 6 | EN110: =SUM(AC110,AG110) -> 6 | EO110: 6 | EP110: =SUM(AK109,AO109) -> 6 | EQ110: 0 | ER110: 0 | ES110: 6 | ET110: 0 | EU110: 0 | EV110: 0 | EW110: 0 | EX110: 0 | EY110: 0
A111: 6 | B111: 2025-11-29 | C111: WEEK-END | K111: WEEK-END | S111: WEEK-END | AA111: WEEK-END | AI111: WEEK-END | AQ111: WEEK-END | AY111: WEEK-END | BG111: WEEK-END | BO111: WEEK-END | DU111: 0 | DV111: 0 | DW111: 0 | DX111: 0 | DY111: 0 | DZ111: 0 | EA111: 0 | EB111: 0 | EC111: 0 | ED111: 0 | EE111: 0 | EF111: 0 | EG111: 0 | EH111: 0 | EI111: 0 | EK111: 0 | EL111: =SUM($M111,$Q111) -> 0 | EM111: 0 | EN111: =SUM(AC111,AG111) -> 0 | EO111: 0 | EP111: 0 | EQ111: 0 | ER111: 0 | ES111: 0 | ET111: 0 | EU111: 0 | EV111: 0 | EW111: 0 | EX111: 0 | EY111: 0
A112: 7 | B112: 2025-11-30 | C112: WEEK-END | K112: WEEK-END | S112: WEEK-END | AA112: WEEK-END | AI112: WEEK-END | AQ112: WEEK-END | AY112: WEEK-END | BG112: WEEK-END | BO112: WEEK-END | DU112: 0 | DV112: 0 | DW112: 0 | DX112: 0 | DY112: 0 | DZ112: 0 | EA112: 0 | EB112: 0 | EC112: 0 | ED112: 0 | EE112: 0 | EF112: 0 | EG112: 0 | EH112: 0 | EI112: 0 | EK112: 0 | EL112: =SUM($M112,$Q112) -> 0 | EM112: 0 | EN112: =SUM(AC112,AG112) -> 0 | EO112: 0 | EP112: 0 | EQ112: 0 | ER112: 0 | ES112: 0 | ET112: 0 | EU112: 0 | EV112: 0 | EW112: 0 | EX112: 0 | EY112: 0
A113: 1 | B113: 2025-12-01 | K113: 21 | L113: mp | M113: 6 | S113: 34 | T113: AC | U113: 6 | AA113: 13 | AB113: cg | AC113: 6 | AI113: 18 | AJ113: mc | AK113: 6 | AL113: EX | AM113: 33 | AN113: rg | AO113: 3 | AP113: X16 | AQ113: 10 | AR113: jr | AS113: 6 | DU113: 0 | DV113: 1 | DW113: 1 | DX113: 1 | DY113: 0 | DZ113: 1 | EA113: 1 | EB113: 0 | EC113: 0 | ED113: 0 | EE113: 0 | EF113: 0 | EG113: 0 | EH113: 0 | EI113: 0 | EK113: 0 | EL113: =SUM($M113,$Q113) -> 6 | EM113: =SUM(#REF!,#REF!) ->  | EN113: =SUM(AC113,AG113) -> 6 | EO113: 9 | EP113: =SUM(AS93,AW93) -> 6 | EQ113: =SUM(#REF!,BE113) ->  | ER113: 0 | ES113: 0 | ET113: 0 | EU113: 0 | EV113: 0 | EW113: 0 | EX113: 0 | EY113: 0
A114: 2 | B114: 2025-12-02 | K114: 21 | L114: mp | M114: 6 | S114: 19 | T114: sb | U114: 6 | AA114: 13 | AB114: cg | AC114: 6 | AI114: 17 | AJ114: mc | AK114: 6 | AQ114: 10 | AR114: jr | AS114: 6 | DU114: 1 | DV114: 1 | DW114: 1 | DX114: 1 | DY114: 0 | DZ114: 1 | EA114: 0 | EB114: 0 | EC114: 0 | ED114: 0 | EE114: 0 | EF114: 0 | EG114: 0 | EH114: 0 | EI114: 0 | EK114: 0 | EL114: =SUM(#REF!,$M114) ->  | EM114: =SUM(#REF!,$U113) ->  | EN114: =SUM(#REF!,AC114) ->  | EO114: 6 | EP114: =SUM(AS115,AW115) -> 0 | EQ114: =SUM(BA108,BE114) -> 0 | ER114: 0 | ES114: 0 | ET114: 0 | EU114: 0 | EV114: 0 | EW114: 0 | EX114: 0 | EY114: 0
A115: 3 | B115: 2025-12-03 | C115: Pédagogique | K115: Pédagogique | S115: Pédagogique | AA115: Pédagogique | AI115: Pédagogique | AQ115: Pédagogique | AY115: Pédagogique | BG115: Pédagogique | BO115: Pédagogique | DU115: 0 | DV115: 0 | DW115: 0 | DX115: 0 | DY115: 0 | DZ115: 0 | EA115: 0 | EB115: 0 | EC115: 0 | ED115: 0 | EE115: 0 | EF115: 0 | EG115: 0 | EH115: 0 | EI115: 0 | EK115: 0 | EL115: =SUM(#REF!,$M115) ->  | EM115: =SUM(#REF!,$U108) ->  | EN115: =SUM(AC115,AG115) -> 0 | EO115: 0 | EP115: =SUM(AS95,AW95) -> 6 | EQ115: =SUM(#REF!,BE115) ->  | ER115: 0 | ES115: 0 | ET115: 0 | EU115: 0 | EV115: 0 | EW115: 0 | EX115: 0 | EY115: 0
A116: 4 | B116: 2025-12-04 | K116: 21 | L116: mp | M116: 6 | S116: 19 | T116: sb | U116: 6 | AA116: 13 | AB116: cg | AC116: 6 | AI116: 17 | AJ116: mc | AK116: 6 | AQ116: 5 | AS116: 6 | AT116: SO | BO116: 4 | BP116: rg | BQ116: 6 | DU116: 1 | DV116: 1 | DW116: 1 | DX116: 0 | DY116: 0 | DZ116: 1 | EA116: 1 | EB116: 0 | EC116: 0 | ED116: 0 | EE116: 0 | EF116: 0 | EG116: 0 | EH116: 0 | EI116: 0 | EK116: 0 | EL116: =SUM(#REF!,$M116) ->  | EM116: =SUM(#REF!,$U116) ->  | EN116: =SUM(#REF!,AC116) ->  | EO116: =SUM(AK117,AO117) -> 6 | EP116: =SUM(AS96,AW96) -> 0 | EQ116: 0 | ER116: 0 | ES116: 6 | ET116: 0 | EU116: 0 | EV116: 0 | EW116: 0 | EX116: 0 | EY116: 0
A117: 5 | B117: 2025-12-05 | K117: 21 | L117: mp | M117: 3 | O117: 24 | P117: mp | Q117: 3 | R117: ST | S117: 19 | T117: sb | U117: 6 | AA117: 13 | AB117: cg | AC117: 6 | AI117: 17 | AJ117: rg | AK117: 6 | AQ117: 5 | AS117: 6 | AT117: SO | BO117: 4 | BP117: mc | BQ117: 6 | DU117: 1 | DV117: 2 | DW117: 1 | DX117: 0 | DY117: 0 | DZ117: 1 | EA117: 1 | EB117: 0 | EC117: 0 | ED117: 0 | EE117: 0 | EF117: 0 | EG117: 0 | EH117: 0 | EI117: 0 | EK117: 0 | EL117: =SUM(#REF!,$M117) ->  | EM117: =SUM(#REF!,$U117) ->  | EN117: =SUM(#REF!,AC117) ->  | EO117: =SUM(AD117,AH117) -> 0 | EP117: =SUM(AS99,AW99) -> 9 | EQ117: 0 | ER117: 0 | ES117: 6 | ET117: 0 | EU117: 0 | EV117: 0 | EW117: 0 | EX117: 0 | EY117: 0
A118: 6 | B118: 2025-12-06 | C118: WEEK-END | K118: WEEK-END | S118: WEEK-END | AA118: WEEK-END | AI118: WEEK-END | AQ118: WEEK-END | AY118: WEEK-END | BG118: WEEK-END | BO118: WEEK-END | DU118: 0 | DV118: 0 | DW118: 0 | DX118: 0 | DY118: 0 | DZ118: 0 | EA118: 0 | EB118: 0 | EC118: 0 | ED118: 0 | EE118: 0 | EF118: 0 | EG118: 0 | EH118: 0 | EI118: 0 | EK118: 0 | EL118: =SUM($M118,$Q118) -> 0 | EM118: 0 | EN118: =SUM(AC118,AG118) -> 0 | EO118: 0 | EP118: 0 | EQ118: 0 | ER118: 0 | ES118: 0 | ET118: 0 | EU118: 0 | EV118: 0 | EW118: 0 | EX118: 0 | EY118: 0
A119: 7 | B119: 2025-12-07 | C119: WEEK-END | K119: WEEK-END | S119: WEEK-END | AA119: WEEK-END | AI119: WEEK-END | AQ119: WEEK-END | AY119: WEEK-END | BG119: WEEK-END | BO119: WEEK-END | DU119: 0 | DV119: 0 | DW119: 0 | DX119: 0 | DY119: 0 | DZ119: 0 | EA119: 0 | EB119: 0 | EC119: 0 | ED119: 0 | EE119: 0 | EF119: 0 | EG119: 0 | EH119: 0 | EI119: 0 | EK119: 0 | EL119: =SUM($M119,$Q119) -> 0 | EM119: 0 | EN119: =SUM(AC119,AG119) -> 0 | EO119: 0 | EP119: 0 | EQ119: 0 | ER119: 0 | ES119: 0 | ET119: 0 | EU119: 0 | EV119: 0 | EW119: 0 | EX119: 0 | EY119: 0
A120: 1 | B120: 2025-12-08 | K120: 21 | L120: mp | M120: 6 | S120: 19 | T120: sb | U120: 6 | AA120: 13 | AB120: cg | AC120: 6 | AI120: 17 | AJ120: mc | AK120: 6 | AQ120: 5 | AS120: 6 | AT120: SO | DU120: 1 | DV120: 1 | DW120: 1 | DX120: 0 | DY120: 0 | DZ120: 1 | EA120: 0 | EB120: 0 | EC120: 0 | ED120: 0 | EE120: 0 | EF120: 0 | EG120: 0 | EH120: 0 | EI120: 0 | EK120: 0 | EL120: =SUM(#REF!,$M122) ->  | EM120: =SUM(#REF!,$U120) ->  | EN120: =SUM(#REF!,AC120) ->  | EO120: 6 | EP120: =SUM(AS101,AW101) -> 6 | EQ120: 0 | ER120: 0 | ES120: 0 | ET120: 0 | EU120: 0 | EV120: 0 | EW120: 0 | EX120: 0 | EY120: 0
A121: 2 | B121: 2025-12-09 | K121: 21 | L121: mp | M121: 6 | S121: 19 | T121: sb | U121: 6 | AA121: 90 | AB121: rg | AC121: 6 | AD121: R15 | AI121: 17 | AJ121: mc | AK121: 6 | AQ121: 5 | AS121: 6 | AT121: SO | DU121: 1 | DV121: 1 | DW121: 0 | DX121: 0 | DY121: 0 | DZ121: 1 | EA121: 1 | EB121: 0 | EC121: 0 | ED121: 0 | EE121: 0 | EF121: 0 | EG121: 0 | EH121: 0 | EI121: 0 | EK121: 0 | EL121: =SUM(#REF!,$M121) ->  | EM121: =SUM(#REF!,$U121) ->  | EN121: =SUM(#REF!,AC121) ->  | EO121: 6 | EP121: =SUM(AS103,AW103) -> 6 | EQ121: 0 | ER121: 0 | ES121: 0 | ET121: 0 | EU121: 0 | EV121: 0 | EW121: 0 | EX121: 0 | EY121: 0
A122: 3 | B122: 2025-12-10 | K122: 90 | L122: yc | M122: 6 | N122: R20 | S122: 19 | T122: sb | U122: 6 | AA122: 13 | AB122: cg | AC122: 6 | AI122: 90 | AJ122: rg | AK122: 6 | AL122: R18 | AQ122: 5 | AS122: 6 | AT122: SO | DU122: 1 | DV122: 0 | DW122: 1 | DX122: 0 | DY122: 1 | DZ122: 0 | EA122: 1 | EB122: 0 | EC122: 0 | ED122: 0 | EE122: 0 | EF122: 0 | EG122: 0 | EH122: 0 | EI122: 0 | EK122: 0 | EL122: =SUM(#REF!,#REF!) ->  | EM122: =SUM(#REF!,$U122) ->  | EN122: =SUM(#REF!,AC122) ->  | EO122: 6 | EP122: =SUM(AS106,AW106) -> 6 | EQ122: 0 | ER122: 0 | ES122: 0 | ET122: 0 | EU122: 0 | EV122: 0 | EW122: 0 | EX122: 0 | EY122: 0
A123: 4 | B123: 2025-12-11 | K123: 21 | L123: mp | M123: 6 | N123: EX | O123: 33 | P123: yc | Q123: 3 | R123: X20 | S123: 19 | T123: sb | U123: 6 | AA123: 13 | AB123: cg | AC123: 6 | AI123: 17 | AJ123: mc | AK123: 6 | AQ123: 5 | AS123: 6 | AT123: SO | BO123: 4 | BP123: rg | BQ123: 6 | DU123: 1 | DV123: 1 | DW123: 1 | DX123: 0 | DY123: 1 | DZ123: 1 | EA123: 1 | EB123: 0 | EC123: 0 | ED123: 0 | EE123: 0 | EF123: 0 | EG123: 0 | EH123: 0 | EI123: 0 | EK123: 0 | EL123: =SUM(#REF!,$M123) ->  | EM123: =SUM(#REF!,$U123) ->  | EN123: =SUM(#REF!,AC123) ->  | EO123: 6 | EP123: =SUM(AS107,AW107) -> 6 | EQ123: 0 | ER123: 0 | ES123: 6 | ET123: 0 | EU123: 0 | EV123: 0 | EW123: 0 | EX123: 0 | EY123: 0
A124: 5 | B124: 2025-12-12 | K124: 21 | L124: mp | M124: 6 | N124: EX | S124: 19 | T124: yc | U124: 6 | AA124: 13 | AB124: cg | AC124: 6 | AI124: 17 | AJ124: mc | AK124: 6 | AQ124: 5 | AS124: 6 | AT124: SO | BO124: 4 | BP124: rg | BQ124: 6 | DU124: 0 | DV124: 1 | DW124: 1 | DX124: 0 | DY124: 1 | DZ124: 1 | EA124: 1 | EB124: 0 | EC124: 0 | ED124: 0 | EE124: 0 | EF124: 0 | EG124: 0 | EH124: 0 | EI124: 0 | EK124: 0 | EL124: =SUM(#REF!,$M124) ->  | EM124: =SUM(#REF!,$U124) ->  | EN124: =SUM(#REF!,AC124) ->  | EO124: 6 | EP124: =SUM(AS108,AW108) -> 6 | EQ124: 0 | ER124: 0 | ES124: 6 | ET124: 0 | EU124: 0 | EV124: 0 | EW124: 0 | EX124: 0 | EY124: 0
A125: 6 | B125: 2025-12-13 | C125: WEEK-END | K125: WEEK-END | S125: WEEK-END | AA125: WEEK-END | AI125: WEEK-END | AQ125: WEEK-END | AY125: WEEK-END | BG125: WEEK-END | BO125: WEEK-END | DU125: 0 | DV125: 0 | DW125: 0 | DX125: 0 | DY125: 0 | DZ125: 0 | EA125: 0 | EB125: 0 | EC125: 0 | ED125: 0 | EE125: 0 | EF125: 0 | EG125: 0 | EH125: 0 | EI125: 0 | EK125: 0 | EL125: =SUM($M125,$Q125) -> 0 | EM125: 0 | EN125: =SUM(AC125,AG125) -> 0 | EO125: 0 | EP125: 0 | EQ125: 0 | ER125: 0 | ES125: 0 | ET125: 0 | EU125: 0 | EV125: 0 | EW125: 0 | EX125: 0 | EY125: 0
A126: 7 | B126: 2025-12-14 | C126: WEEK-END | K126: WEEK-END | S126: WEEK-END | AA126: WEEK-END | AI126: WEEK-END | AQ126: WEEK-END | AY126: WEEK-END | BG126: WEEK-END | BO126: WEEK-END | DU126: 0 | DV126: 0 | DW126: 0 | DX126: 0 | DY126: 0 | DZ126: 0 | EA126: 0 | EB126: 0 | EC126: 0 | ED126: 0 | EE126: 0 | EF126: 0 | EG126: 0 | EH126: 0 | EI126: 0 | EK126: 0 | EL126: =SUM($M126,$Q126) -> 0 | EM126: 0 | EN126: =SUM(AC126,AG126) -> 0 | EO126: 0 | EP126: 0 | EQ126: 0 | ER126: 0 | ES126: 0 | ET126: 0 | EU126: 0 | EV126: 0 | EW126: 0 | EX126: 0 | EY126: 0
A127: 1 | B127: 2025-12-15 | K127: 34 | L127: AC | M127: 6 | S127: 19 | T127: sb | U127: 6 | AA127: 13 | AB127: cg | AC127: 6 | AI127: 17 | AJ127: mc | AK127: 6 | AL127: EX | AQ127: 5 | AS127: 6 | AT127: SO | DU127: 1 | DV127: 0 | DW127: 1 | DX127: 0 | DY127: 0 | DZ127: 1 | EA127: 0 | EB127: 0 | EC127: 0 | ED127: 0 | EE127: 0 | EF127: 0 | EG127: 0 | EH127: 0 | EI127: 0 | EK127: 0 | EL127: =SUM(#REF!,$M127) ->  | EM127: =SUM(#REF!,$U127) ->  | EN127: =SUM(#REF!,AC127) ->  | EO127: 6 | EP127: =SUM(AS109,AW109) -> 6 | EQ127: 0 | ER127: 0 | ES127: 0 | ET127: 0 | EU127: 0 | EV127: 0 | EW127: 0 | EX127: 0 | EY127: 0
A128: 2 | B128: 2025-12-16 | K128: 34 | L128: AC | M128: 6 | S128: 19 | T128: sb | U128: 6 | AA128: 13 | AB128: cg | AC128: 6 | AD128: EX | AE128: 33 | AF128: rg | AG128: 3 | AH128: X15 | AI128: 17 | AJ128: mc | AK128: 6 | AL128: EX | AM128: 33 | AN128: rg | AO128: 3 | AP128: X18 | AQ128: 5 | AS128: 6 | AT128: SO | DU128: 1 | DV128: 0 | DW128: 1 | DX128: 0 | DY128: 0 | DZ128: 1 | EA128: 2 | EB128: 0 | EC128: 0 | ED128: 0 | EE128: 0 | EF128: 0 | EG128: 0 | EH128: 0 | EI128: 0 | EK128: 0 | EL128: =SUM(#REF!,$M128) ->  | EM128: =SUM(#REF!,$U128) ->  | EN128: =SUM(#REF!,AC128) ->  | EO128: 9 | EP128: =SUM(AS114,AW114) -> 6 | EQ128: 0 | ER128: 0 | ES128: 0 | ET128: 0 | EU128: 0 | EV128: 0 | EW128: 0 | EX128: 0 | EY128: 0
A129: 3 | B129: 2025-12-17 | K129: 34 | L129: AC | M129: 6 | S129: 19 | T129: sb | U129: 6 | AA129: 13 | AB129: cg | AC129: 6 | AD129: EX | AI129: 15 | AJ129: mc | AK129: 6 | AQ129: 5 | AS129: 6 | AT129: SO | DU129: 1 | DV129: 0 | DW129: 1 | DX129: 0 | DY129: 0 | DZ129: 1 | EA129: 0 | EB129: 0 | EC129: 0 | ED129: 0 | EE129: 0 | EF129: 0 | EG129: 0 | EH129: 0 | EI129: 0 | EK129: 0 | EL129: =SUM(#REF!,$M129) ->  | EM129: =SUM(#REF!,$U129) ->  | EN129: =SUM(#REF!,AC129) ->  | EO129: 6 | EP129: =SUM(AS100,AW100) -> 6 | EQ129: =SUM(#REF!,#REF!) ->  | ER129: 0 | ES129: 0 | ET129: 0 | EU129: 0 | EV129: 0 | EW129: 0 | EX129: 0 | EY129: 0
A130: 4 | B130: 2025-12-18 | K130: 34 | L130: AC | M130: 6 | S130: 90 | T130: yc | U130: 6 | V130: R23 | AA130: 14 | AB130: mp | AC130: 6 | AI130: 15 | AJ130: mc | AK130: 6 | AQ130: 5 | AS130: 6 | AT130: SO | BO130: 4 | BP130: jr | BQ130: 6 | DU130: 0 | DV130: 1 | DW130: 0 | DX130: 1 | DY130: 1 | DZ130: 1 | EA130: 0 | EB130: 0 | EC130: 0 | ED130: 0 | EE130: 0 | EF130: 0 | EG130: 0 | EH130: 0 | EI130: 0 | EK130: 0 | EL130: =SUM(#REF!,$M130) ->  | EM130: 6 | EN130: =SUM(#REF!,AC130) ->  | EO130: 6 | EP130: =SUM(AS110,#REF!) ->  | EQ130: =SUM(#REF!,BE129) ->  | ER130: 0 | ES130: 6 | ET130: 0 | EU130: 0 | EV130: 0 | EW130: 0 | EX130: 0 | EY130: 0
A131: 5 | B131: 2025-12-19 | K131: 34 | L131: AC | M131: 6 | S131: 33 | T131: yc | U131: 3 | V131: X23 | AA131: 14 | AB131: mp | AC131: 6 | AI131: 90 | AJ131: cg | AK131: 6 | AL131: R17 | AQ131: 5 | AS131: 6 | AT131: SO | BO131: 4 | BP131: jr | BQ131: 6 | DU131: 0 | DV131: 1 | DW131: 1 | DX131: 1 | DY131: 1 | DZ131: 0 | EA131: 0 | EB131: 0 | EC131: 0 | ED131: 0 | EE131: 0 | EF131: 0 | EG131: 0 | EH131: 0 | EI131: 0 | EK131: 0 | EL131: =SUM(#REF!,$M131) ->  | EM131: 3 | EN131: =SUM(#REF!,AC131) ->  | EO131: 6 | EP131: =SUM(#REF!,#REF!) ->  | EQ131: =SUM(#REF!,BE130) ->  | ER131: 0 | ES131: 6 | ET131: 0 | EU131: 0 | EV131: 0 | EW131: 0 | EX131: 0 | EY131: 0
A132: 6 | B132: 2025-12-20 | C132: WEEK-END | K132: WEEK-END | S132: WEEK-END | AA132: WEEK-END | AI132: WEEK-END | AQ132: WEEK-END | AY132: WEEK-END | BG132: WEEK-END | BO132: WEEK-END | DU132: 0 | DV132: 0 | DW132: 0 | DX132: 0 | DY132: 0 | DZ132: 0 | EA132: 0 | EB132: 0 | EC132: 0 | ED132: 0 | EE132: 0 | EF132: 0 | EG132: 0 | EH132: 0 | EI132: 0 | EK132: 0 | EL132: =SUM($M132,$Q132) -> 0 | EM132: 0 | EN132: =SUM(AC132,AG132) -> 0 | EO132: 0 | EP132: 0 | EQ132: 0 | ER132: 0 | ES132: 0 | ET132: 0 | EU132: 0 | EV132: 0 | EW132: 0 | EX132: 0 | EY132: 0
A133: 7 | B133: 2025-12-21 | C133: WEEK-END | K133: WEEK-END | S133: WEEK-END | AA133: WEEK-END | AI133: WEEK-END | AQ133: WEEK-END | AY133: WEEK-END | BG133: WEEK-END | BO133: WEEK-END | DU133: 0 | DV133: 0 | DW133: 0 | DX133: 0 | DY133: 0 | DZ133: 0 | EA133: 0 | EB133: 0 | EC133: 0 | ED133: 0 | EE133: 0 | EF133: 0 | EG133: 0 | EH133: 0 | EI133: 0 | EK133: 0 | EL133: =SUM($M133,$Q133) -> 0 | EM133: 0 | EN133: =SUM(AC133,AG133) -> 0 | EO133: 0 | EP133: 0 | EQ133: 0 | ER133: 0 | ES133: 0 | ET133: 0 | EU133: 0 | EV133: 0 | EW133: 0 | EX133: 0 | EY133: 0
A134: 1 | B134: 2025-12-22 | C134: Congé Noël | K134: Congé Noël | S134: Congé Noël | AA134: Congé Noël | AI134: Congé Noël | AQ134: Congé Noël | AY134: Congé Noël | BG134: Congé Noël | BO134: Congé Noël | DU134: 0 | DV134: 0 | DW134: 0 | DX134: 0 | DY134: 0 | DZ134: 0 | EA134: 0 | EB134: 0 | EC134: 0 | ED134: 0 | EE134: 0 | EF134: 0 | EG134: 0 | EH134: 0 | EI134: 0 | EK134: 0 | EL134: =SUM(#REF!,$M134) ->  | EM134: 0 | EN134: =SUM(#REF!,AC134) ->  | EO134: 0 | EP134: 0 | EQ134: 0 | ER134: 0 | ES134: 0 | ET134: 0 | EU134: 0 | EV134: 0 | EW134: 0 | EX134: 0 | EY134: 0
A135: 2 | B135: 2025-12-23 | C135: Congé Noël | K135: Congé Noël | S135: Congé Noël | AA135: Congé Noël | AI135: Congé Noël | AQ135: Congé Noël | AY135: Congé Noël | BG135: Congé Noël | BO135: Congé Noël | DU135: 0 | DV135: 0 | DW135: 0 | DX135: 0 | DY135: 0 | DZ135: 0 | EA135: 0 | EB135: 0 | EC135: 0 | ED135: 0 | EE135: 0 | EF135: 0 | EG135: 0 | EH135: 0 | EI135: 0 | EK135: 0 | EL135: =SUM(#REF!,$M135) ->  | EM135: 0 | EN135: =SUM(#REF!,AC135) ->  | EO135: 0 | EP135: 0 | EQ135: 0 | ER135: 0 | ES135: 0 | ET135: 0 | EU135: 0 | EV135: 0 | EW135: 0 | EX135: 0 | EY135: 0
A136: 3 | B136: 2025-12-24 | C136: Congé Noël | K136: Congé Noël | S136: Congé Noël | AA136: Congé Noël | AI136: Congé Noël | AQ136: Congé Noël | AY136: Congé Noël | BG136: Congé Noël | BO136: Congé Noël | DU136: 0 | DV136: 0 | DW136: 0 | DX136: 0 | DY136: 0 | DZ136: 0 | EA136: 0 | EB136: 0 | EC136: 0 | ED136: 0 | EE136: 0 | EF136: 0 | EG136: 0 | EH136: 0 | EI136: 0 | EK136: 0 | EL136: =SUM(#REF!,$M136) ->  | EM136: 0 | EN136: =SUM(#REF!,AC136) ->  | EO136: 0 | EP136: 0 | EQ136: 0 | ER136: 0 | ES136: 0 | ET136: 0 | EU136: 0 | EV136: 0 | EW136: 0 | EX136: 0 | EY136: 0
A137: 4 | B137: 2025-12-25 | C137: Congé Noël | K137: Congé Noël | S137: Congé Noël | AA137: Congé Noël | AI137: Congé Noël | AQ137: Congé Noël | AY137: Congé Noël | BG137: Congé Noël | BO137: Congé Noël | DU137: =COUNTIF($C137:$DR137,$A$459) -> 0 | DV137: =COUNTIF($C137:$DR137,$A$460) -> 0 | DW137: =COUNTIF($C137:$DR137,$A$461) -> 0 | DX137: =COUNTIF($C137:$DR137,$A$462) -> 0 | DY137: =COUNTIF($C137:$DR137,$A$463) -> 0 | DZ137: =COUNTIF($C137:$DR137,$A$464) -> 0 | EA137: =COUNTIF($C137:$DR137,$A$465) -> 0 | EB137: =COUNTIF($C137:$DR137,$A$466) -> 0 | EC137: =COUNTIF($C137:$DR137,$A$467) -> 0 | ED137: =COUNTIF($C137:$DR137,$A$468) -> 0 | EE137: =COUNTIF($C137:$DR137,$A$469) -> 0 | EF137: =COUNTIF($C137:$DR137,$A$470) -> 0 | EG137: =COUNTIF($C137:$DR137,$A$471) -> 0 | EH137: =COUNTIF($C137:$DR137,$A$472) -> 0 | EI137: =COUNTIF($C137:$DR137,$A$473) -> 0 | EK137: =SUM($E137,$I137) -> 0 | EL137: =SUM($M137,$Q137) -> 0 | EM137: =SUM($U137,$Y137) -> 0 | EN137: =SUM(AC137,AG137) -> 0 | EO137: 0 | EP137: 0 | EQ137: 0 | ER137: 0 | ES137: 0 | ET137: 0 | EU137: 0 | EV137: 0 | EW137: 0 | EX137: 0 | EY137: 0
A138: =WEEKDAY(B138,2) -> 5 | B138: 2025-12-26 | C138: Congé Noël | K138: Congé Noël | S138: Congé Noël | AA138: Congé Noël | AI138: Congé Noël | AQ138: Congé Noël | AY138: Congé Noël | BG138: Congé Noël | BO138: Congé Noël | DU138: 0 | DV138: 0 | DW138: 0 | DX138: 0 | DY138: 0 | DZ138: 0 | EA138: 0 | EB138: 0 | EC138: 0 | ED138: 0 | EE138: 0 | EF138: 0 | EG138: 0 | EH138: 0 | EI138: 0 | EK138: 0 | EL138: 0 | EM138: 0 | EN138: =SUM(AC138,AG138) -> 0 | EO138: =SUM(AK138,AO138) -> 0 | EP138: =SUM(AS138,AW138) -> 0 | EQ138: =SUM(BA138,BE138) -> 0 | ER138: =SUM(BI138,BM138) -> 0 | ES138: =SUM(BQ138,BU138) -> 0 | ET138: =SUM(BY138,CC138) -> 0 | EU138: =SUM(CG138,CK138) -> 0 | EV138: =SUM(CO138,CS138) -> 0 | EW138: =SUM(CW138,DA138) -> 0 | EX138: =SUM(DE138,DI138) -> 0 | EY138: =SUM(DM138,DQ138) -> 0
A139: 6 | B139: =B138+1 -> 2025-12-27 | C139: WEEK-END | K139: WEEK-END | S139: WEEK-END | AA139: WEEK-END | AI139: WEEK-END | AQ139: WEEK-END | AY139: WEEK-END | BG139: WEEK-END | BO139: WEEK-END | DU139: 0 | DV139: 0 | DW139: 0 | DX139: 0 | DY139: 0 | DZ139: 0 | EA139: 0 | EB139: 0 | EC139: 0 | ED139: 0 | EE139: 0 | EF139: 0 | EG139: 0 | EH139: 0 | EI139: 0 | EK139: 0 | EL139: 0 | EM139: 0 | EN139: 0 | EO139: 0 | EP139: 0 | EQ139: 0 | ER139: 0 | ES139: 0 | ET139: 0 | EU139: 0 | EV139: 0 | EW139: 0 | EX139: 0 | EY139: 0
A140: 7 | B140: 2025-12-28 | C140: WEEK-END | K140: WEEK-END | S140: WEEK-END | AA140: WEEK-END | AI140: WEEK-END | AQ140: WEEK-END | AY140: WEEK-END | BG140: WEEK-END | BO140: WEEK-END | DU140: 0 | DV140: 0 | DW140: 0 | DX140: 0 | DY140: 0 | DZ140: 0 | EA140: 0 | EB140: 0 | EC140: 0 | ED140: 0 | EE140: 0 | EF140: 0 | EG140: 0 | EH140: 0 | EI140: 0 | EK140: 0 | EL140: 0 | EM140: 0 | EN140: 0 | EO140: 0 | EP140: 0 | EQ140: 0 | ER140: 0 | ES140: 0 | ET140: 0 | EU140: 0 | EV140: 0 | EW140: 0 | EX140: 0 | EY140: 0
A141: 1 | B141: 2025-12-29 | C141: Congé Noël | K141: Congé Noël | S141: Congé Noël | AA141: Congé Noël | AI141: Congé Noël | AQ141: Congé Noël | AY141: Congé Noël | BG141: Congé Noël | BO141: Congé Noël | DU141: =COUNTIF($C141:$DR141,$A$459) -> 0 | DV141: =COUNTIF($C141:$DR141,$A$460) -> 0 | DW141: =COUNTIF($C141:$DR141,$A$461) -> 0 | DX141: =COUNTIF($C141:$DR141,$A$462) -> 0 | DY141: =COUNTIF($C141:$DR141,$A$463) -> 0 | DZ141: =COUNTIF($C141:$DR141,$A$464) -> 0 | EA141: =COUNTIF($C141:$DR141,$A$465) -> 0 | EB141: =COUNTIF($C141:$DR141,$A$466) -> 0 | EC141: =COUNTIF($C141:$DR141,$A$467) -> 0 | ED141: =COUNTIF($C141:$DR141,$A$468) -> 0 | EE141: =COUNTIF($C141:$DR141,$A$469) -> 0 | EF141: =COUNTIF($C141:$DR141,$A$470) -> 0 | EG141: =COUNTIF($C141:$DR141,$A$471) -> 0 | EH141: =COUNTIF($C141:$DR141,$A$472) -> 0 | EI141: =COUNTIF($C141:$DR141,$A$473) -> 0 | EK141: =SUM(#REF!,$E141) ->  | EL141: 0 | EM141: 0 | EN141: =SUM(#REF!,AC141) ->  | EO141: 0 | EP141: 0 | EQ141: 0 | ER141: 0 | ES141: 0 | ET141: 0 | EU141: 0 | EV141: 0 | EW141: 0 | EX141: 0 | EY141: 0
A142: 2 | B142: 2025-12-30 | C142: Congé Noël | K142: Congé Noël | S142: Congé Noël | AA142: Congé Noël | AI142: Congé Noël | AQ142: Congé Noël | AY142: Congé Noël | BG142: Congé Noël | BO142: Congé Noël | DU142: =COUNTIF($C142:$DR142,$A$459) -> 0 | DV142: =COUNTIF($C142:$DR142,$A$460) -> 0 | DW142: =COUNTIF($C142:$DR142,$A$461) -> 0 | DX142: =COUNTIF($C142:$DR142,$A$462) -> 0 | DY142: =COUNTIF($C142:$DR142,$A$463) -> 0 | DZ142: =COUNTIF($C142:$DR142,$A$464) -> 0 | EA142: =COUNTIF($C142:$DR142,$A$465) -> 0 | EB142: =COUNTIF($C142:$DR142,$A$466) -> 0 | EC142: =COUNTIF($C142:$DR142,$A$467) -> 0 | ED142: =COUNTIF($C142:$DR142,$A$468) -> 0 | EE142: =COUNTIF($C142:$DR142,$A$469) -> 0 | EF142: =COUNTIF($C142:$DR142,$A$470) -> 0 | EG142: =COUNTIF($C142:$DR142,$A$471) -> 0 | EH142: =COUNTIF($C142:$DR142,$A$472) -> 0 | EI142: =COUNTIF($C142:$DR142,$A$473) -> 0 | EK142: =SUM(#REF!,$E142) ->  | EL142: =SUM(#REF!,$M142) ->  | EM142: 0 | EN142: 0 | EO142: 0 | EP142: 0 | EQ142: 0 | ER142: 0 | ES142: 0 | ET142: 0 | EU142: 0 | EV142: 0 | EW142: 0 | EX142: 0 | EY142: 0
A143: 3 | B143: 2025-12-31 | C143: Congé Noël | K143: Congé Noël | S143: Congé Noël | AA143: Congé Noël | AI143: Congé Noël | AQ143: Congé Noël | AY143: Congé Noël | BG143: Congé Noël | BO143: Congé Noël | DU143: =COUNTIF($C143:$DR143,$A$459) -> 0 | DV143: =COUNTIF($C143:$DR143,$A$460) -> 0 | DW143: =COUNTIF($C143:$DR143,$A$461) -> 0 | DX143: =COUNTIF($C143:$DR143,$A$462) -> 0 | DY143: =COUNTIF($C143:$DR143,$A$463) -> 0 | DZ143: =COUNTIF($C143:$DR143,$A$464) -> 0 | EA143: =COUNTIF($C143:$DR143,$A$465) -> 0 | EB143: =COUNTIF($C143:$DR143,$A$466) -> 0 | EC143: =COUNTIF($C143:$DR143,$A$467) -> 0 | ED143: =COUNTIF($C143:$DR143,$A$468) -> 0 | EE143: =COUNTIF($C143:$DR143,$A$469) -> 0 | EF143: =COUNTIF($C143:$DR143,$A$470) -> 0 | EG143: =COUNTIF($C143:$DR143,$A$471) -> 0 | EH143: =COUNTIF($C143:$DR143,$A$472) -> 0 | EI143: =COUNTIF($C143:$DR143,$A$473) -> 0 | EK143: =SUM(#REF!,$E143) ->  | EL143: =SUM(#REF!,$M143) ->  | EM143: 0 | EN143: =SUM(#REF!,AC143) ->  | EO143: 0 | EP143: 0 | EQ143: 0 | ER143: 0 | ES143: 0 | ET143: 0 | EU143: 0 | EV143: 0 | EW143: 0 | EX143: 0 | EY143: 0
A144: 4 | B144: 2026-01-01 | C144: Congé Noël | K144: Congé Noël | S144: Congé Noël | AA144: Congé Noël | AI144: Congé Noël | AQ144: Congé Noël | AY144: Congé Noël | BG144: Congé Noël | BO144: Congé Noël | DU144: 0 | DV144: 0 | DW144: 0 | DX144: 0 | DY144: 0 | DZ144: 0 | EA144: 0 | EB144: 0 | EC144: 0 | ED144: 0 | EE144: 0 | EF144: 0 | EG144: 0 | EH144: 0 | EI144: 0 | EK144: 0 | EL144: 0 | EM144: 0 | EN144: 0 | EO144: 0 | EP144: 0 | EQ144: 0 | ER144: 0 | ES144: 0 | ET144: 0 | EU144: 0 | EV144: 0 | EW144: 0 | EX144: 0 | EY144: 0
A145: 5 | B145: 2026-01-02 | C145: Congé Noël | K145: Congé Noël | S145: Congé Noël | AA145: Congé Noël | AI145: Congé Noël | AQ145: Congé Noël | AY145: Congé Noël | BG145: Congé Noël | BO145: Congé Noël | DU145: 0 | DV145: 0 | DW145: 0 | DX145: 0 | DY145: 0 | DZ145: 0 | EA145: 0 | EB145: 0 | EC145: 0 | ED145: 0 | EE145: 0 | EF145: 0 | EG145: 0 | EH145: 0 | EI145: 0 | EK145: 0 | EL145: 0 | EM145: 0 | EN145: 0 | EO145: 0 | EP145: 0 | EQ145: 0 | ER145: 0 | ES145: 0 | ET145: 0 | EU145: 0 | EV145: 0 | EW145: 0 | EX145: 0 | EY145: 0
A146: 6 | B146: 2026-01-03 | C146: WEEK-END | K146: WEEK-END | S146: WEEK-END | AA146: WEEK-END | AI146: WEEK-END | AQ146: WEEK-END | AY146: WEEK-END | BG146: WEEK-END | BO146: WEEK-END | DU146: 0 | DV146: 0 | DW146: 0 | DX146: 0 | DY146: 0 | DZ146: 0 | EA146: 0 | EB146: 0 | EC146: 0 | ED146: 0 | EE146: 0 | EF146: 0 | EG146: 0 | EH146: 0 | EI146: 0 | EK146: 0 | EL146: 0 | EM146: 0 | EN146: 0 | EO146: 0 | EP146: 0 | EQ146: 0 | ER146: 0 | ES146: 0 | ET146: 0 | EU146: 0 | EV146: 0 | EW146: 0 | EX146: 0 | EY146: 0
A147: 7 | B147: 2026-01-04 | C147: WEEK-END | K147: WEEK-END | S147: WEEK-END | AA147: WEEK-END | AI147: WEEK-END | AQ147: WEEK-END | AY147: WEEK-END | BG147: WEEK-END | BO147: WEEK-END | DU147: 0 | DV147: 0 | DW147: 0 | DX147: 0 | DY147: 0 | DZ147: 0 | EA147: 0 | EB147: 0 | EC147: 0 | ED147: 0 | EE147: 0 | EF147: 0 | EG147: 0 | EH147: 0 | EI147: 0 | EK147: 0 | EL147: 0 | EM147: 0 | EN147: 0 | EO147: 0 | EP147: 0 | EQ147: 0 | ER147: 0 | ES147: 0 | ET147: 0 | EU147: 0 | EV147: 0 | EW147: 0 | EX147: 0 | EY147: 0
A148: 1 | B148: 2026-01-05 | C148: Pédagogique Commune | K148: Pédagogique Commune | S148: Pédagogique Commune | AA148: Pédagogique Commune | AI148: Pédagogique Commune | AQ148: Pédagogique Commune | AY148: Pédagogique Commune | BG148: Pédagogique Commune | BO148: Pédagogique Commune | DU148: =COUNTIF($C148:$DR148,$A$459) -> 0 | DV148: =COUNTIF($C148:$DR148,$A$460) -> 0 | DW148: =COUNTIF($C148:$DR148,$A$461) -> 0 | DX148: =COUNTIF($C148:$DR148,$A$462) -> 0 | DY148: =COUNTIF($C148:$DR148,$A$463) -> 0 | DZ148: =COUNTIF($C148:$DR148,$A$464) -> 0 | EA148: =COUNTIF($C148:$DR148,$A$465) -> 0 | EB148: =COUNTIF($C148:$DR148,$A$466) -> 0 | EC148: =COUNTIF($C148:$DR148,$A$467) -> 0 | ED148: =COUNTIF($C148:$DR148,$A$468) -> 0 | EE148: =COUNTIF($C148:$DR148,$A$469) -> 0 | EF148: =COUNTIF($C148:$DR148,$A$470) -> 0 | EG148: =COUNTIF($C148:$DR148,$A$471) -> 0 | EH148: =COUNTIF($C148:$DR148,$A$472) -> 0 | EI148: =COUNTIF($C148:$DR148,$A$473) -> 0 | EK148: =SUM(#REF!,$E148) ->  | EL148: =SUM(#REF!,$M148) ->  | EM148: 0 | EN148: =SUM(#REF!,AC148) ->  | EO148: 0 | EP148: 0 | EQ148: 0 | ER148: 0 | ES148: 0 | ET148: 0 | EU148: 0 | EV148: 0 | EW148: 0 | EX148: 0 | EY148: 0
A149: 2 | B149: 2026-01-06 | K149: 23 | L149: mc | M149: 6 | S149: 19 | T149: yc | U149: 6 | AA149: 14 | AB149: mp | AC149: 6 | AI149: 15 | AJ149: rg | AK149: 6 | AQ149: 10 | AR149: jr | AS149: 6 | AY149: 1 | AZ149: cg | BA149: 6 | DU149: =COUNTIF($C149:$DR149,$A$459) -> 0 | DV149: =COUNTIF($C149:$DR149,$A$460) -> 1 | DW149: =COUNTIF($C149:$DR149,$A$461) -> 1 | DX149: =COUNTIF($C149:$DR149,$A$462) -> 1 | DY149: =COUNTIF($C149:$DR149,$A$463) -> 1 | DZ149: =COUNTIF($C149:$DR149,$A$464) -> 1 | EA149: =COUNTIF($C149:$DR149,$A$465) -> 1 | EB149: =COUNTIF($C149:$DR149,$A$466) -> 0 | EC149: =COUNTIF($C149:$DR149,$A$467) -> 0 | ED149: =COUNTIF($C149:$DR149,$A$468) -> 0 | EE149: =COUNTIF($C149:$DR149,$A$469) -> 0 | EF149: =COUNTIF($C149:$DR149,$A$470) -> 0 | EG149: =COUNTIF($C149:$DR149,$A$471) -> 0 | EH149: =COUNTIF($C149:$DR149,$A$472) -> 0 | EI149: =COUNTIF($C149:$DR149,$A$473) -> 0 | EK149: =SUM(#REF!,$E149) ->  | EL149: =SUM(#REF!,$M149) ->  | EM149: 6 | EN149: =SUM(#REF!,AC149) ->  | EO149: 6 | EP149: =SUM(AS113,AW113) -> 6 | EQ149: =SUM(BA113,BE149) -> 0 | ER149: 0 | ES149: 0 | ET149: 0 | EU149: 0 | EV149: 0 | EW149: 0 | EX149: 0 | EY149: 0
A150: 3 | B150: 2026-01-07 | K150: 23 | L150: mc | M150: 6 | S150: 19 | T150: yc | U150: 6 | AA150: 14 | AB150: mp | AC150: 6 | AI150: 15 | AJ150: rg | AK150: 6 | AQ150: 10 | AR150: jr | AS150: 6 | AY150: 1 | AZ150: cg | BA150: 6 | DU150: =COUNTIF($C150:$DR150,$A$459) -> 0 | DV150: =COUNTIF($C150:$DR150,$A$460) -> 1 | DW150: =COUNTIF($C150:$DR150,$A$461) -> 1 | DX150: =COUNTIF($C150:$DR150,$A$462) -> 1 | DY150: =COUNTIF($C150:$DR150,$A$463) -> 1 | DZ150: =COUNTIF($C150:$DR150,$A$464) -> 1 | EA150: =COUNTIF($C150:$DR150,$A$465) -> 1 | EB150: =COUNTIF($C150:$DR150,$A$466) -> 0 | EC150: =COUNTIF($C150:$DR150,$A$467) -> 0 | ED150: =COUNTIF($C150:$DR150,$A$468) -> 0 | EE150: =COUNTIF($C150:$DR150,$A$469) -> 0 | EF150: =COUNTIF($C150:$DR150,$A$470) -> 0 | EG150: =COUNTIF($C150:$DR150,$A$471) -> 0 | EH150: =COUNTIF($C150:$DR150,$A$472) -> 0 | EI150: =COUNTIF($C150:$DR150,$A$473) -> 0 | EK150: =SUM(#REF!,$E150) ->  | EL150: =SUM(#REF!,$M150) ->  | EM150: =SUM(#REF!,$U150) ->  | EN150: =SUM(#REF!,AC150) ->  | EO150: 6 | EP150: =SUM(#REF!,#REF!) ->  | EQ150: =SUM(BA115,BE151) -> 0 | ER150: 0 | ES150: 0 | ET150: 0 | EU150: 0 | EV150: 0 | EW150: 0 | EX150: 0 | EY150: 0
A151: 4 | B151: 2026-01-08 | K151: 23 | L151: mc | M151: 6 | S151: 19 | T151: yc | U151: 6 | AA151: 14 | AB151: mp | AC151: 6 | AI151: 15 | AJ151: rg | AK151: 6 | AQ151: 10 | AR151: jr | AS151: 6 | AY151: 2 | AZ151: cg | BA151: 6 | BO151: 4 | BP151: np | BQ151: 6 | DU151: =COUNTIF($C151:$DR151,$A$459) -> 0 | DV151: =COUNTIF($C151:$DR151,$A$460) -> 1 | DW151: =COUNTIF($C151:$DR151,$A$461) -> 1 | DX151: =COUNTIF($C151:$DR151,$A$462) -> 1 | DY151: =COUNTIF($C151:$DR151,$A$463) -> 1 | DZ151: =COUNTIF($C151:$DR151,$A$464) -> 1 | EA151: =COUNTIF($C151:$DR151,$A$465) -> 1 | EB151: =COUNTIF($C151:$DR151,$A$466) -> 1 | EC151: =COUNTIF($C151:$DR151,$A$467) -> 0 | ED151: =COUNTIF($C151:$DR151,$A$468) -> 0 | EE151: =COUNTIF($C151:$DR151,$A$469) -> 0 | EF151: =COUNTIF($C151:$DR151,$A$470) -> 0 | EG151: =COUNTIF($C151:$DR151,$A$471) -> 0 | EH151: =COUNTIF($C151:$DR151,$A$472) -> 0 | EI151: =COUNTIF($C151:$DR151,$A$473) -> 0 | EK151: =SUM(#REF!,$E151) ->  | EL151: =SUM(#REF!,$M151) ->  | EM151: =SUM(#REF!,$U151) ->  | EN151: =SUM(#REF!,AC151) ->  | EO151: 6 | EP151: =SUM(AS116,AW116) -> 6 | EQ151: =SUM(BA158,BE158) -> 6 | ER151: 0 | ES151: 6 | ET151: 0 | EU151: 0 | EV151: 0 | EW151: 0 | EX151: 0 | EY151: 0
A152: 5 | B152: 2026-01-09 | K152: 23 | L152: mc | M152: 6 | S152: 19 | T152: yc | U152: 6 | AA152: 14 | AB152: mp | AC152: 6 | AI152: 15 | AJ152: rg | AK152: 6 | AQ152: 10 | AR152: jr | AS152: 6 | AY152: 2 | AZ152: cg | BA152: 6 | BO152: 4 | BP152: np | BQ152: 6 | DU152: =COUNTIF($C152:$DR152,$A$459) -> 0 | DV152: =COUNTIF($C152:$DR152,$A$460) -> 1 | DW152: =COUNTIF($C152:$DR152,$A$461) -> 1 | DX152: =COUNTIF($C152:$DR152,$A$462) -> 1 | DY152: =COUNTIF($C152:$DR152,$A$463) -> 1 | DZ152: =COUNTIF($C152:$DR152,$A$464) -> 1 | EA152: =COUNTIF($C152:$DR152,$A$465) -> 1 | EB152: =COUNTIF($C152:$DR152,$A$466) -> 1 | EC152: =COUNTIF($C152:$DR152,$A$467) -> 0 | ED152: =COUNTIF($C152:$DR152,$A$468) -> 0 | EE152: =COUNTIF($C152:$DR152,$A$469) -> 0 | EF152: =COUNTIF($C152:$DR152,$A$470) -> 0 | EG152: =COUNTIF($C152:$DR152,$A$471) -> 0 | EH152: =COUNTIF($C152:$DR152,$A$472) -> 0 | EI152: =COUNTIF($C152:$DR152,$A$473) -> 0 | EK152: =SUM(#REF!,$E152) ->  | EL152: =SUM(#REF!,$M152) ->  | EM152: =SUM(#REF!,$U152) ->  | EN152: =SUM(#REF!,AC152) ->  | EO152: 6 | EP152: =SUM(AS121,AW121) -> 6 | EQ152: =SUM(BA149,BE152) -> 6 | ER152: 0 | ES152: 6 | ET152: 0 | EU152: 0 | EV152: 0 | EW152: 0 | EX152: 0 | EY152: 0
A153: 6 | B153: 2026-01-10 | C153: WEEK-END | K153: WEEK-END | S153: WEEK-END | AA153: WEEK-END | AI153: WEEK-END | AQ153: WEEK-END | AY153: WEEK-END | BG153: WEEK-END | BO153: WEEK-END | DU153: 0 | DV153: 0 | DW153: 0 | DX153: 0 | DY153: 0 | DZ153: 0 | EA153: 0 | EB153: 0 | EC153: 0 | ED153: 0 | EE153: 0 | EF153: 0 | EG153: 0 | EH153: 0 | EI153: 0 | EK153: 0 | EL153: 0 | EM153: 0 | EN153: 0 | EO153: 0 | EP153: 0 | EQ153: 0 | ER153: 0 | ES153: 0 | ET153: 0 | EU153: 0 | EV153: 0 | EW153: 0 | EX153: 0 | EY153: 0
A154: 7 | B154: 2026-01-11 | C154: WEEK-END | K154: WEEK-END | S154: WEEK-END | AA154: WEEK-END | AI154: WEEK-END | AQ154: WEEK-END | AY154: WEEK-END | BG154: WEEK-END | BO154: WEEK-END | DU154: 0 | DV154: 0 | DW154: 0 | DX154: 0 | DY154: 0 | DZ154: 0 | EA154: 0 | EB154: 0 | EC154: 0 | ED154: 0 | EE154: 0 | EF154: 0 | EG154: 0 | EH154: 0 | EI154: 0 | EK154: 0 | EL154: 0 | EM154: 0 | EN154: 0 | EO154: 0 | EP154: 0 | EQ154: 0 | ER154: 0 | ES154: 0 | ET154: 0 | EU154: 0 | EV154: 0 | EW154: 0 | EX154: 0 | EY154: 0
A155: 1 | B155: 2026-01-12 | K155: 23 | L155: mc | M155: 6 | S155: 19 | T155: yc | U155: 6 | V155: EX | AA155: 90 | AB155: np | AC155: 6 | AD155: R13 | AI155: 15 | AJ155: rg | AK155: 6 | AL155: EX | AQ155: 10 | AR155: jr | AS155: 6 | AY155: Congé | DU155: =COUNTIF($C155:$DR155,$A$459) -> 0 | DV155: =COUNTIF($C155:$DR155,$A$460) -> 0 | DW155: =COUNTIF($C155:$DR155,$A$461) -> 0 | DX155: =COUNTIF($C155:$DR155,$A$462) -> 1 | DY155: =COUNTIF($C155:$DR155,$A$463) -> 1 | DZ155: =COUNTIF($C155:$DR155,$A$464) -> 1 | EA155: =COUNTIF($C155:$DR155,$A$465) -> 1 | EB155: =COUNTIF($C155:$DR155,$A$466) -> 1 | EC155: =COUNTIF($C155:$DR155,$A$467) -> 0 | ED155: =COUNTIF($C155:$DR155,$A$468) -> 0 | EE155: =COUNTIF($C155:$DR155,$A$469) -> 0 | EF155: =COUNTIF($C155:$DR155,$A$470) -> 0 | EG155: =COUNTIF($C155:$DR155,$A$471) -> 0 | EH155: =COUNTIF($C155:$DR155,$A$472) -> 0 | EI155: =COUNTIF($C155:$DR155,$A$473) -> 0 | EK155: =SUM(#REF!,$E155) ->  | EL155: =SUM(#REF!,$M155) ->  | EM155: =SUM(#REF!,$U155) ->  | EN155: =SUM(#REF!,AC155) ->  | EO155: 6 | EP155: =SUM(AS129,AW129) -> 6 | EQ155: =SUM(BA150,BE155) -> 6 | ER155: =SUM(BI176,BM155) -> 0 | ES155: 0 | ET155: 0 | EU155: 0 | EV155: 0 | EW155: 0 | EX155: 0 | EY155: 0
A156: 2 | B156: 2026-01-13 | K156: 23 | L156: mc | M156: 6 | S156: 19 | T156: yc | U156: 6 | V156: EX | AA156: 14 | AB156: mp | AC156: 6 | AI156: 15 | AJ156: rg | AK156: 6 | AL156: EX | AM156: 33 | AN156: cg | AO156: 3 | AP156: X17 | AQ156: 10 | AR156: jr | AS156: 6 | AY156: 1 | AZ156: sb | BA156: 6 | DU156: =COUNTIF($C156:$DR156,$A$459) -> 1 | DV156: =COUNTIF($C156:$DR156,$A$460) -> 1 | DW156: =COUNTIF($C156:$DR156,$A$461) -> 1 | DX156: =COUNTIF($C156:$DR156,$A$462) -> 1 | DY156: =COUNTIF($C156:$DR156,$A$463) -> 1 | DZ156: =COUNTIF($C156:$DR156,$A$464) -> 1 | EA156: =COUNTIF($C156:$DR156,$A$465) -> 1 | EB156: =COUNTIF($C156:$DR156,$A$466) -> 0 | EC156: =COUNTIF($C156:$DR156,$A$467) -> 0 | ED156: =COUNTIF($C156:$DR156,$A$468) -> 0 | EE156: =COUNTIF($C156:$DR156,$A$469) -> 0 | EF156: =COUNTIF($C156:$DR156,$A$470) -> 0 | EG156: =COUNTIF($C156:$DR156,$A$471) -> 0 | EH156: =COUNTIF($C156:$DR156,$A$472) -> 0 | EI156: =COUNTIF($C156:$DR156,$A$473) -> 0 | EK156: =SUM(#REF!,$E156) ->  | EL156: =SUM(#REF!,$M156) ->  | EM156: =SUM(#REF!,$U156) ->  | EN156: =SUM(#REF!,AC156) ->  | EO156: 9 | EP156: =SUM(AS122,AW122) -> 6 | EQ156: =SUM(BA151,BE156) -> 6 | ER156: =SUM(BI177,BM177) -> 0 | ES156: 0 | ET156: 0 | EU156: 0 | EV156: 0 | EW156: 0 | EX156: 0 | EY156: 0
A157: 3 | B157: 2026-01-14 | K157: 23 | L157: mc | M157: 6 | S157: 20 | T157: sb | U157: 3 | W157: 24 | X157: sb | Y157: 3 | Z157: ST | AA157: 14 | AB157: mp | AC157: 6 | AI157: 13 | AJ157: cg | AK157: 6 | AQ157: 90 | AR157: np | AS157: 6 | AT157: R9 | AY157: 2 | AZ157: yc | BA157: 6 | DU157: =COUNTIF($C157:$DR157,$A$459) -> 2 | DV157: =COUNTIF($C157:$DR157,$A$460) -> 1 | DW157: =COUNTIF($C157:$DR157,$A$461) -> 1 | DX157: =COUNTIF($C157:$DR157,$A$462) -> 0 | DY157: =COUNTIF($C157:$DR157,$A$463) -> 1 | DZ157: =COUNTIF($C157:$DR157,$A$464) -> 1 | EA157: =COUNTIF($C157:$DR157,$A$465) -> 0 | EB157: =COUNTIF($C157:$DR157,$A$466) -> 1 | EC157: =COUNTIF($C157:$DR157,$A$467) -> 0 | ED157: =COUNTIF($C157:$DR157,$A$468) -> 0 | EE157: =COUNTIF($C157:$DR157,$A$469) -> 0 | EF157: =COUNTIF($C157:$DR157,$A$470) -> 0 | EG157: =COUNTIF($C157:$DR157,$A$471) -> 0 | EH157: =COUNTIF($C157:$DR157,$A$472) -> 0 | EI157: =COUNTIF($C157:$DR157,$A$473) -> 0 | EK157: =SUM(#REF!,$E157) ->  | EL157: =SUM(#REF!,$M157) ->  | EM157: =SUM(#REF!,$U157) ->  | EN157: =SUM(#REF!,AC157) ->  | EO157: 6 | EP157: =SUM(AS123,AW123) -> 6 | EQ157: =SUM(BA152,BE157) -> 6 | ER157: =SUM(BI178,BM178) -> 0 | ES157: 0 | ET157: 0 | EU157: 0 | EV157: 0 | EW157: 0 | EX157: 0 | EY157: 0
A158: 4 | B158: 2026-01-15 | K158: 90 | L158: mc | M158: 6 | N158: R21 | S158: 20 | T158: rg | U158: 6 | AA158: 14 | AB158: mp | AC158: 6 | AD158: EX | AI158: 13 | AJ158: cg | AK158: 6 | AQ158: 10 | AR158: jr | AS158: 6 | AT158: EX | AY158: 2 | AZ158: sb | BA158: 6 | BO158: 4 | BP158: np | BQ158: 6 | DU158: =COUNTIF($C158:$DR158,$A$459) -> 1 | DV158: =COUNTIF($C158:$DR158,$A$460) -> 1 | DW158: =COUNTIF($C158:$DR158,$A$461) -> 1 | DX158: =COUNTIF($C158:$DR158,$A$462) -> 1 | DY158: =COUNTIF($C158:$DR158,$A$463) -> 0 | DZ158: =COUNTIF($C158:$DR158,$A$464) -> 1 | EA158: =COUNTIF($C158:$DR158,$A$465) -> 1 | EB158: =COUNTIF($C158:$DR158,$A$466) -> 1 | EC158: =COUNTIF($C158:$DR158,$A$467) -> 0 | ED158: =COUNTIF($C158:$DR158,$A$468) -> 0 | EE158: =COUNTIF($C158:$DR158,$A$469) -> 0 | EF158: =COUNTIF($C158:$DR158,$A$470) -> 0 | EG158: =COUNTIF($C158:$DR158,$A$471) -> 0 | EH158: =COUNTIF($C158:$DR158,$A$472) -> 0 | EI158: =COUNTIF($C158:$DR158,$A$473) -> 0 | EK158: =SUM(#REF!,$E158) ->  | EL158: =SUM(#REF!,$M162) ->  | EM158: =SUM(#REF!,$U158) ->  | EN158: =SUM(#REF!,AC158) ->  | EO158: 6 | EP158: =SUM(AS124,AW124) -> 6 | EQ158: =SUM(BA155,#REF!) ->  | ER158: =SUM(BI179,BM179) -> 0 | ES158: 6 | ET158: 0 | EU158: 0 | EV158: 0 | EW158: 0 | EX158: 0 | EY158: 0
A159: 5 | B159: 2026-01-16 | K159: 23 | L159: mc | M159: 6 | N159: EX | S159: 20 | T159: rg | U159: 6 | AA159: 14 | AB159: mp | AC159: 6 | AD159: EX | AE159: 33 | AF159: yc | AG159: 3 | AH159: X13 | AI159: 13 | AJ159: cg | AK159: 6 | AQ159: 10 | AR159: jr | AS159: 6 | AT159: EX | AU159: 33 | AV159: yc | AW159: 3 | AX159: X9 | AY159: 2 | AZ159: sb | BA159: 6 | BB159: EX | BO159: 4 | BP159: np | BQ159: 6 | DU159: =COUNTIF($C159:$DR159,$A$459) -> 1 | DV159: =COUNTIF($C159:$DR159,$A$460) -> 1 | DW159: =COUNTIF($C159:$DR159,$A$461) -> 1 | DX159: =COUNTIF($C159:$DR159,$A$462) -> 1 | DY159: =COUNTIF($C159:$DR159,$A$463) -> 2 | DZ159: =COUNTIF($C159:$DR159,$A$464) -> 1 | EA159: =COUNTIF($C159:$DR159,$A$465) -> 1 | EB159: =COUNTIF($C159:$DR159,$A$466) -> 1 | EC159: =COUNTIF($C159:$DR159,$A$467) -> 0 | ED159: =COUNTIF($C159:$DR159,$A$468) -> 0 | EE159: =COUNTIF($C159:$DR159,$A$469) -> 0 | EF159: =COUNTIF($C159:$DR159,$A$470) -> 0 | EG159: =COUNTIF($C159:$DR159,$A$471) -> 0 | EH159: =COUNTIF($C159:$DR159,$A$472) -> 0 | EI159: =COUNTIF($C159:$DR159,$A$473) -> 0 | EK159: =SUM(#REF!,$E159) ->  | EL159: =SUM(#REF!,$M159) ->  | EM159: =SUM(#REF!,$U159) ->  | EN159: =SUM(#REF!,AC159) ->  | EO159: 6 | EP159: =SUM(AS150,AW150) -> 6 | EQ159: =SUM(#REF!,#REF!) ->  | ER159: =SUM(BI180,BM180) -> 0 | ES159: 6 | ET159: 0 | EU159: 0 | EV159: 0 | EW159: 0 | EX159: 0 | EY159: 0
A160: 6 | B160: 2026-01-17 | C160: WEEK-END | K160: WEEK-END | S160: WEEK-END | AA160: WEEK-END | AI160: WEEK-END | AQ160: WEEK-END | AY160: WEEK-END | BG160: WEEK-END | BO160: WEEK-END | DU160: 0 | DV160: 0 | DW160: 0 | DX160: 0 | DY160: 0 | DZ160: 0 | EA160: 0 | EB160: 0 | EC160: 0 | ED160: 0 | EE160: 0 | EF160: 0 | EG160: 0 | EH160: 0 | EI160: 0 | EK160: 0 | EL160: 0 | EM160: 0 | EN160: 0 | EO160: 0 | EP160: 0 | EQ160: 0 | ER160: =SUM(BI160,BM160) -> 0 | ES160: 0 | ET160: 0 | EU160: 0 | EV160: 0 | EW160: 0 | EX160: 0 | EY160: 0
A161: 7 | B161: 2026-01-18 | C161: WEEK-END | K161: WEEK-END | S161: WEEK-END | AA161: WEEK-END | AI161: WEEK-END | AQ161: WEEK-END | AY161: WEEK-END | BG161: WEEK-END | BO161: WEEK-END | DU161: 0 | DV161: 0 | DW161: 0 | DX161: 0 | DY161: 0 | DZ161: 0 | EA161: 0 | EB161: 0 | EC161: 0 | ED161: 0 | EE161: 0 | EF161: 0 | EG161: 0 | EH161: 0 | EI161: 0 | EK161: 0 | EL161: 0 | EM161: 0 | EN161: 0 | EO161: 0 | EP161: 0 | EQ161: 0 | ER161: =SUM(BI161,BM161) -> 0 | ES161: 0 | ET161: 0 | EU161: 0 | EV161: 0 | EW161: 0 | EX161: 0 | EY161: 0
A162: 1 | B162: 2026-01-19 | K162: 23 | L162: mc | M162: 6 | N162: EX | O162: 33 | P162: yc | Q162: 6 | R162: X21 | S162: 20 | T162: rg | U162: 6 | AA162: 22 | AB162: sb | AC162: 6 | AI162: 13 | AJ162: cg | AK162: 6 | AQ162: 8 | AR162: jr | AS162: 6 | AY162: Congé | DU162: =COUNTIF($C162:$DR162,$A$459) -> 1 | DV162: =COUNTIF($C162:$DR162,$A$460) -> 0 | DW162: =COUNTIF($C162:$DR162,$A$461) -> 1 | DX162: =COUNTIF($C162:$DR162,$A$462) -> 1 | DY162: =COUNTIF($C162:$DR162,$A$463) -> 1 | DZ162: =COUNTIF($C162:$DR162,$A$464) -> 1 | EA162: =COUNTIF($C162:$DR162,$A$465) -> 1 | EB162: =COUNTIF($C162:$DR162,$A$466) -> 0 | EC162: =COUNTIF($C162:$DR162,$A$467) -> 0 | ED162: =COUNTIF($C162:$DR162,$A$468) -> 0 | EE162: =COUNTIF($C162:$DR162,$A$469) -> 0 | EF162: =COUNTIF($C162:$DR162,$A$470) -> 0 | EG162: =COUNTIF($C162:$DR162,$A$471) -> 0 | EH162: =COUNTIF($C162:$DR162,$A$472) -> 0 | EI162: =COUNTIF($C162:$DR162,$A$473) -> 0 | EK162: =SUM(#REF!,$E162) ->  | EL162: =SUM(#REF!,$M163) ->  | EM162: =SUM(#REF!,$U162) ->  | EN162: =SUM(#REF!,AC162) ->  | EO162: 6 | EP162: =SUM(AS127,AW127) -> 6 | EQ162: =SUM(BA156,BE159) -> 6 | ER162: =SUM(BI169,BM169) -> 0 | ES162: 0 | ET162: 0 | EU162: 0 | EV162: 0 | EW162: 0 | EX162: 0 | EY162: 0
A163: 2 | B163: 2026-01-20 | K163: 95 | M163: 6 | S163: 20 | T163: rg | U163: 6 | AA163: 22 | AB163: mp | AC163: 6 | AI163: 13 | AJ163: cg | AK163: 6 | AQ163: 8 | AR163: jr | AS163: 6 | AY163: 3 | AZ163: mc | BA163: 6 | DU163: =COUNTIF($C163:$DR163,$A$459) -> 0 | DV163: =COUNTIF($C163:$DR163,$A$460) -> 1 | DW163: =COUNTIF($C163:$DR163,$A$461) -> 1 | DX163: =COUNTIF($C163:$DR163,$A$462) -> 1 | DY163: =COUNTIF($C163:$DR163,$A$463) -> 0 | DZ163: =COUNTIF($C163:$DR163,$A$464) -> 1 | EA163: =COUNTIF($C163:$DR163,$A$465) -> 1 | EB163: =COUNTIF($C163:$DR163,$A$466) -> 0 | EC163: =COUNTIF($C163:$DR163,$A$467) -> 0 | ED163: =COUNTIF($C163:$DR163,$A$468) -> 0 | EE163: =COUNTIF($C163:$DR163,$A$469) -> 0 | EF163: =COUNTIF($C163:$DR163,$A$470) -> 0 | EG163: =COUNTIF($C163:$DR163,$A$471) -> 0 | EH163: =COUNTIF($C163:$DR163,$A$472) -> 0 | EI163: =COUNTIF($C163:$DR163,$A$473) -> 0 | EK163: =SUM(#REF!,$E163) ->  | EL163: =SUM(#REF!,$M172) ->  | EM163: =SUM(#REF!,$U163) ->  | EN163: =SUM(#REF!,AC163) ->  | EO163: 6 | EP163: =SUM(AS128,AW128) -> 6 | EQ163: =SUM(BA159,BE162) -> 6 | ER163: =SUM(BI170,BM170) -> 0 | ES163: 0 | ET163: 0 | EU163: 0 | EV163: 0 | EW163: 0 | EX163: 0 | EY163: 0
A164: 3 | B164: 2026-01-21 | K164: 24 | L164: mp | M164: 6 | S164: 20 | T164: rg | U164: 6 | AA164: 22 | AB164: sb | AC164: 6 | AI164: 13 | AJ164: cg | AK164: 6 | AQ164: 8 | AR164: jr | AS164: 6 | AY164: 3 | AZ164: mc | BA164: 6 | DU164: =COUNTIF($C164:$DR164,$A$459) -> 1 | DV164: =COUNTIF($C164:$DR164,$A$460) -> 1 | DW164: =COUNTIF($C164:$DR164,$A$461) -> 1 | DX164: =COUNTIF($C164:$DR164,$A$462) -> 1 | DY164: =COUNTIF($C164:$DR164,$A$463) -> 0 | DZ164: =COUNTIF($C164:$DR164,$A$464) -> 1 | EA164: =COUNTIF($C164:$DR164,$A$465) -> 1 | EB164: =COUNTIF($C164:$DR164,$A$466) -> 0 | EC164: =COUNTIF($C164:$DR164,$A$467) -> 0 | ED164: =COUNTIF($C164:$DR164,$A$468) -> 0 | EE164: =COUNTIF($C164:$DR164,$A$469) -> 0 | EF164: =COUNTIF($C164:$DR164,$A$470) -> 0 | EG164: =COUNTIF($C164:$DR164,$A$471) -> 0 | EH164: =COUNTIF($C164:$DR164,$A$472) -> 0 | EI164: =COUNTIF($C164:$DR164,$A$473) -> 0 | EK164: =SUM(#REF!,$E164) ->  | EL164: =SUM(#REF!,$M164) ->  | EM164: =SUM(#REF!,$U164) ->  | EN164: =SUM(#REF!,AC172) ->  | EO164: 6 | EP164: =SUM(AS151,AW151) -> 6 | EQ164: =SUM(BA162,BE165) -> 0 | ER164: =SUM(BI171,BM171) -> 0 | ES164: 0 | ET164: 0 | EU164: 0 | EV164: 0 | EW164: 0 | EX164: 0 | EY164: 0
A165: 4 | B165: 2026-01-22 | K165: 24 | L165: mp | M165: 6 | S165: 20 | T165: rg | U165: 6 | AA165: 22 | AB165: sb | AC165: 6 | AI165: 13 | AJ165: cg | AK165: 6 | AQ165: 8 | AR165: jr | AS165: 6 | AY165: 3 | AZ165: mc | BA165: 6 | DU165: 1 | DV165: 1 | DW165: 1 | DX165: 1 | DY165: 0 | DZ165: 1 | EA165: 1 | EB165: 0 | EC165: 0 | ED165: 0 | EE165: 0 | EF165: 0 | EG165: 0 | EH165: 0 | EI165: 0 | EK165: 0 | EL165: =SUM(#REF!,$M165) ->  | EM165: =SUM(#REF!,$U165) ->  | EN165: =SUM(#REF!,AC159) ->  | EO165: 6 | EP165: =SUM(AS152,#REF!) ->  | EQ165: =SUM(BA165,BE163) -> 6 | ER165: =SUM(BI172,BM172) -> 0 | ES165: 0 | ET165: 0 | EU165: 0 | EV165: 0 | EW165: 0 | EX165: 0 | EY165: 0
A166: 5 | B166: 2026-01-23 | K166: 95 | M166: 6 | S166: 90 | T166: mp | U166: 6 | V166: R19 | AA166: 22 | AB166: sb | AC166: 6 | AI166: 13 | AJ166: yc | AK166: 6 | AQ166: Congé | AY166: 3 | AZ166: mc | BA166: 6 | BB166: EX | DU166: 1 | DV166: 1 | DW166: 0 | DX166: 0 | DY166: 1 | DZ166: 1 | EA166: 0 | EB166: 0 | EC166: 0 | ED166: 0 | EE166: 0 | EF166: 0 | EG166: 0 | EH166: 0 | EI166: 0 | EK166: 0 | EL166: 6 | EM166: 6 | EN166: =SUM(AC160,AG160) -> 0 | EO166: 6 | EP166: =SUM(AS130,AW130) -> 6 | EQ166: =SUM(BA163,BE164) -> 6 | ER166: =SUM(#REF!,BM176) ->  | ES166: 0 | ET166: 0 | EU166: 0 | EV166: 0 | EW166: 0 | EX166: 0 | EY166: 0
A167: 6 | B167: 2026-01-24 | C167: WEEK-END | K167: WEEK-END | S167: WEEK-END | AA167: WEEK-END | AI167: WEEK-END | AQ167: WEEK-END | AY167: WEEK-END | BG167: WEEK-END | BO167: WEEK-END | DU167: 0 | DV167: 0 | DW167: 0 | DX167: 0 | DY167: 0 | DZ167: 0 | EA167: 0 | EB167: 0 | EC167: 0 | ED167: 0 | EE167: 0 | EF167: 0 | EG167: 0 | EH167: 0 | EI167: 0 | EK167: 0 | EL167: 0 | EM167: 0 | EN167: 0 | EO167: 0 | EP167: 0 | EQ167: 0 | ER167: =SUM(BI167,BM167) -> 0 | ES167: 0 | ET167: 0 | EU167: 0 | EV167: 0 | EW167: 0 | EX167: 0 | EY167: 0
A168: 7 | B168: 2026-01-25 | C168: WEEK-END | K168: WEEK-END | S168: WEEK-END | AA168: WEEK-END | AI168: WEEK-END | AQ168: WEEK-END | AY168: WEEK-END | BG168: WEEK-END | BO168: WEEK-END | DU168: 0 | DV168: 0 | DW168: 0 | DX168: 0 | DY168: 0 | DZ168: 0 | EA168: 0 | EB168: 0 | EC168: 0 | ED168: 0 | EE168: 0 | EF168: 0 | EG168: 0 | EH168: 0 | EI168: 0 | EK168: 0 | EL168: 0 | EM168: 0 | EN168: 0 | EO168: 0 | EP168: 0 | EQ168: 0 | ER168: =SUM(BI168,BM168) -> 0 | ES168: 0 | ET168: 0 | EU168: 0 | EV168: 0 | EW168: 0 | EX168: 0 | EY168: 0
A169: 1 | B169: 2026-01-26 | K169: 95 | M169: 6 | S169: 20 | T169: rg | U169: 6 | AA169: 22 | AB169: sb | AC169: 6 | AI169: 13 | AJ169: cg | AK169: 6 | AQ169: 8 | AR169: jr | AS169: 6 | AY169: 90 | AZ169: yc | BA169: 3 | BB169: R3 | BC169: 90 | BD169: yc | BE169: 3 | BF169: R2 | DU169: 1 | DV169: 0 | DW169: 1 | DX169: 1 | DY169: 2 | DZ169: 0 | EA169: 1 | EB169: 0 | EC169: 0 | ED169: 0 | EE169: 0 | EF169: 0 | EG169: 0 | EH169: 0 | EI169: 0 | EK169: 0 | EL169: =SUM(#REF!,$M169) ->  | EM169: =SUM(#REF!,$U169) ->  | EN169: =SUM(#REF!,AC169) ->  | EO169: 6 | EP169: =SUM(#REF!,#REF!) ->  | EQ169: =SUM(BA164,BE169) -> 9 | ER169: =SUM(#REF!,#REF!) ->  | ES169: 0 | ET169: 0 | EU169: 0 | EV169: 0 | EW169: 0 | EX169: 0 | EY169: 0
A170: 2 | B170: 2026-01-27 | K170: 24 | L170: mp | M170: 6 | S170: 20 | T170: rg | U170: 6 | AA170: 22 | AB170: sb | AC170: 6 | AI170: 13 | AJ170: cg | AK170: 6 | AQ170: 8 | AR170: jr | AS170: 6 | AY170: 33 | AZ170: yc | BA170: 3 | BB170: X3 | BC170: 33 | BD170: yc | BE170: 3 | BF170: X2 | DU170: 1 | DV170: 1 | DW170: 1 | DX170: 1 | DY170: 2 | DZ170: 0 | EA170: 1 | EB170: 0 | EC170: 0 | ED170: 0 | EE170: 0 | EF170: 0 | EG170: 0 | EH170: 0 | EI170: 0 | EK170: 0 | EL170: =SUM(#REF!,$M170) ->  | EM170: =SUM(#REF!,$U170) ->  | EN170: 6 | EO170: 6 | EP170: =SUM(AS120,AW120) -> 6 | EQ170: 6 | ER170: =SUM(#REF!,#REF!) ->  | ES170: 0 | ET170: 0 | EU170: 0 | EV170: 0 | EW170: 0 | EX170: 0 | EY170: 0
A171: 3 | B171: 2026-01-28 | K171: 95 | M171: 6 | S171: 20 | T171: rg | U171: 6 | AA171: 22 | AB171: mp | AC171: 6 | AI171: 13 | AJ171: cg | AK171: 6 | AQ171: 8 | AR171: jr | AS171: 6 | AY171: 4 | AZ171: mc | BA171: 6 | DU171: 0 | DV171: 1 | DW171: 1 | DX171: 1 | DY171: 0 | DZ171: 1 | EA171: 1 | EB171: 0 | EC171: 0 | ED171: 0 | EE171: 0 | EF171: 0 | EG171: 0 | EH171: 0 | EI171: 0 | EK171: 0 | EL171: =SUM(#REF!,$M171) ->  | EM171: =SUM(#REF!,$U171) ->  | EN171: =SUM(#REF!,AC171) ->  | EO171: 6 | EP171: =SUM(#REF!,#REF!) ->  | EQ171: 6 | ER171: =SUM(#REF!,#REF!) ->  | ES171: 0 | ET171: 0 | EU171: 0 | EV171: 0 | EW171: 0 | EX171: 0 | EY171: 0
A172: 4 | B172: 2026-01-29 | K172: 24 | L172: mp | M172: 6 | S172: 20 | T172: rg | U172: 6 | AA172: 22 | AB172: sb | AC172: 6 | AI172: 13 | AJ172: cg | AK172: 6 | AQ172: 8 | AR172: jr | AS172: 6 | AY172: 4 | AZ172: mc | BA172: 6 | DU172: 1 | DV172: 1 | DW172: 1 | DX172: 1 | DY172: 0 | DZ172: 1 | EA172: 1 | EB172: 0 | EC172: 0 | ED172: 0 | EE172: 0 | EF172: 0 | EG172: 0 | EH172: 0 | EI172: 0 | EK172: 0 | EL172: =SUM($M176,$Q176) -> 6 | EM172: =SUM(#REF!,$U172) ->  | EN172: =SUM(#REF!,AC172) ->  | EO172: 6 | EP172: =SUM(AS156,AW156) -> 6 | EQ172: 6 | ER172: =SUM(#REF!,#REF!) ->  | ES172: 0 | ET172: 0 | EU172: 0 | EV172: 0 | EW172: 0 | EX172: 0 | EY172: 0
A173: 5 | B173: 2026-01-30 | C173: Pédagogique | K173: Pédagogique | S173: Pédagogique | AA173: Pédagogique | AI173: Pédagogique | AQ173: Pédagogique | AY173: Pédagogique | BG173: Pédagogique | BO173: Pédagogique | DU173: 0 | DV173: 0 | DW173: 0 | DX173: 0 | DY173: 0 | DZ173: 0 | EA173: 0 | EB173: 0 | EC173: 0 | ED173: 0 | EE173: 0 | EF173: 0 | EG173: 0 | EH173: 0 | EI173: 0 | EK173: 0 | EL173: =SUM(#REF!,$M173) ->  | EM173: =SUM(#REF!,$U173) ->  | EN173: =SUM(#REF!,AC173) ->  | EO173: 0 | EP173: 0 | EQ173: 0 | ER173: =SUM(BI173,BM173) -> 0 | ES173: 0 | ET173: 0 | EU173: 0 | EV173: 0 | EW173: 0 | EX173: 0 | EY173: 0
A174: 6 | B174: 2026-01-31 | C174: WEEK-END | K174: WEEK-END | S174: WEEK-END | AA174: WEEK-END | AI174: WEEK-END | AQ174: WEEK-END | AY174: WEEK-END | BG174: WEEK-END | BO174: WEEK-END | DU174: 0 | DV174: 0 | DW174: 0 | DX174: 0 | DY174: 0 | DZ174: 0 | EA174: 0 | EB174: 0 | EC174: 0 | ED174: 0 | EE174: 0 | EF174: 0 | EG174: 0 | EH174: 0 | EI174: 0 | EK174: 0 | EL174: 0 | EM174: 0 | EN174: 0 | EO174: 0 | EP174: 0 | EQ174: 0 | ER174: =SUM(BI174,BM174) -> 0 | ES174: 0 | ET174: 0 | EU174: 0 | EV174: 0 | EW174: 0 | EX174: 0 | EY174: 0
A175: 7 | B175: 2026-02-01 | C175: WEEK-END | K175: WEEK-END | S175: WEEK-END | AA175: WEEK-END | AI175: WEEK-END | AQ175: WEEK-END | AY175: WEEK-END | BG175: WEEK-END | BO175: WEEK-END | DU175: 0 | DV175: 0 | DW175: 0 | DX175: 0 | DY175: 0 | DZ175: 0 | EA175: 0 | EB175: 0 | EC175: 0 | ED175: 0 | EE175: 0 | EF175: 0 | EG175: 0 | EH175: 0 | EI175: 0 | EK175: 0 | EL175: 0 | EM175: 0 | EN175: 0 | EO175: 0 | EP175: 0 | EQ175: 0 | ER175: =SUM(BI175,BM175) -> 0 | ES175: 0 | ET175: 0 | EU175: 0 | EV175: 0 | EW175: 0 | EX175: 0 | EY175: 0
A176: 1 | B176: 2026-02-02 | K176: 95 | M176: 6 | S176: 20 | T176: rg | U176: 6 | V176: EX | W176: 33 | X176: mp | Y176: 3 | Z176: X19 | AA176: 22 | AB176: sb | AC176: 6 | AI176: 90 | AJ176: yc | AK176: 6 | AL176: R15 | AQ176: 8 | AR176: jr | AS176: 6 | AY176: Congé | DU176: 1 | DV176: 1 | DW176: 0 | DX176: 1 | DY176: 1 | DZ176: 0 | EA176: 1 | EB176: 0 | EC176: 0 | ED176: 0 | EE176: 0 | EF176: 0 | EG176: 0 | EH176: 0 | EI176: 0 | EK176: 0 | EL176: =SUM(#REF!,$M177) ->  | EM176: =SUM(#REF!,$U176) ->  | EN176: =SUM(#REF!,AC176) ->  | EO176: 6 | EP176: =SUM(AS157,AW157) -> 6 | EQ176: =SUM(BA166,BE166) -> 6 | ER176: =SUM(BI197,BM197) -> 6 | ES176: 0 | ET176: 0 | EU176: 0 | EV176: 0 | EW176: 0 | EX176: 0 | EY176: 0
A177: 2 | B177: 2026-02-03 | K177: 24 | L177: mp | M177: 6 | S177: 20 | T177: rg | U177: 6 | V177: EX | AA177: 22 | AB177: sb | AC177: 6 | AI177: 13 | AJ177: cg | AK177: 6 | AQ177: 8 | AR177: jr | AS177: 6 | AY177: 4 | AZ177: mc | BA177: 6 | DU177: 1 | DV177: 1 | DW177: 1 | DX177: 1 | DY177: 0 | DZ177: 1 | EA177: 1 | EB177: 0 | EC177: 0 | ED177: 0 | EE177: 0 | EF177: 0 | EG177: 0 | EH177: 0 | EI177: 0 | EK177: 0 | EL177: =SUM(#REF!,$M178) ->  | EM177: =SUM(#REF!,$U177) ->  | EN177: =SUM(#REF!,AC177) ->  | EO177: 6 | EP177: =SUM(AS158,AW158) -> 6 | EQ177: =SUM(#REF!,#REF!) ->  | ER177: =SUM(BI198,BM198) -> 6 | ES177: 0 | ET177: 0 | EU177: 0 | EV177: 0 | EW177: 0 | EX177: 0 | EY177: 0
A178: 3 | B178: 2026-02-04 | K178: 95 | M178: 6 | S178: 21 | T178: yc | U178: 6 | AA178: 22 | AB178: sb | AC178: 6 | AI178: 13 | AJ178: cg | AK178: 6 | AQ178: 8 | AR178: jr | AS178: 6 | AY178: 4 | AZ178: mc | BA178: 6 | DU178: 1 | DV178: 0 | DW178: 1 | DX178: 1 | DY178: 1 | DZ178: 1 | EA178: 0 | EB178: 0 | EC178: 0 | ED178: 0 | EE178: 0 | EF178: 0 | EG178: 0 | EH178: 0 | EI178: 0 | EK178: 0 | EL178: =SUM(#REF!,$M179) ->  | EM178: =SUM(#REF!,$U178) ->  | EN178: =SUM(#REF!,AC178) ->  | EO178: 6 | EP178: =SUM(AS159,AW159) -> 9 | EQ178: =SUM(BA177,BE177) -> 6 | ER178: =SUM(BI185,BM185) -> 0 | ES178: 0 | ET178: 0 | EU178: 0 | EV178: 0 | EW178: 0 | EX178: 0 | EY178: 0
A179: 4 | B179: 2026-02-05 | K179: 24 | L179: mp | M179: 6 | S179: 21 | T179: rg | U179: 6 | AA179: 22 | AB179: sb | AC179: 6 | AI179: 13 | AJ179: cg | AK179: 6 | AQ179: 90 | AR179: jr | AS179: 6 | AT179: R10 | AY179: 4 | AZ179: mc | BA179: 6 | DU179: 1 | DV179: 1 | DW179: 1 | DX179: 1 | DY179: 0 | DZ179: 1 | EA179: 1 | EB179: 0 | EC179: 0 | ED179: 0 | EE179: 0 | EF179: 0 | EG179: 0 | EH179: 0 | EI179: 0 | EK179: 0 | EL179: =SUM(#REF!,$M180) ->  | EM179: =SUM(#REF!,$U179) ->  | EN179: =SUM(#REF!,AC179) ->  | EO179: 6 | EP179: =SUM(AS162,AW162) -> 6 | EQ179: =SUM(BA176,BE176) -> 0 | ER179: =SUM(BI200,BM200) -> 6 | ES179: 0 | ET179: 0 | EU179: 0 | EV179: 0 | EW179: 0 | EX179: 0 | EY179: 0
A180: 5 | B180: 2026-02-06 | K180: 95 | M180: 6 | S180: 21 | T180: rg | U180: 6 | AA180: 90 | AB180: mp | AC180: 6 | AD180: R14 | AI180: 13 | AJ180: cg | AK180: 6 | AQ180: Congé | AY180: 4 | AZ180: mc | BA180: 6 | DU180: 0 | DV180: 1 | DW180: 1 | DX180: 0 | DY180: 0 | DZ180: 1 | EA180: 1 | EB180: 0 | EC180: 0 | ED180: 0 | EE180: 0 | EF180: 0 | EG180: 0 | EH180: 0 | EI180: 0 | EK180: 0 | EL180: =SUM(#REF!,$M183) ->  | EM180: =SUM(#REF!,$U180) ->  | EN180: =SUM(#REF!,AC180) ->  | EO180: 6 | EP180: =SUM(AS163,AW163) -> 6 | EQ180: =SUM(BA169,BE180) -> 3 | ER180: =SUM(BI201,BM201) -> 6 | ES180: 0 | ET180: 0 | EU180: 0 | EV180: 0 | EW180: 0 | EX180: 0 | EY180: 0
A181: 6 | B181: 2026-02-07 | C181: WEEK-END | K181: WEEK-END | S181: WEEK-END | AA181: WEEK-END | AI181: WEEK-END | AQ181: WEEK-END | AY181: WEEK-END | BG181: WEEK-END | BO181: WEEK-END | DU181: 0 | DV181: 0 | DW181: 0 | DX181: 0 | DY181: 0 | DZ181: 0 | EA181: 0 | EB181: 0 | EC181: 0 | ED181: 0 | EE181: 0 | EF181: 0 | EG181: 0 | EH181: 0 | EI181: 0 | EK181: 0 | EL181: 0 | EM181: 0 | EN181: 0 | EO181: 0 | EP181: 0 | EQ181: 0 | ER181: =SUM(BI181,BM181) -> 0 | ES181: 0 | ET181: 0 | EU181: 0 | EV181: 0 | EW181: 0 | EX181: 0 | EY181: 0
A182: 7 | B182: 2026-02-08 | C182: WEEK-END | K182: WEEK-END | S182: WEEK-END | AA182: WEEK-END | AI182: WEEK-END | AQ182: WEEK-END | AY182: WEEK-END | BG182: WEEK-END | BO182: WEEK-END | DU182: 0 | DV182: 0 | DW182: 0 | DX182: 0 | DY182: 0 | DZ182: 0 | EA182: 0 | EB182: 0 | EC182: 0 | ED182: 0 | EE182: 0 | EF182: 0 | EG182: 0 | EH182: 0 | EI182: 0 | EK182: 0 | EL182: 0 | EM182: 0 | EN182: 0 | EO182: 0 | EP182: 0 | EQ182: 0 | ER182: =SUM(BI182,BM182) -> 0 | ES182: 0 | ET182: 0 | EU182: 0 | EV182: 0 | EW182: 0 | EX182: 0 | EY182: 0
A183: 1 | B183: 2026-02-09 | K183: 24 | L183: mp | M183: 6 | S183: 21 | T183: yc | U183: 6 | AA183: 22 | AB183: mc | AC183: 6 | AI183: 13 | AJ183: cg | AK183: 6 | AL183: EX | AQ183: 8 | AR183: jr | AS183: 6 | AT183: EX | AY183: 5 | BA183: 6 | BB183: SO | DU183: 0 | DV183: 1 | DW183: 1 | DX183: 1 | DY183: 1 | DZ183: 1 | EA183: 0 | EB183: 0 | EC183: 0 | ED183: 0 | EE183: 0 | EF183: 0 | EG183: 0 | EH183: 0 | EI183: 0 | EK183: 0 | EL183: =SUM($M185,#REF!) ->  | EM183: 6 | EN183: 6 | EO183: 6 | EP183: =SUM(AS164,AW164) -> 6 | EQ183: =SUM(BA179,BE179) -> 6 | ER183: =SUM(BI204,BM204) -> 6 | ES183: 0 | ET183: 0 | EU183: 0 | EV183: 0 | EW183: 0 | EX183: 0 | EY183: 0
A184: 2 | B184: 2026-02-10 | K184: 24 | L184: mp | M184: 6 | N184: RT | S184: 21 | T184: yc | U184: 6 | AA184: 22 | AB184: sb | AC184: 6 | AI184: 13 | AJ184: cg | AK184: 6 | AL184: EX | AM184: 33 | AN184: mc | AO184: 3 | AP184: X15 | AQ184: 8 | AR184: jr | AS184: 6 | AT184: EX | AU184: 33 | AV184: mc | AW184: 3 | AX184: X10 | AY184: 5 | BA184: 6 | BB184: SO | DU184: 1 | DV184: 1 | DW184: 1 | DX184: 1 | DY184: 1 | DZ184: 2 | EA184: 0 | EB184: 0 | EC184: 0 | ED184: 0 | EE184: 0 | EF184: 0 | EG184: 0 | EH184: 0 | EI184: 0 | EK184: 0 | EL184: =SUM($M186,$Q184) -> 3 | EM184: 6 | EN184: 6 | EO184: 9 | EP184: =SUM(AS165,AW165) -> 6 | EQ184: =SUM(BA180,BE183) -> 6 | ER184: =SUM(BI205,BM205) -> 6 | ES184: 0 | ET184: 0 | EU184: 0 | EV184: 0 | EW184: 0 | EX184: 0 | EY184: 0
A185: 3 | B185: 2026-02-11 | K185: 90 | L185: mp | M185: 6 | N185: R23 | S185: 90 | T185: mc | U185: 6 | V185: R20 | AA185: 22 | AB185: sb | AC185: 6 | AI185: 14 | AJ185: cg | AK185: 6 | AQ185: 12 | AR185: jr | AS185: 6 | AY185: 5 | BA185: 6 | BB185: SO | DU185: 1 | DV185: 1 | DW185: 1 | DX185: 1 | DY185: 0 | DZ185: 1 | EA185: 0 | EB185: 0 | EC185: 0 | ED185: 0 | EE185: 0 | EF185: 0 | EG185: 0 | EH185: 0 | EI185: 0 | EK185: 0 | EL185: =SUM(#REF!,$Q185) ->  | EM185: 6 | EN185: 6 | EO185: 6 | EP185: =SUM(AS166,AW166) -> 0 | EQ185: 6 | ER185: =SUM(BI192,BM192) -> 0 | ES185: 0 | ET185: 0 | EU185: 0 | EV185: 0 | EW185: 0 | EX185: 0 | EY185: 0
A186: 4 | B186: 2026-02-12 | K186: 33 | L186: mp | M186: 3 | N186: X23 | S186: 21 | T186: yc | U186: 6 | AA186: 22 | AB186: sb | AC186: 6 | AD186: EX | AE186: 33 | AF186: mc | AG186: 3 | AH186: X14 | AI186: 14 | AJ186: cg | AK186: 6 | AQ186: 12 | AR186: jr | AS186: 6 | AY186: 5 | BA186: 6 | BB186: SO | DU186: 1 | DV186: 1 | DW186: 1 | DX186: 1 | DY186: 1 | DZ186: 1 | EA186: 0 | EB186: 0 | EC186: 0 | ED186: 0 | EE186: 0 | EF186: 0 | EG186: 0 | EH186: 0 | EI186: 0 | EK186: 0 | EL186: =SUM(#REF!,$Q186) ->  | EM186: 6 | EN186: 9 | EO186: 6 | EP186: =SUM(AS169,AW169) -> 6 | EQ186: 6 | ER186: =SUM(BI207,BM207) -> 6 | ES186: 0 | ET186: 0 | EU186: 0 | EV186: 0 | EW186: 0 | EX186: 0 | EY186: 0
A187: 5 | B187: 2026-02-13 | S187: 21 | T187: yc | U187: 6 | AA187: 22 | AB187: sb | AC187: 6 | AD187: EX | AI187: 14 | AJ187: mc | AK187: 6 | AQ187: Congé | AY187: Pédagogique CEP | DU187: 1 | DV187: 0 | DW187: 0 | DX187: 0 | DY187: 1 | DZ187: 1 | EA187: 0 | EB187: 0 | EC187: 0 | ED187: 0 | EE187: 0 | EF187: 0 | EG187: 0 | EH187: 0 | EI187: 0 | EK187: 0 | EL187: 0 | EM187: 6 | EN187: 6 | EO187: 6 | EP187: =SUM(AS170,AW170) -> 6 | EQ187: 0 | ER187: =SUM(#REF!,BM208) ->  | ES187: 0 | ET187: 0 | EU187: 0 | EV187: 0 | EW187: 0 | EX187: 0 | EY187: 0
A188: 6 | B188: 2026-02-14 | C188: WEEK-END | K188: WEEK-END | S188: WEEK-END | AA188: WEEK-END | AI188: WEEK-END | AQ188: WEEK-END | AY188: WEEK-END | BG188: WEEK-END | BO188: WEEK-END | DU188: 0 | DV188: 0 | DW188: 0 | DX188: 0 | DY188: 0 | DZ188: 0 | EA188: 0 | EB188: 0 | EC188: 0 | ED188: 0 | EE188: 0 | EF188: 0 | EG188: 0 | EH188: 0 | EI188: 0 | EK188: 0 | EL188: 0 | EM188: 0 | EN188: 0 | EO188: 0 | EP188: 0 | EQ188: 0 | ER188: =SUM(BI188,BM188) -> 0 | ES188: 0 | ET188: 0 | EU188: 0 | EV188: 0 | EW188: 0 | EX188: 0 | EY188: 0
A189: 7 | B189: 2026-02-15 | C189: WEEK-END | K189: WEEK-END | S189: WEEK-END | AA189: WEEK-END | AI189: WEEK-END | AQ189: WEEK-END | AY189: WEEK-END | BG189: WEEK-END | BO189: WEEK-END | DU189: 0 | DV189: 0 | DW189: 0 | DX189: 0 | DY189: 0 | DZ189: 0 | EA189: 0 | EB189: 0 | EC189: 0 | ED189: 0 | EE189: 0 | EF189: 0 | EG189: 0 | EH189: 0 | EI189: 0 | EK189: 0 | EL189: 0 | EM189: 0 | EN189: 0 | EO189: 0 | EP189: 0 | EQ189: 0 | ER189: =SUM(BI189,BM189) -> 0 | ES189: 0 | ET189: 0 | EU189: 0 | EV189: 0 | EW189: 0 | EX189: 0 | EY189: 0
A190: 1 | B190: 2026-02-16 | S190: 21 | T190: mc | U190: 6 | V190: EX | AA190: 19 | AB190: yc | AC190: 6 | AI190: 14 | AJ190: cg | AK190: 6 | AQ190: 12 | AR190: jr | AS190: 6 | AY190: 5 | BA190: 6 | BB190: SO | DU190: 0 | DV190: 0 | DW190: 1 | DX190: 1 | DY190: 1 | DZ190: 1 | EA190: 0 | EB190: 0 | EC190: 0 | ED190: 0 | EE190: 0 | EF190: 0 | EG190: 0 | EH190: 0 | EI190: 0 | EK190: 0 | EL190: 0 | EM190: 6 | EN190: 6 | EO190: 6 | EP190: =SUM(AS171,AW171) -> 6 | EQ190: 6 | ER190: =SUM(BI211,BM211) -> 6 | ES190: 0 | ET190: 0 | EU190: 0 | EV190: 0 | EW190: 0 | EX190: 0 | EY190: 0
A191: 2 | B191: 2026-02-17 | S191: 21 | T191: mc | U191: 6 | V191: EX | W191: 33 | X191: sb | Y191: 3 | Z191: X20 | AA191: 19 | AB191: yc | AC191: 6 | AI191: 14 | AJ191: cg | AK191: 6 | AQ191: 12 | AR191: mp | AS191: 6 | AY191: 5 | BA191: 6 | BB191: SO | DU191: 1 | DV191: 1 | DW191: 1 | DX191: 0 | DY191: 1 | DZ191: 1 | EA191: 0 | EB191: 0 | EC191: 0 | ED191: 0 | EE191: 0 | EF191: 0 | EG191: 0 | EH191: 0 | EI191: 0 | EK191: 0 | EL191: 0 | EM191: 9 | EN191: 6 | EO191: 6 | EP191: =SUM(AS172,AW172) -> 6 | EQ191: 6 | ER191: =SUM(BI208,BM214) -> 6 | ES191: 0 | ET191: 0 | EU191: 0 | EV191: 0 | EW191: 0 | EX191: 0 | EY191: 0
A192: 3 | B192: 2026-02-18 | S192: 95 | U192: 6 | AA192: 19 | AB192: yc | AC192: 6 | AI192: 14 | AJ192: cg | AK192: 6 | AQ192: 12 | AR192: mp | AS192: 6 | AY192: 5 | BA192: 6 | BB192: SO | DU192: 0 | DV192: 1 | DW192: 1 | DX192: 0 | DY192: 1 | DZ192: 0 | EA192: 0 | EB192: 0 | EC192: 0 | ED192: 0 | EE192: 0 | EF192: 0 | EG192: 0 | EH192: 0 | EI192: 0 | EK192: 0 | EL192: 0 | EM192: 6 | EN192: 6 | EO192: 6 | EP192: =SUM(AS177,AW177) -> 6 | EQ192: 6 | ER192: =SUM(BI212,BM212) -> 6 | ES192: 0 | ET192: 0 | EU192: 0 | EV192: 0 | EW192: 0 | EX192: 0 | EY192: 0
A193: 4 | B193: 2026-02-19 | S193: 24 | T193: sb | U193: 6 | AA193: 19 | AB193: mc | AC193: 6 | AI193: 14 | AJ193: cg | AK193: 6 | AQ193: 12 | AR193: mp | AS193: 6 | AY193: Pédagogique CEP | DU193: 1 | DV193: 1 | DW193: 1 | DX193: 0 | DY193: 0 | DZ193: 1 | EA193: 0 | EB193: 0 | EC193: 0 | ED193: 0 | EE193: 0 | EF193: 0 | EG193: 0 | EH193: 0 | EI193: 0 | EK193: 0 | EL193: 0 | EM193: 6 | EN193: 6 | EO193: 6 | EP193: =SUM(AS176,AW176) -> 6 | EQ193: 0 | ER193: =SUM(BM218,#REF!) ->  | ES193: 0 | ET193: 0 | EU193: 0 | EV193: 0 | EW193: 0 | EX193: 0 | EY193: 0
A194: 5 | B194: 2026-02-20 | S194: 24 | T194: sb | U194: 6 | AA194: 19 | AB194: yc | AC194: 6 | AI194: 90 | AJ194: mc | AK194: 6 | AL194: R13 | AQ194: Congé | AY194: 5 | BA194: 6 | BB194: SO | DU194: 1 | DV194: 0 | DW194: 0 | DX194: 0 | DY194: 1 | DZ194: 1 | EA194: 0 | EB194: 0 | EC194: 0 | ED194: 0 | EE194: 0 | EF194: 0 | EG194: 0 | EH194: 0 | EI194: 0 | EK194: 0 | EL194: 0 | EM194: 6 | EN194: 6 | EO194: 6 | EP194: =SUM(AS178,AW178) -> 6 | EQ194: 6 | ER194: =SUM(BI214,#REF!) ->  | ES194: 0 | ET194: 0 | EU194: 0 | EV194: 0 | EW194: 0 | EX194: 0 | EY194: 0
A195: 6 | B195: 2026-02-21 | C195: WEEK-END | K195: WEEK-END | S195: WEEK-END | AA195: WEEK-END | AI195: WEEK-END | AQ195: WEEK-END | AY195: WEEK-END | BG195: WEEK-END | BO195: WEEK-END | DU195: 0 | DV195: 0 | DW195: 0 | DX195: 0 | DY195: 0 | DZ195: 0 | EA195: 0 | EB195: 0 | EC195: 0 | ED195: 0 | EE195: 0 | EF195: 0 | EG195: 0 | EH195: 0 | EI195: 0 | EK195: 0 | EL195: 0 | EM195: 0 | EN195: 0 | EO195: 0 | EP195: 0 | EQ195: 0 | ER195: =SUM(BI195,BM195) -> 0 | ES195: 0 | ET195: 0 | EU195: 0 | EV195: 0 | EW195: 0 | EX195: 0 | EY195: 0
A196: 7 | B196: 2026-02-22 | C196: WEEK-END | K196: WEEK-END | S196: WEEK-END | AA196: WEEK-END | AI196: WEEK-END | AQ196: WEEK-END | AY196: WEEK-END | BG196: WEEK-END | BO196: WEEK-END | DU196: 0 | DV196: 0 | DW196: 0 | DX196: 0 | DY196: 0 | DZ196: 0 | EA196: 0 | EB196: 0 | EC196: 0 | ED196: 0 | EE196: 0 | EF196: 0 | EG196: 0 | EH196: 0 | EI196: 0 | EK196: 0 | EL196: 0 | EM196: 0 | EN196: 0 | EO196: 0 | EP196: 0 | EQ196: 0 | ER196: =SUM(BI196,BM196) -> 0 | ES196: 0 | ET196: 0 | EU196: 0 | EV196: 0 | EW196: 0 | EX196: 0 | EY196: 0
A197: 1 | B197: 2026-02-23 | S197: 24 | T197: sb | U197: 6 | AA197: 19 | AB197: yc | AC197: 6 | AI197: 14 | AJ197: cg | AK197: 6 | AQ197: 12 | AR197: jr | AS197: 6 | AY197: 5 | BA197: 6 | BB197: SO | BG197: 1 | BH197: rg | BI197: 6 | DU197: 1 | DV197: 0 | DW197: 1 | DX197: 1 | DY197: 1 | DZ197: 0 | EA197: 1 | EB197: 0 | EC197: 0 | ED197: 0 | EE197: 0 | EF197: 0 | EG197: 0 | EH197: 0 | EI197: 0 | EK197: 0 | EL197: 0 | EM197: 6 | EN197: 6 | EO197: 6 | EP197: =SUM(AS180,AW180) -> 0 | EQ197: 6 | ER197: =SUM(#REF!,#REF!) ->  | ES197: 0 | ET197: 0 | EU197: 0 | EV197: 0 | EW197: 0 | EX197: 0 | EY197: 0
A198: 2 | B198: 2026-02-24 | S198: 95 | U198: 6 | AA198: 19 | AB198: yc | AC198: 6 | AI198: 14 | AJ198: cg | AK198: 6 | AL198: EX | AM198: 33 | AN198: mc | AO198: 3 | AP198: X13 | AQ198: 12 | AR198: jr | AS198: 6 | AY198: 5 | BA198: 6 | BB198: SO | BG198: 1 | BH198: rg | BI198: 6 | DU198: 0 | DV198: 0 | DW198: 1 | DX198: 1 | DY198: 1 | DZ198: 1 | EA198: 1 | EB198: 0 | EC198: 0 | ED198: 0 | EE198: 0 | EF198: 0 | EG198: 0 | EH198: 0 | EI198: 0 | EK198: 0 | EL198: =SUM(#REF!,$M198) ->  | EM198: =SUM(#REF!,$U198) ->  | EN198: =SUM(#REF!,AC198) ->  | EO198: 9 | EP198: =SUM(AS179,AW179) -> 6 | EQ198: 6 | ER198: =SUM(BI219,#REF!) ->  | ES198: 0 | ET198: 0 | EU198: 0 | EV198: 0 | EW198: 0 | EX198: 0 | EY198: 0
A199: 3 | B199: 2026-02-25 | C199: Pédagogique | K199: Pédagogique | S199: Pédagogique | AA199: Pédagogique | AI199: Pédagogique | AQ199: Pédagogique | AY199: 5 | BA199: 6 | BB199: SO | BG199: Pédagogique | BO199: Pédagogique | DU199: 0 | DV199: 0 | DW199: 0 | DX199: 0 | DY199: 0 | DZ199: 0 | EA199: 0 | EB199: 0 | EC199: 0 | ED199: 0 | EE199: 0 | EF199: 0 | EG199: 0 | EH199: 0 | EI199: 0 | EK199: 0 | EL199: 0 | EM199: =SUM(#REF!,$U199) ->  | EN199: =SUM(#REF!,AC199) ->  | EO199: 0 | EP199: =SUM(AS190,AW190) -> 6 | EQ199: 6 | ER199: =SUM(BI199,BM199) -> 0 | ES199: 0 | ET199: 0 | EU199: 0 | EV199: 0 | EW199: 0 | EX199: 0 | EY199: 0
A200: 4 | B200: 2026-02-26 | S200: 95 | U200: 6 | AA200: 19 | AB200: yc | AC200: 6 | AI200: 14 | AJ200: cg | AK200: 6 | AL200: EX | AQ200: 12 | AR200: jr | AS200: 6 | AY200: 5 | BA200: 6 | BB200: SO | BG200: 2 | BH200: rg | BI200: 6 | DU200: 0 | DV200: 0 | DW200: 1 | DX200: 1 | DY200: 1 | DZ200: 0 | EA200: 1 | EB200: 0 | EC200: 0 | ED200: 0 | EE200: 0 | EF200: 0 | EG200: 0 | EH200: 0 | EI200: 0 | EK200: 0 | EL200: =SUM(#REF!,$M200) ->  | EM200: =SUM(#REF!,$U200) ->  | EN200: =SUM(#REF!,AC200) ->  | EO200: 6 | EP200: =SUM(AS218,AW214) -> 6 | EQ200: 6 | ER200: =SUM(#REF!,#REF!) ->  | ES200: 0 | ET200: 0 | EU200: 0 | EV200: 0 | EW200: 0 | EX200: 0 | EY200: 0
A201: 5 | B201: 2026-02-27 | S201: 24 | T201: sb | U201: 6 | V201: sb | AA201: 19 | AB201: yc | AC201: 6 | AI201: 22 | AJ201: mp | AK201: 6 | AQ201: 12 | AR201: jr | AS201: 6 | AY201: Congé | BG201: 2 | BH201: rg | BI201: 6 | DU201: =COUNTIF($C201:$DR201,$A$459) -> 2 | DV201: =COUNTIF($C201:$DR201,$A$460) -> 1 | DW201: =COUNTIF($C201:$DR201,$A$461) -> 0 | DX201: =COUNTIF($C201:$DR201,$A$462) -> 1 | DY201: =COUNTIF($C201:$DR201,$A$463) -> 1 | DZ201: =COUNTIF($C201:$DR201,$A$464) -> 0 | EA201: =COUNTIF($C201:$DR201,$A$465) -> 1 | EB201: =COUNTIF($C201:$DR201,$A$466) -> 0 | EC201: =COUNTIF($C201:$DR201,$A$467) -> 0 | ED201: =COUNTIF($C201:$DR201,$A$468) -> 0 | EE201: =COUNTIF($C201:$DR201,$A$469) -> 0 | EF201: =COUNTIF($C201:$DR201,$A$470) -> 0 | EG201: =COUNTIF($C201:$DR201,$A$471) -> 0 | EH201: =COUNTIF($C201:$DR201,$A$472) -> 0 | EI201: =COUNTIF($C201:$DR201,$A$473) -> 0 | EK201: =SUM($E201,$I201) -> 0 | EL201: =SUM($M201,$Q201) -> 0 | EM201: =SUM(#REF!,$U201) ->  | EN201: =SUM(#REF!,AC201) ->  | EO201: 6 | EP201: =SUM(AS201,AW201) -> 6 | EQ201: 0 | ER201: =SUM(BI234,#REF!) ->  | ES201: 0 | ET201: 0 | EU201: 0 | EV201: 0 | EW201: 0 | EX201: 0 | EY201: 0
... 272 more rows

Sheet grprgdata (hidden)
A1: IdProg | B1: AnnéeScolairedébut | C1: AnnéeScolairefin | D1: Secteur | E1: Nom du programme | F1: No programme | G1: Spécialité | H1: Durée | I1: ATE oui/non | J1: NoGroupe | K1: Date début | L1: Date fin | M1: CalendrierType | N1: HoraireType | O1: jour/soir | P1: heures
A2: MVLR | B2: 2013-2014 | C2: 2014-2015 | D2: 10 | E2: Mécanique de véhicules lourds routiers | F2: 5330 | G2: Entretien d'équipement motorisé | H2: 1800 | I2: FALSE | J2: 13004 | M2: Intensif 1800 | N2: TOSCA # 8 Jour/Intensif - 6 | O2: Jour
A3: MVLR | B3: 2013-2014 | C3: 2014-2015 | D3: 10 | E3: Mécanique de véhicules lourds routiers | F3: 5330 | G3: Entretien d'équipement motorisé | H3: 1800 | I3: FALSE | J3: 13005 | M3: Intensif 1800 | N3: TOSCA # 8 Jour/Intensif - 6 | O3: Jour
A4: MVLR | B4: 2013-2014 | C4: 2014-2015 | D4: 10 | E4: Mécanique de véhicules lourds routiers | F4: 5330 | G4: Entretien d'équipement motorisé | H4: 1800 | I4: FALSE | J4: 13006 | M4: Intensif 1800 | N4: TOSCA # 8 Jour/Intensif - 6 | O4: Jour
A5: MVLR | B5: 2014-2015 | C5: 2015-2016 | D5: 10 | E5: Mécanique de véhicules lourds routiers | F5: 5330 | G5: Entretien d'équipement motorisé | H5: 1800 | I5: FALSE | J5: 14007 | M5: Intensif 1800 | N5: TOSCA # 8 Jour/Intensif - 6 | O5: Jour
A6: MVLR | B6: 2014-2015 | C6: 2015-2016 | D6: 10 | E6: Mécanique de véhicules lourds routiers | F6: 5330 | G6: Entretien d'équipement motorisé | H6: 1800 | I6: FALSE | J6: 14008 | M6: Intensif 1800 | N6: TOSCA # 8 Jour/Intensif - 6 | O6: Jour
A7: MVLR | B7: 2014-2015 | C7: 2015-2016 | D7: 10 | E7: Mécanique de véhicules lourds routiers | F7: 5330 | G7: Entretien d'équipement motorisé | H7: 1800 | I7: FALSE | J7: 14009 | M7: Intensif 1800 | N7: TOSCA # 8 Jour/Intensif - 6 | O7: Jour
A8: MVLR | B8: 2014-2015 | C8: 2015-2016 | D8: 10 | E8: Mécanique de véhicules lourds routiers | F8: 5330 | G8: Entretien d'équipement motorisé | H8: 1800 | I8: FALSE | J8: 1111 | M8: Intensif 1800 | N8: TOSCA # 8 Jour/Intensif - 6 | O8: Jour
A9: MVLR | B9: 2014-2015 | C9: 2015-2016 | D9: 10 | E9: Mécanique de véhicules lourds routiers | F9: 5330 | G9: Entretien d'équipement motorisé | H9: 1800 | I9: FALSE | J9: 2222 | M9: Intensif 1800 | N9: TOSCA # 8 Jour/Intensif - 6 | O9: Jour
A10: MVLR | B10: 2014-2015 | C10: 2015-2016 | D10: 10 | E10: Mécanique de véhicules lourds routiers | F10: 5330 | G10: Entretien d'équipement motorisé | H10: 1800 | I10: FALSE | J10: 3333 | M10: Intensif 1800 | N10: TOSCA # 8 Jour/Intensif - 6 | O10: Jour
A18: Zone de traitement
A21: Banque de symboles (copy end past) typique
A22: CAR | B22: 2008-2009 | C22: 2009-2010 | D22: 10 | E22: Carrosserie | F22: 5217 | G22: Entretien d'équipement motorisé | H22: 1590 | I22: TRUE | J22: 6019 | K22: 2006-08-31 | L22: 2007-11-22 | M22: Intensif <1800 | N22: TOSCA # 1 Jour/Intensif - 6 | O22: Jour
A23: ESA | B23: 2008-2009 | C23: 2009-2010 | D23: 9 | E23: Électromécanique de systèmes automatisés | F23: 5281 | G23: Électrotechnique | H23: 1800 | I23: FALSE | J23: 6008 | K23: 2006-09-05 | L23: 2008-02-01 | M23: Intensif 1800 | N23: TOSCA # 3 Jour/Intensif - 6 | O23: Jour
A24: EL | B24: 2008-2009 | C24: 2009-2010 | D24: 9 | E24: Électricité | F24: 5295 | G24: Électrotechnique | H24: 1800 | I24: FALSE | J24: 6001 | K24: 2007-01-30 | L24: 2007-11-01 | M24: Intensif 1800 | N24: TOSCA # 3 Jour/Intensif - 6 | O24: Jour
A25: MVLR | B25: 2008-2009 | C25: 2009-2010 | D25: 10 | E25: Mécanique de véhicules lourds routiers | F25: 5330 | G25: Entretien d'équipement motorisé | H25: 1800 | I25: FALSE | J25: 7041 | K25: 2008-01-14 | L25: 2009-05-27 | M25: Intensif 1800 | N25: TOSCA # 8 Jour/Intensif - 6 | O25: Jour
A26: MEA | B26: 2008-2009 | C26: 2009-2010 | D26: 10 | E26: Mécanique automobile | F26: 5198 | G26: Entretien d'équipement motorisé | H26: 1800 | I26: FALSE | J26: 5018 | K26: 2005-09-06 | L26: 2007-01-25 | M26: Intensif 1800 | N26: TOSCA # 8 Jour/Intensif - 6 | O26: Jour
A27: TUS | B27: 2008-2009 | C27: 2009-2010 | D27: 11 | E27: Technique d'usinage | F27: 5223 | G27: Fabrication mécanique | H27: 1800 | I27: FALSE | J27: 7014 | K27: 2008-01-29 | L27: 2009-05-27 | M27: Intensif 1800 | N27: TOSCA # 10 Soir/Intensif - 6 | O27: Soir
A28: VC | B28: 2008-2009 | C28: 2009-2010 | D28: 1 | E28: Vente conseil | F28: 5196 | G28: Administration, commerce et informatique | H28: 900 | I28: FALSE | J28: 6012 | K28: 2007-01-15 | L28: 2007-10-15 | M28: Intensif <1800 | N28: TOSCA # 1 Jour/Intensif - 6 | O28: Soir
A29: VPMA | B29: 2008-2009 | C29: 2009-2010 | D29: 10 | E29: Vente de pièces mécaniques et d'accessoires | F29: 5194 | G29: Entretien d'équipement motorisé | H29: 1095 | I29: FALSE | J29: 6013 | K29: 2006-09-04 | L29: 2008-01-30 | M29: Intensif <1800 | N29: TOSCA # 1 Jour/Intensif - 6 | O29: Soir
A30: ESTH | B30: 2008-2009 | C30: 2009-2010 | D30: 10 | E30: Mécanique automobile | F30: 280 | G30: Esthetique Automobile | H30: 570 | I30: TRUE | J30: 6014 | M30: Intensif <1800 | N30: TOSCA # 3 Jour/Intensif - 6 | O30: Jour
A31: COM | B31: 2008-2009 | C31: 2009-2010 | D31: 1 | E31: Comptabilité | F31: 5231 | G31: Administration, commerce et informatique | H31: 1800 | I31: FALSE | J31: 8001 | M31: Intensif 1800
A32: DES | B32: 2008-2009 | C32: 2009-2010 | D32: 11 | E32: Dessin industriel | F32: 5225 | G32: Fabrication mécanique | H32: 1800 | I32: FALSE | J32: 8002 | M32: Intensif 1801
A33: SEC | B33: 2008-2009 | C33: 2009-2010 | D33: 1 | E33: Secrétariat | F33: 5212 | G33: Administration, commerce et informatique | H33: 1800 | I33: FALSE | J33: 8003 | M33: Intensif 1802
A34: SOU | B34: 2008-2009 | C34: 2009-2010 | D34: 11 | E34: Soudage Montage | F34: 5195 | G34: Métalurgie | H34: 1800 | I34: FALSE | J34: 8004 | M34: Intensif 1803
A35: TR | B35: 2008-2009 | C35: 2009-2010 | D35: 1 | E35: Tutorat/Récup | F35: 1111 | G35: Tutorat/Récup | H35: 85 | I35: FALSE | J35: 7001 | K35: 2007-09-04 | L35: 2008-06-30 | M35: Régulier | N35: TOSCA # 4 Jour/Régulier - 6 (900h/an) | O35: Jour
A36: EX | B36: 2008-2009 | C36: 2009-2010 | D36: 1 | E36: Exploration professionnelle | F36: 2222 | G36: Exploration | H36: 25 | I36: FALSE | J36: 7001 | K36: 2007-09-04 | L36: 2008-06-30 | M36: Régulier | N36: TOSCA # 5 Jour/Régulier - 5 | O36: Jour
A38: Exemple de set-up
A39: MEA | B39: 2005-2006 | C39: 2007-2008 | D39: 10 | E39: Mécanique automobile | F39: 5198 | G39: Entretien d'équipement motorisé | H39: 1800 | I39: FALSE | J39: 7024 | K39: 2007-09-06 | L39: 2009-01-25 | M39: Intensif 1800 | N39: TOSCA # 8 Jour/Intensif - 6 | O39: Jour
A40: MEA | B40: 2005-2006 | C40: 2007-2008 | D40: 10 | E40: Mécanique automobile | F40: 5198 | G40: Entretien d'équipement motorisé | H40: 1800 | I40: FALSE | J40: 7025 | K40: 2007-08-30 | L40: 2009-06-14 | M40: Régulier | N40: TOSCA # 5 Jour/Régulier - 5 | O40: Jour
A41: MEA | B41: 2005-2006 | C41: 2007-2008 | D41: 10 | E41: Mécanique automobile | F41: 5198 | G41: Entretien d'équipement motorisé | H41: 1800 | I41: FALSE | J41: 7026 | K41: 2007-01-31 | L41: 2009-06-13 | M41: Intensif 1800 | N41: TOSCA # 10 Soir/Intensif - 6 | O41: Soir
A42: MEA | B42: 2006-2007 | C42: 2008-2009 | D42: 10 | E42: Mécanique automobile | F42: 5198 | G42: Entretien d'équipement motorisé | H42: 1800 | I42: FALSE | J42: 8027 | K42: 2008-09-05 | L42: 2010-02-01 | M42: Intensif 1800 | N42: TOSCA # 10 Soir/Intensif - 6 | O42: Soir
A43: MEA | B43: 2006-2007 | C43: 2008-2009 | D43: 10 | E43: Mécanique automobile | F43: 5198 | G43: Entretien d'équipement motorisé | H43: 1800 | I43: FALSE | J43: 8028 | K43: 2008-08-31 | L43: 2010-06-01 | M43: Régulier | N43: TOSCA # 5 Jour/Régulier - 5 | O43: Jour
A44: MEA | B44: 2006-2007 | C44: 2008-2009 | D44: 10 | E44: Mécanique automobile | F44: 5198 | G44: Entretien d'équipement motorisé | H44: 1800 | I44: FALSE | J44: 8029 | K44: 2008-01-31 | L44: 2010-02-01 | M44: Intensif 1800 | N44: TOSCA # 10 Soir/Intensif - 6 | O44: Soir
A45: TU | B45: 2007-2008 | C45: 2008-2009 | D45: 1 | E45: Tutorat/Récup | F45: 1111 | G45: Tutorat/Récup | H45: 85 | I45: FALSE | J45: 8001 | K45: 2008-09-04 | L45: 2009-06-30 | M45: Régulier | N45: TOSCA # 5 Jour/Régulier - 4 | O45: Jour
A46: EX | B46: 2007-2008 | C46: 2008-2009 | D46: 1 | E46: Exploration professionnelle | F46: 2222 | G46: Exploration | H46: 25 | I46: FALSE | J46: 7001 | K46: 2008-09-04 | L46: 2009-06-30 | M46: Régulier | N46: TOSCA # 5 Jour/Régulier - 5 | O46: Jour
A48: Autres valeurs possible par champs
A49: ATE oui/non | B49: NoGroupe | C49: CalendrierType | E49: HoraireType
A50: TRUE | B50: 70xx | C50: Intensif 1800 | E50: TOSCA # 1 Jour/Intensif - 6
A51: FALSE | B51: 80xx | C51: Intensif <1800 | E51: TOSCA # 2 Jour/Intensif - 6 1/2 - 4
B52: 90xx | C52: Régulier | E52: TOSCA # 3 Jour/Intensif - 6
B53: etc. | E53: TOSCA # 4 Jour/Régulier - 6 (900h/an)
E54: TOSCA # 5 Jour/Régulier - 5
E55: TOSCA # 6 Jour/Régulier - 5 1/2 - 3
E56: TOSCA # 7 Jour/Régulier - 6 (900h/an)
E57: TOSCA # 8 Jour/Intensif - 6
E58: TOSCA # 9 Soir/Intensif - 6
E59: TOSCA # 10 Soir/Intensif - 6

Sheet cldrdata (hidden)
A1: Année-scolaire | B1: Date | C1: Sous-spécialité | D1: Calendrier 1 (Régulier) | E1: Calendrier 2 (1800 heures) | F1: Calendrier 3 (<1800 heures) | G1: Calendrier 4 (À venir)
A2: 2025-2026 | B2: 2025-08-18 | C2: CEP | D2: Vacance | E2: Vacance | F2: Vacance
A3: 2025-2026 | B3: 2025-08-19 | C3: CEP | D3: Vacance | E3: Vacance | F3: Vacance
A4: 2025-2026 | B4: 2025-08-20 | C4: CEP | D4: Vacance | E4: Vacance | F4: Vacance
A5: 2025-2026 | B5: 2025-08-21 | C5: CEP | D5: Vacance | E5: Vacance | F5: Vacance
A6: 2025-2026 | B6: 2025-08-22 | C6: CEP | D6: Pédagogique Commmune | E6: Pédagogique Commmune | F6: Pédagogique Commmune
A7: 2025-2026 | B7: 2025-08-25 | C7: CEP | D7: Pédagogique | E7: Pédagogique | F7: Pédagogique
A8: 2025-2026 | B8: 2025-09-01 | C8: CEP | D8: Congé | E8: Congé | F8: Congé
A9: 2025-2026 | B9: 2025-10-13 | C9: CEP | D9: Congé | E9: Congé | F9: Congé
A10: 2025-2026 | B10: 2025-10-22 | C10: CEP | D10: Pédagogique | E10: Pédagogique | F10: Pédagogique
A11: 2025-2026 | B11: 2025-11-06 | C11: CEP | D11: APEEMQ | E11: APEEMQ | F11: APEEMQ
A12: 2025-2026 | B12: 2025-11-07 | C12: CEP | D12: APEEMQ | E12: APEEMQ | F12: APEEMQ
A13: 2025-2026 | B13: 2025-11-20 | C13: CEP | D13: Pédagogique Commmune | E13: Pédagogique Commmune | F13: Pédagogique Commmune
A14: 2025-2026 | B14: 2025-12-22 | C14: CEP | D14: Congé Noël | E14: Congé Noël | F14: Congé Noël
A15: 2025-2026 | B15: 2025-12-23 | C15: CEP | D15: Congé Noël | E15: Congé Noël | F15: Congé Noël
A16: 2025-2026 | B16: 2025-12-24 | C16: CEP | D16: Congé Noël | E16: Congé Noël | F16: Congé Noël
A17: 2025-2026 | B17: 2025-12-25 | C17: CEP | D17: Congé Noël | E17: Congé Noël | F17: Congé Noël
A18: 2025-2026 | B18: 2025-12-26 | C18: CEP | D18: Congé Noël | E18: Congé Noël | F18: Congé Noël
A19: 2025-2026 | B19: 2025-12-29 | C19: CEP | D19: Congé Noël | E19: Congé Noël | F19: Congé Noël
A20: 2025-2026 | B20: 2025-12-30 | C20: CEP | D20: Congé Noël | E20: Congé Noël | F20: Congé Noël
A21: 2025-2026 | B21: 2025-12-31 | C21: CEP | D21: Congé Noël | E21: Congé Noël | F21: Congé Noël
A22: 2025-2026 | B22: 2026-01-01 | C22: CEP | D22: Congé Noël | E22: Congé Noël | F22: Congé Noël
A23: 2025-2026 | B23: 2026-01-02 | C23: CEP | D23: Congé Noël | E23: Congé Noël | F23: Congé Noël
A24: 2025-2026 | B24: 2026-01-05 | C24: CEP | D24: Pédagogique Commmune | E24: Pédagogique Commmune | F24: Pédagogique Commmune
A25: 2025-2026 | B25: 2026-01-30 | C25: CEP | D25: Pédagogique | E25: Pédagogique | F25: Pédagogique
A26: 2025-2026 | B26: 2026-02-25 | C26: CEP | D26: Pédagogique | E26: Pédagogique | F26: Pédagogique
A27: 2025-2026 | B27: 2026-03-13 | C27: CEP | D27: Pédagogique | E27: Pédagogique | F27: Pédagogique
A28: 2025-2026 | B28: 2026-04-03 | C28: CEP | D28: Congé | E28: Congé | F28: Congé
A29: 2025-2026 | B29: 2026-04-06 | C29: CEP | D29: Congé | E29: Congé | F29: Congé
A30: 2025-2026 | B30: 2026-05-01 | C30: CEP | D30: Pédagogique Commmune | E30: Pédagogique Commmune | F30: Pédagogique Commmune
A31: 2025-2026 | B31: 2026-05-18 | C31: CEP | D31: Congé | E31: Congé | F31: Congé
A32: 2025-2026 | B32: 2026-06-05 | C32: CEP | D32: Pédagogique | E32: Pédagogique | F32: Pédagogique
A33: 2025-2026 | B33: 2026-06-24 | C33: CEP | D33: Congé | E33: Congé | F33: Congé
A34: 2025-2026
A35: 2025-2026
A36: 2025-2026
A37: 2025-2026
A38: 2025-2026
A39: 2025-2026
A40: 2025-2026
A41: 2025-2026
A42: 2025-2026
A43: 2025-2026
A44: 2025-2026
A45: 2025-2026
A46: 2025-2026
A47: 2025-2026
A48: 2025-2026
A49: 2025-2026
A50: 2025-2026
A51: 2025-2026
A52: 2025-2026
A53: 2025-2026
A54: 2025-2026
A55: 2025-2026
A56: 2025-2026
A57: 2025-2026
A58: 2025-2026
A59: 2025-2026
A60: 2025-2026
A61: 2025-2026
A62: 2025-2026
A63: 2025-2026
A64: 2025-2026
A65: 2025-2026
A66: 2025-2026
A67: 2025-2026
A68: 2025-2026
A80: Banque de symboles
A81: Congé pour élèves et enseign.
A82: Congés pour tous
A83: Journée pédagogique
A84: Journée pédagogique flottante
A85: Vacance
A87: Dates spéciales
A90: 2010-2011 | C90: CEP | D90: Ens. Stratégique
A91: 2010-2011 | C91: CEP | D91: Ens. Stratégique
A92: 2010-2011 | C92: CEP | D92: Ens. Stratégique
A93: 2010-2011 | C93: CEP | D93: Ens. Stratégique
A94: 2010-2011 | C94: CEP | D94: Ens. Stratégique
A95: 2010-2011 | C95: CEP | D95: Ens. Stratégique
A96: 2010-2011 | C96: CEP | D96: Ens. Stratégique
A97: 2010-2011 | C97: CEP | D97: Ens. Stratégique
A98: 2010-2011 | C98: CEP | D98: Ens. Stratégique
A99: 2010-2011 | B99: 2010-09-15 | C99: CEP | D99: Table des chefs de groupe
A100: 2010-2011 | B100: 2010-11-24 | C100: CEP | D100: Table des chefs de groupe
A101: 2010-2011 | B101: 2011-02-02 | C101: CEP | D101: Table des chefs de groupe
A102: 2010-2011 | B102: 2011-04-06 | C102: CEP | D102: Table des chefs de groupe
A103: 2010-2011 | B103: 2011-06-08 | C103: CEP | D103: Table des chefs de groupe

Sheet horprofdata (hidden)
A4: Année scolaire 2012-2013 | T4: Commentaires
A6: 10
C7: M | D7: P | E7: H | F7: L | G7: M | H7: P | I7: H | J7: L | K7: M | L7: P | M7: H | N7: L | O7: M | P7: P | Q7: H | R7: L
A8: =WEEKDAY(B8,2) -> 2 | B8: 2008-07-01
A9: 3 | B9: =B8+1 -> 2008-07-02
A10: 4 | B10: 2008-07-03
A11: 5 | B11: 2008-07-04
A12: 6 | B12: 2008-07-05
A13: 7 | B13: 2008-07-06
A14: 1 | B14: 2008-07-07
A15: 2 | B15: 2008-07-08
A16: 3 | B16: 2008-07-09
A17: 4 | B17: 2008-07-10
A18: 5 | B18: 2008-07-11
A19: 6 | B19: 2008-07-12
A20: 7 | B20: 2008-07-13
A21: 1 | B21: 2008-07-14
A22: 2 | B22: 2008-07-15
A23: 3 | B23: 2008-07-16
A24: 4 | B24: 2008-07-17
A25: 5 | B25: 2008-07-18
A26: 6 | B26: 2008-07-19
A27: 7 | B27: 2008-07-20
A28: 1 | B28: 2008-07-21
A29: 2 | B29: 2008-07-22
A30: 3 | B30: 2008-07-23
A31: 4 | B31: 2008-07-24
A32: 5 | B32: 2008-07-25
A33: 6 | B33: 2008-07-26
A34: 7 | B34: 2008-07-27
A35: 1 | B35: 2008-07-28
A36: 2 | B36: 2008-07-29
A37: 3 | B37: 2008-07-30
A38: 4 | B38: 2008-07-31
A39: 5 | B39: 2008-08-01
A40: 6 | B40: 2008-08-02
A41: 7 | B41: 2008-08-03
A42: 1 | B42: 2008-08-04
A43: 2 | B43: 2008-08-05
A44: 3 | B44: 2008-08-06
A45: 4 | B45: 2008-08-07
A46: 5 | B46: 2008-08-08
A47: 6 | B47: 2008-08-09
A48: 7 | B48: 2008-08-10
A49: 1 | B49: 2008-08-11
A50: 2 | B50: 2008-08-12
A51: 3 | B51: 2008-08-13
A52: 4 | B52: 2008-08-14
A53: 5 | B53: 2008-08-15
A54: 6 | B54: 2008-08-16
A55: 7 | B55: 2008-08-17
A56: 1 | B56: 2008-08-18
A57: 2 | B57: 2008-08-19
A58: 3 | B58: 2008-08-20
A59: 4 | B59: 2008-08-21
A60: 5 | B60: 2008-08-22
A61: 6 | B61: 2008-08-23
A62: 7 | B62: 2008-08-24
A63: 1 | B63: 2008-08-25
A64: 2 | B64: 2008-08-26
A65: 3 | B65: 2008-08-27
A66: 4 | B66: 2008-08-28
A67: 5 | B67: 2008-08-29
A68: 6 | B68: 2008-08-30
A69: 7 | B69: 2008-08-31
A70: 1 | B70: 2008-09-01
A71: 2 | B71: 2008-09-02
A72: =WEEKDAY(B72,2) -> 3 | B72: 2008-09-03
A73: 4 | B73: =B72+1 -> 2008-09-04
A74: 5 | B74: 2008-09-05
A75: 6 | B75: 2008-09-06
A76: 7 | B76: 2008-09-07
A77: 1 | B77: 2008-09-08
A78: 2 | B78: 2008-09-09
A79: 3 | B79: 2008-09-10
A80: 4 | B80: 2008-09-11
A81: 5 | B81: 2008-09-12
A82: 6 | B82: 2008-09-13
A83: 7 | B83: 2008-09-14
A84: 1 | B84: 2008-09-15
A85: 2 | B85: 2008-09-16
A86: 3 | B86: 2008-09-17
A87: 4 | B87: 2008-09-18
A88: 5 | B88: 2008-09-19
A89: 6 | B89: 2008-09-20
A90: 7 | B90: 2008-09-21
A91: 1 | B91: 2008-09-22
A92: 2 | B92: 2008-09-23
A93: 3 | B93: 2008-09-24
A94: 4 | B94: 2008-09-25
A95: 5 | B95: 2008-09-26
A96: 6 | B96: 2008-09-27
A97: 7 | B97: 2008-09-28
A98: 1 | B98: 2008-09-29
A99: 2 | B99: 2008-09-30
A100: 3 | B100: 2008-10-01
A101: 4 | B101: 2008-10-02
A102: 5 | B102: 2008-10-03
A103: 6 | B103: 2008-10-04
A104: 7 | B104: 2008-10-05
A105: 1 | B105: 2008-10-06
A106: 2 | B106: 2008-10-07
A107: 3 | B107: 2008-10-08
A108: 4 | B108: 2008-10-09
A109: 5 | B109: 2008-10-10
A110: 6 | B110: 2008-10-11
A111: 7 | B111: 2008-10-12
A112: 1 | B112: 2008-10-13
A113: 2 | B113: 2008-10-14
A114: 3 | B114: 2008-10-15
A115: 4 | B115: 2008-10-16
A116: 5 | B116: 2008-10-17
A117: 6 | B117: 2008-10-18
A118: 7 | B118: 2008-10-19
A119: 1 | B119: 2008-10-20
A120: 2 | B120: 2008-10-21
A121: 3 | B121: 2008-10-22
A122: 4 | B122: 2008-10-23
A123: 5 | B123: 2008-10-24
A124: 6 | B124: 2008-10-25
A125: 7 | B125: 2008-10-26
A126: 1 | B126: 2008-10-27
A127: 2 | B127: 2008-10-28
A128: 3 | B128: 2008-10-29
A129: 4 | B129: 2008-10-30
A130: 5 | B130: 2008-10-31
A131: 6 | B131: 2008-11-01
A132: 7 | B132: 2008-11-02
A133: 1 | B133: 2008-11-03
A134: 2 | B134: 2008-11-04
A135: 3 | B135: 2008-11-05
A136: =WEEKDAY(B136,2) -> 4 | B136: 2008-11-06
A137: 5 | B137: =B136+1 -> 2008-11-07
A138: 6 | B138: 2008-11-08
A139: 7 | B139: 2008-11-09
A140: 1 | B140: 2008-11-10
A141: 2 | B141: 2008-11-11
A142: 3 | B142: 2008-11-12
A143: 4 | B143: 2008-11-13
A144: 5 | B144: 2008-11-14
A145: 6 | B145: 2008-11-15
A146: 7 | B146: 2008-11-16
A147: 1 | B147: 2008-11-17
A148: 2 | B148: 2008-11-18
A149: 3 | B149: 2008-11-19
A150: 4 | B150: 2008-11-20
A151: 5 | B151: 2008-11-21
A152: 6 | B152: 2008-11-22
A153: 7 | B153: 2008-11-23
A154: 1 | B154: 2008-11-24
A155: 2 | B155: 2008-11-25
A156: 3 | B156: 2008-11-26
A157: 4 | B157: 2008-11-27
A158: 5 | B158: 2008-11-28
A159: 6 | B159: 2008-11-29
A160: 7 | B160: 2008-11-30
A161: 1 | B161: 2008-12-01
A162: 2 | B162: 2008-12-02
A163: 3 | B163: 2008-12-03
A164: 4 | B164: 2008-12-04
A165: 5 | B165: 2008-12-05
A166: 6 | B166: 2008-12-06
A167: 7 | B167: 2008-12-07
A168: 1 | B168: 2008-12-08
A169: 2 | B169: 2008-12-09
A170: 3 | B170: 2008-12-10
A171: 4 | B171: 2008-12-11
A172: 5 | B172: 2008-12-12
A173: 6 | B173: 2008-12-13
A174: 7 | B174: 2008-12-14
A175: 1 | B175: 2008-12-15
A176: 2 | B176: 2008-12-16
A177: 3 | B177: 2008-12-17
A178: 4 | B178: 2008-12-18
A179: 5 | B179: 2008-12-19
A180: 6 | B180: 2008-12-20
A181: 7 | B181: 2008-12-21
A182: 1 | B182: 2008-12-22
A183: 2 | B183: 2008-12-23
A184: 3 | B184: 2008-12-24
A185: 4 | B185: 2008-12-25
A186: 5 | B186: 2008-12-26
A187: 6 | B187: 2008-12-27
A188: 7 | B188: 2008-12-28
A189: 1 | B189: 2008-12-29
A190: 2 | B190: 2008-12-30
A191: 3 | B191: 2008-12-31
A192: 4 | B192: 2009-01-01
A193: 5 | B193: 2009-01-02
A194: 6 | B194: 2009-01-03
A195: 7 | B195: 2009-01-04
A196: 1 | B196: 2009-01-05
A197: 2 | B197: 2009-01-06
A198: 3 | B198: 2009-01-07
A199: 4 | B199: 2009-01-08
A200: =WEEKDAY(B200,2) -> 5 | B200: 2009-01-09
A201: 6 | B201: =B200+1 -> 2009-01-10
A202: 7 | B202: 2009-01-11
A203: 1 | B203: 2009-01-12
A204: 2 | B204: 2009-01-13
... 231 more rows

Sheet Instructions
A2: Étapes de préparation
B5: Lorsque le fichier de base vous est remis, il inclut déjà l'essentiel de l'information.
B6: Vous devez malgrer tout faire certaines saisi, des vérifiactions et certains réglages.
B9: 1 | C9: Étape 1 | D9: Enregistrer le nouveau canevas avec un nom significatif ex. canevas MEA 2008-2009
C11: Étape 2 | D11: Mise à jour des données calendrier : cldrdata
E12: Les flottantes devront être ajouer a la main apres la génération du canevas de départ
C15: Étape 3 | D15: Mise à jour des données groupes : grprgdata
E16: Les colonnes date de début et date de fin ne sont pas obligatoire
E17: Donner des no différent a chacun des groupe
B19: 3 | C19: Étape 4 | D19: Initialisation du canevas d'horaire (ne pas répéter après la création initiale) | K19: Commande = ( CTL + i )
C21: Étape 5 | D21: Saisie des enseignants :
D23: Les enseigants doivent êtres identifier dans l'horaire de deux façon, par leur nom complet dans les cellulles 4B457 à B472
D24: et par des initiales "unique" composé de deux lettres minuscules qui les identifient dans les cellulles A457 à B472.
C26: Étape 6 | D26: Masquer les colonnes groupe non utilisés.
A31: Étapes de construction
C34: Étape 1 | D34: Déterminer pour chaques groupes, les modules qui sont programmé dans l'année précédente et suivante.
C36: Étape 2 | D36: Identifier pour chaque modules, dans chaques groupes, les enseignants qui sont sélectionnés (utilisé leurs initiales deux lettres)
C39: CTL+ C : | D39: Application de la couleur, identification de l'enseignant et calcules des heures de la journée
C44: FONCTIONS
C46: Générateur de canevas d'horaire | H46: Reserver aux TOS
B48: 1 | C48: Calculateur d'heures par module et totalisateur
B50: 2 | C50: Calculateur d'heures par enseignant / groupe
B52: 3 | C52: Générateur de tâche des enseignants
B54: 4 | C54: Vérificateur de doublons
C56: Fiches groupes / programmes
C58: Fiches spéciales

Sheet Julien, Rondeau
A2: Horaire prof Mécanique de véhicules lourds routiers
A4: Année scolaire 2024-2025 | C4: Julien, Rondeau | T4: Commentaires
C5: Intensif 1800 | K5: Intensif 1800
A6: 5 | C6: Jour | K6: Soir
C7: M | D7: P | E7: H | F7: L | G7: M | H7: P | I7: H | J7: L | K7: M | L7: P | M7: H | N7: L | O7: M | P7: P | Q7: H | R7: L
A8: =WEEKDAY(B8,2) -> 1 | B8: 2025-08-18 | C8: Vacances | K8: Vacances
A9: 2 | B9: 2025-08-19 | C9: Vacances | K9: Vacances
A10: 3 | B10: =B9+1 -> 2025-08-20 | C10: Vacances | K10: Vacances
A11: 4 | B11: =B10+1 -> 2025-08-21 | C11: Vacances | K11: Vacances
A12: 5 | B12: 2025-08-22 | C12: Pédagogique Commune | K12: Pédagogique Commune
A13: 6 | B13: 2025-08-23 | C13: WEEK-END | K13: WEEK-END
A14: 7 | B14: 2025-08-24 | C14: WEEK-END | K14: WEEK-END
A15: 1 | B15: 2025-08-25 | C15: Pédagogique | K15: Pédagogique
A16: 2 | B16: 2025-08-26
A17: 3 | B17: 2025-08-27
A18: 4 | B18: 2025-08-28
A19: 5 | B19: 2025-08-29
A20: 6 | B20: 2025-08-30 | C20: WEEK-END | K20: WEEK-END
A21: 7 | B21: 2025-08-31 | C21: WEEK-END | K21: WEEK-END
A22: 1 | B22: 2025-09-01 | C22: Congé | K22: Congé
A23: 2 | B23: 2025-09-02
A24: 3 | B24: 2025-09-03
A25: 4 | B25: 2025-09-04
A26: 5 | B26: 2025-09-05
A27: 6 | B27: 2025-09-06 | C27: WEEK-END | K27: WEEK-END
A28: 7 | B28: 2025-09-07 | C28: WEEK-END | K28: WEEK-END
A29: 1 | B29: 2025-09-08
A30: 2 | B30: 2025-09-09
A31: 3 | B31: 2025-09-10
A32: 4 | B32: 2025-09-11
A33: 5 | B33: 2025-09-12
A34: 6 | B34: 2025-09-13 | C34: WEEK-END | K34: WEEK-END
A35: 7 | B35: 2025-09-14 | C35: WEEK-END | K35: WEEK-END
A36: 1 | B36: 2025-09-15
A37: 2 | B37: 2025-09-16
A38: 3 | B38: 2025-09-17
A39: 4 | B39: 2025-09-18
A40: 5 | B40: 2025-09-19
A41: 6 | B41: 2025-09-20 | C41: WEEK-END | K41: WEEK-END
A42: 7 | B42: 2025-09-21 | C42: WEEK-END | K42: WEEK-END
A43: 1 | B43: 2025-09-22
A44: 2 | B44: 2025-09-23
A45: 3 | B45: 2025-09-24
A46: 4 | B46: 2025-09-25
A47: 5 | B47: 2025-09-26
A48: 6 | B48: 2025-09-27 | C48: WEEK-END | K48: WEEK-END
A49: 7 | B49: 2025-09-28 | C49: WEEK-END | K49: WEEK-END
A50: 1 | B50: 2025-09-29
A51: 2 | B51: 2025-09-30
A52: 3 | B52: 2025-10-01
A53: 4 | B53: 2025-10-02
A54: 5 | B54: 2025-10-03
A55: 6 | B55: 2025-10-04 | C55: WEEK-END | K55: WEEK-END
A56: 7 | B56: 2025-10-05 | C56: WEEK-END | K56: WEEK-END
A57: 1 | B57: 2025-10-06
A58: 2 | B58: 2025-10-07
A59: 3 | B59: 2025-10-08
A60: 4 | B60: 2025-10-09
A61: 5 | B61: 2025-10-10
A62: 6 | B62: 2025-10-11 | C62: WEEK-END | K62: WEEK-END
A63: 7 | B63: 2025-10-12 | C63: WEEK-END | K63: WEEK-END
A64: 1 | B64: 2025-10-13 | C64: Congé | K64: Congé
A65: 2 | B65: 2025-10-14
A66: 3 | B66: 2025-10-15
A67: 4 | B67: 2025-10-16
A68: 5 | B68: 2025-10-17
A69: 6 | B69: 2025-10-18 | C69: WEEK-END | K69: WEEK-END
A70: 7 | B70: 2025-10-19 | C70: WEEK-END | K70: WEEK-END
A71: 1 | B71: 2025-10-20
A72: =WEEKDAY(B72,2) -> 2 | B72: 2025-10-21
A73: 3 | B73: 2025-10-22 | C73: Pédagogique | K73: Pédagogique
A74: 4 | B74: 2025-10-23
A75: 5 | B75: =B74+1 -> 2025-10-24
A76: 6 | B76: 2025-10-25 | C76: WEEK-END | K76: WEEK-END
A77: 7 | B77: 2025-10-26 | C77: WEEK-END | K77: WEEK-END
A78: 1 | B78: 2025-10-27
A79: 2 | B79: 2025-10-28
A80: 3 | B80: 2025-10-29
A81: 4 | B81: 2025-10-30
A82: 5 | B82: 2025-10-31
A83: 6 | B83: 2025-11-01 | C83: WEEK-END | K83: WEEK-END
A84: 7 | B84: 2025-11-02 | C84: WEEK-END | K84: WEEK-END
A85: 1 | B85: 2025-11-03
A86: 2 | B86: 2025-11-04
A87: 3 | B87: 2025-11-05
A88: 4 | B88: 2025-11-06 | C88: Pédagogique | K88: Pédagogique
A89: 5 | B89: 2025-11-07 | C89: Pédagogique | K89: Pédagogique
A90: 6 | B90: 2025-11-08 | C90: WEEK-END | K90: WEEK-END
A91: 7 | B91: 2025-11-09 | C91: WEEK-END | K91: WEEK-END
A92: 1 | B92: 2025-11-10
A93: 2 | B93: 2025-11-11
A94: 3 | B94: 2025-11-12
A95: 4 | B95: 2025-11-13
A96: 5 | B96: 2025-11-14
A97: 6 | B97: 2025-11-15 | C97: WEEK-END | K97: WEEK-END
A98: 7 | B98: 2025-11-16 | C98: WEEK-END | K98: WEEK-END
A99: 1 | B99: 2025-11-17
A100: 2 | B100: 2025-11-18
A101: 3 | B101: 2025-11-19
A102: 4 | B102: 2025-11-20 | C102: Pédagogique Commune | K102: Pédagogique Commune
A103: 5 | B103: 2025-11-21
A104: 6 | B104: 2025-11-22 | C104: WEEK-END | K104: WEEK-END
A105: 7 | B105: 2025-11-23 | C105: WEEK-END | K105: WEEK-END
A106: 1 | B106: 2025-11-24
A107: 2 | B107: 2025-11-25
A108: 3 | B108: 2025-11-26
A109: 4 | B109: 2025-11-27
A110: 5 | B110: 2025-11-28
A111: 6 | B111: 2025-11-29 | C111: WEEK-END | K111: WEEK-END
A112: 7 | B112: 2025-11-30 | C112: WEEK-END | K112: WEEK-END
A113: 1 | B113: 2025-12-01
A114: 2 | B114: 2025-12-02
A115: 3 | B115: 2025-12-03
A116: 4 | B116: 2025-12-04
A117: 5 | B117: 2025-12-05
A118: 6 | B118: 2025-12-06 | C118: WEEK-END | K118: WEEK-END
A119: 7 | B119: 2025-12-07 | C119: WEEK-END | K119: WEEK-END
A120: 1 | B120: 2025-12-08
A121: 2 | B121: 2025-12-09
A122: 3 | B122: 2025-12-10
A123: 4 | B123: 2025-12-11
A124: 5 | B124: 2025-12-12
A125: 6 | B125: 2025-12-13 | C125: WEEK-END | K125: WEEK-END
A126: 7 | B126: 2025-12-14 | C126: WEEK-END | K126: WEEK-END
A127: 1 | B127: 2025-12-15
A128: 2 | B128: 2025-12-16
A129: 3 | B129: 2025-12-17
A130: 4 | B130: 2025-12-18
A131: 5 | B131: 2025-12-19
A132: 6 | B132: 2025-12-20 | C132: WEEK-END | K132: WEEK-END
A133: 7 | B133: 2025-12-21 | C133: WEEK-END | K133: WEEK-END
A134: 1 | B134: 2025-12-22 | C134: Congé Noël | K134: Congé Noël
A135: 2 | B135: 2025-12-23 | C135: Congé Noël | K135: Congé Noël
A136: =WEEKDAY(B136,2) -> 3 | B136: 2025-12-24 | C136: Congé Noël | K136: Congé Noël
A137: 4 | B137: 2025-12-25 | C137: Congé Noël | K137: Congé Noël
A138: 5 | B138: 2025-12-26 | C138: Congé Noël | K138: Congé Noël
A139: 6 | B139: =B138+1 -> 2025-12-27 | C139: WEEK-END | K139: WEEK-END
A140: 7 | B140: 2025-12-28 | C140: WEEK-END | K140: WEEK-END
A141: 1 | B141: 2025-12-29 | C141: Congé Noël | K141: Congé Noël
A142: 2 | B142: 2025-12-30 | C142: Congé Noël | K142: Congé Noël
A143: 3 | B143: 2025-12-31 | C143: Congé Noël | K143: Congé Noël
A144: 4 | B144: 2026-01-01 | C144: Congé Noël | K144: Congé Noël
A145: 5 | B145: 2026-01-02 | C145: Congé Noël | K145: Congé Noël
A146: 6 | B146: 2026-01-03 | C146: WEEK-END | K146: WEEK-END
A147: 7 | B147: 2026-01-04 | C147: WEEK-END | K147: WEEK-END
A148: 1 | B148: 2026-01-05 | C148: Pédagogique Commune | K148: Pédagogique Commune
A149: 2 | B149: 2026-01-06
A150: 3 | B150: 2026-01-07
A151: 4 | B151: 2026-01-08
A152: 5 | B152: 2026-01-09
A153: 6 | B153: 2026-01-10 | C153: WEEK-END | K153: WEEK-END
A154: 7 | B154: 2026-01-11 | C154: WEEK-END | K154: WEEK-END
A155: 1 | B155: 2026-01-12
A156: 2 | B156: 2026-01-13
A157: 3 | B157: 2026-01-14
A158: 4 | B158: 2026-01-15
A159: 5 | B159: 2026-01-16
A160: 6 | B160: 2026-01-17 | C160: WEEK-END | K160: WEEK-END
A161: 7 | B161: 2026-01-18 | C161: WEEK-END | K161: WEEK-END
A162: 1 | B162: 2026-01-19
A163: 2 | B163: 2026-01-20
A164: 3 | B164: 2026-01-21
A165: 4 | B165: 2026-01-22
A166: 5 | B166: 2026-01-23
A167: 6 | B167: 2026-01-24 | C167: WEEK-END | K167: WEEK-END
A168: 7 | B168: 2026-01-25 | C168: WEEK-END | K168: WEEK-END
A169: 1 | B169: 2026-01-26
A170: 2 | B170: 2026-01-27
A171: 3 | B171: 2026-01-28
A172: 4 | B172: 2026-01-29
A173: 5 | B173: 2026-01-30 | C173: Pédagogique | K173: Pédagogique
A174: 6 | B174: 2026-01-31 | C174: WEEK-END | K174: WEEK-END
A175: 7 | B175: 2026-02-01 | C175: WEEK-END | K175: WEEK-END
A176: 1 | B176: 2026-02-02
A177: 2 | B177: 2026-02-03
A178: 3 | B178: 2026-02-04
A179: 4 | B179: 2026-02-05
A180: 5 | B180: 2026-02-06
A181: 6 | B181: 2026-02-07 | C181: WEEK-END | K181: WEEK-END
A182: 7 | B182: 2026-02-08 | C182: WEEK-END | K182: WEEK-END
A183: 1 | B183: 2026-02-09
A184: 2 | B184: 2026-02-10
A185: 3 | B185: 2026-02-11
A186: 4 | B186: 2026-02-12
A187: 5 | B187: 2026-02-13
A188: 6 | B188: 2026-02-14 | C188: WEEK-END | K188: WEEK-END
A189: 7 | B189: 2026-02-15 | C189: WEEK-END | K189: WEEK-END
A190: 1 | B190: 2026-02-16
A191: 2 | B191: 2026-02-17
A192: 3 | B192: 2026-02-18
A193: 4 | B193: 2026-02-19
A194: 5 | B194: 2026-02-20
A195: 6 | B195: 2026-02-21 | C195: WEEK-END | K195: WEEK-END
A196: 7 | B196: 2026-02-22 | C196: WEEK-END | K196: WEEK-END
A197: 1 | B197: 2026-02-23
A198: 2 | B198: 2026-02-24
A199: 3 | B199: 2026-02-25 | C199: Pédagogique | K199: Pédagogique
A200: =WEEKDAY(B200,2) -> 4 | B200: 2026-02-26
A201: 5 | B201: 2026-02-27
A202: 6 | B202: 2026-02-28 | C202: WEEK-END | K202: WEEK-END
... 234 more rows

Sheet Julien Béland M.
A2: Horaire prof Mécanique de véhicules lourds routiers
A4: Année scolaire 2025-2026 | C4: Julien Béland M. | T4: Commentaires
C5: Intensif 1800 | K5: Intensif 1800
A6: 10 | C6: Jour | K6: Soir
C7: M | D7: P | E7: H | F7: L | G7: M | H7: P | I7: H | J7: L | K7: M | L7: P | M7: H | N7: L | O7: M | P7: P | Q7: H | R7: L
A8: =WEEKDAY(B8,2) -> 1 | B8: 2025-08-18 | C8: Vacances | K8: Vacances
A9: 2 | B9: 2025-08-19 | C9: Vacances | K9: Vacances
A10: 3 | B10: =B9+1 -> 2025-08-20 | C10: Vacances | K10: Vacances
A11: 4 | B11: =B10+1 -> 2025-08-21 | C11: Vacances | K11: Vacances
A12: 5 | B12: 2025-08-22 | C12: Pédagogique Commune | K12: Pédagogique Commune
A13: 6 | B13: 2025-08-23 | C13: WEEK-END | K13: WEEK-END
A14: 7 | B14: 2025-08-24 | C14: WEEK-END | K14: WEEK-END
A15: 1 | B15: 2025-08-25 | C15: Pédagogique | K15: Pédagogique
A16: 2 | B16: 2025-08-26
A17: 3 | B17: 2025-08-27
A18: 4 | B18: 2025-08-28
A19: 5 | B19: 2025-08-29
A20: 6 | B20: 2025-08-30 | C20: WEEK-END | K20: WEEK-END
A21: 7 | B21: 2025-08-31 | C21: WEEK-END | K21: WEEK-END
A22: 1 | B22: 2025-09-01 | C22: Congé | K22: Congé
A23: 2 | B23: 2025-09-02
A24: 3 | B24: 2025-09-03
A25: 4 | B25: 2025-09-04
A26: 5 | B26: 2025-09-05
A27: 6 | B27: 2025-09-06 | C27: WEEK-END | K27: WEEK-END
A28: 7 | B28: 2025-09-07 | C28: WEEK-END | K28: WEEK-END
A29: 1 | B29: 2025-09-08
A30: 2 | B30: 2025-09-09
A31: 3 | B31: 2025-09-10
A32: 4 | B32: 2025-09-11
A33: 5 | B33: 2025-09-12
A34: 6 | B34: 2025-09-13 | C34: WEEK-END | K34: WEEK-END
A35: 7 | B35: 2025-09-14 | C35: WEEK-END | K35: WEEK-END
A36: 1 | B36: 2025-09-15
A37: 2 | B37: 2025-09-16
A38: 3 | B38: 2025-09-17
A39: 4 | B39: 2025-09-18
A40: 5 | B40: 2025-09-19
A41: 6 | B41: 2025-09-20 | C41: WEEK-END | K41: WEEK-END
A42: 7 | B42: 2025-09-21 | C42: WEEK-END | K42: WEEK-END
A43: 1 | B43: 2025-09-22
A44: 2 | B44: 2025-09-23
A45: 3 | B45: 2025-09-24
A46: 4 | B46: 2025-09-25
A47: 5 | B47: 2025-09-26
A48: 6 | B48: 2025-09-27 | C48: WEEK-END | K48: WEEK-END
A49: 7 | B49: 2025-09-28 | C49: WEEK-END | K49: WEEK-END
A50: 1 | B50: 2025-09-29
A51: 2 | B51: 2025-09-30
A52: 3 | B52: 2025-10-01
A53: 4 | B53: 2025-10-02
A54: 5 | B54: 2025-10-03
A55: 6 | B55: 2025-10-04 | C55: WEEK-END | K55: WEEK-END
A56: 7 | B56: 2025-10-05 | C56: WEEK-END | K56: WEEK-END
A57: 1 | B57: 2025-10-06
A58: 2 | B58: 2025-10-07
A59: 3 | B59: 2025-10-08
A60: 4 | B60: 2025-10-09
A61: 5 | B61: 2025-10-10
A62: 6 | B62: 2025-10-11 | C62: WEEK-END | K62: WEEK-END
A63: 7 | B63: 2025-10-12 | C63: WEEK-END | K63: WEEK-END
A64: 1 | B64: 2025-10-13 | C64: Congé | K64: Congé
A65: 2 | B65: 2025-10-14
A66: 3 | B66: 2025-10-15
A67: 4 | B67: 2025-10-16
A68: 5 | B68: 2025-10-17
A69: 6 | B69: 2025-10-18 | C69: WEEK-END | K69: WEEK-END
A70: 7 | B70: 2025-10-19 | C70: WEEK-END | K70: WEEK-END
A71: 1 | B71: 2025-10-20
A72: =WEEKDAY(B72,2) -> 2 | B72: 2025-10-21
A73: 3 | B73: 2025-10-22 | C73: Pédagogique | K73: Pédagogique
A74: 4 | B74: 2025-10-23
A75: 5 | B75: =B74+1 -> 2025-10-24
A76: 6 | B76: 2025-10-25 | C76: WEEK-END | K76: WEEK-END
A77: 7 | B77: 2025-10-26 | C77: WEEK-END | K77: WEEK-END
A78: 1 | B78: 2025-10-27
A79: 2 | B79: 2025-10-28
A80: 3 | B80: 2025-10-29
A81: 4 | B81: 2025-10-30
A82: 5 | B82: 2025-10-31
A83: 6 | B83: 2025-11-01 | C83: WEEK-END | K83: WEEK-END
A84: 7 | B84: 2025-11-02 | C84: WEEK-END | K84: WEEK-END
A85: 1 | B85: 2025-11-03
A86: 2 | B86: 2025-11-04
A87: 3 | B87: 2025-11-05
A88: 4 | B88: 2025-11-06 | C88: Pédagogique | K88: Pédagogique
A89: 5 | B89: 2025-11-07 | C89: Pédagogique | K89: Pédagogique
A90: 6 | B90: 2025-11-08 | C90: WEEK-END | K90: WEEK-END
A91: 7 | B91: 2025-11-09 | C91: WEEK-END | K91: WEEK-END
A92: 1 | B92: 2025-11-10
A93: 2 | B93: 2025-11-11
A94: 3 | B94: 2025-11-12
A95: 4 | B95: 2025-11-13
A96: 5 | B96: 2025-11-14
A97: 6 | B97: 2025-11-15 | C97: WEEK-END | K97: WEEK-END
A98: 7 | B98: 2025-11-16 | C98: WEEK-END | K98: WEEK-END
A99: 1 | B99: 2025-11-17
A100: 2 | B100: 2025-11-18
A101: 3 | B101: 2025-11-19
A102: 4 | B102: 2025-11-20 | C102: Pédagogique Commune | K102: Pédagogique Commune
A103: 5 | B103: 2025-11-21
A104: 6 | B104: 2025-11-22 | C104: WEEK-END | K104: WEEK-END
A105: 7 | B105: 2025-11-23 | C105: WEEK-END | K105: WEEK-END
A106: 1 | B106: 2025-11-24
A107: 2 | B107: 2025-11-25
A108: 3 | B108: 2025-11-26
A109: 4 | B109: 2025-11-27
A110: 5 | B110: 2025-11-28
A111: 6 | B111: 2025-11-29 | C111: WEEK-END | K111: WEEK-END
A112: 7 | B112: 2025-11-30 | C112: WEEK-END | K112: WEEK-END
A113: 1 | B113: 2025-12-01
A114: 2 | B114: 2025-12-02
A115: 3 | B115: 2025-12-03
A116: 4 | B116: 2025-12-04
A117: 5 | B117: 2025-12-05
A118: 6 | B118: 2025-12-06 | C118: WEEK-END | K118: WEEK-END
A119: 7 | B119: 2025-12-07 | C119: WEEK-END | K119: WEEK-END
A120: 1 | B120: 2025-12-08
A121: 2 | B121: 2025-12-09
A122: 3 | B122: 2025-12-10
A123: 4 | B123: 2025-12-11
A124: 5 | B124: 2025-12-12
A125: 6 | B125: 2025-12-13 | C125: WEEK-END | K125: WEEK-END
A126: 7 | B126: 2025-12-14 | C126: WEEK-END | K126: WEEK-END
A127: 1 | B127: 2025-12-15
A128: 2 | B128: 2025-12-16
A129: 3 | B129: 2025-12-17
A130: 4 | B130: 2025-12-18
A131: 5 | B131: 2025-12-19
A132: 6 | B132: 2025-12-20 | C132: WEEK-END | K132: WEEK-END
A133: 7 | B133: 2025-12-21 | C133: WEEK-END | K133: WEEK-END
A134: 1 | B134: 2025-12-22 | C134: Congé Noël | K134: Congé Noël
A135: 2 | B135: 2025-12-23 | C135: Congé Noël | K135: Congé Noël
A136: =WEEKDAY(B136,2) -> 3 | B136: 2025-12-24 | C136: Congé Noël | K136: Congé Noël
A137: 4 | B137: 2025-12-25 | C137: Congé Noël | K137: Congé Noël
A138: 5 | B138: 2025-12-26 | C138: Congé Noël | K138: Congé Noël
A139: 6 | B139: =B138+1 -> 2025-12-27 | C139: WEEK-END | K139: WEEK-END
A140: 7 | B140: 2025-12-28 | C140: WEEK-END | K140: WEEK-END
A141: 1 | B141: 2025-12-29 | C141: Congé Noël | K141: Congé Noël
A142: 2 | B142: 2025-12-30 | C142: Congé Noël | K142: Congé Noël
A143: 3 | B143: 2025-12-31 | C143: Congé Noël | K143: Congé Noël
A144: 4 | B144: 2026-01-01 | C144: Congé Noël | K144: Congé Noël
A145: 5 | B145: 2026-01-02 | C145: Congé Noël | K145: Congé Noël
A146: 6 | B146: 2026-01-03 | C146: WEEK-END | K146: WEEK-END
A147: 7 | B147: 2026-01-04 | C147: WEEK-END | K147: WEEK-END
A148: 1 | B148: 2026-01-05 | C148: Pédagogique Commune | K148: Pédagogique Commune
A149: 2 | B149: 2026-01-06
A150: 3 | B150: 2026-01-07
A151: 4 | B151: 2026-01-08
A152: 5 | B152: 2026-01-09
A153: 6 | B153: 2026-01-10 | C153: WEEK-END | K153: WEEK-END
A154: 7 | B154: 2026-01-11 | C154: WEEK-END | K154: WEEK-END
A155: 1 | B155: 2026-01-12
A156: 2 | B156: 2026-01-13
A157: 3 | B157: 2026-01-14
A158: 4 | B158: 2026-01-15
A159: 5 | B159: 2026-01-16
A160: 6 | B160: 2026-01-17 | C160: WEEK-END | K160: WEEK-END
A161: 7 | B161: 2026-01-18 | C161: WEEK-END | K161: WEEK-END
A162: 1 | B162: 2026-01-19
A163: 2 | B163: 2026-01-20
A164: 3 | B164: 2026-01-21
A165: 4 | B165: 2026-01-22
A166: 5 | B166: 2026-01-23
A167: 6 | B167: 2026-01-24 | C167: WEEK-END | K167: WEEK-END
A168: 7 | B168: 2026-01-25 | C168: WEEK-END | K168: WEEK-END
A169: 1 | B169: 2026-01-26
A170: 2 | B170: 2026-01-27
A171: 3 | B171: 2026-01-28
A172: 4 | B172: 2026-01-29
A173: 5 | B173: 2026-01-30 | C173: Pédagogique | K173: Pédagogique
A174: 6 | B174: 2026-01-31 | C174: WEEK-END | K174: WEEK-END
A175: 7 | B175: 2026-02-01 | C175: WEEK-END | K175: WEEK-END
A176: 1 | B176: 2026-02-02
A177: 2 | B177: 2026-02-03
A178: 3 | B178: 2026-02-04
A179: 4 | B179: 2026-02-05
A180: 5 | B180: 2026-02-06
A181: 6 | B181: 2026-02-07 | C181: WEEK-END | K181: WEEK-END
A182: 7 | B182: 2026-02-08 | C182: WEEK-END | K182: WEEK-END
A183: 1 | B183: 2026-02-09
A184: 2 | B184: 2026-02-10
A185: 3 | B185: 2026-02-11
A186: 4 | B186: 2026-02-12
A187: 5 | B187: 2026-02-13
A188: 6 | B188: 2026-02-14 | C188: WEEK-END | K188: WEEK-END
A189: 7 | B189: 2026-02-15 | C189: WEEK-END | K189: WEEK-END
A190: 1 | B190: 2026-02-16
A191: 2 | B191: 2026-02-17
A192: 3 | B192: 2026-02-18
A193: 4 | B193: 2026-02-19
A194: 5 | B194: 2026-02-20
A195: 6 | B195: 2026-02-21 | C195: WEEK-END | K195: WEEK-END
A196: 7 | B196: 2026-02-22 | C196: WEEK-END | K196: WEEK-END
A197: 1 | B197: 2026-02-23
A198: 2 | B198: 2026-02-24
A199: 3 | B199: 2026-02-25 | C199: Pédagogique | K199: Pédagogique
A200: =WEEKDAY(B200,2) -> 4 | B200: 2026-02-26
A201: 5 | B201: 2026-02-27
A202: 6 | B202: 2026-02-28 | C202: WEEK-END | K202: WEEK-END
... 234 more rows

Sheet Roch Gauthier
A2: Horaire prof Mécanique de véhicules lourds routiers
A4: Année scolaire 2024-2025 | C4: Roch Gauthier | T4: Commentaires
C5: Intensif 1800 | K5: Intensif 1800
A6: 8 | C6: Jour | K6: Soir
C7: M | D7: P | E7: H | F7: L | G7: M | H7: P | I7: H | J7: L | K7: M | L7: P | M7: H | N7: L | O7: M | P7: P | Q7: H | R7: L
A8: =WEEKDAY(B8,2) -> 1 | B8: 2025-08-18 | C8: Vacances | K8: Vacances
A9: 2 | B9: 2025-08-19 | C9: Vacances | K9: Vacances
A10: 3 | B10: =B9+1 -> 2025-08-20 | C10: Vacances | K10: Vacances
A11: 4 | B11: =B10+1 -> 2025-08-21 | C11: Vacances | K11: Vacances
A12: 5 | B12: 2025-08-22 | C12: 35 | E12: 6 | K12: Pédagogique Commune
A13: 6 | B13: 2025-08-23 | C13: WEEK-END | K13: WEEK-END
A14: 7 | B14: 2025-08-24 | C14: WEEK-END | K14: WEEK-END
A15: 1 | B15: 2025-08-25 | C15: 35 | E15: 6 | K15: Pédagogique
A16: 2 | B16: 2025-08-26
A17: 3 | B17: 2025-08-27
A18: 4 | B18: 2025-08-28
A19: 5 | B19: 2025-08-29
A20: 6 | B20: 2025-08-30 | C20: WEEK-END | K20: WEEK-END
A21: 7 | B21: 2025-08-31 | C21: WEEK-END | K21: WEEK-END
A22: 1 | B22: 2025-09-01 | C22: Congé | K22: Congé
A23: 2 | B23: 2025-09-02
A24: 3 | B24: 2025-09-03
A25: 4 | B25: 2025-09-04
A26: 5 | B26: 2025-09-05
A27: 6 | B27: 2025-09-06 | C27: WEEK-END | K27: WEEK-END
A28: 7 | B28: 2025-09-07 | C28: WEEK-END | K28: WEEK-END
A29: 1 | B29: 2025-09-08
A30: 2 | B30: 2025-09-09
A31: 3 | B31: 2025-09-10
A32: 4 | B32: 2025-09-11
A33: 5 | B33: 2025-09-12
A34: 6 | B34: 2025-09-13 | C34: WEEK-END | K34: WEEK-END
A35: 7 | B35: 2025-09-14 | C35: WEEK-END | K35: WEEK-END
A36: 1 | B36: 2025-09-15
A37: 2 | B37: 2025-09-16
A38: 3 | B38: 2025-09-17
A39: 4 | B39: 2025-09-18
A40: 5 | B40: 2025-09-19
A41: 6 | B41: 2025-09-20 | C41: WEEK-END | K41: WEEK-END
A42: 7 | B42: 2025-09-21 | C42: WEEK-END | K42: WEEK-END
A43: 1 | B43: 2025-09-22
A44: 2 | B44: 2025-09-23
A45: 3 | B45: 2025-09-24
A46: 4 | B46: 2025-09-25
A47: 5 | B47: 2025-09-26
A48: 6 | B48: 2025-09-27 | C48: WEEK-END | K48: WEEK-END
A49: 7 | B49: 2025-09-28 | C49: WEEK-END | K49: WEEK-END
A50: 1 | B50: 2025-09-29 | C50: 12 | D50: rg | E50: 6 | G50: 37 | I50: 1
A51: 2 | B51: 2025-09-30 | C51: 3heures extra pour groupe 27 | T51: Rentrer 3h pour groupe 27
A52: 3 | B52: 2025-10-01 | C52: 90 | D52: rg | E52: 6 | F52: R13 | G52: 37 | I52: 1
A53: 4 | B53: 2025-10-02 | C53: 33 | D53: rg | E53: 3 | F53: X10 | G53: 37 | I53: 1 | T53: arriver 1h30
A54: 5 | B54: 2025-10-03 | C54: 90 | D54: rg | E54: 6 | F54: R14 | G54: 37 | I54: 1
A55: 6 | B55: 2025-10-04 | C55: WEEK-END | K55: WEEK-END
A56: 7 | B56: 2025-10-05 | C56: WEEK-END | K56: WEEK-END
A57: 1 | B57: 2025-10-06 | C57: 11 | D57: rg | E57: 6 | G57: 37 | I57: 1
A58: 2 | B58: 2025-10-07 | C58: 11 | D58: rg | E58: 6 | G58: 37 | I58: 1
A59: 3 | B59: 2025-10-08 | C59: 11 | D59: rg | E59: 6 | G59: 37 | I59: 1
A60: 4 | B60: 2025-10-09 | C60: 11 | D60: rg | E60: 6 | G60: 37 | I60: 1
A61: 5 | B61: 2025-10-10 | C61: 3heures extra pour reprise a Thomas | T61: 3heures
A62: 6 | B62: 2025-10-11 | C62: WEEK-END | K62: WEEK-END
A63: 7 | B63: 2025-10-12 | C63: WEEK-END | K63: WEEK-END
A64: 1 | B64: 2025-10-13 | C64: Congé | K64: Congé
A65: 2 | B65: 2025-10-14
A66: 3 | B66: 2025-10-15
A67: 4 | B67: 2025-10-16 | C67: 2 | D67: rg | E67: 6 | G67: 37 | I67: 1
A68: 5 | B68: 2025-10-17 | C68: 2 | D68: rg | E68: 6 | G68: 37 | I68: 1
A69: 6 | B69: 2025-10-18 | C69: WEEK-END | K69: WEEK-END
A70: 7 | B70: 2025-10-19 | C70: WEEK-END | K70: WEEK-END
A71: 1 | B71: 2025-10-20 | C71: 17 | D71: rg | E71: 6 | G71: 37 | I71: 1
A72: =WEEKDAY(B72,2) -> 2 | B72: 2025-10-21 | C72: 17 | D72: rg | E72: 6 | G72: 37 | I72: 1
A73: 3 | B73: 2025-10-22 | C73: 35 | E73: 6 | K73: Pédagogique
A74: 4 | B74: 2025-10-23 | C74: 17 | D74: rg | E74: 6 | G74: 37 | I74: 1
A75: 5 | B75: =B74+1 -> 2025-10-24 | C75: 17 | D75: rg | E75: 6 | G75: 37 | I75: 1
A76: 6 | B76: 2025-10-25 | C76: WEEK-END | K76: WEEK-END
A77: 7 | B77: 2025-10-26 | C77: WEEK-END | K77: WEEK-END
A78: 1 | B78: 2025-10-27
A79: 2 | B79: 2025-10-28 | C79: 90 | D79: rg | E79: 6 | F79: R22 | G79: 37 | I79: 1
A80: 3 | B80: 2025-10-29 | C80: 90 | D80: rg | E80: 6 | F80: R14 | G80: 37 | I80: 1
A81: 4 | B81: 2025-10-30 | C81: 4 | D81: rg | E81: 6 | G81: 37 | I81: 1
A82: 5 | B82: 2025-10-31 | C82: 4 | D82: rg | E82: 6 | G82: 37 | I82: 1
A83: 6 | B83: 2025-11-01 | C83: WEEK-END | K83: WEEK-END
A84: 7 | B84: 2025-11-02 | C84: WEEK-END | K84: WEEK-END
A85: 1 | B85: 2025-11-03 | C85: 33 | D85: rg | E85: 3 | F85: X22 | G85: 37 | I85: 1
A86: 2 | B86: 2025-11-04 | C86: 15 | D86: rg | E86: 6 | G86: 37 | I86: 1
A87: 3 | B87: 2025-11-05 | C87: 15 | D87: rg | E87: 6 | G87: 37 | I87: 1
A88: 4 | B88: 2025-11-06 | C88: 15 | D88: rg | E88: 6 | G88: 37 | I88: 1
A89: 5 | B89: 2025-11-07 | C89: 35 | E89: 6 | K89: Pédagogique
A90: 6 | B90: 2025-11-08 | C90: WEEK-END | K90: WEEK-END
A91: 7 | B91: 2025-11-09 | C91: WEEK-END | K91: WEEK-END
A92: 1 | B92: 2025-11-10 | C92: 15 | D92: rg | E92: 6 | G92: 37 | I92: 1
A93: 2 | B93: 2025-11-11 | C93: 15 | D93: rg | E93: 6 | G93: 37 | I93: 1
A94: 3 | B94: 2025-11-12 | C94: 15 | D94: rg | E94: 6 | G94: 37 | I94: 1
A95: 4 | B95: 2025-11-13
A96: 5 | B96: 2025-11-14 | C96: 15 | D96: rg | E96: 6 | G96: 37 | I96: 1
A97: 6 | B97: 2025-11-15 | C97: WEEK-END | K97: WEEK-END
A98: 7 | B98: 2025-11-16 | C98: WEEK-END | K98: WEEK-END
A99: 1 | B99: 2025-11-17 | C99: 15 | D99: rg | E99: 6 | G99: 37 | I99: 1
A100: 2 | B100: 2025-11-18 | C100: 90 | D100: rg | E100: 6 | F100: R22 | G100: 37 | I100: 1
A101: 3 | B101: 2025-11-19 | C101: 90 | D101: rg | E101: 6 | F101: R9 | G101: 37 | I101: 1
A102: 4 | B102: 2025-11-20 | C102: 35 | E102: 6 | K102: Pédagogique Commune
A103: 5 | B103: 2025-11-21 | C103: 90 | D103: rg | E103: 6 | F103: R19 | G103: 37 | I103: 1
A104: 6 | B104: 2025-11-22 | C104: WEEK-END | K104: WEEK-END
A105: 7 | B105: 2025-11-23 | C105: WEEK-END | K105: WEEK-END
A106: 1 | B106: 2025-11-24 | C106: 33 | D106: rg | E106: 3 | F106: X22 | G106: 37 | I106: 1
A107: 2 | B107: 2025-11-25
A108: 3 | B108: 2025-11-26 | C108: 13 | D108: rg | E108: 6 | G108: 37 | I108: 1
A109: 4 | B109: 2025-11-27 | C109: 90 | D109: rg | E109: 6 | F109: R16 | G109: 37 | I109: 1
A110: 5 | B110: 2025-11-28 | C110: 4 | D110: rg | E110: 6 | G110: 37 | I110: 1 | T110: STUDIO
A111: 6 | B111: 2025-11-29 | C111: WEEK-END | K111: WEEK-END
A112: 7 | B112: 2025-11-30 | C112: WEEK-END | K112: WEEK-END
A113: 1 | B113: 2025-12-01 | C113: 33 | D113: rg | E113: 3 | F113: X16 | G113: 37 | I113: 1
A114: 2 | B114: 2025-12-02
A115: 3 | B115: 2025-12-03 | C115: 35 | E115: 6 | K115: Pédagogique
A116: 4 | B116: 2025-12-04 | C116: 4 | D116: rg | E116: 6 | G116: 37 | I116: 1
A117: 5 | B117: 2025-12-05 | C117: 17 | D117: rg | E117: 6 | G117: 37 | I117: 1
A118: 6 | B118: 2025-12-06 | C118: WEEK-END | K118: WEEK-END
A119: 7 | B119: 2025-12-07 | C119: WEEK-END | K119: WEEK-END
A120: 1 | B120: 2025-12-08
A121: 2 | B121: 2025-12-09 | C121: 90 | D121: rg | E121: 6 | F121: R15 | G121: 37 | I121: 1
A122: 3 | B122: 2025-12-10 | C122: 90 | D122: rg | E122: 6 | F122: R18 | G122: 37 | I122: 1
A123: 4 | B123: 2025-12-11 | C123: 4 | D123: rg | E123: 6 | G123: 37 | I123: 1
A124: 5 | B124: 2025-12-12 | C124: 4 | D124: rg | E124: 6 | G124: 37 | I124: 1
A125: 6 | B125: 2025-12-13 | C125: WEEK-END | K125: WEEK-END
A126: 7 | B126: 2025-12-14 | C126: WEEK-END | K126: WEEK-END
A127: 1 | B127: 2025-12-15
A128: 2 | B128: 2025-12-16
A129: 3 | B129: 2025-12-17
A130: 4 | B130: 2025-12-18
A131: 5 | B131: 2025-12-19
A132: 6 | B132: 2025-12-20 | C132: WEEK-END | K132: WEEK-END
A133: 7 | B133: 2025-12-21 | C133: WEEK-END | K133: WEEK-END
A134: 1 | B134: 2025-12-22 | C134: Congé Noël | K134: Congé Noël
A135: 2 | B135: 2025-12-23 | C135: Congé Noël | K135: Congé Noël
A136: =WEEKDAY(B136,2) -> 3 | B136: 2025-12-24 | C136: Congé Noël | K136: Congé Noël
A137: 4 | B137: 2025-12-25 | C137: Congé Noël | K137: Congé Noël
A138: 5 | B138: 2025-12-26 | C138: Congé Noël | K138: Congé Noël
A139: 6 | B139: =B138+1 -> 2025-12-27 | C139: WEEK-END | K139: WEEK-END
A140: 7 | B140: 2025-12-28 | C140: WEEK-END | K140: WEEK-END
A141: 1 | B141: 2025-12-29 | C141: Congé Noël | K141: Congé Noël
A142: 2 | B142: 2025-12-30 | C142: Congé Noël | K142: Congé Noël
A143: 3 | B143: 2025-12-31 | C143: Congé Noël | K143: Congé Noël
A144: 4 | B144: 2026-01-01 | C144: Congé Noël | K144: Congé Noël
A145: 5 | B145: 2026-01-02 | C145: Congé Noël | K145: Congé Noël
A146: 6 | B146: 2026-01-03 | C146: WEEK-END | K146: WEEK-END
A147: 7 | B147: 2026-01-04 | C147: WEEK-END | K147: WEEK-END
A148: 1 | B148: 2026-01-05 | C148: Pédagogique Commune | K148: Pédagogique Commune
A149: 2 | B149: 2026-01-06
A150: 3 | B150: 2026-01-07
A151: 4 | B151: 2026-01-08
A152: 5 | B152: 2026-01-09
A153: 6 | B153: 2026-01-10 | C153: WEEK-END | K153: WEEK-END
A154: 7 | B154: 2026-01-11 | C154: WEEK-END | K154: WEEK-END
A155: 1 | B155: 2026-01-12
A156: 2 | B156: 2026-01-13
A157: 3 | B157: 2026-01-14
A158: 4 | B158: 2026-01-15
A159: 5 | B159: 2026-01-16
A160: 6 | B160: 2026-01-17 | C160: WEEK-END | K160: WEEK-END
A161: 7 | B161: 2026-01-18 | C161: WEEK-END | K161: WEEK-END
A162: 1 | B162: 2026-01-19
A163: 2 | B163: 2026-01-20
A164: 3 | B164: 2026-01-21
A165: 4 | B165: 2026-01-22
A166: 5 | B166: 2026-01-23
A167: 6 | B167: 2026-01-24 | C167: WEEK-END | K167: WEEK-END
A168: 7 | B168: 2026-01-25 | C168: WEEK-END | K168: WEEK-END
A169: 1 | B169: 2026-01-26
A170: 2 | B170: 2026-01-27
A171: 3 | B171: 2026-01-28
A172: 4 | B172: 2026-01-29
A173: 5 | B173: 2026-01-30 | C173: Pédagogique | K173: Pédagogique
A174: 6 | B174: 2026-01-31 | C174: WEEK-END | K174: WEEK-END
A175: 7 | B175: 2026-02-01 | C175: WEEK-END | K175: WEEK-END
A176: 1 | B176: 2026-02-02
A177: 2 | B177: 2026-02-03
A178: 3 | B178: 2026-02-04
A179: 4 | B179: 2026-02-05
A180: 5 | B180: 2026-02-06
A181: 6 | B181: 2026-02-07 | C181: WEEK-END | K181: WEEK-END
A182: 7 | B182: 2026-02-08 | C182: WEEK-END | K182: WEEK-END
A183: 1 | B183: 2026-02-09
A184: 2 | B184: 2026-02-10
A185: 3 | B185: 2026-02-11
A186: 4 | B186: 2026-02-12
A187: 5 | B187: 2026-02-13
A188: 6 | B188: 2026-02-14 | C188: WEEK-END | K188: WEEK-END
A189: 7 | B189: 2026-02-15 | C189: WEEK-END | K189: WEEK-END
A190: 1 | B190: 2026-02-16
A191: 2 | B191: 2026-02-17
A192: 3 | B192: 2026-02-18
A193: 4 | B193: 2026-02-19
A194: 5 | B194: 2026-02-20
A195: 6 | B195: 2026-02-21 | C195: WEEK-END | K195: WEEK-END
A196: 7 | B196: 2026-02-22 | C196: WEEK-END | K196: WEEK-END
A197: 1 | B197: 2026-02-23
A198: 2 | B198: 2026-02-24
A199: 3 | B199: 2026-02-25 | C199: Pédagogique | K199: Pédagogique
A200: =WEEKDAY(B200,2) -> 4 | B200: 2026-02-26
A201: 5 | B201: 2026-02-27
A202: 6 | B202: 2026-02-28 | C202: WEEK-END | K202: WEEK-END
... 236 more rows

Sheet Nicolas Privé
A2: Horaire prof Mécanique de véhicules lourds routiers
A4: Année scolaire 2024-2025 | C4: Nicolas Privé | T4: Commentaires
C5: Intensif 1800 | K5: Intensif 1800
A6: 9 | C6: Jour | K6: Soir
C7: M | D7: P | E7: H | F7: L | G7: M | H7: P | I7: H | J7: L | K7: M | L7: P | M7: H | N7: L | O7: M | P7: P | Q7: H | R7: L
A8: =WEEKDAY(B8,2) -> 1 | B8: 2025-08-18 | C8: Vacances | K8: Vacances
A9: 2 | B9: 2025-08-19 | C9: Vacances | K9: Vacances
A10: 3 | B10: =B9+1 -> 2025-08-20 | C10: Vacances | K10: Vacances
A11: 4 | B11: =B10+1 -> 2025-08-21 | C11: Vacances | K11: Vacances
A12: 5 | B12: 2025-08-22 | C12: Pédagogique Commune | K12: Pédagogique Commune
A13: 6 | B13: 2025-08-23 | C13: WEEK-END | K13: WEEK-END
A14: 7 | B14: 2025-08-24 | C14: WEEK-END | K14: WEEK-END
A15: 1 | B15: 2025-08-25 | C15: Pédagogique | K15: Pédagogique
A16: 2 | B16: 2025-08-26
A17: 3 | B17: 2025-08-27
A18: 4 | B18: 2025-08-28
A19: 5 | B19: 2025-08-29
A20: 6 | B20: 2025-08-30 | C20: WEEK-END | K20: WEEK-END
A21: 7 | B21: 2025-08-31 | C21: WEEK-END | K21: WEEK-END
A22: 1 | B22: 2025-09-01 | C22: Congé | K22: Congé
A23: 2 | B23: 2025-09-02
A24: 3 | B24: 2025-09-03
A25: 4 | B25: 2025-09-04
A26: 5 | B26: 2025-09-05
A27: 6 | B27: 2025-09-06 | C27: WEEK-END | K27: WEEK-END
A28: 7 | B28: 2025-09-07 | C28: WEEK-END | K28: WEEK-END
A29: 1 | B29: 2025-09-08
A30: 2 | B30: 2025-09-09
A31: 3 | B31: 2025-09-10
A32: 4 | B32: 2025-09-11
A33: 5 | B33: 2025-09-12
A34: 6 | B34: 2025-09-13 | C34: WEEK-END | K34: WEEK-END
A35: 7 | B35: 2025-09-14 | C35: WEEK-END | K35: WEEK-END
A36: 1 | B36: 2025-09-15
A37: 2 | B37: 2025-09-16
A38: 3 | B38: 2025-09-17
A39: 4 | B39: 2025-09-18
A40: 5 | B40: 2025-09-19
A41: 6 | B41: 2025-09-20 | C41: WEEK-END | K41: WEEK-END
A42: 7 | B42: 2025-09-21 | C42: WEEK-END | K42: WEEK-END
A43: 1 | B43: 2025-09-22
A44: 2 | B44: 2025-09-23
A45: 3 | B45: 2025-09-24
A46: 4 | B46: 2025-09-25
A47: 5 | B47: 2025-09-26
A48: 6 | B48: 2025-09-27 | C48: WEEK-END | K48: WEEK-END
A49: 7 | B49: 2025-09-28 | C49: WEEK-END | K49: WEEK-END
A50: 1 | B50: 2025-09-29
A51: 2 | B51: 2025-09-30
A52: 3 | B52: 2025-10-01
A53: 4 | B53: 2025-10-02
A54: 5 | B54: 2025-10-03
A55: 6 | B55: 2025-10-04 | C55: WEEK-END | K55: WEEK-END
A56: 7 | B56: 2025-10-05 | C56: WEEK-END | K56: WEEK-END
A57: 1 | B57: 2025-10-06
A58: 2 | B58: 2025-10-07
A59: 3 | B59: 2025-10-08
A60: 4 | B60: 2025-10-09
A61: 5 | B61: 2025-10-10
A62: 6 | B62: 2025-10-11 | C62: WEEK-END | K62: WEEK-END
A63: 7 | B63: 2025-10-12 | C63: WEEK-END | K63: WEEK-END
A64: 1 | B64: 2025-10-13 | C64: Congé | K64: Congé
A65: 2 | B65: 2025-10-14
A66: 3 | B66: 2025-10-15
A67: 4 | B67: 2025-10-16
A68: 5 | B68: 2025-10-17
A69: 6 | B69: 2025-10-18 | C69: WEEK-END | K69: WEEK-END
A70: 7 | B70: 2025-10-19 | C70: WEEK-END | K70: WEEK-END
A71: 1 | B71: 2025-10-20
A72: =WEEKDAY(B72,2) -> 2 | B72: 2025-10-21
A73: 3 | B73: 2025-10-22 | C73: Pédagogique | K73: Pédagogique
A74: 4 | B74: 2025-10-23
A75: 5 | B75: =B74+1 -> 2025-10-24
A76: 6 | B76: 2025-10-25 | C76: WEEK-END | K76: WEEK-END
A77: 7 | B77: 2025-10-26 | C77: WEEK-END | K77: WEEK-END
A78: 1 | B78: 2025-10-27
A79: 2 | B79: 2025-10-28
A80: 3 | B80: 2025-10-29
A81: 4 | B81: 2025-10-30
A82: 5 | B82: 2025-10-31
A83: 6 | B83: 2025-11-01 | C83: WEEK-END | K83: WEEK-END
A84: 7 | B84: 2025-11-02 | C84: WEEK-END | K84: WEEK-END
A85: 1 | B85: 2025-11-03
A86: 2 | B86: 2025-11-04
A87: 3 | B87: 2025-11-05
A88: 4 | B88: 2025-11-06 | C88: Pédagogique | K88: Pédagogique
A89: 5 | B89: 2025-11-07 | C89: Pédagogique | K89: Pédagogique
A90: 6 | B90: 2025-11-08 | C90: WEEK-END | K90: WEEK-END
A91: 7 | B91: 2025-11-09 | C91: WEEK-END | K91: WEEK-END
A92: 1 | B92: 2025-11-10
A93: 2 | B93: 2025-11-11
A94: 3 | B94: 2025-11-12
A95: 4 | B95: 2025-11-13
A96: 5 | B96: 2025-11-14
A97: 6 | B97: 2025-11-15 | C97: WEEK-END | K97: WEEK-END
A98: 7 | B98: 2025-11-16 | C98: WEEK-END | K98: WEEK-END
A99: 1 | B99: 2025-11-17
A100: 2 | B100: 2025-11-18
A101: 3 | B101: 2025-11-19
A102: 4 | B102: 2025-11-20 | C102: Pédagogique Commune | K102: Pédagogique Commune
A103: 5 | B103: 2025-11-21
A104: 6 | B104: 2025-11-22 | C104: WEEK-END | K104: WEEK-END
A105: 7 | B105: 2025-11-23 | C105: WEEK-END | K105: WEEK-END
A106: 1 | B106: 2025-11-24
A107: 2 | B107: 2025-11-25
A108: 3 | B108: 2025-11-26
A109: 4 | B109: 2025-11-27
A110: 5 | B110: 2025-11-28
A111: 6 | B111: 2025-11-29 | C111: WEEK-END | K111: WEEK-END
A112: 7 | B112: 2025-11-30 | C112: WEEK-END | K112: WEEK-END
A113: 1 | B113: 2025-12-01
A114: 2 | B114: 2025-12-02
A115: 3 | B115: 2025-12-03
A116: 4 | B116: 2025-12-04
A117: 5 | B117: 2025-12-05
A118: 6 | B118: 2025-12-06 | C118: WEEK-END | K118: WEEK-END
A119: 7 | B119: 2025-12-07 | C119: WEEK-END | K119: WEEK-END
A120: 1 | B120: 2025-12-08
A121: 2 | B121: 2025-12-09
A122: 3 | B122: 2025-12-10
A123: 4 | B123: 2025-12-11
A124: 5 | B124: 2025-12-12
A125: 6 | B125: 2025-12-13 | C125: WEEK-END | K125: WEEK-END
A126: 7 | B126: 2025-12-14 | C126: WEEK-END | K126: WEEK-END
A127: 1 | B127: 2025-12-15
A128: 2 | B128: 2025-12-16
A129: 3 | B129: 2025-12-17
A130: 4 | B130: 2025-12-18
A131: 5 | B131: 2025-12-19
A132: 6 | B132: 2025-12-20 | C132: WEEK-END | K132: WEEK-END
A133: 7 | B133: 2025-12-21 | C133: WEEK-END | K133: WEEK-END
A134: 1 | B134: 2025-12-22 | C134: Congé Noël | K134: Congé Noël
A135: 2 | B135: 2025-12-23 | C135: Congé Noël | K135: Congé Noël
A136: =WEEKDAY(B136,2) -> 3 | B136: 2025-12-24 | C136: Congé Noël | K136: Congé Noël
A137: 4 | B137: 2025-12-25 | C137: Congé Noël | K137: Congé Noël
A138: 5 | B138: 2025-12-26 | C138: Congé Noël | K138: Congé Noël
A139: 6 | B139: =B138+1 -> 2025-12-27 | C139: WEEK-END | K139: WEEK-END
A140: 7 | B140: 2025-12-28 | C140: WEEK-END | K140: WEEK-END
A141: 1 | B141: 2025-12-29 | C141: Congé Noël | K141: Congé Noël
A142: 2 | B142: 2025-12-30 | C142: Congé Noël | K142: Congé Noël
A143: 3 | B143: 2025-12-31 | C143: Congé Noël | K143: Congé Noël
A144: 4 | B144: 2026-01-01 | C144: Congé Noël | K144: Congé Noël
A145: 5 | B145: 2026-01-02 | C145: Congé Noël | K145: Congé Noël
A146: 6 | B146: 2026-01-03 | C146: WEEK-END | K146: WEEK-END
A147: 7 | B147: 2026-01-04 | C147: WEEK-END | K147: WEEK-END
A148: 1 | B148: 2026-01-05 | C148: Pédagogique Commune | K148: Pédagogique Commune
A149: 2 | B149: 2026-01-06
A150: 3 | B150: 2026-01-07
A151: 4 | B151: 2026-01-08
A152: 5 | B152: 2026-01-09
A153: 6 | B153: 2026-01-10 | C153: WEEK-END | K153: WEEK-END
A154: 7 | B154: 2026-01-11 | C154: WEEK-END | K154: WEEK-END
A155: 1 | B155: 2026-01-12
A156: 2 | B156: 2026-01-13
A157: 3 | B157: 2026-01-14
A158: 4 | B158: 2026-01-15
